Workbook

Sheet Sample Report (hidden)
A2: Date
A3: Hen
A4: Program
A5: Start at 999999
A6: Sequence component 1 | B6: Time 1 | C6: Seqeunce Component 2 | D6: Time 2 | E6: Seqeunce Component 3 | F6: Time 3 | G6: Correct 0 = No 1=Yes | J6: Seqeunce | K6: Time
A7: 12 | B7: 7 | C7: 12 | D7: 42 | E7: 13 | F7: 18 | G7: if 77 new line, if 31 or 41 = yes new line on 77, | J7: =string of Seqeunce compponent 1, 2 & 3 | K7: =time 3
A8: This continues until ther is a 1 on its own to indicate start of summary data
J9: 10-19 =1
A10: Summary Data | J10: 20-29 =2
A11: Correct | B11: Incorrect | C11: Rft | D11: total | E11: Av Correct | F11: Av Incorrect | G11: Percent correct | H11: Time | J11: in this example the seqeunce would be 111
A12: 40 | B12: 33 | C12: 40 | D12: 73 | E12: 23.95 | F12: 15 | G12: 54 | H12: 806

Sheet Summary
A2: Day | B2: Date | C2: Average Response Rate | D2: Target % | E2: RF for non correct sequence | F2: U Value | K2: Block 1 | L2: Block 2 | M2: Block 3 | N2: Block 4 | O2: Block 5 | P2: Block 6
A3: 1 | B3: ='!M525A00.103'!B2:C2 -> <date> | C3: =('!M525A00.103'!F165/60)/'!M525A00.103'!Q3 -> 2.484895833 | D3: ='!M525A00.103'!N20/'!M525A00.103'!Q3 -> 0 | E3: =SUM('!M525A00.103'!L20:Q20)/'!M525A00.103'!Q3 -> 1.65 | F3: ='!M525A00.103'!Q16 -> 0.2521870991 | J3: Average Response Rate | K3: =AVERAGE(C3:C7) -> 4.760309545 | L3: =AVERAGE(C8:C12) -> 4.130771105 | M3: =AVERAGE(C13:C17) -> 2.461619155 | N3: =AVERAGE(C18:C22) -> 2.235194037 | O3: =AVERAGE(C23:C27) -> 2.076113205 | P3: =AVERAGE(C28:C32) -> 2.043632044
A4: 2 | B4: ='!M526A10.103'!B2:C2 -> <date> | C4: =('!M526A10.103'!F117/60)/'!M526A10.103'!Q3 -> 3.52027027 | D4: ='!M526A10.103'!N20/'!M526A10.103'!Q3 -> 0 | E4: =SUM('!M526A10.103'!L20:Q20)/'!M526A10.103'!Q3 -> 2.243243243 | F4: ='!M526A10.103'!Q16 -> 0.3508333218 | J4: Target % | K4: =AVERAGE(D3:D7) -> 0.05169777284 | L4: =AVERAGE(D8:D12) -> 0.2090166126 | M4: =AVERAGE(D13:D17) -> 0.2015216072 | N4: =AVERAGE(D18:D22) -> 0.1247004662 | O4: =AVERAGE(D23:D27) -> 0.1764727732 | P4: =AVERAGE(D28:D32) -> 0.1745954892
A5: 3 | B5: ='!M527A20.103'!B2:C2 -> <date> | C5: =('!M527A20.103'!F64/60)/'!M527A20.103'!Q3 -> 6.491666667 | D5: ='!M527A20.103'!N20/'!M527A20.103'!Q3 -> 0.01724137931 | E5: =SUM('!M527A20.103'!L20:Q20)/'!M527A20.103'!Q3 -> 4 | F5: ='!M527A20.103'!Q16 -> 0.4224535755 | J5: CCRF | K5: =AVERAGE(E3:E7) -> 2.738165751 | L5: =AVERAGE(E8:E12) -> 2.496764927 | M5: =AVERAGE(E13:E17) -> 1.749363094 | N5: =AVERAGE(E18:E22) -> 2.067055944 | O5: =AVERAGE(E23:E27) -> 2.30678532 | P5: =AVERAGE(E28:E32) -> 2.452673985
A6: 4 | B6: ='!M528930.103'!B2:C2 -> <date> | C6: =('!M528930.103'!F77/60)/'!M528930.103'!Q3 -> 5.603286385 | D6: ='!M528930.103'!N20/'!M528930.103'!Q3 -> 0.1126760563 | E6: =SUM('!M528930.103'!L20:Q20)/'!M528930.103'!Q3 -> 2.169014085 | F6: ='!M528930.103'!Q16 -> 0.2585755264 | J6: U Value | K6: =AVERAGE(F3:F7) -> 0.3081688008 | L6: =AVERAGE(F8:F12) -> 0.308001365 | M6: =AVERAGE(F13:F17) -> 0.3056613258 | N6: =AVERAGE(F18:F22) -> 0.2434977171 | O6: =AVERAGE(F23:F27) -> 0.2285393679 | P6: =AVERAGE(F28:F32) -> 0.2037284574
A7: 5 | B7: ='!M529940.103'!B2:C2 -> <date> | C7: =('!M529940.103'!F76/60)/'!M529940.103'!Q3 -> 5.701428571 | D7: ='!M529940.103'!N20/'!M529940.103'!Q3 -> 0.1285714286 | E7: =SUM('!M529940.103'!L20:Q20)/'!M529940.103'!Q3 -> 3.628571429 | F7: ='!M529940.103'!Q16 -> 0.2567944811
A8: 6 | B8: ='!M530A00.103'!B2:C2 -> <date> | C8: =('!M530A00.103'!F75/60)/'!M530A00.103'!Q3 -> 5.71763285 | D8: ='!M530A00.103'!N20/'!M530A00.103'!Q3 -> 0.2463768116 | E8: =SUM('!M530A00.103'!L20:Q20)/'!M530A00.103'!Q3 -> 3.797101449 | F8: ='!M530A00.103'!Q16 -> 0.2712808814
A9: 7 | B9: ='!M531930.103'!B2:C2 -> <date> | C9: =('!M531930.103'!F108/60)/'!M531930.103'!Q3 -> 3.915849673 | D9: ='!M531930.103'!N20/'!M531930.103'!Q3 -> 0.137254902 | E9: =SUM('!M531930.103'!L20:Q20)/'!M531930.103'!Q3 -> 2.647058824 | F9: ='!M531930.103'!Q16 -> 0.2009518835 | G9: =K3 -> 4.760309545 | H9: =L3 -> 4.130771105 | I9: =M3 -> 2.461619155 | J9: =N3 -> 2.235194037 | K9: =O3 -> 2.076113205 | L9: =P3 -> 2.043632044 | M9: =K4 -> 0.05169777284 | N9: =L4 -> 0.2090166126 | O9: =M4 -> 0.2015216072 | P9: =N4 -> 0.1247004662 | Q9: =O4 -> 0.1764727732 | R9: =P4 -> 0.1745954892 | S9: =K6 -> 0.3081688008 | T9: =L6 -> 0.308001365 | U9: =M6 -> 0.3056613258 | V9: =N6 -> 0.2434977171 | W9: =O6 -> 0.2285393679 | X9: =P6 -> 0.2037284574
A10: 8 | B10: ='!M601A10.103'!B2:C2 -> <date> | C10: =('!M601A10.103'!F104/60)/'!M601A10.103'!Q3 -> 4.081802721 | D10: ='!M601A10.103'!N20/'!M601A10.103'!Q3 -> 0.2755102041 | E10: =SUM('!M601A10.103'!L20:Q20)/'!M601A10.103'!Q3 -> 2.87755102 | F10: ='!M601A10.103'!Q16 -> 0.3663110995
A11: 9 | B11: ='!M602920.103'!B2:C2 -> <date> | C11: =('!M602920.103'!F108/60)/'!M602920.103'!Q3 -> 3.852265372 | D11: ='!M602920.103'!N20/'!M602920.103'!Q3 -> 0.145631068 | E11: =SUM('!M602920.103'!L20:Q20)/'!M602920.103'!Q3 -> 1.650485437 | F11: ='!M602920.103'!Q16 -> 0.3739764887
A12: 10 | B12: ='!M603B50.103'!B2:C2 -> <date> | C12: =('!M603B50.103'!F134/60)/'!M603B50.103'!Q3 -> 3.08630491 | D12: ='!M603B50.103'!N20/'!M603B50.103'!Q3 -> 0.2403100775 | E12: =SUM('!M603B50.103'!L20:Q20)/'!M603B50.103'!Q3 -> 1.511627907 | F12: ='!M603B50.103'!Q16 -> 0.3274864719
A13: 11 | B13: ='!M604A10.103'!B2:C2 -> <date> | C13: =('!M604A10.103'!F124/60)/'!M604A10.103'!Q3 -> 2.712146893 | D13: ='!M604A10.103'!N20/'!M604A10.103'!Q3 -> 0.186440678 | E13: =SUM('!M604A10.103'!L20:Q20)/'!M604A10.103'!Q3 -> 1.457627119 | F13: ='!M604A10.103'!Q16 -> 0.3443283849
A14: 12 | B14: ='!M605930.103'!B2:C2 -> <date> | C14: =('!M605930.103'!F87/60)/'!M605930.103'!Q3 -> 2.169547325 | D14: ='!M605930.103'!N20/'!M605930.103'!Q3 -> 0.2222222222 | E14: =SUM('!M605930.103'!L20:Q20)/'!M605930.103'!Q3 -> 2.061728395 | F14: ='!M605930.103'!Q16 -> 0.3191391549
A15: 13 | B15: ='!M606930.103'!B2:C2 -> <date> | C15: =('!M606930.103'!F101/60)/'!M606930.103'!Q3 -> 2.246666667 | D15: ='!M606930.103'!N20/'!M606930.103'!Q3 -> 0.2421052632 | E15: =SUM('!M606930.103'!L20:Q20)/'!M606930.103'!Q3 -> 1.757894737 | F15: ='!M606930.103'!Q16 -> 0.3044375425
A16: 14 | B16: ='!M607940.103'!B2:C2 -> <date> | C16: =('!M607940.103'!F88/60)/'!M607940.103'!Q3 -> 2.080894309 | D16: ='!M607940.103'!N20/'!M607940.103'!Q3 -> 0.1829268293 | E16: =SUM('!M607940.103'!L20:Q20)/'!M607940.103'!Q3 -> 2 | F16: ='!M607940.103'!Q16 -> 0.2893528756
A17: 15 | B17: ='!M608A20.103'!B2:C2 -> <date> | C17: =('!M608A20.103'!F121/60)/'!M608A20.103'!Q3 -> 3.09884058 | D17: ='!M608A20.103'!N20/'!M608A20.103'!Q3 -> 0.1739130435 | E17: =SUM('!M608A20.103'!L20:Q20)/'!M608A20.103'!Q3 -> 1.469565217 | F17: ='!M608A20.103'!Q16 -> 0.2710486712
A18: 16 | B18: ='!M609A20.103'!B2:C2 -> <date> | C18: =('!M609A20.103'!F84/60)/'!M609A20.103'!Q3 -> 2.267735043 | D18: ='!M609A20.103'!N20/'!M609A20.103'!Q3 -> 0.1666666667 | E18: =SUM('!M609A20.103'!L20:Q20)/'!M609A20.103'!Q3 -> 1.935897436 | F18: ='!M609A20.103'!Q16 -> 0.2970396129
A19: 17 | B19: ='!M610930.103'!B2:C2 -> <date> | C19: =('!M610930.103'!F81/60)/'!M610930.103'!Q3 -> 2.626222222 | D19: ='!M610930.103'!N20/'!M610930.103'!Q3 -> 0.1466666667 | E19: =SUM('!M610930.103'!L20:Q20)/'!M610930.103'!Q3 -> 2.106666667 | F19: ='!M610930.103'!Q16 -> 0.2689907699
A20: 18 | B20: ='!M611940.103'!B2:C2 -> <date> | C20: =('!M611940.103'!F61/60)/'!M611940.103'!Q3 -> 2.165757576 | D20: ='!M611940.103'!N20/'!M611940.103'!Q3 -> 0.01818181818 | E20: =SUM('!M611940.103'!L20:Q20)/'!M611940.103'!Q3 -> 2.381818182 | F20: ='!M611940.103'!Q16 -> 0.1628893048
A21: 19 | B21: ='!M612930.103'!B2:C2 -> <date> | C21: =('!M612930.103'!F84/60)/'!M612930.103'!Q3 -> 2.091880342 | D21: ='!M612930.103'!N20/'!M612930.103'!Q3 -> 0.1794871795 | E21: =SUM('!M612930.103'!L20:Q20)/'!M612930.103'!Q3 -> 1.935897436 | F21: ='!M612930.103'!Q16 -> 0.2569522946
A22: 20 | B22: ='!M613A20.103'!B2:C2 -> <date> | C22: =('!M613A20.103'!F86/60)/'!M613A20.103'!Q3 -> 2.024375 | D22: ='!M613A20.103'!N20/'!M613A20.103'!Q3 -> 0.1125 | E22: =SUM('!M613A20.103'!L20:Q20)/'!M613A20.103'!Q3 -> 1.975 | F22: ='!M613A20.103'!Q16 -> 0.2316166033
A23: 21 | B23: ='!M614A30.103'!B2:C2 -> <date> | C23: =('!M614A30.103'!F77/60)/'!M614A30.103'!Q3 -> 2.08685446 | D23: ='!M614A30.103'!N20/'!M614A30.103'!Q3 -> 0.338028169 | E23: =SUM('!M614A30.103'!L20:Q20)/'!M614A30.103'!Q3 -> 2.253521127 | F23: ='!M614A30.103'!Q16 -> 0.2249171761
A24: 22 | B24: ='!M615830.103'!B2:C2 -> <date> | C24: =('!M615830.103'!F91/60)/'!M615830.103'!Q3 -> 1.97 | D24: ='!M615830.103'!N20/'!M615830.103'!Q3 -> 0.05882352941 | E24: =SUM('!M615830.103'!L20:Q20)/'!M615830.103'!Q3 -> 1.823529412 | F24: ='!M615830.103'!Q16 -> 0.2371096531
A25: 23 | B25: ='!M616820.103'!B2:C2 -> <date> | C25: =('!M616820.103'!F68/60)/'!M616820.103'!Q3 -> 2.102688172 | D25: ='!M616820.103'!N20/'!M616820.103'!Q3 -> 0.1451612903 | E25: =SUM('!M616820.103'!L20:Q20)/'!M616820.103'!Q3 -> 2.451612903 | F25: ='!M616820.103'!Q16 -> 0.2295322709
A26: 24 | B26: ='!M617B40.103'!B2:C2 -> <date> | C26: =('!M617B40.103'!F63/60)/'!M617B40.103'!Q3 -> 2.292690058 | D26: ='!M617B40.103'!N20/'!M617B40.103'!Q3 -> 0.1403508772 | E26: =SUM('!M617B40.103'!L20:Q20)/'!M617B40.103'!Q3 -> 2.438596491 | F26: ='!M617B40.103'!Q16 -> 0.2408839668
A27: 25 | B27: ='!M618B10.103'!B2:C2 -> <date> | C27: =('!M618B10.103'!F66/60)/'!M618B10.103'!Q3 -> 1.928333333 | D27: ='!M618B10.103'!N20/'!M618B10.103'!Q3 -> 0.2 | E27: =SUM('!M618B10.103'!L20:Q20)/'!M618B10.103'!Q3 -> 2.566666667 | F27: ='!M618B10.103'!Q16 -> 0.2102537726
A28: 26 | B28: ='!M619B50.103'!B2:C2 -> <date> | C28: =('!M619B50.103'!F59/60)/'!M619B50.103'!Q3 -> 2.081761006 | D28: ='!M619B50.103'!N20/'!M619B50.103'!Q3 -> 0.09433962264 | E28: =SUM('!M619B50.103'!L20:Q20)/'!M619B50.103'!Q3 -> 2.547169811 | F28: ='!M619B50.103'!Q16 -> 0.1814778938
A29: 27 | B29: ='!M620B30.103'!B2:C2 -> <date> | C29: =('!M620B30.103'!F80/60)/'!M620B30.103'!Q3 -> 2.117792793 | D29: ='!M620B30.103'!N20/'!M620B30.103'!Q3 -> 0.2027027027 | E29: =SUM('!M620B30.103'!L20:Q20)/'!M620B30.103'!Q3 -> 2.189189189 | F29: ='!M620B30.103'!Q16 -> 0.2536067734
A30: 28 | B30: ='!M621B10.103'!B2:C2 -> <date> | C30: =('!M621B10.103'!F63/60)/'!M621B10.103'!Q3 -> 1.91374269 | D30: ='!M621B10.103'!N20/'!M621B10.103'!Q3 -> 0.2105263158 | E30: =SUM('!M621B10.103'!L20:Q20)/'!M621B10.103'!Q3 -> 2.50877193 | F30: ='!M621B10.103'!Q16 -> 0.1954085845
A31: 29 | B31: ='!M622C20.103'!B2:C2 -> <date> | C31: =('!M622C20.103'!F66/60)/'!M622C20.103'!Q3 -> 2.132222222 | D31: ='!M622C20.103'!N20/'!M622C20.103'!Q3 -> 0.2333333333 | E31: =SUM('!M622C20.103'!L20:Q20)/'!M622C20.103'!Q3 -> 2.433333333 | F31: ='!M622C20.103'!Q16 -> 0.2051941622
A32: 30 | B32: ='!M623C50.103'!B2:C2 -> <date> | C32: =('!M623C50.103'!F59/60)/'!M623C50.103'!Q3 -> 1.972641509 | D32: ='!M623C50.103'!N20/'!M623C50.103'!Q3 -> 0.1320754717 | E32: =SUM('!M623C50.103'!L20:Q20)/'!M623C50.103'!Q3 -> 2.58490566 | F32: ='!M623C50.103'!Q16 -> 0.182954873
B33: ='!M624C20.103'!B2:C2 -> <date> | C33: =('!M624C20.103'!F94/60)/'!M624C20.103'!Q3 -> 1.948863636 | D33: ='!M624C20.103'!N20/'!M624C20.103'!Q3 -> 0.1136363636 | E33: =SUM('!M624C20.103'!L20:Q20)/'!M624C20.103'!Q3 -> 1.715909091 | F33: ='!M624C20.103'!Q16 -> 0.2651583166

Sheet Start
F1: Use Folder 51 | H1: Auto Clean Up | J1: Correct sequence
F2: FALSE | H2: TRUE | J2: 122
A4: Working with Folder | G4: Process All/Or Pick A number: ALL or an integer
A5: E:\Hen Data\Raw Data\103_183\phase 2 con\ | G5: ALL
A6: Filenames:
A7: !M530A00.103 | G7: Paint Cells
A8: !M525A00.103 | G8: FALSE
A9: !M526A10.103
A10: !M527A20.103
A11: !M528930.103
A12: !M529940.103
A13: !M612930.103
A14: !M613A20.103
A15: !M614A30.103
A16: !M615830.103
A17: !M616820.103
A18: !M617B40.103
A19: !M618B10.103
A20: !M619B50.103
A21: !M620B30.103
A22: !M621B10.103
A23: !M622C20.103
A24: !M623C50.103
A25: !M624C20.103
A26: !M531930.103
A27: !M601A10.103
A28: !M602920.103
A29: !M603B50.103
A30: !M604A10.103
A31: !M605930.103
A32: !M606930.103
A33: !M607940.103
A34: !M608A20.103
A35: !M609A20.103
A36: !M610930.103
A37: !M611940.103

Sheet !M525A00.103
A1: Report for:!M525A00.103
A2: Date: | B2: <date>
A3: Hen: | B3: <hen> | F3: Correct Sequence | G3: =Start!J2 -> 122 | P3: Total Sequences in Data | Q3: =4994-COUNTBLANK(L7:L5000) -> 160 | V3: Total Sequences in Block Data | W3: =COUNTA(L7:L33) -> 27 | AA3: Total Sequences in Block Data | AB3: =COUNTA(L34:L59) -> 26 | AF3: Total Sequences in Block Data | AG3: =COUNTA(L60:L86) -> 27 | AK3: Total Sequences in Block Data | AL3: =COUNTA(L87:L113) -> 27 | AP3: Total Sequences in Block Data | AQ3: =COUNTA(L114:L139) -> 26 | AU3: Total Sequences in Block Data | AV3: =COUNTA(L140:L166) -> 27
P4: Total Sequences in Summary | Q4: =SUM(O7:O14) -> 159 | V4: Total Sequences in Block Summary | W4: =SUM(U7:U14) -> 27 | AA4: Total Sequences in Block Summary | AB4: =SUM(Z7:Z14) -> 26 | AF4: Total Sequences in Block Summary | AG4: =SUM(AE7:AE14) -> 27 | AK4: Total Sequences in Block Summary | AL4: =SUM(AJ7:AJ14) -> 27 | AP4: Total Sequences in Block Summary | AQ4: =SUM(AO7:AO14) -> 26 | AU4: Total Sequences in Block Summary | AV4: =SUM(AT7:AT14) -> 26
T5: Block 1 | Y5: Block 2 | AD5: Block 3 | AI5: Block 4 | AN5: Block 5 | AS5: Block 6
A6: Sequence Component 1 | B6: Time 1 | C6: Sequence Component 2 | D6: Time 2 | E6: Sequence Component 3 | F6: Time 3 | G6: Sequence Component 4 | H6: Time 4 | I6: Sequence Component 5 | J6: Time 5 | K6: Correct? 0=No 1=Yes | L6: Sequence | N6: Frequency | P6: Relative Frequency | Q6: Variability | T6: Frequency | V6: Relative Frequency | W6: Variability | Y6: Frequency | AA6: Relative Frequency | AB6: Variability | AD6: Frequency | AF6: Relative Frequency | AG6: Variability | AI6: Frequency | AK6: Relative Frequency | AL6: Variability | AN6: Frequency | AP6: Relative Frequency | AQ6: Variability | AS6: Frequency | AU6: Relative Frequency | AV6: Variability
A7: 22 | B7: 5 | C7: 13 | D7: 13 | E7: 14 | F7: 17 | K7: 0 | L7: 211 | N7: 111 | O7: =COUNTIF($L$7:$L$500,N7) -> 21 | P7: =O7/$Q$4 -> 0.1320754717 | Q7: =IF(P7=0,0,(P7*((LOG(P7))/LOG(2)))) -> -0.3857350703 | T7: =N7 -> 111 | U7: =COUNTIF(L7:L33,T7) -> 0 | V7: =U7/(W4-U10) -> 0 | W7: =IF(V7=0,0,(V7*((LOG(V7))/LOG(2)))) -> 0 | Y7: =N7 -> 111 | Z7: =COUNTIF(L34:L59,Y7) -> 1 | AA7: =Z7/(AB4-Z10) -> 0.03846153846 | AB7: =IF(AA7=0,0,(AA7*((LOG(AA7))/LOG(2)))) -> -0.180786143 | AD7: =N7 -> 111 | AE7: =COUNTIF(L60:L86,AD7) -> 0 | AF7: =AE7/(AG4-AE10) -> 0 | AG7: =IF(AF7=0,0,(AF7*((LOG(AF7))/LOG(2)))) -> 0 | AI7: =N7 -> 111 | AJ7: =COUNTIF(L87:L113,AI7) -> 1 | AK7: =AJ7/(AL4-AJ10) -> 0.03703703704 | AL7: =IF(AK7=0,0,(AK7*((LOG(AK7))/LOG(2)))) -> -0.1761069445 | AN7: =N7 -> 111 | AO7: =COUNTIF(L114:L139,AN7) -> 6 | AP7: =AO7/(AQ4-AO10) -> 0.2307692308 | AQ7: =IF(AP7=0,0,(AP7*((LOG(AP7))/LOG(2)))) -> -0.4881870502 | AS7: =N7 -> 111 | AT7: =COUNTIF(L140:L166,AS7) -> 13 | AU7: =AT7/(AV4-AT10) -> 0.5 | AV7: =IF(AU7=0,0,(AU7*((LOG(AU7))/LOG(2)))) -> -0.5
A8: 22 | B8: 115 | C8: 24 | D8: 131 | E8: 14 | F8: 147 | K8: 0 | L8: 221 | N8: 112 | O8: =COUNTIF($L$7:$L$500,N8) -> 2 | P8: =O8/$Q$4 -> 0.01257861635 | Q8: =IF(P8=0,0,(P8*((LOG(P8))/LOG(2)))) -> -0.07940733277 | T8: =N8 -> 112 | U8: =COUNTIF(L7:L33,T8) -> 0 | V8: =U8/(W4-U10) -> 0 | W8: =IF(V8=0,0,(V8*((LOG(V8))/LOG(2)))) -> 0 | Y8: =N8 -> 112 | Z8: =COUNTIF(L34:L59,Y8) -> 0 | AA8: =Z8/(AB4-Z10) -> 0 | AB8: =IF(AA8=0,0,(AA8*((LOG(AA8))/LOG(2)))) -> 0 | AD8: =N8 -> 112 | AE8: =COUNTIF(L60:L86,AD8) -> 1 | AF8: =AE8/(AG4-AE10) -> 0.03703703704 | AG8: =IF(AF8=0,0,(AF8*((LOG(AF8))/LOG(2)))) -> -0.1761069445 | AI8: =N8 -> 112 | AJ8: =COUNTIF(L87:L113,AI8) -> 1 | AK8: =AJ8/(AL4-AJ10) -> 0.03703703704 | AL8: =IF(AK8=0,0,(AK8*((LOG(AK8))/LOG(2)))) -> -0.1761069445 | AN8: =N8 -> 112 | AO8: =COUNTIF(L114:L139,AN8) -> 0 | AP8: =AO8/(AQ4-AO10) -> 0 | AQ8: =IF(AP8=0,0,(AP8*((LOG(AP8))/LOG(2)))) -> 0 | AS8: =N8 -> 112 | AT8: =COUNTIF(L140:L166,AS8) -> 0 | AU8: =AT8/(AV4-AT10) -> 0 | AV8: =IF(AU8=0,0,(AU8*((LOG(AU8))/LOG(2)))) -> 0
A9: 22 | B9: 248 | C9: 13 | D9: 301 | E9: 23 | F9: 319 | K9: 0 | L9: 212 | N9: 121 | O9: =COUNTIF($L$7:$L$500,N9) -> 1 | P9: =O9/$Q$4 -> 0.006289308176 | Q9: =IF(P9=0,0,(P9*((LOG(P9))/LOG(2)))) -> -0.04599297456 | T9: =N9 -> 121 | U9: =COUNTIF(L7:L33,T9) -> 0 | V9: =U9/(W4-U10) -> 0 | W9: =IF(V9=0,0,(V9*((LOG(V9))/LOG(2)))) -> 0 | Y9: =N9 -> 121 | Z9: =COUNTIF(L34:L59,Y9) -> 0 | AA9: =Z9/(AB4-Z10) -> 0 | AB9: =IF(AA9=0,0,(AA9*((LOG(AA9))/LOG(2)))) -> 0 | AD9: =N9 -> 121 | AE9: =COUNTIF(L60:L86,AD9) -> 1 | AF9: =AE9/(AG4-AE10) -> 0.03703703704 | AG9: =IF(AF9=0,0,(AF9*((LOG(AF9))/LOG(2)))) -> -0.1761069445 | AI9: =N9 -> 121 | AJ9: =COUNTIF(L87:L113,AI9) -> 0 | AK9: =AJ9/(AL4-AJ10) -> 0 | AL9: =IF(AK9=0,0,(AK9*((LOG(AK9))/LOG(2)))) -> 0 | AN9: =N9 -> 121 | AO9: =COUNTIF(L114:L139,AN9) -> 0 | AP9: =AO9/(AQ4-AO10) -> 0 | AQ9: =IF(AP9=0,0,(AP9*((LOG(AP9))/LOG(2)))) -> 0 | AS9: =N9 -> 121 | AT9: =COUNTIF(L140:L166,AS9) -> 0 | AU9: =AT9/(AV4-AT10) -> 0 | AV9: =IF(AU9=0,0,(AU9*((LOG(AU9))/LOG(2)))) -> 0
A10: 22 | B10: 416 | C10: 24 | D10: 422 | E10: 14 | F10: 434 | K10: 0 | L10: 221 | N10: 122 | O10: =COUNTIF($L$7:$L$500,N10) -> 0 | P10: =O10/$Q$4 -> 0 | Q10: =IF(P10=0,0,(P10*((LOG(P10))/LOG(2)))) -> 0 | T10: =N10 -> 122 | U10: =COUNTIF(L7:L33,T10) -> 0 | Y10: =N10 -> 122 | Z10: =COUNTIF(L34:L59,Y10) -> 0 | AD10: =N10 -> 122 | AE10: =COUNTIF(L60:L86,AD10) -> 0 | AI10: =N10 -> 122 | AJ10: =COUNTIF(L87:L113,AI10) -> 0 | AN10: =N10 -> 122 | AO10: =COUNTIF(L114:L139,AN10) -> 0 | AS10: =N10 -> 122 | AT10: =COUNTIF(L140:L166,AS10) -> 0
A11: 22 | B11: 529 | C11: 24 | D11: 541 | E11: 14 | F11: 556 | K11: 0 | L11: 221 | N11: 211 | O11: =COUNTIF($L$7:$L$500,N11) -> 89 | P11: =O11/$Q$4 -> 0.5597484277 | Q11: =IF(P11=0,0,(P11*((LOG(P11))/LOG(2)))) -> -0.46859313 | T11: =N11 -> 211 | U11: =COUNTIF(L7:L33,T11) -> 18 | V11: =U11/(W4-U10) -> 0.6666666667 | W11: =IF(V11=0,0,(V11*((LOG(V11))/LOG(2)))) -> -0.3899750005 | Y11: =N11 -> 211 | Z11: =COUNTIF(L34:L59,Y11) -> 10 | AA11: =Z11/(AB4-Z10) -> 0.3846153846 | AB11: =IF(AA11=0,0,(AA11*((LOG(AA11))/LOG(2)))) -> -0.5301967782 | AD11: =N11 -> 211 | AE11: =COUNTIF(L60:L86,AD11) -> 17 | AF11: =AE11/(AG4-AE10) -> 0.6296296296 | AG11: =IF(AF11=0,0,(AF11*((LOG(AF11))/LOG(2)))) -> -0.4202303421 | AI11: =N11 -> 211 | AJ11: =COUNTIF(L87:L113,AI11) -> 15 | AK11: =AJ11/(AL4-AJ10) -> 0.5555555556 | AL11: =IF(AK11=0,0,(AK11*((LOG(AK11))/LOG(2)))) -> -0.4711093925 | AN11: =N11 -> 211 | AO11: =COUNTIF(L114:L139,AN11) -> 18 | AP11: =AO11/(AQ4-AO10) -> 0.6923076923 | AQ11: =IF(AP11=0,0,(AP11*((LOG(AP11))/LOG(2)))) -> -0.3672794193 | AS11: =N11 -> 211 | AT11: =COUNTIF(L140:L166,AS11) -> 11 | AU11: =AT11/(AV4-AT10) -> 0.4230769231 | AV11: =IF(AU11=0,0,(AU11*((LOG(AU11))/LOG(2)))) -> -0.5250418883
A12: 22 | B12: 658 | C12: 24 | D12: 667 | E12: 14 | F12: 678 | K12: 0 | L12: 221 | N12: 212 | O12: =COUNTIF($L$7:$L$500,N12) -> 14 | P12: =O12/$Q$4 -> 0.08805031447 | Q12: =IF(P12=0,0,(P12*((LOG(P12))/LOG(2)))) -> -0.3086628457 | T12: =N12 -> 212 | U12: =COUNTIF(L7:L33,T12) -> 3 | V12: =U12/(W4-U10) -> 0.1111111111 | W12: =IF(V12=0,0,(V12*((LOG(V12))/LOG(2)))) -> -0.352213889 | Y12: =N12 -> 212 | Z12: =COUNTIF(L34:L59,Y12) -> 2 | AA12: =Z12/(AB4-Z10) -> 0.07692307692 | AB12: =IF(AA12=0,0,(AA12*((LOG(AA12))/LOG(2)))) -> -0.2846492091 | AD12: =N12 -> 212 | AE12: =COUNTIF(L60:L86,AD12) -> 2 | AF12: =AE12/(AG4-AE10) -> 0.07407407407 | AG12: =IF(AF12=0,0,(AF12*((LOG(AF12))/LOG(2)))) -> -0.278139815 | AI12: =N12 -> 212 | AJ12: =COUNTIF(L87:L113,AI12) -> 3 | AK12: =AJ12/(AL4-AJ10) -> 0.1111111111 | AL12: =IF(AK12=0,0,(AK12*((LOG(AK12))/LOG(2)))) -> -0.352213889 | AN12: =N12 -> 212 | AO12: =COUNTIF(L114:L139,AN12) -> 2 | AP12: =AO12/(AQ4-AO10) -> 0.07692307692 | AQ12: =IF(AP12=0,0,(AP12*((LOG(AP12))/LOG(2)))) -> -0.2846492091 | AS12: =N12 -> 212 | AT12: =COUNTIF(L140:L166,AS12) -> 2 | AU12: =AT12/(AV4-AT10) -> 0.07692307692 | AV12: =IF(AU12=0,0,(AU12*((LOG(AU12))/LOG(2)))) -> -0.2846492091
A13: 22 | B13: 777 | C13: 24 | D13: 784 | E13: 14 | F13: 796 | K13: 0 | L13: 221 | N13: 221 | O13: =COUNTIF($L$7:$L$500,N13) -> 29 | P13: =O13/$Q$4 -> 0.1823899371 | Q13: =IF(P13=0,0,(P13*((LOG(P13))/LOG(2)))) -> -0.4477494141 | T13: =N13 -> 221 | U13: =COUNTIF(L7:L33,T13) -> 6 | V13: =U13/(W4-U10) -> 0.2222222222 | W13: =IF(V13=0,0,(V13*((LOG(V13))/LOG(2)))) -> -0.4822055559 | Y13: =N13 -> 221 | Z13: =COUNTIF(L34:L59,Y13) -> 13 | AA13: =Z13/(AB4-Z10) -> 0.5 | AB13: =IF(AA13=0,0,(AA13*((LOG(AA13))/LOG(2)))) -> -0.5 | AD13: =N13 -> 221 | AE13: =COUNTIF(L60:L86,AD13) -> 5 | AF13: =AE13/(AG4-AE10) -> 0.1851851852 | AG13: =IF(AF13=0,0,(AF13*((LOG(AF13))/LOG(2)))) -> -0.4505480384 | AI13: =N13 -> 221 | AJ13: =COUNTIF(L87:L113,AI13) -> 5 | AK13: =AJ13/(AL4-AJ10) -> 0.1851851852 | AL13: =IF(AK13=0,0,(AK13*((LOG(AK13))/LOG(2)))) -> -0.4505480384 | AN13: =N13 -> 221 | AO13: =COUNTIF(L114:L139,AN13) -> 0 | AP13: =AO13/(AQ4-AO10) -> 0 | AQ13: =IF(AP13=0,0,(AP13*((LOG(AP13))/LOG(2)))) -> 0 | AS13: =N13 -> 221 | AT13: =COUNTIF(L140:L166,AS13) -> 0 | AU13: =AT13/(AV4-AT10) -> 0 | AV13: =IF(AU13=0,0,(AU13*((LOG(AU13))/LOG(2)))) -> 0
A14: 22 | B14: 891 | C14: 13 | D14: 907 | E14: 14 | F14: 915 | K14: 0 | L14: 211 | N14: 222 | O14: =COUNTIF($L$7:$L$500,N14) -> 3 | P14: =O14/$Q$4 -> 0.01886792453 | Q14: =IF(P14=0,0,(P14*((LOG(P14))/LOG(2)))) -> -0.1080739708 | T14: =N14 -> 222 | U14: =COUNTIF(L7:L33,T14) -> 0 | V14: =U14/(W4-U10) -> 0 | W14: =IF(V14=0,0,(V14*((LOG(V14))/LOG(2)))) -> 0 | Y14: =N14 -> 222 | Z14: =COUNTIF(L34:L59,Y14) -> 0 | AA14: =Z14/(AB4-Z10) -> 0 | AB14: =IF(AA14=0,0,(AA14*((LOG(AA14))/LOG(2)))) -> 0 | AD14: =N14 -> 222 | AE14: =COUNTIF(L60:L86,AD14) -> 1 | AF14: =AE14/(AG4-AE10) -> 0.03703703704 | AG14: =IF(AF14=0,0,(AF14*((LOG(AF14))/LOG(2)))) -> -0.1761069445 | AI14: =N14 -> 222 | AJ14: =COUNTIF(L87:L113,AI14) -> 2 | AK14: =AJ14/(AL4-AJ10) -> 0.07407407407 | AL14: =IF(AK14=0,0,(AK14*((LOG(AK14))/LOG(2)))) -> -0.278139815 | AN14: =N14 -> 222 | AO14: =COUNTIF(L114:L139,AN14) -> 0 | AP14: =AO14/(AQ4-AO10) -> 0 | AQ14: =IF(AP14=0,0,(AP14*((LOG(AP14))/LOG(2)))) -> 0 | AS14: =N14 -> 222 | AT14: =COUNTIF(L140:L166,AS14) -> 0 | AU14: =AT14/(AV4-AT10) -> 0 | AV14: =IF(AU14=0,0,(AU14*((LOG(AU14))/LOG(2)))) -> 0
A15: 22 | B15: 1030 | C15: 13 | D15: 1041 | E15: 14 | F15: 1054 | K15: 0 | L15: 211 | P15: =SUM(P7:P14) -> 1 | Q15: =-SUM(Q7:Q14) -> 1.844214738 | V15: =SUM(V7:V14) -> 1 | W15: =-SUM(W7:W14) -> 1.224394445 | AA15: =SUM(AA7:AA14) -> 1 | AB15: =-SUM(AB7:AB14) -> 1.49563213 | AF15: =SUM(AF7:AF14) -> 1 | AG15: =-SUM(AG7:AG14) -> 1.677239029 | AK15: =SUM(AK7:AK14) -> 1 | AL15: =-SUM(AL7:AL14) -> 1.904225024 | AP15: =SUM(AP7:AP14) -> 1 | AQ15: =-SUM(AQ7:AQ14) -> 1.140115679 | AU15: =SUM(AU7:AU14) -> 1 | AV15: =-SUM(AV7:AV14) -> 1.309691097
A16: 22 | B16: 1153 | C16: 24 | D16: 1167 | E16: 14 | F16: 1175 | K16: 0 | L16: 221 | P16: U= | Q16: =Q15/(LOG(Q4)/LOG(2)) -> 0.2521870991 | V16: U1= | W16: =W15/(LOG(W4)/LOG(2)) -> 0.2575022952 | AA16: U2= | AB16: =AB15/(LOG(AB4)/LOG(2)) -> 0.3181898333 | AF16: U3= | AG16: =AG15/(LOG(AG4)/LOG(2)) -> 0.3527400024 | AK16: U4= | AL16: =AL15/(LOG(AL4)/LOG(2)) -> 0.4004774084 | AP16: U5= | AQ16: =AQ15/(LOG(AQ4)/LOG(2)) -> 0.2425551112 | AU16: U6= | AV16: =AV15/(LOG(AV4)/LOG(2)) -> 0.2786316123
A17: 22 | B17: 1275 | C17: 13 | D17: 1289 | E17: 23 | F17: 1297 | K17: 0 | L17: 212
A18: 22 | B18: 1393 | C18: 13 | D18: 1415 | E18: 14 | F18: 1430 | K18: 0 | L18: 211
A19: 22 | B19: 1530 | C19: 13 | D19: 1542 | E19: 14 | F19: 1550 | K19: 0 | L19: 211 | N19: Total Target Seq
A20: 22 | B20: 1648 | C20: 13 | D20: 1656 | E20: 14 | F20: 1660 | K20: 0 | L20: 211 | N20: =COUNTIF(L7:L166,G3) -> 0 | P20: 27 | Q20: 26 | R20: 27 | S20: 27 | T20: 26 | U20: 27
A21: 22 | B21: 1760 | C21: 13 | D21: 1773 | E21: 23 | F21: 1782 | K21: 0 | L21: 212 | P21: % of reinforcement given in 6 equal intervals based on number of trials
A22: 22 | B22: 1878 | C22: 13 | D22: 1888 | E22: 14 | F22: 1891 | K22: 0 | L22: 211 | P22: %_1 | Q22: %_2 | R22: %_3 | S22: %_4 | T22: %_5 | U22: %_6
A23: 22 | B23: 1989 | C23: 13 | D23: 2006 | E23: 14 | F23: 2015 | K23: 0 | L23: 211 | O23: target sequence | P23: =$G$3 -> 122 | Q23: =$G$3 -> 122 | R23: =$G$3 -> 122 | S23: =$G$3 -> 122 | T23: =$G$3 -> 122 | U23: =$G$3 -> 122
A24: 22 | B24: 2124 | C24: 13 | D24: 2136 | E24: 14 | F24: 2152 | K24: 0 | L24: 211 | O24: total reinforcement | P24: =U10 -> 0 | Q24: =Z10 -> 0 | R24: =AE10 -> 0 | S24: =AJ10 -> 0 | T24: =AO10 -> 0 | U24: =AT10 -> 0
A25: 22 | B25: 2248 | C25: 13 | D25: 2264 | E25: 14 | F25: 2272 | K25: 0 | L25: 211 | O25: % target
A26: 22 | B26: 2371 | C26: 13 | D26: 2383 | E26: 14 | F26: 2392 | K26: 0 | L26: 211 | O26: CCRF
A27: 22 | B27: 2488 | C27: 13 | D27: 2500 | E27: 14 | F27: 2516 | K27: 0 | L27: 211 | O27: % CCRf
A28: 22 | B28: 2614 | C28: 13 | D28: 2627 | E28: 14 | F28: 2632 | K28: 0 | L28: 211 | O28: average response rate | P28: =F33/P20 -> 122.1481481 | Q28: =(F59-F33)/Q20 -> 129.5769231 | R28: =(F86-F59)/R20 -> 126.5185185 | S28: =(F113-F86)/S20 -> 147.4444444 | T28: =(F139-F113)/T20 -> 150.4615385 | U28: =(F166-F139)/U20 -> -665.7777778
A29: 22 | B29: 2755 | C29: 13 | D29: 2764 | E29: 14 | F29: 2768 | K29: 0 | L29: 211
A30: 22 | B30: 2864 | C30: 13 | D30: 2885 | E30: 14 | F30: 2900 | K30: 0 | L30: 211
A31: 22 | B31: 3014 | C31: 13 | D31: 3022 | E31: 14 | F31: 3026 | K31: 0 | L31: 211
A32: 22 | B32: 3152 | C32: 13 | D32: 3162 | E32: 14 | F32: 3176 | K32: 0 | L32: 211
A33: 22 | B33: 3279 | C33: 13 | D33: 3290 | E33: 14 | F33: 3298 | K33: 0 | L33: 211
A34: 22 | B34: 3394 | C34: 13 | D34: 3412 | E34: 14 | F34: 3421 | K34: 0 | L34: 211
A35: 22 | B35: 3517 | C35: 24 | D35: 3531 | E35: 14 | F35: 3553 | K35: 0 | L35: 221
A36: 22 | B36: 3651 | C36: 13 | D36: 3659 | E36: 14 | F36: 3667 | K36: 0 | L36: 211
A37: 22 | B37: 3766 | C37: 13 | D37: 3773 | E37: 14 | F37: 3784 | K37: 0 | L37: 211
A38: 22 | B38: 3880 | C38: 24 | D38: 3887 | E38: 14 | F38: 3896 | K38: 0 | L38: 221
A39: 22 | B39: 4018 | C39: 13 | D39: 4040 | E39: 23 | F39: 4052 | K39: 0 | L39: 212
A40: 22 | B40: 4148 | C40: 24 | D40: 4162 | E40: 14 | F40: 4186 | K40: 0 | L40: 221
A41: 22 | B41: 4284 | C41: 24 | D41: 4310 | E41: 14 | F41: 4319 | K41: 0 | L41: 221
A42: 22 | B42: 4414 | C42: 24 | D42: 4421 | E42: 14 | F42: 4448 | K42: 0 | L42: 221
A43: 22 | B43: 4561 | C43: 13 | D43: 4571 | E43: 14 | F43: 4577 | K43: 0 | L43: 211
A44: 22 | B44: 4673 | C44: 24 | D44: 4686 | E44: 14 | F44: 4695 | K44: 0 | L44: 221
A45: 22 | B45: 4800 | C45: 13 | D45: 4811 | E45: 14 | F45: 4824 | K45: 0 | L45: 211
A46: 22 | B46: 4935 | C46: 24 | D46: 4942 | E46: 14 | F46: 4950 | K46: 0 | L46: 221
A47: 22 | B47: 5046 | C47: 24 | D47: 5067 | E47: 14 | F47: 5075 | K47: 0 | L47: 221
A48: 22 | B48: 5172 | C48: 24 | D48: 5181 | E48: 14 | F48: 5196 | K48: 0 | L48: 221
A49: 11 | B49: 5322 | C49: 11 | D49: 5333 | E49: 12 | F49: 5340 | K49: 0 | L49: 111
A50: 22 | B50: 5435 | C50: 13 | D50: 5445 | E50: 23 | F50: 5458 | K50: 0 | L50: 212
A51: 22 | B51: 5578 | C51: 13 | D51: 5586 | E51: 14 | F51: 5591 | K51: 0 | L51: 211
A52: 22 | B52: 5688 | C52: 13 | D52: 5698 | E52: 14 | F52: 5702 | K52: 0 | L52: 211
A53: 22 | B53: 5809 | C53: 24 | D53: 5823 | E53: 14 | F53: 5831 | K53: 0 | L53: 221
A54: 22 | B54: 5944 | C54: 24 | D54: 5959 | E54: 14 | F54: 5967 | K54: 0 | L54: 221
A55: 22 | B55: 6139 | C55: 13 | D55: 6147 | E55: 14 | F55: 6153 | K55: 0 | L55: 211
A56: 22 | B56: 6257 | C56: 13 | D56: 6265 | E56: 14 | F56: 6271 | K56: 0 | L56: 211
A57: 22 | B57: 6376 | C57: 24 | D57: 6388 | E57: 14 | F57: 6396 | K57: 0 | L57: 221
A58: 22 | B58: 6522 | C58: 13 | D58: 6530 | E58: 14 | F58: 6535 | K58: 0 | L58: 211
A59: 22 | B59: 6636 | C59: 24 | D59: 6659 | E59: 14 | F59: 6667 | K59: 0 | L59: 221
A60: 11 | B60: 6791 | C60: 11 | D60: 6799 | E60: 21 | F60: 6811 | K60: 0 | L60: 112
A61: 22 | B61: 6904 | C61: 24 | D61: 6916 | E61: 14 | F61: 6925 | K61: 0 | L61: 221
A62: 22 | B62: 7023 | C62: 13 | D62: 7037 | E62: 14 | F62: 7053 | K62: 0 | L62: 211
A63: 22 | B63: 7151 | C63: 24 | D63: 7165 | E63: 14 | F63: 7174 | K63: 0 | L63: 221
A64: 22 | B64: 7270 | C64: 13 | D64: 7283 | E64: 23 | F64: 7295 | K64: 0 | L64: 212
A65: 22 | B65: 7393 | C65: 13 | D65: 7402 | E65: 14 | F65: 7407 | K65: 0 | L65: 211
A66: 22 | B66: 7509 | C66: 24 | D66: 7524 | E66: 14 | F66: 7533 | K66: 0 | L66: 221
A67: 22 | B67: 7629 | C67: 24 | D67: 7637 | E67: 14 | F67: 7650 | K67: 0 | L67: 221
A68: 22 | B68: 7762 | C68: 13 | D68: 7776 | E68: 14 | F68: 7785 | K68: 0 | L68: 211
A69: 22 | B69: 7882 | C69: 13 | D69: 7895 | E69: 14 | F69: 7904 | K69: 0 | L69: 211
A70: 22 | B70: 8024 | C70: 24 | D70: 8042 | E70: 23 | F70: 8059 | K70: 0 | L70: 222
A71: 22 | B71: 8164 | C71: 13 | D71: 8172 | E71: 14 | F71: 8180 | K71: 0 | L71: 211
A72: 22 | B72: 8276 | C72: 24 | D72: 8283 | E72: 14 | F72: 8292 | K72: 0 | L72: 221
A73: 22 | B73: 8401 | C73: 13 | D73: 8410 | E73: 14 | F73: 8417 | K73: 0 | L73: 211
A74: 22 | B74: 8514 | C74: 13 | D74: 8523 | E74: 14 | F74: 8534 | K74: 0 | L74: 211
A75: 22 | B75: 8629 | C75: 13 | D75: 8645 | E75: 14 | F75: 8656 | K75: 0 | L75: 211
A76: 22 | B76: 8764 | C76: 13 | D76: 8772 | E76: 14 | F76: 8779 | K76: 0 | L76: 211
A77: 22 | B77: 8889 | C77: 13 | D77: 8902 | E77: 14 | F77: 8907 | K77: 0 | L77: 211
A78: 22 | B78: 9016 | C78: 13 | D78: 9026 | E78: 14 | F78: 9033 | K78: 0 | L78: 211
A79: 22 | B79: 9133 | C79: 13 | D79: 9141 | E79: 14 | F79: 9148 | K79: 0 | L79: 211
A80: 11 | B80: 9256 | C80: 22 | D80: 9274 | E80: 14 | F80: 9285 | K80: 0 | L80: 121
A81: 22 | B81: 9404 | C81: 13 | D81: 9416 | E81: 14 | F81: 9428 | K81: 0 | L81: 211
A82: 22 | B82: 9524 | C82: 13 | D82: 9537 | E82: 23 | F82: 9547 | K82: 0 | L82: 212
A83: 22 | B83: 9642 | C83: 13 | D83: 9668 | E83: 14 | F83: 9681 | K83: 0 | L83: 211
A84: 22 | B84: 9804 | C84: 13 | D84: 9813 | E84: 14 | F84: 9823 | K84: 0 | L84: 211
A85: 22 | B85: 9918 | C85: 13 | D85: 9927 | E85: 14 | F85: 9937 | K85: 0 | L85: 211
A86: 22 | B86: 10053 | C86: 13 | D86: 10070 | E86: 14 | F86: 10083 | K86: 0 | L86: 211
A87: 22 | B87: 10192 | C87: 13 | D87: 10205 | E87: 14 | F87: 10213 | K87: 0 | L87: 211
A88: 22 | B88: 10337 | C88: 13 | D88: 10346 | E88: 14 | F88: 10354 | K88: 0 | L88: 211
A89: 22 | B89: 10461 | C89: 13 | D89: 10477 | E89: 14 | F89: 10485 | K89: 0 | L89: 211
A90: 22 | B90: 10606 | C90: 13 | D90: 10616 | E90: 14 | F90: 10629 | K90: 0 | L90: 211
A91: 22 | B91: 10731 | C91: 13 | D91: 10740 | E91: 23 | F91: 10915 | K91: 0 | L91: 212
A92: 11 | B92: 11040 | C92: 11 | D92: 11048 | E92: 12 | F92: 11063 | K92: 0 | L92: 111
A93: 22 | B93: 11166 | C93: 13 | D93: 11185 | E93: 14 | F93: 11198 | K93: 0 | L93: 211
A94: 22 | B94: 11302 | C94: 13 | D94: 11316 | E94: 14 | F94: 11331 | K94: 0 | L94: 211
A95: 22 | B95: 11437 | C95: 13 | D95: 11451 | E95: 14 | F95: 11461 | K95: 0 | L95: 211
A96: 22 | B96: 11565 | C96: 24 | D96: 11578 | E96: 14 | F96: 11587 | K96: 0 | L96: 221
A97: 22 | B97: 11745 | C97: 24 | D97: 11770 | E97: 14 | F97: 11785 | K97: 0 | L97: 221
A98: 22 | B98: 11893 | C98: 13 | D98: 11909 | E98: 23 | F98: 11922 | K98: 0 | L98: 212
A99: 22 | B99: 12028 | C99: 13 | D99: 12047 | E99: 14 | F99: 12059 | K99: 0 | L99: 211
A100: 22 | B100: 12161 | C100: 13 | D100: 12170 | E100: 14 | F100: 12179 | K100: 0 | L100: 211
A101: 22 | B101: 12318 | C101: 13 | D101: 12338 | E101: 14 | F101: 12353 | K101: 0 | L101: 211
A102: 22 | B102: 12455 | C102: 13 | D102: 12465 | E102: 14 | F102: 12472 | K102: 0 | L102: 211
A103: 22 | B103: 12613 | C103: 24 | D103: 12631 | E103: 14 | F103: 12645 | K103: 0 | L103: 221
A104: 22 | B104: 12751 | C104: 13 | D104: 12760 | E104: 14 | F104: 12776 | K104: 0 | L104: 211
A105: 22 | B105: 12894 | C105: 13 | D105: 12905 | E105: 14 | F105: 12913 | K105: 0 | L105: 211
A106: 22 | B106: 13018 | C106: 24 | D106: 13034 | E106: 23 | F106: 13051 | K106: 0 | L106: 222
A107: 22 | B107: 13239 | C107: 13 | D107: 13251 | E107: 14 | F107: 13262 | K107: 0 | L107: 211
A108: 11 | B108: 13395 | C108: 11 | D108: 13411 | E108: 21 | F108: 13426 | K108: 0 | L108: 112
A109: 22 | B109: 13522 | C109: 24 | D109: 13538 | E109: 23 | F109: 13552 | K109: 0 | L109: 222
A110: 22 | B110: 13662 | C110: 13 | D110: 13671 | E110: 23 | F110: 13685 | K110: 0 | L110: 212
A111: 22 | B111: 13789 | C111: 24 | D111: 13804 | E111: 14 | F111: 13816 | K111: 0 | L111: 221
A112: 22 | B112: 13913 | C112: 24 | D112: 13921 | E112: 14 | F112: 13930 | K112: 0 | L112: 221
A113: 22 | B113: 14042 | C113: 13 | D113: 14052 | E113: 14 | F113: 14064 | K113: 0 | L113: 211
A114: 22 | B114: 14171 | C114: 13 | D114: 14183 | E114: 14 | F114: 14190 | K114: 0 | L114: 211
A115: 11 | B115: 14301 | C115: 11 | D115: 14313 | E115: 12 | F115: 14324 | K115: 0 | L115: 111
A116: 22 | B116: 14428 | C116: 13 | D116: 14440 | E116: 14 | F116: 14445 | K116: 0 | L116: 211
A117: 22 | B117: 14549 | C117: 13 | D117: 14567 | E117: 14 | F117: 14575 | K117: 0 | L117: 211
A118: 22 | B118: 14674 | C118: 13 | D118: 14689 | E118: 14 | F118: 14704 | K118: 0 | L118: 211
A119: 22 | B119: 14831 | C119: 13 | D119: 14847 | E119: 23 | F119: 14862 | K119: 0 | L119: 212
A120: 11 | B120: 14974 | C120: 11 | D120: 14992 | E120: 12 | F120: 15000 | K120: 0 | L120: 111
A121: 22 | B121: 15117 | C121: 13 | D121: 15126 | E121: 14 | F121: 15140 | K121: 0 | L121: 211
A122: 22 | B122: 15255 | C122: 13 | D122: 15263 | E122: 14 | F122: 15268 | K122: 0 | L122: 211
A123: 22 | B123: 15381 | C123: 13 | D123: 15390 | E123: 14 | F123: 15397 | K123: 0 | L123: 211
A124: 11 | B124: 15515 | C124: 11 | D124: 15519 | E124: 12 | F124: 15533 | K124: 0 | L124: 111
A125: 22 | B125: 15648 | C125: 13 | D125: 15657 | E125: 14 | F125: 15661 | K125: 0 | L125: 211
A126: 22 | B126: 15796 | C126: 13 | D126: 15805 | E126: 14 | F126: 15810 | K126: 0 | L126: 211
A127: 22 | B127: 15946 | C127: 13 | D127: 15960 | E127: 23 | F127: 15976 | K127: 0 | L127: 212
A128: 11 | B128: 16085 | C128: 11 | D128: 16106 | E128: 12 | F128: 16114 | K128: 0 | L128: 111
A129: 22 | B129: 16214 | C129: 13 | D129: 16226 | E129: 14 | F129: 16231 | K129: 0 | L129: 211
A130: 22 | B130: 16395 | C130: 13 | D130: 16409 | E130: 14 | F130: 16414 | K130: 0 | L130: 211
A131: 22 | B131: 16531 | C131: 13 | D131: 16568 | E131: 14 | F131: 16576 | K131: 0 | L131: 211
A132: 22 | B132: 16691 | C132: 13 | D132: 16702 | E132: 14 | F132: 16726 | K132: 0 | L132: 211
A133: 11 | B133: 16870 | C133: 11 | D133: 16875 | E133: 12 | F133: 16883 | K133: 0 | L133: 111
A134: 11 | B134: 17060 | C134: 11 | D134: 17064 | E134: 12 | F134: 17078 | K134: 0 | L134: 111
A135: 22 | B135: 17238 | C135: 13 | D135: 17248 | E135: 14 | F135: 17253 | K135: 0 | L135: 211
A136: 22 | B136: 17387 | C136: 13 | D136: 17397 | E136: 14 | F136: 17410 | K136: 0 | L136: 211
A137: 22 | B137: 17536 | C137: 13 | D137: 17545 | E137: 14 | F137: 17550 | K137: 0 | L137: 211
A138: 22 | B138: 17689 | C138: 13 | D138: 17706 | E138: 14 | F138: 17726 | K138: 0 | L138: 211
A139: 22 | B139: 17960 | C139: 13 | D139: 17972 | E139: 14 | F139: 17976 | K139: 0 | L139: 211
A140: 22 | B140: 18113 | C140: 13 | D140: 18156 | E140: 23 | F140: 18172 | K140: 0 | L140: 212
A141: 22 | B141: 18431 | C141: 13 | D141: 18469 | E141: 14 | F141: 18490 | K141: 0 | L141: 211
A142: 11 | B142: 18737 | C142: 11 | D142: 18765 | E142: 12 | F142: 18771 | K142: 0 | L142: 111
A143: 11 | B143: 18945 | C143: 11 | D143: 18957 | E143: 12 | F143: 18972 | K143: 0 | L143: 111
A144: 22 | B144: 19116 | C144: 13 | D144: 19132 | E144: 14 | F144: 19142 | K144: 0 | L144: 211
A145: 11 | B145: 19455 | C145: 11 | D145: 19462 | E145: 12 | F145: 19476 | K145: 0 | L145: 111
A146: 11 | B146: 19615 | C146: 11 | D146: 19622 | E146: 12 | F146: 19636 | K146: 0 | L146: 111
A147: 11 | B147: 19757 | C147: 11 | D147: 19798 | E147: 12 | F147: 19813 | K147: 0 | L147: 111
A148: 11 | B148: 19993 | C148: 11 | D148: 20007 | E148: 12 | F148: 20034 | K148: 0 | L148: 111
A149: 22 | B149: 20289 | C149: 13 | D149: 20301 | E149: 23 | F149: 20317 | K149: 0 | L149: 212
A150: 22 | B150: 20427 | C150: 13 | D150: 20437 | E150: 14 | F150: 20450 | K150: 0 | L150: 211
A151: 22 | B151: 20606 | C151: 13 | D151: 20616 | E151: 14 | F151: 20627 | K151: 0 | L151: 211
A152: 22 | B152: 20809 | C152: 13 | D152: 20821 | E152: 14 | F152: 20847 | K152: 0 | L152: 211
A153: 11 | B153: 21127 | C153: 11 | D153: 21156 | E153: 12 | F153: 21163 | K153: 0 | L153: 111
A154: 11 | B154: 21379 | C154: 11 | D154: 21389 | E154: 12 | F154: 21413 | K154: 0 | L154: 111
A155: 11 | B155: 21572 | C155: 11 | D155: 21581 | E155: 12 | F155: 21597 | K155: 0 | L155: 111
A156: 22 | B156: 21707 | C156: 13 | D156: 21863 | E156: 14 | F156: 21878 | K156: 0 | L156: 211
A157: 11 | B157: 22047 | C157: 11 | D157: 22072 | E157: 12 | F157: 22081 | K157: 0 | L157: 111
A158: 22 | B158: 22208 | C158: 13 | D158: 22218 | E158: 14 | F158: 22231 | K158: 0 | L158: 211
A159: 11 | B159: 22446 | C159: 11 | D159: 22461 | E159: 12 | F159: 22487 | K159: 0 | L159: 111
A160: 22 | B160: 22778 | C160: 13 | D160: 22788 | E160: 14 | F160: 22796 | K160: 0 | L160: 211
A161: 11 | B161: 23021 | C161: 11 | D161: 23042 | E161: 12 | F161: 23070 | K161: 0 | L161: 111
A162: 11 | B162: 23269 | C162: 11 | D162: 23285 | E162: 12 | F162: 23312 | K162: 0 | L162: 111
A163: 22 | B163: 23486 | C163: 13 | D163: 23499 | E163: 14 | F163: 23512 | K163: 0 | L163: 211
A164: 22 | B164: 23646 | C164: 13 | D164: 23659 | E164: 14 | F164: 23672 | K164: 0 | L164: 211
A165: 22 | B165: 23823 | C165: 13 | D165: 23833 | E165: 14 | F165: 23855 | K165: 0 | L165: 211
A166: 22 | B166: 23990 | C166: 13 | D166: 24000 | L166: 21

Sheet !M526A10.103
A1: Report for:!M526A10.103
A2: Date: | B2: <date>
A3: Hen: | B3: <hen> | F3: Correct Sequence | G3: =Start!J2 -> 122 | P3: Total Sequences in Data | Q3: =4994-COUNTBLANK(L7:L5000) -> 111 | V3: Total Sequences in Block Data | W3: =COUNTA(L7:L25) -> 19 | AA3: Total Sequences in Block Data | AB3: =COUNTA(L26:L43) -> 18 | AF3: Total Sequences in Block Data | AG3: =COUNTA(L44:L62) -> 19 | AK3: Total Sequences in Block Data | AL3: =COUNTA(L63:L80) -> 18 | AP3: Total Sequences in Block Data | AQ3: =COUNTA(L81:L99) -> 19 | AU3: Total Sequences in Block Data | AV3: =COUNTA(L100:L117) -> 18
P4: Total Sequences in Summary | Q4: =SUM(O7:O14) -> 111 | V4: Total Sequences in Block Summary | W4: =SUM(U7:U14) -> 19 | AA4: Total Sequences in Block Summary | AB4: =SUM(Z7:Z14) -> 18 | AF4: Total Sequences in Block Summary | AG4: =SUM(AE7:AE14) -> 19 | AK4: Total Sequences in Block Summary | AL4: =SUM(AJ7:AJ14) -> 18 | AP4: Total Sequences in Block Summary | AQ4: =SUM(AO7:AO14) -> 19 | AU4: Total Sequences in Block Summary | AV4: =SUM(AT7:AT14) -> 18
T5: Block 1 | Y5: Block 2 | AD5: Block 3 | AI5: Block 4 | AN5: Block 5 | AS5: Block 6
A6: Sequence Component 1 | B6: Time 1 | C6: Sequence Component 2 | D6: Time 2 | E6: Sequence Component 3 | F6: Time 3 | G6: Sequence Component 4 | H6: Time 4 | I6: Sequence Component 5 | J6: Time 5 | K6: Correct? 0=No 1=Yes | L6: Sequence | N6: Frequency | P6: Relative Frequency | Q6: Variability | T6: Frequency | V6: Relative Frequency | W6: Variability | Y6: Frequency | AA6: Relative Frequency | AB6: Variability | AD6: Frequency | AF6: Relative Frequency | AG6: Variability | AI6: Frequency | AK6: Relative Frequency | AL6: Variability | AN6: Frequency | AP6: Relative Frequency | AQ6: Variability | AS6: Frequency | AU6: Relative Frequency | AV6: Variability
A7: 22 | B7: 10 | C7: 13 | D7: 20 | E7: 23 | F7: 37 | K7: 0 | L7: 212 | N7: 111 | O7: =COUNTIF($L$7:$L$500,N7) -> 11 | P7: =O7/$Q$4 -> 0.0990990991 | Q7: =IF(P7=0,0,(P7*((LOG(P7))/LOG(2)))) -> -0.3304939345 | T7: =N7 -> 111 | U7: =COUNTIF(L7:L25,T7) -> 0 | V7: =U7/(W4-U10) -> 0 | W7: =IF(V7=0,0,(V7*((LOG(V7))/LOG(2)))) -> 0 | Y7: =N7 -> 111 | Z7: =COUNTIF(L26:L43,Y7) -> 3 | AA7: =Z7/(AB4-Z10) -> 0.1666666667 | AB7: =IF(AA7=0,0,(AA7*((LOG(AA7))/LOG(2)))) -> -0.4308270835 | AD7: =N7 -> 111 | AE7: =COUNTIF(L44:L62,AD7) -> 2 | AF7: =AE7/(AG4-AE10) -> 0.1052631579 | AG7: =IF(AF7=0,0,(AF7*((LOG(AF7))/LOG(2)))) -> -0.3418871067 | AI7: =N7 -> 111 | AJ7: =COUNTIF(L63:L80,AI7) -> 3 | AK7: =AJ7/(AL4-AJ10) -> 0.1666666667 | AL7: =IF(AK7=0,0,(AK7*((LOG(AK7))/LOG(2)))) -> -0.4308270835 | AN7: =N7 -> 111 | AO7: =COUNTIF(L81:L99,AN7) -> 3 | AP7: =AO7/(AQ4-AO10) -> 0.1578947368 | AQ7: =IF(AP7=0,0,(AP7*((LOG(AP7))/LOG(2)))) -> -0.4204681599 | AS7: =N7 -> 111 | AT7: =COUNTIF(L100:L117,AS7) -> 0 | AU7: =AT7/(AV4-AT10) -> 0 | AV7: =IF(AU7=0,0,(AU7*((LOG(AU7))/LOG(2)))) -> 0
A8: 22 | B8: 138 | C8: 24 | D8: 161 | E8: 23 | F8: 183 | K8: 0 | L8: 222 | N8: 112 | O8: =COUNTIF($L$7:$L$500,N8) -> 3 | P8: =O8/$Q$4 -> 0.02702702703 | Q8: =IF(P8=0,0,(P8*((LOG(P8))/LOG(2)))) -> -0.1407960369 | T8: =N8 -> 112 | U8: =COUNTIF(L7:L25,T8) -> 0 | V8: =U8/(W4-U10) -> 0 | W8: =IF(V8=0,0,(V8*((LOG(V8))/LOG(2)))) -> 0 | Y8: =N8 -> 112 | Z8: =COUNTIF(L26:L43,Y8) -> 1 | AA8: =Z8/(AB4-Z10) -> 0.05555555556 | AB8: =IF(AA8=0,0,(AA8*((LOG(AA8))/LOG(2)))) -> -0.2316625001 | AD8: =N8 -> 112 | AE8: =COUNTIF(L44:L62,AD8) -> 0 | AF8: =AE8/(AG4-AE10) -> 0 | AG8: =IF(AF8=0,0,(AF8*((LOG(AF8))/LOG(2)))) -> 0 | AI8: =N8 -> 112 | AJ8: =COUNTIF(L63:L80,AI8) -> 1 | AK8: =AJ8/(AL4-AJ10) -> 0.05555555556 | AL8: =IF(AK8=0,0,(AK8*((LOG(AK8))/LOG(2)))) -> -0.2316625001 | AN8: =N8 -> 112 | AO8: =COUNTIF(L81:L99,AN8) -> 1 | AP8: =AO8/(AQ4-AO10) -> 0.05263157895 | AQ8: =IF(AP8=0,0,(AP8*((LOG(AP8))/LOG(2)))) -> -0.2235751323 | AS8: =N8 -> 112 | AT8: =COUNTIF(L100:L117,AS8) -> 0 | AU8: =AT8/(AV4-AT10) -> 0 | AV8: =IF(AU8=0,0,(AU8*((LOG(AU8))/LOG(2)))) -> 0
A9: 22 | B9: 294 | C9: 24 | D9: 309 | E9: 23 | F9: 321 | K9: 0 | L9: 222 | N9: 121 | O9: =COUNTIF($L$7:$L$500,N9) -> 4 | P9: =O9/$Q$4 -> 0.03603603604 | Q9: =IF(P9=0,0,(P9*((LOG(P9))/LOG(2)))) -> -0.1727717429 | T9: =N9 -> 121 | U9: =COUNTIF(L7:L25,T9) -> 0 | V9: =U9/(W4-U10) -> 0 | W9: =IF(V9=0,0,(V9*((LOG(V9))/LOG(2)))) -> 0 | Y9: =N9 -> 121 | Z9: =COUNTIF(L26:L43,Y9) -> 1 | AA9: =Z9/(AB4-Z10) -> 0.05555555556 | AB9: =IF(AA9=0,0,(AA9*((LOG(AA9))/LOG(2)))) -> -0.2316625001 | AD9: =N9 -> 121 | AE9: =COUNTIF(L44:L62,AD9) -> 0 | AF9: =AE9/(AG4-AE10) -> 0 | AG9: =IF(AF9=0,0,(AF9*((LOG(AF9))/LOG(2)))) -> 0 | AI9: =N9 -> 121 | AJ9: =COUNTIF(L63:L80,AI9) -> 1 | AK9: =AJ9/(AL4-AJ10) -> 0.05555555556 | AL9: =IF(AK9=0,0,(AK9*((LOG(AK9))/LOG(2)))) -> -0.2316625001 | AN9: =N9 -> 121 | AO9: =COUNTIF(L81:L99,AN9) -> 1 | AP9: =AO9/(AQ4-AO10) -> 0.05263157895 | AQ9: =IF(AP9=0,0,(AP9*((LOG(AP9))/LOG(2)))) -> -0.2235751323 | AS9: =N9 -> 121 | AT9: =COUNTIF(L100:L117,AS9) -> 1 | AU9: =AT9/(AV4-AT10) -> 0.05555555556 | AV9: =IF(AU9=0,0,(AU9*((LOG(AU9))/LOG(2)))) -> -0.2316625001
A10: 22 | B10: 427 | C10: 24 | D10: 448 | E10: 14 | F10: 457 | K10: 0 | L10: 221 | N10: 122 | O10: =COUNTIF($L$7:$L$500,N10) -> 0 | P10: =O10/$Q$4 -> 0 | Q10: =IF(P10=0,0,(P10*((LOG(P10))/LOG(2)))) -> 0 | T10: =N10 -> 122 | U10: =COUNTIF(L7:L25,T10) -> 0 | Y10: =N10 -> 122 | Z10: =COUNTIF(L26:L43,Y10) -> 0 | AD10: =N10 -> 122 | AE10: =COUNTIF(L44:L62,AD10) -> 0 | AI10: =N10 -> 122 | AJ10: =COUNTIF(L63:L80,AI10) -> 0 | AN10: =N10 -> 122 | AO10: =COUNTIF(L81:L99,AN10) -> 0 | AS10: =N10 -> 122 | AT10: =COUNTIF(L100:L117,AS10) -> 0
A11: 22 | B11: 562 | C11: 24 | D11: 578 | E11: 23 | F11: 601 | K11: 0 | L11: 222 | N11: 211 | O11: =COUNTIF($L$7:$L$500,N11) -> 43 | P11: =O11/$Q$4 -> 0.3873873874 | Q11: =IF(P11=0,0,(P11*((LOG(P11))/LOG(2)))) -> -0.5300044847 | T11: =N11 -> 211 | U11: =COUNTIF(L7:L25,T11) -> 11 | V11: =U11/(W4-U10) -> 0.5789473684 | W11: =IF(V11=0,0,(V11*((LOG(V11))/LOG(2)))) -> -0.4564976233 | Y11: =N11 -> 211 | Z11: =COUNTIF(L26:L43,Y11) -> 8 | AA11: =Z11/(AB4-Z10) -> 0.4444444444 | AB11: =IF(AA11=0,0,(AA11*((LOG(AA11))/LOG(2)))) -> -0.5199666673 | AD11: =N11 -> 211 | AE11: =COUNTIF(L44:L62,AD11) -> 4 | AF11: =AE11/(AG4-AE10) -> 0.2105263158 | AG11: =IF(AF11=0,0,(AF11*((LOG(AF11))/LOG(2)))) -> -0.4732478976 | AI11: =N11 -> 211 | AJ11: =COUNTIF(L63:L80,AI11) -> 7 | AK11: =AJ11/(AL4-AJ10) -> 0.3888888889 | AL11: =IF(AK11=0,0,(AK11*((LOG(AK11))/LOG(2)))) -> -0.5298883642 | AN11: =N11 -> 211 | AO11: =COUNTIF(L81:L99,AN11) -> 8 | AP11: =AO11/(AQ4-AO10) -> 0.4210526316 | AQ11: =IF(AP11=0,0,(AP11*((LOG(AP11))/LOG(2)))) -> -0.5254431636 | AS11: =N11 -> 211 | AT11: =COUNTIF(L100:L117,AS11) -> 5 | AU11: =AT11/(AV4-AT10) -> 0.2777777778 | AV11: =IF(AU11=0,0,(AU11*((LOG(AU11))/LOG(2)))) -> -0.513332474
A12: 22 | B12: 714 | C12: 13 | D12: 724 | E12: 23 | F12: 737 | K12: 0 | L12: 212 | N12: 212 | O12: =COUNTIF($L$7:$L$500,N12) -> 13 | P12: =O12/$Q$4 -> 0.1171171171 | Q12: =IF(P12=0,0,(P12*((LOG(P12))/LOG(2)))) -> -0.3623575669 | T12: =N12 -> 212 | U12: =COUNTIF(L7:L25,T12) -> 3 | V12: =U12/(W4-U10) -> 0.1578947368 | W12: =IF(V12=0,0,(V12*((LOG(V12))/LOG(2)))) -> -0.4204681599 | Y12: =N12 -> 212 | Z12: =COUNTIF(L26:L43,Y12) -> 2 | AA12: =Z12/(AB4-Z10) -> 0.1111111111 | AB12: =IF(AA12=0,0,(AA12*((LOG(AA12))/LOG(2)))) -> -0.352213889 | AD12: =N12 -> 212 | AE12: =COUNTIF(L44:L62,AD12) -> 7 | AF12: =AE12/(AG4-AE10) -> 0.3684210526 | AG12: =IF(AF12=0,0,(AF12*((LOG(AF12))/LOG(2)))) -> -0.5307372705 | AI12: =N12 -> 212 | AJ12: =COUNTIF(L63:L80,AI12) -> 1 | AK12: =AJ12/(AL4-AJ10) -> 0.05555555556 | AL12: =IF(AK12=0,0,(AK12*((LOG(AK12))/LOG(2)))) -> -0.2316625001 | AN12: =N12 -> 212 | AO12: =COUNTIF(L81:L99,AN12) -> 0 | AP12: =AO12/(AQ4-AO10) -> 0 | AQ12: =IF(AP12=0,0,(AP12*((LOG(AP12))/LOG(2)))) -> 0 | AS12: =N12 -> 212 | AT12: =COUNTIF(L100:L117,AS12) -> 0 | AU12: =AT12/(AV4-AT10) -> 0 | AV12: =IF(AU12=0,0,(AU12*((LOG(AU12))/LOG(2)))) -> 0
A13: 22 | B13: 846 | C13: 13 | D13: 860 | E13: 14 | F13: 897 | K13: 0 | L13: 211 | N13: 221 | O13: =COUNTIF($L$7:$L$500,N13) -> 23 | P13: =O13/$Q$4 -> 0.2072072072 | Q13: =IF(P13=0,0,(P13*((LOG(P13))/LOG(2)))) -> -0.4705372967 | T13: =N13 -> 221 | U13: =COUNTIF(L7:L25,T13) -> 2 | V13: =U13/(W4-U10) -> 0.1052631579 | W13: =IF(V13=0,0,(V13*((LOG(V13))/LOG(2)))) -> -0.3418871067 | Y13: =N13 -> 221 | Z13: =COUNTIF(L26:L43,Y13) -> 3 | AA13: =Z13/(AB4-Z10) -> 0.1666666667 | AB13: =IF(AA13=0,0,(AA13*((LOG(AA13))/LOG(2)))) -> -0.4308270835 | AD13: =N13 -> 221 | AE13: =COUNTIF(L44:L62,AD13) -> 5 | AF13: =AE13/(AG4-AE10) -> 0.2631578947 | AG13: =IF(AF13=0,0,(AF13*((LOG(AF13))/LOG(2)))) -> -0.5068419523 | AI13: =N13 -> 221 | AJ13: =COUNTIF(L63:L80,AI13) -> 2 | AK13: =AJ13/(AL4-AJ10) -> 0.1111111111 | AL13: =IF(AK13=0,0,(AK13*((LOG(AK13))/LOG(2)))) -> -0.352213889 | AN13: =N13 -> 221 | AO13: =COUNTIF(L81:L99,AN13) -> 5 | AP13: =AO13/(AQ4-AO10) -> 0.2631578947 | AQ13: =IF(AP13=0,0,(AP13*((LOG(AP13))/LOG(2)))) -> -0.5068419523 | AS13: =N13 -> 221 | AT13: =COUNTIF(L100:L117,AS13) -> 6 | AU13: =AT13/(AV4-AT10) -> 0.3333333333 | AV13: =IF(AU13=0,0,(AU13*((LOG(AU13))/LOG(2)))) -> -0.5283208336
A14: 22 | B14: 1066 | C14: 13 | D14: 1078 | E14: 14 | F14: 1112 | K14: 0 | L14: 211 | N14: 222 | O14: =COUNTIF($L$7:$L$500,N14) -> 14 | P14: =O14/$Q$4 -> 0.1261261261 | Q14: =IF(P14=0,0,(P14*((LOG(P14))/LOG(2)))) -> -0.3767464254 | T14: =N14 -> 222 | U14: =COUNTIF(L7:L25,T14) -> 3 | V14: =U14/(W4-U10) -> 0.1578947368 | W14: =IF(V14=0,0,(V14*((LOG(V14))/LOG(2)))) -> -0.4204681599 | Y14: =N14 -> 222 | Z14: =COUNTIF(L26:L43,Y14) -> 0 | AA14: =Z14/(AB4-Z10) -> 0 | AB14: =IF(AA14=0,0,(AA14*((LOG(AA14))/LOG(2)))) -> 0 | AD14: =N14 -> 222 | AE14: =COUNTIF(L44:L62,AD14) -> 1 | AF14: =AE14/(AG4-AE10) -> 0.05263157895 | AG14: =IF(AF14=0,0,(AF14*((LOG(AF14))/LOG(2)))) -> -0.2235751323 | AI14: =N14 -> 222 | AJ14: =COUNTIF(L63:L80,AI14) -> 3 | AK14: =AJ14/(AL4-AJ10) -> 0.1666666667 | AL14: =IF(AK14=0,0,(AK14*((LOG(AK14))/LOG(2)))) -> -0.4308270835 | AN14: =N14 -> 222 | AO14: =COUNTIF(L81:L99,AN14) -> 1 | AP14: =AO14/(AQ4-AO10) -> 0.05263157895 | AQ14: =IF(AP14=0,0,(AP14*((LOG(AP14))/LOG(2)))) -> -0.2235751323 | AS14: =N14 -> 222 | AT14: =COUNTIF(L100:L117,AS14) -> 6 | AU14: =AT14/(AV4-AT10) -> 0.3333333333 | AV14: =IF(AU14=0,0,(AU14*((LOG(AU14))/LOG(2)))) -> -0.5283208336
A15: 22 | B15: 1246 | C15: 13 | D15: 1261 | E15: 14 | F15: 1269 | K15: 0 | L15: 211 | P15: =SUM(P7:P14) -> 1 | Q15: =-SUM(Q7:Q14) -> 2.383707488 | V15: =SUM(V7:V14) -> 1 | W15: =-SUM(W7:W14) -> 1.63932105 | AA15: =SUM(AA7:AA14) -> 1 | AB15: =-SUM(AB7:AB14) -> 2.197159723 | AF15: =SUM(AF7:AF14) -> 1 | AG15: =-SUM(AG7:AG14) -> 2.076289359 | AK15: =SUM(AK7:AK14) -> 1 | AL15: =-SUM(AL7:AL14) -> 2.43874392 | AP15: =SUM(AP7:AP14) -> 1 | AQ15: =-SUM(AQ7:AQ14) -> 2.123478673 | AU15: =SUM(AU7:AU14) -> 1 | AV15: =-SUM(AV7:AV14) -> 1.801636641
A16: 22 | B16: 1367 | C16: 24 | D16: 1383 | E16: 14 | F16: 1403 | K16: 0 | L16: 221 | P16: U= | Q16: =Q15/(LOG(Q4)/LOG(2)) -> 0.3508333218 | V16: U1= | W16: =W15/(LOG(W4)/LOG(2)) -> 0.385910787 | AA16: U2= | AB16: =AB15/(LOG(AB4)/LOG(2)) -> 0.5269062927 | AF16: U3= | AG16: =AG15/(LOG(AG4)/LOG(2)) -> 0.4887770219 | AK16: U4= | AL16: =AL15/(LOG(AL4)/LOG(2)) -> 0.5848411949 | AP16: U5= | AQ16: =AQ15/(LOG(AQ4)/LOG(2)) -> 0.4998858069 | AU16: U6= | AV16: =AV15/(LOG(AV4)/LOG(2)) -> 0.4320549268
A17: 22 | B17: 1516 | C17: 13 | D17: 1526 | E17: 14 | F17: 1553 | K17: 0 | L17: 211
A18: 22 | B18: 1677 | C18: 13 | D18: 1687 | E18: 14 | F18: 1696 | K18: 0 | L18: 211
A19: 22 | B19: 1796 | C19: 13 | D19: 1825 | E19: 14 | F19: 1841 | K19: 0 | L19: 211 | N19: Total Target Seq
A20: 22 | B20: 1947 | C20: 13 | D20: 1957 | E20: 23 | F20: 1972 | K20: 0 | L20: 212 | N20: =COUNTIF(L7:L117,G3) -> 0 | P20: 19 | Q20: 18 | R20: 19 | S20: 18 | T20: 19 | U20: 18
A21: 22 | B21: 2102 | C21: 13 | D21: 2114 | E21: 14 | F21: 2127 | K21: 0 | L21: 211 | P21: % of reinforcement given in 6 equal intervals based on number of trials
A22: 22 | B22: 2227 | C22: 13 | D22: 2266 | E22: 14 | F22: 2302 | K22: 0 | L22: 211 | P22: %_1 | Q22: %_2 | R22: %_3 | S22: %_4 | T22: %_5 | U22: %_6
A23: 22 | B23: 2405 | C23: 13 | D23: 2452 | E23: 14 | F23: 2470 | K23: 0 | L23: 211 | O23: target sequence | P23: =$G$3 -> 122 | Q23: =$G$3 -> 122 | R23: =$G$3 -> 122 | S23: =$G$3 -> 122 | T23: =$G$3 -> 122 | U23: =$G$3 -> 122
A24: 22 | B24: 2587 | C24: 13 | D24: 2608 | E24: 14 | F24: 2638 | K24: 0 | L24: 211 | O24: total reinforcement | P24: =U10 -> 0 | Q24: =Z10 -> 0 | R24: =AE10 -> 0 | S24: =AJ10 -> 0 | T24: =AO10 -> 0 | U24: =AT10 -> 0
A25: 22 | B25: 2799 | C25: 13 | D25: 2824 | E25: 14 | F25: 2852 | K25: 0 | L25: 211 | O25: % target
A26: 11 | B26: 3117 | C26: 11 | D26: 3146 | E26: 12 | F26: 3160 | K26: 0 | L26: 111 | O26: CCRF
A27: 22 | B27: 3276 | C27: 24 | D27: 3294 | E27: 14 | F27: 3311 | K27: 0 | L27: 221 | O27: % CCRf
A28: 11 | B28: 3449 | C28: 11 | D28: 3464 | E28: 12 | F28: 3491 | K28: 0 | L28: 111 | O28: average response rate | P28: =F25/P20 -> 150.1052632 | Q28: =(F43-F25)/Q20 -> 162.6666667 | R28: =(F62-F43)/R20 -> 196.8947368 | S28: =(F80-F62)/S20 -> 353.4444444 | T28: =(F99-F80)/T20 -> 200.2631579 | U28: =(F117-F99)/U20 -> 208.7222222
A29: 22 | B29: 3636 | C29: 13 | D29: 3646 | E29: 14 | F29: 3651 | K29: 0 | L29: 211
A30: 22 | B30: 3796 | C30: 13 | D30: 3813 | E30: 14 | F30: 3824 | K30: 0 | L30: 211
A31: 22 | B31: 3926 | C31: 13 | D31: 3940 | E31: 14 | F31: 3966 | K31: 0 | L31: 211
A32: 11 | B32: 4106 | C32: 11 | D32: 4130 | E32: 12 | F32: 4157 | K32: 0 | L32: 111
A33: 22 | B33: 4261 | C33: 24 | D33: 4277 | E33: 14 | F33: 4288 | K33: 0 | L33: 221
A34: 22 | B34: 4389 | C34: 13 | D34: 4402 | E34: 14 | F34: 4420 | K34: 0 | L34: 211
A35: 22 | B35: 4528 | C35: 13 | D35: 4537 | E35: 14 | F35: 4563 | K35: 0 | L35: 211
A36: 11 | B36: 4749 | C36: 11 | D36: 4773 | E36: 21 | F36: 4790 | K36: 0 | L36: 112
A37: 22 | B37: 4932 | C37: 13 | D37: 4941 | E37: 14 | F37: 4947 | K37: 0 | L37: 211
A38: 22 | B38: 5046 | C38: 24 | D38: 5061 | E38: 14 | F38: 5076 | K38: 0 | L38: 221
A39: 22 | B39: 5176 | C39: 13 | D39: 5195 | E39: 23 | F39: 5210 | K39: 0 | L39: 212
A40: 22 | B40: 5315 | C40: 13 | D40: 5329 | E40: 14 | F40: 5342 | K40: 0 | L40: 211
A41: 22 | B41: 5440 | C41: 13 | D41: 5455 | E41: 23 | F41: 5469 | K41: 0 | L41: 212
A42: 11 | B42: 5627 | C42: 22 | D42: 5638 | E42: 14 | F42: 5648 | K42: 0 | L42: 121
A43: 22 | B43: 5748 | C43: 13 | D43: 5769 | E43: 14 | F43: 5780 | K43: 0 | L43: 211
A44: 22 | B44: 5888 | C44: 13 | D44: 5901 | E44: 23 | F44: 5920 | K44: 0 | L44: 212
A45: 22 | B45: 6019 | C45: 24 | D45: 6036 | E45: 14 | F45: 6047 | K45: 0 | L45: 221
A46: 22 | B46: 6148 | C46: 24 | D46: 6169 | E46: 14 | F46: 6186 | K46: 0 | L46: 221
A47: 22 | B47: 6289 | C47: 24 | D47: 6306 | E47: 14 | F47: 6321 | K47: 0 | L47: 221
A48: 22 | B48: 6489 | C48: 13 | D48: 6507 | E48: 23 | F48: 6522 | K48: 0 | L48: 212
A49: 22 | B49: 6633 | C49: 13 | D49: 6641 | E49: 23 | F49: 6654 | K49: 0 | L49: 212
A50: 22 | B50: 6761 | C50: 24 | D50: 6787 | E50: 14 | F50: 6796 | K50: 0 | L50: 221
A51: 22 | B51: 6924 | C51: 13 | D51: 6938 | E51: 23 | F51: 6950 | K51: 0 | L51: 212
A52: 22 | B52: 7085 | C52: 13 | D52: 7101 | E52: 23 | F52: 7117 | K52: 0 | L52: 212
A53: 22 | B53: 7230 | C53: 24 | D53: 7264 | E53: 14 | F53: 7380 | K53: 0 | L53: 221
A54: 11 | B54: 7585 | C54: 11 | D54: 7608 | E54: 12 | F54: 7613 | K54: 0 | L54: 111
A55: 22 | B55: 7784 | C55: 13 | D55: 7838 | E55: 23 | F55: 7857 | K55: 0 | L55: 212
A56: 22 | B56: 8028 | C56: 13 | D56: 8038 | E56: 23 | F56: 8052 | K56: 0 | L56: 212
A57: 22 | B57: 8168 | C57: 13 | D57: 8209 | E57: 14 | F57: 8218 | K57: 0 | L57: 211
A58: 11 | B58: 8451 | C58: 11 | D58: 8461 | E58: 12 | F58: 8493 | K58: 0 | L58: 111
A59: 22 | B59: 8635 | C59: 13 | D59: 8705 | E59: 14 | F59: 8714 | K59: 0 | L59: 211
A60: 22 | B60: 9024 | C60: 24 | D60: 9043 | E60: 23 | F60: 9062 | K60: 0 | L60: 222
A61: 22 | B61: 9259 | C61: 13 | D61: 9272 | E61: 14 | F61: 9290 | K61: 0 | L61: 211
A62: 22 | B62: 9486 | C62: 13 | D62: 9496 | E62: 14 | F62: 9521 | K62: 0 | L62: 211
A63: 11 | B63: 9678 | C63: 11 | D63: 9707 | E63: 12 | F63: 9738 | K63: 0 | L63: 111
A64: 22 | B64: 10266 | C64: 24 | D64: 10380 | E64: 23 | F64: 10395 | K64: 0 | L64: 222
A65: 11 | B65: 10782 | C65: 11 | D65: 10805 | E65: 12 | F65: 10846 | K65: 0 | L65: 111
A66: 22 | B66: 10963 | C66: 24 | D66: 11262 | E66: 23 | F66: 11541 | K66: 0 | L66: 222
A67: 22 | B67: 11832 | C67: 24 | D67: 11848 | E67: 23 | F67: 11862 | K67: 0 | L67: 222
A68: 22 | B68: 12431 | C68: 13 | D68: 12447 | E68: 14 | F68: 12476 | K68: 0 | L68: 211
A69: 22 | B69: 14069 | C69: 24 | D69: 14107 | E69: 14 | F69: 14126 | K69: 0 | L69: 221
A70: 11 | B70: 14281 | C70: 22 | D70: 14295 | E70: 14 | F70: 14310 | K70: 0 | L70: 121
A71: 11 | B71: 14474 | C71: 11 | D71: 14500 | E71: 12 | F71: 14530 | K71: 0 | L71: 111
A72: 11 | B72: 14713 | C72: 11 | D72: 14766 | E72: 21 | F72: 14781 | K72: 0 | L72: 112
A73: 22 | B73: 14877 | C73: 13 | D73: 14897 | E73: 14 | F73: 14926 | K73: 0 | L73: 211
A74: 22 | B74: 15032 | C74: 13 | D74: 15043 | E74: 14 | F74: 15056 | K74: 0 | L74: 211
A75: 22 | B75: 15159 | C75: 13 | D75: 15171 | E75: 14 | F75: 15175 | K75: 0 | L75: 211
A76: 22 | B76: 15272 | C76: 13 | D76: 15282 | E76: 14 | F76: 15286 | K76: 0 | L76: 211
A77: 22 | B77: 15382 | C77: 13 | D77: 15419 | E77: 14 | F77: 15441 | K77: 0 | L77: 211
A78: 22 | B78: 15543 | C78: 24 | D78: 15569 | E78: 14 | F78: 15586 | K78: 0 | L78: 221
A79: 22 | B79: 15688 | C79: 13 | D79: 15731 | E79: 23 | F79: 15747 | K79: 0 | L79: 212
A80: 22 | B80: 15845 | C80: 13 | D80: 15869 | E80: 14 | F80: 15883 | K80: 0 | L80: 211
A81: 22 | B81: 15995 | C81: 13 | D81: 16030 | E81: 14 | F81: 16048 | K81: 0 | L81: 211
A82: 22 | B82: 16149 | C82: 24 | D82: 16164 | E82: 14 | F82: 16180 | K82: 0 | L82: 221
A83: 22 | B83: 16282 | C83: 24 | D83: 16305 | E83: 14 | F83: 16317 | K83: 0 | L83: 221
A84: 22 | B84: 16449 | C84: 24 | D84: 16484 | E84: 14 | F84: 16499 | K84: 0 | L84: 221
A85: 22 | B85: 16622 | C85: 13 | D85: 16636 | E85: 14 | F85: 16665 | K85: 0 | L85: 211
A86: 22 | B86: 16812 | C86: 24 | D86: 16827 | E86: 14 | F86: 16838 | K86: 0 | L86: 221
A87: 22 | B87: 16952 | C87: 13 | D87: 16984 | E87: 14 | F87: 16989 | K87: 0 | L87: 211
A88: 11 | B88: 17124 | C88: 22 | D88: 17138 | E88: 14 | F88: 17150 | K88: 0 | L88: 121
A89: 22 | B89: 17263 | C89: 24 | D89: 17284 | E89: 14 | F89: 17296 | K89: 0 | L89: 221
A90: 22 | B90: 17537 | C90: 13 | D90: 17557 | E90: 14 | F90: 17562 | K90: 0 | L90: 211
A91: 11 | B91: 17800 | C91: 11 | D91: 17841 | E91: 12 | F91: 17850 | K91: 0 | L91: 111
A92: 22 | B92: 17995 | C92: 13 | D92: 18009 | E92: 14 | F92: 18035 | K92: 0 | L92: 211
A93: 22 | B93: 18167 | C93: 13 | D93: 18184 | E93: 14 | F93: 18225 | K93: 0 | L93: 211
A94: 11 | B94: 18404 | C94: 11 | D94: 18414 | E94: 12 | F94: 18501 | K94: 0 | L94: 111
A95: 22 | B95: 18756 | C95: 24 | D95: 18798 | E95: 23 | F95: 18821 | K95: 0 | L95: 222
A96: 11 | B96: 19050 | C96: 11 | D96: 19077 | E96: 12 | F96: 19081 | K96: 0 | L96: 111
A97: 22 | B97: 19268 | C97: 13 | D97: 19284 | E97: 14 | F97: 19295 | K97: 0 | L97: 211
A98: 11 | B98: 19458 | C98: 11 | D98: 19480 | E98: 21 | F98: 19496 | K98: 0 | L98: 112
A99: 22 | B99: 19628 | C99: 13 | D99: 19681 | E99: 14 | F99: 19688 | K99: 0 | L99: 211
A100: 22 | B100: 19787 | C100: 24 | D100: 19811 | E100: 14 | F100: 19828 | K100: 0 | L100: 221
A101: 22 | B101: 20018 | C101: 24 | D101: 20037 | E101: 14 | F101: 20051 | K101: 0 | L101: 221
A102: 22 | B102: 20192 | C102: 13 | D102: 20208 | E102: 14 | F102: 20213 | K102: 0 | L102: 211
A103: 22 | B103: 20321 | C103: 24 | D103: 20336 | E103: 14 | F103: 20357 | K103: 0 | L103: 221
A104: 22 | B104: 20458 | C104: 24 | D104: 20478 | E104: 14 | F104: 20529 | K104: 0 | L104: 221
A105: 22 | B105: 20672 | C105: 13 | D105: 20706 | E105: 14 | F105: 20721 | K105: 0 | L105: 211
A106: 22 | B106: 20856 | C106: 13 | D106: 20893 | E106: 14 | F106: 20898 | K106: 0 | L106: 211
A107: 22 | B107: 21029 | C107: 13 | D107: 21058 | E107: 14 | F107: 21088 | K107: 0 | L107: 211
A108: 22 | B108: 21245 | C108: 13 | D108: 21264 | E108: 14 | F108: 21292 | K108: 0 | L108: 211
A109: 22 | B109: 21453 | C109: 24 | D109: 21469 | E109: 23 | F109: 21485 | K109: 0 | L109: 222
A110: 22 | B110: 21669 | C110: 24 | D110: 21682 | E110: 23 | F110: 21699 | K110: 0 | L110: 222
A111: 22 | B111: 21826 | C111: 24 | D111: 21838 | E111: 23 | F111: 21884 | K111: 0 | L111: 222
A112: 22 | B112: 22003 | C112: 24 | D112: 22036 | E112: 23 | F112: 22061 | K112: 0 | L112: 222
A113: 22 | B113: 22312 | C113: 24 | D113: 22331 | E113: 14 | F113: 22344 | K113: 0 | L113: 221
A114: 22 | B114: 22474 | C114: 24 | D114: 22504 | E114: 14 | F114: 22517 | K114: 0 | L114: 221
A115: 22 | B115: 22691 | C115: 24 | D115: 22705 | E115: 23 | F115: 22785 | K115: 0 | L115: 222
A116: 11 | B116: 23115 | C116: 22 | D116: 23143 | E116: 14 | F116: 23163 | K116: 0 | L116: 121
A117: 22 | B117: 23408 | C117: 24 | D117: 23423 | E117: 23 | F117: 23445 | K117: 0 | L117: 222

Sheet !M527A20.103
A1: Report for:!M527A20.103
A2: Date: | B2: <date>
A3: Hen: | B3: <hen> | F3: Correct Sequence | G3: =Start!J2 -> 122 | P3: Total Sequences in Data | Q3: =4994-COUNTBLANK(L7:L5000) -> 58 | V3: Total Sequences in Block Data | W3: =COUNTA(L7:L16) -> 10 | AA3: Total Sequences in Block Data | AB3: =COUNTA(L17:L25) -> 9 | AF3: Total Sequences in Block Data | AG3: =COUNTA(L26:L35) -> 10 | AK3: Total Sequences in Block Data | AL3: =COUNTA(L36:L45) -> 10 | AP3: Total Sequences in Block Data | AQ3: =COUNTA(L46:L54) -> 9 | AU3: Total Sequences in Block Data | AV3: =COUNTA(L55:L64) -> 10
P4: Total Sequences in Summary | Q4: =SUM(O7:O14) -> 58 | V4: Total Sequences in Block Summary | W4: =SUM(U7:U14) -> 10 | AA4: Total Sequences in Block Summary | AB4: =SUM(Z7:Z14) -> 9 | AF4: Total Sequences in Block Summary | AG4: =SUM(AE7:AE14) -> 10 | AK4: Total Sequences in Block Summary | AL4: =SUM(AJ7:AJ14) -> 10 | AP4: Total Sequences in Block Summary | AQ4: =SUM(AO7:AO14) -> 9 | AU4: Total Sequences in Block Summary | AV4: =SUM(AT7:AT14) -> 10
T5: Block 1 | Y5: Block 2 | AD5: Block 3 | AI5: Block 4 | AN5: Block 5 | AS5: Block 6
A6: Sequence Component 1 | B6: Time 1 | C6: Sequence Component 2 | D6: Time 2 | E6: Sequence Component 3 | F6: Time 3 | G6: Sequence Component 4 | H6: Time 4 | I6: Sequence Component 5 | J6: Time 5 | K6: Correct? 0=No 1=Yes | L6: Sequence | N6: Frequency | P6: Relative Frequency | Q6: Variability | T6: Frequency | V6: Relative Frequency | W6: Variability | Y6: Frequency | AA6: Relative Frequency | AB6: Variability | AD6: Frequency | AF6: Relative Frequency | AG6: Variability | AI6: Frequency | AK6: Relative Frequency | AL6: Variability | AN6: Frequency | AP6: Relative Frequency | AQ6: Variability | AS6: Frequency | AU6: Relative Frequency | AV6: Variability
A7: 22 | B7: 33 | C7: 13 | D7: 74 | E7: 23 | F7: 87 | K7: 0 | L7: 212 | N7: 111 | O7: =COUNTIF($L$7:$L$500,N7) -> 1 | P7: =O7/$Q$4 -> 0.01724137931 | Q7: =IF(P7=0,0,(P7*((LOG(P7))/LOG(2)))) -> -0.1009996723 | T7: =N7 -> 111 | U7: =COUNTIF(L7:L16,T7) -> 0 | V7: =U7/(W4-U10) -> 0 | W7: =IF(V7=0,0,(V7*((LOG(V7))/LOG(2)))) -> 0 | Y7: =N7 -> 111 | Z7: =COUNTIF(L17:L25,Y7) -> 0 | AA7: =Z7/(AB4-Z10) -> 0 | AB7: =IF(AA7=0,0,(AA7*((LOG(AA7))/LOG(2)))) -> 0 | AD7: =N7 -> 111 | AE7: =COUNTIF(L26:L35,AD7) -> 1 | AF7: =AE7/(AG4-AE10) -> 0.1 | AG7: =IF(AF7=0,0,(AF7*((LOG(AF7))/LOG(2)))) -> -0.3321928095 | AI7: =N7 -> 111 | AJ7: =COUNTIF(L36:L45,AI7) -> 0 | AK7: =AJ7/(AL4-AJ10) -> 0 | AL7: =IF(AK7=0,0,(AK7*((LOG(AK7))/LOG(2)))) -> 0 | AN7: =N7 -> 111 | AO7: =COUNTIF(L46:L54,AN7) -> 0 | AP7: =AO7/(AQ4-AO10) -> 0 | AQ7: =IF(AP7=0,0,(AP7*((LOG(AP7))/LOG(2)))) -> 0 | AS7: =N7 -> 111 | AT7: =COUNTIF(L55:L64,AS7) -> 0 | AU7: =AT7/(AV4-AT10) -> 0 | AV7: =IF(AU7=0,0,(AU7*((LOG(AU7))/LOG(2)))) -> 0
A8: 22 | B8: 191 | C8: 24 | D8: 199 | E8: 23 | F8: 220 | K8: 0 | L8: 222 | N8: 112 | O8: =COUNTIF($L$7:$L$500,N8) -> 1 | P8: =O8/$Q$4 -> 0.01724137931 | Q8: =IF(P8=0,0,(P8*((LOG(P8))/LOG(2)))) -> -0.1009996723 | T8: =N8 -> 112 | U8: =COUNTIF(L7:L16,T8) -> 0 | V8: =U8/(W4-U10) -> 0 | W8: =IF(V8=0,0,(V8*((LOG(V8))/LOG(2)))) -> 0 | Y8: =N8 -> 112 | Z8: =COUNTIF(L17:L25,Y8) -> 1 | AA8: =Z8/(AB4-Z10) -> 0.1111111111 | AB8: =IF(AA8=0,0,(AA8*((LOG(AA8))/LOG(2)))) -> -0.352213889 | AD8: =N8 -> 112 | AE8: =COUNTIF(L26:L35,AD8) -> 0 | AF8: =AE8/(AG4-AE10) -> 0 | AG8: =IF(AF8=0,0,(AF8*((LOG(AF8))/LOG(2)))) -> 0 | AI8: =N8 -> 112 | AJ8: =COUNTIF(L36:L45,AI8) -> 0 | AK8: =AJ8/(AL4-AJ10) -> 0 | AL8: =IF(AK8=0,0,(AK8*((LOG(AK8))/LOG(2)))) -> 0 | AN8: =N8 -> 112 | AO8: =COUNTIF(L46:L54,AN8) -> 0 | AP8: =AO8/(AQ4-AO10) -> 0 | AQ8: =IF(AP8=0,0,(AP8*((LOG(AP8))/LOG(2)))) -> 0 | AS8: =N8 -> 112 | AT8: =COUNTIF(L55:L64,AS8) -> 0 | AU8: =AT8/(AV4-AT10) -> 0 | AV8: =IF(AU8=0,0,(AU8*((LOG(AU8))/LOG(2)))) -> 0
A9: 22 | B9: 321 | C9: 13 | D9: 331 | E9: 23 | F9: 345 | K9: 0 | L9: 212 | N9: 121 | O9: =COUNTIF($L$7:$L$500,N9) -> 6 | P9: =O9/$Q$4 -> 0.1034482759 | Q9: =IF(P9=0,0,(P9*((LOG(P9))/LOG(2)))) -> -0.3385881201 | T9: =N9 -> 121 | U9: =COUNTIF(L7:L16,T9) -> 1 | V9: =U9/(W4-U10) -> 0.1 | W9: =IF(V9=0,0,(V9*((LOG(V9))/LOG(2)))) -> -0.3321928095 | Y9: =N9 -> 121 | Z9: =COUNTIF(L17:L25,Y9) -> 0 | AA9: =Z9/(AB4-Z10) -> 0 | AB9: =IF(AA9=0,0,(AA9*((LOG(AA9))/LOG(2)))) -> 0 | AD9: =N9 -> 121 | AE9: =COUNTIF(L26:L35,AD9) -> 0 | AF9: =AE9/(AG4-AE10) -> 0 | AG9: =IF(AF9=0,0,(AF9*((LOG(AF9))/LOG(2)))) -> 0 | AI9: =N9 -> 121 | AJ9: =COUNTIF(L36:L45,AI9) -> 1 | AK9: =AJ9/(AL4-AJ10) -> 0.1 | AL9: =IF(AK9=0,0,(AK9*((LOG(AK9))/LOG(2)))) -> -0.3321928095 | AN9: =N9 -> 121 | AO9: =COUNTIF(L46:L54,AN9) -> 0 | AP9: =AO9/(AQ4-AO10) -> 0 | AQ9: =IF(AP9=0,0,(AP9*((LOG(AP9))/LOG(2)))) -> 0 | AS9: =N9 -> 121 | AT9: =COUNTIF(L55:L64,AS9) -> 4 | AU9: =AT9/(AV4-AT10) -> 0.4444444444 | AV9: =IF(AU9=0,0,(AU9*((LOG(AU9))/LOG(2)))) -> -0.5199666673
A10: 22 | B10: 443 | C10: 24 | D10: 461 | E10: 14 | F10: 474 | K10: 0 | L10: 221 | N10: 122 | O10: =COUNTIF($L$7:$L$500,N10) -> 1 | P10: =O10/$Q$4 -> 0.01724137931 | Q10: =IF(P10=0,0,(P10*((LOG(P10))/LOG(2)))) -> -0.1009996723 | T10: =N10 -> 122 | U10: =COUNTIF(L7:L16,T10) -> 0 | Y10: =N10 -> 122 | Z10: =COUNTIF(L17:L25,Y10) -> 0 | AD10: =N10 -> 122 | AE10: =COUNTIF(L26:L35,AD10) -> 0 | AI10: =N10 -> 122 | AJ10: =COUNTIF(L36:L45,AI10) -> 0 | AN10: =N10 -> 122 | AO10: =COUNTIF(L46:L54,AN10) -> 0 | AS10: =N10 -> 122 | AT10: =COUNTIF(L55:L64,AS10) -> 1
A11: 22 | B11: 576 | C11: 24 | D11: 589 | E11: 14 | F11: 602 | K11: 0 | L11: 221 | N11: 211 | O11: =COUNTIF($L$7:$L$500,N11) -> 6 | P11: =O11/$Q$4 -> 0.1034482759 | Q11: =IF(P11=0,0,(P11*((LOG(P11))/LOG(2)))) -> -0.3385881201 | T11: =N11 -> 211 | U11: =COUNTIF(L7:L16,T11) -> 0 | V11: =U11/(W4-U10) -> 0 | W11: =IF(V11=0,0,(V11*((LOG(V11))/LOG(2)))) -> 0 | Y11: =N11 -> 211 | Z11: =COUNTIF(L17:L25,Y11) -> 1 | AA11: =Z11/(AB4-Z10) -> 0.1111111111 | AB11: =IF(AA11=0,0,(AA11*((LOG(AA11))/LOG(2)))) -> -0.352213889 | AD11: =N11 -> 211 | AE11: =COUNTIF(L26:L35,AD11) -> 3 | AF11: =AE11/(AG4-AE10) -> 0.3 | AG11: =IF(AF11=0,0,(AF11*((LOG(AF11))/LOG(2)))) -> -0.5210896782 | AI11: =N11 -> 211 | AJ11: =COUNTIF(L36:L45,AI11) -> 0 | AK11: =AJ11/(AL4-AJ10) -> 0 | AL11: =IF(AK11=0,0,(AK11*((LOG(AK11))/LOG(2)))) -> 0 | AN11: =N11 -> 211 | AO11: =COUNTIF(L46:L54,AN11) -> 0 | AP11: =AO11/(AQ4-AO10) -> 0 | AQ11: =IF(AP11=0,0,(AP11*((LOG(AP11))/LOG(2)))) -> 0 | AS11: =N11 -> 211 | AT11: =COUNTIF(L55:L64,AS11) -> 2 | AU11: =AT11/(AV4-AT10) -> 0.2222222222 | AV11: =IF(AU11=0,0,(AU11*((LOG(AU11))/LOG(2)))) -> -0.4822055559
A12: 22 | B12: 703 | C12: 24 | D12: 716 | E12: 14 | F12: 729 | K12: 0 | L12: 221 | N12: 212 | O12: =COUNTIF($L$7:$L$500,N12) -> 14 | P12: =O12/$Q$4 -> 0.2413793103 | Q12: =IF(P12=0,0,(P12*((LOG(P12))/LOG(2)))) -> -0.4949787073 | T12: =N12 -> 212 | U12: =COUNTIF(L7:L16,T12) -> 3 | V12: =U12/(W4-U10) -> 0.3 | W12: =IF(V12=0,0,(V12*((LOG(V12))/LOG(2)))) -> -0.5210896782 | Y12: =N12 -> 212 | Z12: =COUNTIF(L17:L25,Y12) -> 2 | AA12: =Z12/(AB4-Z10) -> 0.2222222222 | AB12: =IF(AA12=0,0,(AA12*((LOG(AA12))/LOG(2)))) -> -0.4822055559 | AD12: =N12 -> 212 | AE12: =COUNTIF(L26:L35,AD12) -> 1 | AF12: =AE12/(AG4-AE10) -> 0.1 | AG12: =IF(AF12=0,0,(AF12*((LOG(AF12))/LOG(2)))) -> -0.3321928095 | AI12: =N12 -> 212 | AJ12: =COUNTIF(L36:L45,AI12) -> 2 | AK12: =AJ12/(AL4-AJ10) -> 0.2 | AL12: =IF(AK12=0,0,(AK12*((LOG(AK12))/LOG(2)))) -> -0.464385619 | AN12: =N12 -> 212 | AO12: =COUNTIF(L46:L54,AN12) -> 4 | AP12: =AO12/(AQ4-AO10) -> 0.4444444444 | AQ12: =IF(AP12=0,0,(AP12*((LOG(AP12))/LOG(2)))) -> -0.5199666673 | AS12: =N12 -> 212 | AT12: =COUNTIF(L55:L64,AS12) -> 2 | AU12: =AT12/(AV4-AT10) -> 0.2222222222 | AV12: =IF(AU12=0,0,(AU12*((LOG(AU12))/LOG(2)))) -> -0.4822055559
A13: 22 | B13: 864 | C13: 13 | D13: 876 | E13: 23 | F13: 891 | K13: 0 | L13: 212 | N13: 221 | O13: =COUNTIF($L$7:$L$500,N13) -> 15 | P13: =O13/$Q$4 -> 0.2586206897 | Q13: =IF(P13=0,0,(P13*((LOG(P13))/LOG(2)))) -> -0.5045923447 | T13: =N13 -> 221 | U13: =COUNTIF(L7:L16,T13) -> 5 | V13: =U13/(W4-U10) -> 0.5 | W13: =IF(V13=0,0,(V13*((LOG(V13))/LOG(2)))) -> -0.5 | Y13: =N13 -> 221 | Z13: =COUNTIF(L17:L25,Y13) -> 4 | AA13: =Z13/(AB4-Z10) -> 0.4444444444 | AB13: =IF(AA13=0,0,(AA13*((LOG(AA13))/LOG(2)))) -> -0.5199666673 | AD13: =N13 -> 221 | AE13: =COUNTIF(L26:L35,AD13) -> 3 | AF13: =AE13/(AG4-AE10) -> 0.3 | AG13: =IF(AF13=0,0,(AF13*((LOG(AF13))/LOG(2)))) -> -0.5210896782 | AI13: =N13 -> 221 | AJ13: =COUNTIF(L36:L45,AI13) -> 2 | AK13: =AJ13/(AL4-AJ10) -> 0.2 | AL13: =IF(AK13=0,0,(AK13*((LOG(AK13))/LOG(2)))) -> -0.464385619 | AN13: =N13 -> 221 | AO13: =COUNTIF(L46:L54,AN13) -> 1 | AP13: =AO13/(AQ4-AO10) -> 0.1111111111 | AQ13: =IF(AP13=0,0,(AP13*((LOG(AP13))/LOG(2)))) -> -0.352213889 | AS13: =N13 -> 221 | AT13: =COUNTIF(L55:L64,AS13) -> 0 | AU13: =AT13/(AV4-AT10) -> 0 | AV13: =IF(AU13=0,0,(AU13*((LOG(AU13))/LOG(2)))) -> 0
A14: 22 | B14: 998 | C14: 24 | D14: 1018 | E14: 14 | F14: 1032 | K14: 0 | L14: 221 | N14: 222 | O14: =COUNTIF($L$7:$L$500,N14) -> 14 | P14: =O14/$Q$4 -> 0.2413793103 | Q14: =IF(P14=0,0,(P14*((LOG(P14))/LOG(2)))) -> -0.4949787073 | T14: =N14 -> 222 | U14: =COUNTIF(L7:L16,T14) -> 1 | V14: =U14/(W4-U10) -> 0.1 | W14: =IF(V14=0,0,(V14*((LOG(V14))/LOG(2)))) -> -0.3321928095 | Y14: =N14 -> 222 | Z14: =COUNTIF(L17:L25,Y14) -> 1 | AA14: =Z14/(AB4-Z10) -> 0.1111111111 | AB14: =IF(AA14=0,0,(AA14*((LOG(AA14))/LOG(2)))) -> -0.352213889 | AD14: =N14 -> 222 | AE14: =COUNTIF(L26:L35,AD14) -> 2 | AF14: =AE14/(AG4-AE10) -> 0.2 | AG14: =IF(AF14=0,0,(AF14*((LOG(AF14))/LOG(2)))) -> -0.464385619 | AI14: =N14 -> 222 | AJ14: =COUNTIF(L36:L45,AI14) -> 5 | AK14: =AJ14/(AL4-AJ10) -> 0.5 | AL14: =IF(AK14=0,0,(AK14*((LOG(AK14))/LOG(2)))) -> -0.5 | AN14: =N14 -> 222 | AO14: =COUNTIF(L46:L54,AN14) -> 4 | AP14: =AO14/(AQ4-AO10) -> 0.4444444444 | AQ14: =IF(AP14=0,0,(AP14*((LOG(AP14))/LOG(2)))) -> -0.5199666673 | AS14: =N14 -> 222 | AT14: =COUNTIF(L55:L64,AS14) -> 1 | AU14: =AT14/(AV4-AT10) -> 0.1111111111 | AV14: =IF(AU14=0,0,(AU14*((LOG(AU14))/LOG(2)))) -> -0.352213889
A15: 22 | B15: 1136 | C15: 24 | D15: 1162 | E15: 14 | F15: 1178 | K15: 0 | L15: 221 | P15: =SUM(P7:P14) -> 1 | Q15: =-SUM(Q7:Q14) -> 2.474725017 | V15: =SUM(V7:V14) -> 1 | W15: =-SUM(W7:W14) -> 1.685475297 | AA15: =SUM(AA7:AA14) -> 1 | AB15: =-SUM(AB7:AB14) -> 2.05881389 | AF15: =SUM(AF7:AF14) -> 1 | AG15: =-SUM(AG7:AG14) -> 2.170950594 | AK15: =SUM(AK7:AK14) -> 1 | AL15: =-SUM(AL7:AL14) -> 1.760964047 | AP15: =SUM(AP7:AP14) -> 1 | AQ15: =-SUM(AQ7:AQ14) -> 1.392147224 | AU15: =SUM(AU7:AU14) -> 1 | AV15: =-SUM(AV7:AV14) -> 1.836591668
A16: 11 | B16: 1313 | C16: 22 | D16: 1328 | E16: 14 | F16: 1341 | K16: 0 | L16: 121 | P16: U= | Q16: =Q15/(LOG(Q4)/LOG(2)) -> 0.4224535755 | V16: U1= | W16: =W15/(LOG(W4)/LOG(2)) -> 0.5073786214 | AA16: U2= | AB16: =AB15/(LOG(AB4)/LOG(2)) -> 0.6494834702 | AF16: U3= | AG16: =AG15/(LOG(AG4)/LOG(2)) -> 0.653521248 | AK16: U4= | AL16: =AL15/(LOG(AL4)/LOG(2)) -> 0.5301029996 | AP16: U5= | AQ16: =AQ15/(LOG(AQ4)/LOG(2)) -> 0.4391735524 | AU16: U6= | AV16: =AV15/(LOG(AV4)/LOG(2)) -> 0.5528691819
A17: 22 | B17: 1449 | C17: 24 | D17: 1462 | E17: 14 | F17: 1472 | K17: 0 | L17: 221
A18: 22 | B18: 1586 | C18: 24 | D18: 1605 | E18: 14 | F18: 1614 | K18: 0 | L18: 221
A19: 22 | B19: 1743 | C19: 13 | D19: 1754 | E19: 23 | F19: 1785 | K19: 0 | L19: 212 | N19: Total Target Seq
A20: 22 | B20: 1951 | C20: 13 | D20: 2000 | E20: 23 | F20: 2028 | K20: 0 | L20: 212 | N20: =COUNTIF(L7:L64,G3) -> 1 | P20: 10 | Q20: 9 | R20: 10 | S20: 10 | T20: 9 | U20: 10
A21: 22 | B21: 2133 | C21: 24 | D21: 2151 | E21: 14 | F21: 2188 | K21: 0 | L21: 221 | P21: % of reinforcement given in 6 equal intervals based on number of trials
A22: 22 | B22: 2339 | C22: 24 | D22: 2441 | E22: 14 | F22: 2482 | K22: 0 | L22: 221 | P22: %_1 | Q22: %_2 | R22: %_3 | S22: %_4 | T22: %_5 | U22: %_6
A23: 22 | B23: 2638 | C23: 13 | D23: 2648 | E23: 14 | F23: 2680 | K23: 0 | L23: 211 | O23: target sequence | P23: =$G$3 -> 122 | Q23: =$G$3 -> 122 | R23: =$G$3 -> 122 | S23: =$G$3 -> 122 | T23: =$G$3 -> 122 | U23: =$G$3 -> 122
A24: 11 | B24: 2854 | C24: 11 | D24: 2885 | E24: 21 | F24: 2915 | K24: 0 | L24: 112 | O24: total reinforcement | P24: =U10 -> 0 | Q24: =Z10 -> 0 | R24: =AE10 -> 0 | S24: =AJ10 -> 0 | T24: =AO10 -> 0 | U24: =AT10 -> 1
A25: 22 | B25: 3019 | C25: 24 | D25: 3053 | E25: 23 | F25: 3068 | K25: 0 | L25: 222 | O25: % target
A26: 22 | B26: 3166 | C26: 24 | D26: 3174 | E26: 23 | F26: 3188 | K26: 0 | L26: 222 | O26: CCRF
A27: 22 | B27: 3290 | C27: 24 | D27: 3307 | E27: 14 | F27: 3335 | K27: 0 | L27: 221 | O27: % CCRf
A28: 22 | B28: 3436 | C28: 24 | D28: 3525 | E28: 23 | F28: 3539 | K28: 0 | L28: 222 | O28: average response rate | P28: =F16/P20 -> 134.1 | Q28: =(F25-F16)/Q20 -> 191.8888889 | R28: =(F35-F25)/R20 -> 183 | S28: =(F45-F35)/S20 -> 222 | T28: =(F54-F45)/T20 -> 935.4444444 | U28: =(F64-F54)/U20 -> 705.4
A29: 22 | B29: 3658 | C29: 24 | D29: 3681 | E29: 14 | F29: 3722 | K29: 0 | L29: 221
A30: 22 | B30: 3846 | C30: 24 | D30: 3862 | E30: 14 | F30: 3877 | K30: 0 | L30: 221
A31: 22 | B31: 4007 | C31: 13 | D31: 4022 | E31: 14 | F31: 4037 | K31: 0 | L31: 211
A32: 11 | B32: 4168 | C32: 11 | D32: 4178 | E32: 12 | F32: 4226 | K32: 0 | L32: 111
A33: 22 | B33: 4352 | C33: 13 | D33: 4378 | E33: 14 | F33: 4395 | K33: 0 | L33: 211
A34: 22 | B34: 4633 | C34: 13 | D34: 4653 | E34: 14 | F34: 4688 | K34: 0 | L34: 211
A35: 22 | B35: 4822 | C35: 13 | D35: 4843 | E35: 23 | F35: 4898 | K35: 0 | L35: 212
A36: 11 | B36: 5092 | C36: 22 | D36: 5130 | E36: 14 | F36: 5150 | K36: 0 | L36: 121
A37: 22 | B37: 5270 | C37: 24 | D37: 5297 | E37: 23 | F37: 5315 | K37: 0 | L37: 222
A38: 22 | B38: 5500 | C38: 13 | D38: 5515 | E38: 23 | F38: 5543 | K38: 0 | L38: 212
A39: 22 | B39: 5716 | C39: 13 | D39: 5731 | E39: 23 | F39: 5745 | K39: 0 | L39: 212
A40: 22 | B40: 5965 | C40: 24 | D40: 6010 | E40: 23 | F40: 6061 | K40: 0 | L40: 222
A41: 22 | B41: 6179 | C41: 24 | D41: 6207 | E41: 23 | F41: 6221 | K41: 0 | L41: 222
A42: 22 | B42: 6348 | C42: 24 | D42: 6374 | E42: 14 | F42: 6389 | K42: 0 | L42: 221
A43: 22 | B43: 6652 | C43: 24 | D43: 6669 | E43: 23 | F43: 6688 | K43: 0 | L43: 222
A44: 22 | B44: 6825 | C44: 24 | D44: 6866 | E44: 23 | F44: 6882 | K44: 0 | L44: 222
A45: 22 | B45: 7060 | C45: 24 | D45: 7105 | E45: 14 | F45: 7118 | K45: 0 | L45: 221
A46: 22 | B46: 7409 | C46: 24 | D46: 7476 | E46: 23 | F46: 7509 | K46: 0 | L46: 222
A47: 22 | B47: 7697 | C47: 24 | D47: 8111 | E47: 14 | F47: 8665 | K47: 0 | L47: 221
A48: 22 | B48: 9122 | C48: 24 | D48: 9177 | E48: 23 | F48: 9194 | K48: 0 | L48: 222
A49: 22 | B49: 9984 | C49: 24 | D49: 13012 | E49: 23 | F49: 13082 | K49: 0 | L49: 222
A50: 22 | B50: 13445 | C50: 24 | D50: 13496 | E50: 23 | F50: 13512 | K50: 0 | L50: 222
A51: 22 | B51: 13698 | C51: 13 | D51: 13717 | E51: 23 | F51: 13740 | K51: 0 | L51: 212
A52: 22 | B52: 13964 | C52: 13 | D52: 13981 | E52: 23 | F52: 13998 | K52: 0 | L52: 212
A53: 22 | B53: 15174 | C53: 13 | D53: 15200 | E53: 23 | F53: 15219 | K53: 0 | L53: 212
A54: 22 | B54: 15486 | C54: 13 | D54: 15506 | E54: 23 | F54: 15537 | K54: 0 | L54: 212
A55: 22 | B55: 15734 | C55: 13 | D55: 15749 | E55: 14 | F55: 15755 | K55: 0 | L55: 211
A56: 22 | B56: 16163 | C56: 13 | D56: 16185 | E56: 23 | F56: 16215 | K56: 0 | L56: 212
A57: 11 | B57: 16430 | C57: 22 | D57: 16445 | E57: 14 | F57: 16462 | K57: 0 | L57: 121
A58: 11 | B58: 16700 | C58: 22 | D58: 16714 | E58: 14 | F58: 16768 | K58: 0 | L58: 121
A59: 22 | B59: 17404 | C59: 24 | D59: 17428 | E59: 23 | F59: 17448 | K59: 0 | L59: 222
A60: 11 | B60: 17739 | C60: 22 | D60: 17761 | E60: 14 | F60: 17777 | K60: 0 | L60: 121
A61: 11 | B61: 18134 | C61: 22 | D61: 18160 | E61: 23 | F61: 18195 | K61: 0 | L61: 122
A62: 22 | B62: 18612 | C62: 13 | D62: 18642 | E62: 14 | F62: 18673 | K62: 0 | L62: 211
A63: 11 | B63: 20491 | C63: 22 | D63: 21927 | E63: 14 | F63: 21956 | K63: 0 | L63: 121
A64: 22 | B64: 22553 | C64: 13 | D64: 22575 | E64: 23 | F64: 22591 | K64: 0 | L64: 212

Sheet !M528930.103
A1: Report for:!M528930.103
A2: Date: | B2: <date>
A3: Hen: | B3: <hen> | F3: Correct Sequence | G3: =Start!J2 -> 122 | P3: Total Sequences in Data | Q3: =4994-COUNTBLANK(L7:L5000) -> 71 | V3: Total Sequences in Block Data | W3: =COUNTA(L7:L18) -> 12 | AA3: Total Sequences in Block Data | AB3: =COUNTA(L19:L30) -> 12 | AF3: Total Sequences in Block Data | AG3: =COUNTA(L31:L41) -> 11 | AK3: Total Sequences in Block Data | AL3: =COUNTA(L42:L53) -> 12 | AP3: Total Sequences in Block Data | AQ3: =COUNTA(L54:L65) -> 12 | AU3: Total Sequences in Block Data | AV3: =COUNTA(L66:L77) -> 12
P4: Total Sequences in Summary | Q4: =SUM(O7:O14) -> 71 | V4: Total Sequences in Block Summary | W4: =SUM(U7:U14) -> 12 | AA4: Total Sequences in Block Summary | AB4: =SUM(Z7:Z14) -> 12 | AF4: Total Sequences in Block Summary | AG4: =SUM(AE7:AE14) -> 11 | AK4: Total Sequences in Block Summary | AL4: =SUM(AJ7:AJ14) -> 12 | AP4: Total Sequences in Block Summary | AQ4: =SUM(AO7:AO14) -> 12 | AU4: Total Sequences in Block Summary | AV4: =SUM(AT7:AT14) -> 12
T5: Block 1 | Y5: Block 2 | AD5: Block 3 | AI5: Block 4 | AN5: Block 5 | AS5: Block 6
A6: Sequence Component 1 | B6: Time 1 | C6: Sequence Component 2 | D6: Time 2 | E6: Sequence Component 3 | F6: Time 3 | G6: Sequence Component 4 | H6: Time 4 | I6: Sequence Component 5 | J6: Time 5 | K6: Correct? 0=No 1=Yes | L6: Sequence | N6: Frequency | P6: Relative Frequency | Q6: Variability | T6: Frequency | V6: Relative Frequency | W6: Variability | Y6: Frequency | AA6: Relative Frequency | AB6: Variability | AD6: Frequency | AF6: Relative Frequency | AG6: Variability | AI6: Frequency | AK6: Relative Frequency | AL6: Variability | AN6: Frequency | AP6: Relative Frequency | AQ6: Variability | AS6: Frequency | AU6: Relative Frequency | AV6: Variability
A7: 22 | B7: 32 | C7: 24 | D7: 46 | E7: 23 | F7: 86 | K7: 0 | L7: 222 | N7: 111 | O7: =COUNTIF($L$7:$L$500,N7) -> 0 | P7: =O7/$Q$4 -> 0 | Q7: =IF(P7=0,0,(P7*((LOG(P7))/LOG(2)))) -> 0 | T7: =N7 -> 111 | U7: =COUNTIF(L7:L18,T7) -> 0 | V7: =U7/(W4-U10) -> 0 | W7: =IF(V7=0,0,(V7*((LOG(V7))/LOG(2)))) -> 0 | Y7: =N7 -> 111 | Z7: =COUNTIF(L19:L30,Y7) -> 0 | AA7: =Z7/(AB4-Z10) -> 0 | AB7: =IF(AA7=0,0,(AA7*((LOG(AA7))/LOG(2)))) -> 0 | AD7: =N7 -> 111 | AE7: =COUNTIF(L31:L41,AD7) -> 0 | AF7: =AE7/(AG4-AE10) -> 0 | AG7: =IF(AF7=0,0,(AF7*((LOG(AF7))/LOG(2)))) -> 0 | AI7: =N7 -> 111 | AJ7: =COUNTIF(L42:L53,AI7) -> 0 | AK7: =AJ7/(AL4-AJ10) -> 0 | AL7: =IF(AK7=0,0,(AK7*((LOG(AK7))/LOG(2)))) -> 0 | AN7: =N7 -> 111 | AO7: =COUNTIF(L54:L65,AN7) -> 0 | AP7: =AO7/(AQ4-AO10) -> 0 | AQ7: =IF(AP7=0,0,(AP7*((LOG(AP7))/LOG(2)))) -> 0 | AS7: =N7 -> 111 | AT7: =COUNTIF(L66:L77,AS7) -> 0 | AU7: =AT7/(AV4-AT10) -> 0 | AV7: =IF(AU7=0,0,(AU7*((LOG(AU7))/LOG(2)))) -> 0
A8: 22 | B8: 202 | C8: 24 | D8: 232 | E8: 23 | F8: 249 | K8: 0 | L8: 222 | N8: 112 | O8: =COUNTIF($L$7:$L$500,N8) -> 2 | P8: =O8/$Q$4 -> 0.02816901408 | Q8: =IF(P8=0,0,(P8*((LOG(P8))/LOG(2)))) -> -0.1450632991 | T8: =N8 -> 112 | U8: =COUNTIF(L7:L18,T8) -> 0 | V8: =U8/(W4-U10) -> 0 | W8: =IF(V8=0,0,(V8*((LOG(V8))/LOG(2)))) -> 0 | Y8: =N8 -> 112 | Z8: =COUNTIF(L19:L30,Y8) -> 1 | AA8: =Z8/(AB4-Z10) -> 0.09090909091 | AB8: =IF(AA8=0,0,(AA8*((LOG(AA8))/LOG(2)))) -> -0.3144937835 | AD8: =N8 -> 112 | AE8: =COUNTIF(L31:L41,AD8) -> 0 | AF8: =AE8/(AG4-AE10) -> 0 | AG8: =IF(AF8=0,0,(AF8*((LOG(AF8))/LOG(2)))) -> 0 | AI8: =N8 -> 112 | AJ8: =COUNTIF(L42:L53,AI8) -> 1 | AK8: =AJ8/(AL4-AJ10) -> 0.09090909091 | AL8: =IF(AK8=0,0,(AK8*((LOG(AK8))/LOG(2)))) -> -0.3144937835 | AN8: =N8 -> 112 | AO8: =COUNTIF(L54:L65,AN8) -> 0 | AP8: =AO8/(AQ4-AO10) -> 0 | AQ8: =IF(AP8=0,0,(AP8*((LOG(AP8))/LOG(2)))) -> 0 | AS8: =N8 -> 112 | AT8: =COUNTIF(L66:L77,AS8) -> 0 | AU8: =AT8/(AV4-AT10) -> 0 | AV8: =IF(AU8=0,0,(AU8*((LOG(AU8))/LOG(2)))) -> 0
A9: 22 | B9: 371 | C9: 24 | D9: 384 | E9: 23 | F9: 421 | K9: 0 | L9: 222 | N9: 121 | O9: =COUNTIF($L$7:$L$500,N9) -> 0 | P9: =O9/$Q$4 -> 0 | Q9: =IF(P9=0,0,(P9*((LOG(P9))/LOG(2)))) -> 0 | T9: =N9 -> 121 | U9: =COUNTIF(L7:L18,T9) -> 0 | V9: =U9/(W4-U10) -> 0 | W9: =IF(V9=0,0,(V9*((LOG(V9))/LOG(2)))) -> 0 | Y9: =N9 -> 121 | Z9: =COUNTIF(L19:L30,Y9) -> 0 | AA9: =Z9/(AB4-Z10) -> 0 | AB9: =IF(AA9=0,0,(AA9*((LOG(AA9))/LOG(2)))) -> 0 | AD9: =N9 -> 121 | AE9: =COUNTIF(L31:L41,AD9) -> 0 | AF9: =AE9/(AG4-AE10) -> 0 | AG9: =IF(AF9=0,0,(AF9*((LOG(AF9))/LOG(2)))) -> 0 | AI9: =N9 -> 121 | AJ9: =COUNTIF(L42:L53,AI9) -> 0 | AK9: =AJ9/(AL4-AJ10) -> 0 | AL9: =IF(AK9=0,0,(AK9*((LOG(AK9))/LOG(2)))) -> 0 | AN9: =N9 -> 121 | AO9: =COUNTIF(L54:L65,AN9) -> 0 | AP9: =AO9/(AQ4-AO10) -> 0 | AQ9: =IF(AP9=0,0,(AP9*((LOG(AP9))/LOG(2)))) -> 0 | AS9: =N9 -> 121 | AT9: =COUNTIF(L66:L77,AS9) -> 0 | AU9: =AT9/(AV4-AT10) -> 0 | AV9: =IF(AU9=0,0,(AU9*((LOG(AU9))/LOG(2)))) -> 0
A10: 22 | B10: 544 | C10: 24 | D10: 559 | E10: 23 | F10: 578 | K10: 0 | L10: 222 | N10: 122 | O10: =COUNTIF($L$7:$L$500,N10) -> 8 | P10: =O10/$Q$4 -> 0.1126760563 | Q10: =IF(P10=0,0,(P10*((LOG(P10))/LOG(2)))) -> -0.3549010839 | T10: =N10 -> 122 | U10: =COUNTIF(L7:L18,T10) -> 0 | Y10: =N10 -> 122 | Z10: =COUNTIF(L19:L30,Y10) -> 1 | AD10: =N10 -> 122 | AE10: =COUNTIF(L31:L41,AD10) -> 2 | AI10: =N10 -> 122 | AJ10: =COUNTIF(L42:L53,AI10) -> 1 | AN10: =N10 -> 122 | AO10: =COUNTIF(L54:L65,AN10) -> 0 | AS10: =N10 -> 122 | AT10: =COUNTIF(L66:L77,AS10) -> 4
A11: 22 | B11: 695 | C11: 24 | D11: 707 | E11: 23 | F11: 731 | K11: 0 | L11: 222 | N11: 211 | O11: =COUNTIF($L$7:$L$500,N11) -> 2 | P11: =O11/$Q$4 -> 0.02816901408 | Q11: =IF(P11=0,0,(P11*((LOG(P11))/LOG(2)))) -> -0.1450632991 | T11: =N11 -> 211 | U11: =COUNTIF(L7:L18,T11) -> 1 | V11: =U11/(W4-U10) -> 0.08333333333 | W11: =IF(V11=0,0,(V11*((LOG(V11))/LOG(2)))) -> -0.2987468751 | Y11: =N11 -> 211 | Z11: =COUNTIF(L19:L30,Y11) -> 1 | AA11: =Z11/(AB4-Z10) -> 0.09090909091 | AB11: =IF(AA11=0,0,(AA11*((LOG(AA11))/LOG(2)))) -> -0.3144937835 | AD11: =N11 -> 211 | AE11: =COUNTIF(L31:L41,AD11) -> 0 | AF11: =AE11/(AG4-AE10) -> 0 | AG11: =IF(AF11=0,0,(AF11*((LOG(AF11))/LOG(2)))) -> 0 | AI11: =N11 -> 211 | AJ11: =COUNTIF(L42:L53,AI11) -> 0 | AK11: =AJ11/(AL4-AJ10) -> 0 | AL11: =IF(AK11=0,0,(AK11*((LOG(AK11))/LOG(2)))) -> 0 | AN11: =N11 -> 211 | AO11: =COUNTIF(L54:L65,AN11) -> 0 | AP11: =AO11/(AQ4-AO10) -> 0 | AQ11: =IF(AP11=0,0,(AP11*((LOG(AP11))/LOG(2)))) -> 0 | AS11: =N11 -> 211 | AT11: =COUNTIF(L66:L77,AS11) -> 0 | AU11: =AT11/(AV4-AT10) -> 0 | AV11: =IF(AU11=0,0,(AU11*((LOG(AU11))/LOG(2)))) -> 0
A12: 22 | B12: 882 | C12: 13 | D12: 896 | E12: 14 | F12: 897 | K12: 0 | L12: 211 | N12: 212 | O12: =COUNTIF($L$7:$L$500,N12) -> 4 | P12: =O12/$Q$4 -> 0.05633802817 | Q12: =IF(P12=0,0,(P12*((LOG(P12))/LOG(2)))) -> -0.2337885701 | T12: =N12 -> 212 | U12: =COUNTIF(L7:L18,T12) -> 2 | V12: =U12/(W4-U10) -> 0.1666666667 | W12: =IF(V12=0,0,(V12*((LOG(V12))/LOG(2)))) -> -0.4308270835 | Y12: =N12 -> 212 | Z12: =COUNTIF(L19:L30,Y12) -> 1 | AA12: =Z12/(AB4-Z10) -> 0.09090909091 | AB12: =IF(AA12=0,0,(AA12*((LOG(AA12))/LOG(2)))) -> -0.3144937835 | AD12: =N12 -> 212 | AE12: =COUNTIF(L31:L41,AD12) -> 1 | AF12: =AE12/(AG4-AE10) -> 0.1111111111 | AG12: =IF(AF12=0,0,(AF12*((LOG(AF12))/LOG(2)))) -> -0.352213889 | AI12: =N12 -> 212 | AJ12: =COUNTIF(L42:L53,AI12) -> 0 | AK12: =AJ12/(AL4-AJ10) -> 0 | AL12: =IF(AK12=0,0,(AK12*((LOG(AK12))/LOG(2)))) -> 0 | AN12: =N12 -> 212 | AO12: =COUNTIF(L54:L65,AN12) -> 0 | AP12: =AO12/(AQ4-AO10) -> 0 | AQ12: =IF(AP12=0,0,(AP12*((LOG(AP12))/LOG(2)))) -> 0 | AS12: =N12 -> 212 | AT12: =COUNTIF(L66:L77,AS12) -> 0 | AU12: =AT12/(AV4-AT10) -> 0 | AV12: =IF(AU12=0,0,(AU12*((LOG(AU12))/LOG(2)))) -> 0
A13: 22 | B13: 1009 | C13: 24 | D13: 1022 | E13: 23 | F13: 1051 | K13: 0 | L13: 222 | N13: 221 | O13: =COUNTIF($L$7:$L$500,N13) -> 7 | P13: =O13/$Q$4 -> 0.0985915493 | Q13: =IF(P13=0,0,(P13*((LOG(P13))/LOG(2)))) -> -0.3295316251 | T13: =N13 -> 221 | U13: =COUNTIF(L7:L18,T13) -> 1 | V13: =U13/(W4-U10) -> 0.08333333333 | W13: =IF(V13=0,0,(V13*((LOG(V13))/LOG(2)))) -> -0.2987468751 | Y13: =N13 -> 221 | Z13: =COUNTIF(L19:L30,Y13) -> 3 | AA13: =Z13/(AB4-Z10) -> 0.2727272727 | AB13: =IF(AA13=0,0,(AA13*((LOG(AA13))/LOG(2)))) -> -0.5112188503 | AD13: =N13 -> 221 | AE13: =COUNTIF(L31:L41,AD13) -> 2 | AF13: =AE13/(AG4-AE10) -> 0.2222222222 | AG13: =IF(AF13=0,0,(AF13*((LOG(AF13))/LOG(2)))) -> -0.4822055559 | AI13: =N13 -> 221 | AJ13: =COUNTIF(L42:L53,AI13) -> 0 | AK13: =AJ13/(AL4-AJ10) -> 0 | AL13: =IF(AK13=0,0,(AK13*((LOG(AK13))/LOG(2)))) -> 0 | AN13: =N13 -> 221 | AO13: =COUNTIF(L54:L65,AN13) -> 1 | AP13: =AO13/(AQ4-AO10) -> 0.08333333333 | AQ13: =IF(AP13=0,0,(AP13*((LOG(AP13))/LOG(2)))) -> -0.2987468751 | AS13: =N13 -> 221 | AT13: =COUNTIF(L66:L77,AS13) -> 0 | AU13: =AT13/(AV4-AT10) -> 0 | AV13: =IF(AU13=0,0,(AU13*((LOG(AU13))/LOG(2)))) -> 0
A14: 22 | B14: 1166 | C14: 13 | D14: 1176 | E14: 23 | F14: 1187 | K14: 0 | L14: 212 | N14: 222 | O14: =COUNTIF($L$7:$L$500,N14) -> 48 | P14: =O14/$Q$4 -> 0.676056338 | Q14: =IF(P14=0,0,(P14*((LOG(P14))/LOG(2)))) -> -0.3818262211 | T14: =N14 -> 222 | U14: =COUNTIF(L7:L18,T14) -> 8 | V14: =U14/(W4-U10) -> 0.6666666667 | W14: =IF(V14=0,0,(V14*((LOG(V14))/LOG(2)))) -> -0.3899750005 | Y14: =N14 -> 222 | Z14: =COUNTIF(L19:L30,Y14) -> 5 | AA14: =Z14/(AB4-Z10) -> 0.4545454545 | AB14: =IF(AA14=0,0,(AA14*((LOG(AA14))/LOG(2)))) -> -0.5170470562 | AD14: =N14 -> 222 | AE14: =COUNTIF(L31:L41,AD14) -> 6 | AF14: =AE14/(AG4-AE10) -> 0.6666666667 | AG14: =IF(AF14=0,0,(AF14*((LOG(AF14))/LOG(2)))) -> -0.3899750005 | AI14: =N14 -> 222 | AJ14: =COUNTIF(L42:L53,AI14) -> 10 | AK14: =AJ14/(AL4-AJ10) -> 0.9090909091 | AL14: =IF(AK14=0,0,(AK14*((LOG(AK14))/LOG(2)))) -> -0.1250032034 | AN14: =N14 -> 222 | AO14: =COUNTIF(L54:L65,AN14) -> 11 | AP14: =AO14/(AQ4-AO10) -> 0.9166666667 | AQ14: =IF(AP14=0,0,(AP14*((LOG(AP14))/LOG(2)))) -> -0.1150699752 | AS14: =N14 -> 222 | AT14: =COUNTIF(L66:L77,AS14) -> 8 | AU14: =AT14/(AV4-AT10) -> 1 | AV14: =IF(AU14=0,0,(AU14*((LOG(AU14))/LOG(2)))) -> 0
A15: 22 | B15: 1359 | C15: 13 | D15: 1381 | E15: 23 | F15: 1392 | K15: 0 | L15: 212 | P15: =SUM(P7:P14) -> 1 | Q15: =-SUM(Q7:Q14) -> 1.590174099 | V15: =SUM(V7:V14) -> 1 | W15: =-SUM(W7:W14) -> 1.418295834 | AA15: =SUM(AA7:AA14) -> 1 | AB15: =-SUM(AB7:AB14) -> 1.971747257 | AF15: =SUM(AF7:AF14) -> 1 | AG15: =-SUM(AG7:AG14) -> 1.224394445 | AK15: =SUM(AK7:AK14) -> 1 | AL15: =-SUM(AL7:AL14) -> 0.4394969869 | AP15: =SUM(AP7:AP14) -> 1 | AQ15: =-SUM(AQ7:AQ14) -> 0.4138168503 | AU15: =SUM(AU7:AU14) -> 1 | AV15: =-SUM(AV7:AV14) -> 0
A16: 22 | B16: 1562 | C16: 24 | D16: 1617 | E16: 23 | F16: 1645 | K16: 0 | L16: 222 | P16: U= | Q16: =Q15/(LOG(Q4)/LOG(2)) -> 0.2585755264 | V16: U1= | W16: =W15/(LOG(W4)/LOG(2)) -> 0.3956236178 | AA16: U2= | AB16: =AB15/(LOG(AB4)/LOG(2)) -> 0.550004988 | AF16: U3= | AG16: =AG15/(LOG(AG4)/LOG(2)) -> 0.3539293677 | AK16: U4= | AL16: =AL15/(LOG(AL4)/LOG(2)) -> 0.1225945841 | AP16: U5= | AQ16: =AQ15/(LOG(AQ4)/LOG(2)) -> 0.1154312912 | AU16: U6= | AV16: =AV15/(LOG(AV4)/LOG(2)) -> 0
A17: 22 | B17: 1811 | C17: 24 | D17: 1848 | E17: 14 | F17: 1862 | K17: 0 | L17: 221
A18: 22 | B18: 1972 | C18: 24 | D18: 1984 | E18: 23 | F18: 2009 | K18: 0 | L18: 222
A19: 11 | B19: 2320 | C19: 11 | D19: 2322 | E19: 21 | F19: 2406 | K19: 0 | L19: 112 | N19: Total Target Seq
A20: 11 | B20: 2625 | C20: 22 | D20: 2657 | E20: 23 | F20: 2674 | K20: 0 | L20: 122 | N20: =COUNTIF(L7:L77,G3) -> 8 | P20: 12 | Q20: 12 | R20: 11 | S20: 12 | T20: 12 | U20: 12
A21: 22 | B21: 2840 | C21: 24 | D21: 2853 | E21: 14 | F21: 2870 | K21: 0 | L21: 221 | P21: % of reinforcement given in 6 equal intervals based on number of trials
A22: 22 | B22: 2973 | C22: 24 | D22: 3008 | E22: 23 | F22: 3029 | K22: 0 | L22: 222 | P22: %_1 | Q22: %_2 | R22: %_3 | S22: %_4 | T22: %_5 | U22: %_6
A23: 22 | B23: 3142 | C23: 24 | D23: 3155 | E23: 14 | F23: 3172 | K23: 0 | L23: 221 | O23: target sequence | P23: =$G$3 -> 122 | Q23: =$G$3 -> 122 | R23: =$G$3 -> 122 | S23: =$G$3 -> 122 | T23: =$G$3 -> 122 | U23: =$G$3 -> 122
A24: 22 | B24: 3323 | C24: 24 | D24: 3342 | E24: 23 | F24: 3394 | K24: 0 | L24: 222 | O24: total reinforcement | P24: =U10 -> 0 | Q24: =Z10 -> 1 | R24: =AE10 -> 2 | S24: =AJ10 -> 1 | T24: =AO10 -> 0 | U24: =AT10 -> 4
A25: 22 | B25: 3495 | C25: 24 | D25: 3525 | E25: 23 | F25: 3548 | K25: 0 | L25: 222 | O25: % target
A26: 22 | B26: 3662 | C26: 24 | D26: 3674 | E26: 23 | F26: 3691 | K26: 0 | L26: 222 | O26: CCRF
A27: 22 | B27: 3848 | C27: 24 | D27: 3861 | E27: 23 | F27: 3890 | K27: 0 | L27: 222 | O27: % CCRf
A28: 22 | B28: 4059 | C28: 13 | D28: 4081 | E28: 23 | F28: 4094 | K28: 0 | L28: 212 | O28: average response rate | P28: =F18/P20 -> 167.4166667 | Q28: =(F30-F18)/Q20 -> 210.6666667 | R28: =(F41-F30)/R20 -> 317.1818182 | S28: =(F53-F41)/S20 -> 196.0833333 | T28: =(F65-F53)/T20 -> 358.8333333 | U28: =(F77-F65)/U20 -> 765.4166667
A29: 22 | B29: 4215 | C29: 24 | D29: 4261 | E29: 14 | F29: 4289 | K29: 0 | L29: 221
A30: 22 | B30: 4489 | C30: 13 | D30: 4504 | E30: 14 | F30: 4537 | K30: 0 | L30: 211
A31: 22 | B31: 4721 | C31: 24 | D31: 4740 | E31: 14 | F31: 4782 | K31: 0 | L31: 221
A32: 22 | B32: 5037 | C32: 24 | D32: 5055 | E32: 14 | F32: 5073 | K32: 0 | L32: 221
A33: 22 | B33: 5245 | C33: 24 | D33: 5269 | E33: 23 | F33: 5317 | K33: 0 | L33: 222
A34: 11 | B34: 5487 | C34: 22 | D34: 5498 | E34: 23 | F34: 5514 | K34: 0 | L34: 122
A35: 22 | B35: 5702 | C35: 24 | D35: 5754 | E35: 23 | F35: 5819 | K35: 0 | L35: 222
A36: 22 | B36: 6016 | C36: 24 | D36: 6037 | E36: 23 | F36: 6051 | K36: 0 | L36: 222
A37: 22 | B37: 6486 | C37: 24 | D37: 6503 | E37: 23 | F37: 6532 | K37: 0 | L37: 222
A38: 22 | B38: 6730 | C38: 24 | D38: 6754 | E38: 23 | F38: 6774 | K38: 0 | L38: 222
A39: 11 | B39: 7517 | C39: 22 | D39: 7534 | E39: 23 | F39: 7548 | K39: 0 | L39: 122
A40: 22 | B40: 7785 | C40: 24 | D40: 7797 | E40: 23 | F40: 7810 | K40: 0 | L40: 222
A41: 22 | B41: 7986 | C41: 13 | D41: 8008 | E41: 23 | F41: 8026 | K41: 0 | L41: 212
A42: 11 | B42: 8241 | C42: 11 | D42: 8243 | E42: 21 | F42: 8261 | K42: 0 | L42: 112
A43: 22 | B43: 8410 | C43: 24 | D43: 8422 | E43: 23 | F43: 8435 | K43: 0 | L43: 222
A44: 22 | B44: 8554 | C44: 24 | D44: 8567 | E44: 23 | F44: 8580 | K44: 0 | L44: 222
A45: 22 | B45: 8698 | C45: 24 | D45: 8712 | E45: 23 | F45: 8748 | K45: 0 | L45: 222
A46: 22 | B46: 8903 | C46: 24 | D46: 8916 | E46: 23 | F46: 8926 | K46: 0 | L46: 222
A47: 22 | B47: 9054 | C47: 24 | D47: 9065 | E47: 23 | F47: 9079 | K47: 0 | L47: 222
A48: 22 | B48: 9278 | C48: 24 | D48: 9298 | E48: 23 | F48: 9311 | K48: 0 | L48: 222
A49: 22 | B49: 9437 | C49: 24 | D49: 9450 | E49: 23 | F49: 9472 | K49: 0 | L49: 222
A50: 22 | B50: 9678 | C50: 24 | D50: 9692 | E50: 23 | F50: 9756 | K50: 0 | L50: 222
A51: 22 | B51: 9903 | C51: 24 | D51: 9922 | E51: 23 | F51: 9933 | K51: 0 | L51: 222
A52: 11 | B52: 10190 | C52: 22 | D52: 10209 | E52: 23 | F52: 10222 | K52: 0 | L52: 122
A53: 22 | B53: 10352 | C53: 24 | D53: 10366 | E53: 23 | F53: 10379 | K53: 0 | L53: 222
A54: 22 | B54: 10530 | C54: 24 | D54: 10543 | E54: 23 | F54: 10555 | K54: 0 | L54: 222
A55: 22 | B55: 10695 | C55: 24 | D55: 10707 | E55: 23 | F55: 10719 | K55: 0 | L55: 222
A56: 22 | B56: 10934 | C56: 24 | D56: 10946 | E56: 23 | F56: 10958 | K56: 0 | L56: 222
A57: 22 | B57: 11161 | C57: 24 | D57: 11180 | E57: 14 | F57: 11196 | K57: 0 | L57: 221
A58: 22 | B58: 11392 | C58: 24 | D58: 11394 | E58: 23 | F58: 11419 | K58: 0 | L58: 222
A59: 22 | B59: 11687 | C59: 24 | D59: 11702 | E59: 23 | F59: 11716 | K59: 0 | L59: 222
A60: 22 | B60: 11991 | C60: 24 | D60: 12005 | E60: 23 | F60: 12018 | K60: 0 | L60: 222
A61: 22 | B61: 12285 | C61: 24 | D61: 12301 | E61: 23 | F61: 12315 | K61: 0 | L61: 222
A62: 22 | B62: 12700 | C62: 24 | D62: 12716 | E62: 23 | F62: 12734 | K62: 0 | L62: 222
A63: 22 | B63: 12902 | C63: 24 | D63: 12914 | E63: 23 | F63: 12926 | K63: 0 | L63: 222
A64: 22 | B64: 13128 | C64: 24 | D64: 13161 | E64: 23 | F64: 13175 | K64: 0 | L64: 222
A65: 22 | B65: 14633 | C65: 24 | D65: 14670 | E65: 23 | F65: 14685 | K65: 0 | L65: 222
A66: 22 | B66: 17177 | C66: 24 | D66: 17190 | E66: 23 | F66: 17209 | K66: 0 | L66: 222
A67: 22 | B67: 17359 | C67: 24 | D67: 17439 | E67: 23 | F67: 17452 | K67: 0 | L67: 222
A68: 22 | B68: 20813 | C68: 24 | D68: 20841 | E68: 23 | F68: 20859 | K68: 0 | L68: 222
A69: 22 | B69: 21055 | C69: 24 | D69: 21092 | E69: 23 | F69: 21107 | K69: 0 | L69: 222
A70: 11 | B70: 21237 | C70: 22 | D70: 21249 | E70: 23 | F70: 21264 | K70: 0 | L70: 122
A71: 22 | B71: 21476 | C71: 24 | D71: 21496 | E71: 23 | F71: 21508 | K71: 0 | L71: 222
A72: 22 | B72: 21698 | C72: 24 | D72: 21714 | E72: 23 | F72: 21726 | K72: 0 | L72: 222
A73: 11 | B73: 21977 | C73: 22 | D73: 22006 | E73: 23 | F73: 22023 | K73: 0 | L73: 122
A74: 22 | B74: 22507 | C74: 24 | D74: 22519 | E74: 23 | F74: 22549 | K74: 0 | L74: 222
A75: 11 | B75: 22683 | C75: 22 | D75: 22714 | E75: 23 | F75: 22727 | K75: 0 | L75: 122
A76: 22 | B76: 22923 | C76: 24 | D76: 22940 | E76: 23 | F76: 22970 | K76: 0 | L76: 222
A77: 11 | B77: 23809 | C77: 22 | D77: 23838 | E77: 23 | F77: 23870 | K77: 0 | L77: 122

Sheet !M529940.103
A1: Report for:!M529940.103
A2: Date: | B2: <date>
A3: Hen: | B3: <hen> | F3: Correct Sequence | G3: =Start!J2 -> 122 | P3: Total Sequences in Data | Q3: =4994-COUNTBLANK(L7:L5000) -> 70 | V3: Total Sequences in Block Data | W3: =COUNTA(L7:L18) -> 12 | AA3: Total Sequences in Block Data | AB3: =COUNTA(L19:L29) -> 11 | AF3: Total Sequences in Block Data | AG3: =COUNTA(L30:L41) -> 12 | AK3: Total Sequences in Block Data | AL3: =COUNTA(L42:L53) -> 12 | AP3: Total Sequences in Block Data | AQ3: =COUNTA(L54:L64) -> 11 | AU3: Total Sequences in Block Data | AV3: =COUNTA(L65:L76) -> 12
P4: Total Sequences in Summary | Q4: =SUM(O7:O14) -> 70 | V4: Total Sequences in Block Summary | W4: =SUM(U7:U14) -> 12 | AA4: Total Sequences in Block Summary | AB4: =SUM(Z7:Z14) -> 11 | AF4: Total Sequences in Block Summary | AG4: =SUM(AE7:AE14) -> 12 | AK4: Total Sequences in Block Summary | AL4: =SUM(AJ7:AJ14) -> 12 | AP4: Total Sequences in Block Summary | AQ4: =SUM(AO7:AO14) -> 11 | AU4: Total Sequences in Block Summary | AV4: =SUM(AT7:AT14) -> 12
T5: Block 1 | Y5: Block 2 | AD5: Block 3 | AI5: Block 4 | AN5: Block 5 | AS5: Block 6
A6: Sequence Component 1 | B6: Time 1 | C6: Sequence Component 2 | D6: Time 2 | E6: Sequence Component 3 | F6: Time 3 | G6: Sequence Component 4 | H6: Time 4 | I6: Sequence Component 5 | J6: Time 5 | K6: Correct? 0=No 1=Yes | L6: Sequence | N6: Frequency | P6: Relative Frequency | Q6: Variability | T6: Frequency | V6: Relative Frequency | W6: Variability | Y6: Frequency | AA6: Relative Frequency | AB6: Variability | AD6: Frequency | AF6: Relative Frequency | AG6: Variability | AI6: Frequency | AK6: Relative Frequency | AL6: Variability | AN6: Frequency | AP6: Relative Frequency | AQ6: Variability | AS6: Frequency | AU6: Relative Frequency | AV6: Variability
A7: 22 | B7: 42 | C7: 24 | D7: 67 | E7: 23 | F7: 96 | K7: 0 | L7: 222 | N7: 111 | O7: =COUNTIF($L$7:$L$500,N7) -> 3 | P7: =O7/$Q$4 -> 0.04285714286 | Q7: =IF(P7=0,0,(P7*((LOG(P7))/LOG(2)))) -> -0.1947565936 | T7: =N7 -> 111 | U7: =COUNTIF(L7:L18,T7) -> 0 | V7: =U7/(W4-U10) -> 0 | W7: =IF(V7=0,0,(V7*((LOG(V7))/LOG(2)))) -> 0 | Y7: =N7 -> 111 | Z7: =COUNTIF(L19:L29,Y7) -> 0 | AA7: =Z7/(AB4-Z10) -> 0 | AB7: =IF(AA7=0,0,(AA7*((LOG(AA7))/LOG(2)))) -> 0 | AD7: =N7 -> 111 | AE7: =COUNTIF(L30:L41,AD7) -> 0 | AF7: =AE7/(AG4-AE10) -> 0 | AG7: =IF(AF7=0,0,(AF7*((LOG(AF7))/LOG(2)))) -> 0 | AI7: =N7 -> 111 | AJ7: =COUNTIF(L42:L53,AI7) -> 3 | AK7: =AJ7/(AL4-AJ10) -> 0.375 | AL7: =IF(AK7=0,0,(AK7*((LOG(AK7))/LOG(2)))) -> -0.5306390622 | AN7: =N7 -> 111 | AO7: =COUNTIF(L54:L64,AN7) -> 0 | AP7: =AO7/(AQ4-AO10) -> 0 | AQ7: =IF(AP7=0,0,(AP7*((LOG(AP7))/LOG(2)))) -> 0 | AS7: =N7 -> 111 | AT7: =COUNTIF(L65:L76,AS7) -> 0 | AU7: =AT7/(AV4-AT10) -> 0 | AV7: =IF(AU7=0,0,(AU7*((LOG(AU7))/LOG(2)))) -> 0
A8: 22 | B8: 247 | C8: 24 | D8: 282 | E8: 23 | F8: 311 | K8: 0 | L8: 222 | N8: 112 | O8: =COUNTIF($L$7:$L$500,N8) -> 4 | P8: =O8/$Q$4 -> 0.05714285714 | Q8: =IF(P8=0,0,(P8*((LOG(P8))/LOG(2)))) -> -0.2359590295 | T8: =N8 -> 112 | U8: =COUNTIF(L7:L18,T8) -> 0 | V8: =U8/(W4-U10) -> 0 | W8: =IF(V8=0,0,(V8*((LOG(V8))/LOG(2)))) -> 0 | Y8: =N8 -> 112 | Z8: =COUNTIF(L19:L29,Y8) -> 1 | AA8: =Z8/(AB4-Z10) -> 0.09090909091 | AB8: =IF(AA8=0,0,(AA8*((LOG(AA8))/LOG(2)))) -> -0.3144937835 | AD8: =N8 -> 112 | AE8: =COUNTIF(L30:L41,AD8) -> 0 | AF8: =AE8/(AG4-AE10) -> 0 | AG8: =IF(AF8=0,0,(AF8*((LOG(AF8))/LOG(2)))) -> 0 | AI8: =N8 -> 112 | AJ8: =COUNTIF(L42:L53,AI8) -> 1 | AK8: =AJ8/(AL4-AJ10) -> 0.125 | AL8: =IF(AK8=0,0,(AK8*((LOG(AK8))/LOG(2)))) -> -0.375 | AN8: =N8 -> 112 | AO8: =COUNTIF(L54:L64,AN8) -> 1 | AP8: =AO8/(AQ4-AO10) -> 0.1 | AQ8: =IF(AP8=0,0,(AP8*((LOG(AP8))/LOG(2)))) -> -0.3321928095 | AS8: =N8 -> 112 | AT8: =COUNTIF(L65:L76,AS8) -> 1 | AU8: =AT8/(AV4-AT10) -> 0.09090909091 | AV8: =IF(AU8=0,0,(AU8*((LOG(AU8))/LOG(2)))) -> -0.3144937835
A9: 22 | B9: 431 | C9: 24 | D9: 442 | E9: 23 | F9: 454 | K9: 0 | L9: 222 | N9: 121 | O9: =COUNTIF($L$7:$L$500,N9) -> 0 | P9: =O9/$Q$4 -> 0 | Q9: =IF(P9=0,0,(P9*((LOG(P9))/LOG(2)))) -> 0 | T9: =N9 -> 121 | U9: =COUNTIF(L7:L18,T9) -> 0 | V9: =U9/(W4-U10) -> 0 | W9: =IF(V9=0,0,(V9*((LOG(V9))/LOG(2)))) -> 0 | Y9: =N9 -> 121 | Z9: =COUNTIF(L19:L29,Y9) -> 0 | AA9: =Z9/(AB4-Z10) -> 0 | AB9: =IF(AA9=0,0,(AA9*((LOG(AA9))/LOG(2)))) -> 0 | AD9: =N9 -> 121 | AE9: =COUNTIF(L30:L41,AD9) -> 0 | AF9: =AE9/(AG4-AE10) -> 0 | AG9: =IF(AF9=0,0,(AF9*((LOG(AF9))/LOG(2)))) -> 0 | AI9: =N9 -> 121 | AJ9: =COUNTIF(L42:L53,AI9) -> 0 | AK9: =AJ9/(AL4-AJ10) -> 0 | AL9: =IF(AK9=0,0,(AK9*((LOG(AK9))/LOG(2)))) -> 0 | AN9: =N9 -> 121 | AO9: =COUNTIF(L54:L64,AN9) -> 0 | AP9: =AO9/(AQ4-AO10) -> 0 | AQ9: =IF(AP9=0,0,(AP9*((LOG(AP9))/LOG(2)))) -> 0 | AS9: =N9 -> 121 | AT9: =COUNTIF(L65:L76,AS9) -> 0 | AU9: =AT9/(AV4-AT10) -> 0 | AV9: =IF(AU9=0,0,(AU9*((LOG(AU9))/LOG(2)))) -> 0
A10: 22 | B10: 612 | C10: 24 | D10: 624 | E10: 23 | F10: 651 | K10: 0 | L10: 222 | N10: 122 | O10: =COUNTIF($L$7:$L$500,N10) -> 9 | P10: =O10/$Q$4 -> 0.1285714286 | Q10: =IF(P10=0,0,(P10*((LOG(P10))/LOG(2)))) -> -0.3804888877 | T10: =N10 -> 122 | U10: =COUNTIF(L7:L18,T10) -> 0 | Y10: =N10 -> 122 | Z10: =COUNTIF(L19:L29,Y10) -> 0 | AD10: =N10 -> 122 | AE10: =COUNTIF(L30:L41,AD10) -> 3 | AI10: =N10 -> 122 | AJ10: =COUNTIF(L42:L53,AI10) -> 4 | AN10: =N10 -> 122 | AO10: =COUNTIF(L54:L64,AN10) -> 1 | AS10: =N10 -> 122 | AT10: =COUNTIF(L65:L76,AS10) -> 1
A11: 22 | B11: 765 | C11: 24 | D11: 777 | E11: 23 | F11: 798 | K11: 0 | L11: 222 | N11: 211 | O11: =COUNTIF($L$7:$L$500,N11) -> 0 | P11: =O11/$Q$4 -> 0 | Q11: =IF(P11=0,0,(P11*((LOG(P11))/LOG(2)))) -> 0 | T11: =N11 -> 211 | U11: =COUNTIF(L7:L18,T11) -> 0 | V11: =U11/(W4-U10) -> 0 | W11: =IF(V11=0,0,(V11*((LOG(V11))/LOG(2)))) -> 0 | Y11: =N11 -> 211 | Z11: =COUNTIF(L19:L29,Y11) -> 0 | AA11: =Z11/(AB4-Z10) -> 0 | AB11: =IF(AA11=0,0,(AA11*((LOG(AA11))/LOG(2)))) -> 0 | AD11: =N11 -> 211 | AE11: =COUNTIF(L30:L41,AD11) -> 0 | AF11: =AE11/(AG4-AE10) -> 0 | AG11: =IF(AF11=0,0,(AF11*((LOG(AF11))/LOG(2)))) -> 0 | AI11: =N11 -> 211 | AJ11: =COUNTIF(L42:L53,AI11) -> 0 | AK11: =AJ11/(AL4-AJ10) -> 0 | AL11: =IF(AK11=0,0,(AK11*((LOG(AK11))/LOG(2)))) -> 0 | AN11: =N11 -> 211 | AO11: =COUNTIF(L54:L64,AN11) -> 0 | AP11: =AO11/(AQ4-AO10) -> 0 | AQ11: =IF(AP11=0,0,(AP11*((LOG(AP11))/LOG(2)))) -> 0 | AS11: =N11 -> 211 | AT11: =COUNTIF(L65:L76,AS11) -> 0 | AU11: =AT11/(AV4-AT10) -> 0 | AV11: =IF(AU11=0,0,(AU11*((LOG(AU11))/LOG(2)))) -> 0
A12: 22 | B12: 939 | C12: 24 | D12: 980 | E12: 23 | F12: 1008 | K12: 0 | L12: 222 | N12: 212 | O12: =COUNTIF($L$7:$L$500,N12) -> 3 | P12: =O12/$Q$4 -> 0.04285714286 | Q12: =IF(P12=0,0,(P12*((LOG(P12))/LOG(2)))) -> -0.1947565936 | T12: =N12 -> 212 | U12: =COUNTIF(L7:L18,T12) -> 0 | V12: =U12/(W4-U10) -> 0 | W12: =IF(V12=0,0,(V12*((LOG(V12))/LOG(2)))) -> 0 | Y12: =N12 -> 212 | Z12: =COUNTIF(L19:L29,Y12) -> 0 | AA12: =Z12/(AB4-Z10) -> 0 | AB12: =IF(AA12=0,0,(AA12*((LOG(AA12))/LOG(2)))) -> 0 | AD12: =N12 -> 212 | AE12: =COUNTIF(L30:L41,AD12) -> 1 | AF12: =AE12/(AG4-AE10) -> 0.1111111111 | AG12: =IF(AF12=0,0,(AF12*((LOG(AF12))/LOG(2)))) -> -0.352213889 | AI12: =N12 -> 212 | AJ12: =COUNTIF(L42:L53,AI12) -> 1 | AK12: =AJ12/(AL4-AJ10) -> 0.125 | AL12: =IF(AK12=0,0,(AK12*((LOG(AK12))/LOG(2)))) -> -0.375 | AN12: =N12 -> 212 | AO12: =COUNTIF(L54:L64,AN12) -> 1 | AP12: =AO12/(AQ4-AO10) -> 0.1 | AQ12: =IF(AP12=0,0,(AP12*((LOG(AP12))/LOG(2)))) -> -0.3321928095 | AS12: =N12 -> 212 | AT12: =COUNTIF(L65:L76,AS12) -> 0 | AU12: =AT12/(AV4-AT10) -> 0 | AV12: =IF(AU12=0,0,(AU12*((LOG(AU12))/LOG(2)))) -> 0
A13: 22 | B13: 1133 | C13: 24 | D13: 1146 | E13: 23 | F13: 1163 | K13: 0 | L13: 222 | N13: 221 | O13: =COUNTIF($L$7:$L$500,N13) -> 3 | P13: =O13/$Q$4 -> 0.04285714286 | Q13: =IF(P13=0,0,(P13*((LOG(P13))/LOG(2)))) -> -0.1947565936 | T13: =N13 -> 221 | U13: =COUNTIF(L7:L18,T13) -> 0 | V13: =U13/(W4-U10) -> 0 | W13: =IF(V13=0,0,(V13*((LOG(V13))/LOG(2)))) -> 0 | Y13: =N13 -> 221 | Z13: =COUNTIF(L19:L29,Y13) -> 0 | AA13: =Z13/(AB4-Z10) -> 0 | AB13: =IF(AA13=0,0,(AA13*((LOG(AA13))/LOG(2)))) -> 0 | AD13: =N13 -> 221 | AE13: =COUNTIF(L30:L41,AD13) -> 0 | AF13: =AE13/(AG4-AE10) -> 0 | AG13: =IF(AF13=0,0,(AF13*((LOG(AF13))/LOG(2)))) -> 0 | AI13: =N13 -> 221 | AJ13: =COUNTIF(L42:L53,AI13) -> 1 | AK13: =AJ13/(AL4-AJ10) -> 0.125 | AL13: =IF(AK13=0,0,(AK13*((LOG(AK13))/LOG(2)))) -> -0.375 | AN13: =N13 -> 221 | AO13: =COUNTIF(L54:L64,AN13) -> 0 | AP13: =AO13/(AQ4-AO10) -> 0 | AQ13: =IF(AP13=0,0,(AP13*((LOG(AP13))/LOG(2)))) -> 0 | AS13: =N13 -> 221 | AT13: =COUNTIF(L65:L76,AS13) -> 2 | AU13: =AT13/(AV4-AT10) -> 0.1818181818 | AV13: =IF(AU13=0,0,(AU13*((LOG(AU13))/LOG(2)))) -> -0.4471693852
A14: 22 | B14: 1297 | C14: 24 | D14: 1312 | E14: 23 | F14: 1334 | K14: 0 | L14: 222 | N14: 222 | O14: =COUNTIF($L$7:$L$500,N14) -> 48 | P14: =O14/$Q$4 -> 0.6857142857 | Q14: =IF(P14=0,0,(P14*((LOG(P14))/LOG(2)))) -> -0.373248354 | T14: =N14 -> 222 | U14: =COUNTIF(L7:L18,T14) -> 12 | V14: =U14/(W4-U10) -> 1 | W14: =IF(V14=0,0,(V14*((LOG(V14))/LOG(2)))) -> 0 | Y14: =N14 -> 222 | Z14: =COUNTIF(L19:L29,Y14) -> 10 | AA14: =Z14/(AB4-Z10) -> 0.9090909091 | AB14: =IF(AA14=0,0,(AA14*((LOG(AA14))/LOG(2)))) -> -0.1250032034 | AD14: =N14 -> 222 | AE14: =COUNTIF(L30:L41,AD14) -> 8 | AF14: =AE14/(AG4-AE10) -> 0.8888888889 | AG14: =IF(AF14=0,0,(AF14*((LOG(AF14))/LOG(2)))) -> -0.1510444457 | AI14: =N14 -> 222 | AJ14: =COUNTIF(L42:L53,AI14) -> 2 | AK14: =AJ14/(AL4-AJ10) -> 0.25 | AL14: =IF(AK14=0,0,(AK14*((LOG(AK14))/LOG(2)))) -> -0.5 | AN14: =N14 -> 222 | AO14: =COUNTIF(L54:L64,AN14) -> 8 | AP14: =AO14/(AQ4-AO10) -> 0.8 | AQ14: =IF(AP14=0,0,(AP14*((LOG(AP14))/LOG(2)))) -> -0.2575424759 | AS14: =N14 -> 222 | AT14: =COUNTIF(L65:L76,AS14) -> 8 | AU14: =AT14/(AV4-AT10) -> 0.7272727273 | AV14: =IF(AU14=0,0,(AU14*((LOG(AU14))/LOG(2)))) -> -0.3341320863
A15: 22 | B15: 1472 | C15: 24 | D15: 1494 | E15: 23 | F15: 1529 | K15: 0 | L15: 222 | P15: =SUM(P7:P14) -> 1 | Q15: =-SUM(Q7:Q14) -> 1.573966052 | V15: =SUM(V7:V14) -> 1 | W15: =-SUM(W7:W14) -> 0 | AA15: =SUM(AA7:AA14) -> 1 | AB15: =-SUM(AB7:AB14) -> 0.4394969869 | AF15: =SUM(AF7:AF14) -> 1 | AG15: =-SUM(AG7:AG14) -> 0.5032583348 | AK15: =SUM(AK7:AK14) -> 1 | AL15: =-SUM(AL7:AL14) -> 2.155639062 | AP15: =SUM(AP7:AP14) -> 1 | AQ15: =-SUM(AQ7:AQ14) -> 0.9219280949 | AU15: =SUM(AU7:AU14) -> 1 | AV15: =-SUM(AV7:AV14) -> 1.095795255
A16: 22 | B16: 1668 | C16: 24 | D16: 1684 | E16: 23 | F16: 1702 | K16: 0 | L16: 222 | P16: U= | Q16: =Q15/(LOG(Q4)/LOG(2)) -> 0.2567944811 | V16: U1= | W16: =W15/(LOG(W4)/LOG(2)) -> 0 | AA16: U2= | AB16: =AB15/(LOG(AB4)/LOG(2)) -> 0.1270431202 | AF16: U3= | AG16: =AG15/(LOG(AG4)/LOG(2)) -> 0.1403803623 | AK16: U4= | AL16: =AL15/(LOG(AL4)/LOG(2)) -> 0.6013003098 | AP16: U5= | AQ16: =AQ15/(LOG(AQ4)/LOG(2)) -> 0.2664969846 | AU16: U6= | AV16: =AV15/(LOG(AV4)/LOG(2)) -> 0.3056643563
A17: 22 | B17: 1828 | C17: 24 | D17: 1855 | E17: 23 | F17: 1867 | K17: 0 | L17: 222
A18: 22 | B18: 2016 | C18: 24 | D18: 2061 | E18: 23 | F18: 2074 | K18: 0 | L18: 222
A19: 22 | B19: 2250 | C19: 24 | D19: 2266 | E19: 23 | F19: 2285 | K19: 0 | L19: 222 | N19: Total Target Seq
A20: 22 | B20: 2524 | C20: 24 | D20: 2564 | E20: 23 | F20: 2577 | K20: 0 | L20: 222 | N20: =COUNTIF(L7:L76,G3) -> 9 | P20: 12 | Q20: 11 | R20: 12 | S20: 12 | T20: 11 | U20: 12
A21: 22 | B21: 2743 | C21: 24 | D21: 2759 | E21: 23 | F21: 2800 | K21: 0 | L21: 222 | P21: % of reinforcement given in 6 equal intervals based on number of trials
A22: 22 | B22: 3190 | C22: 24 | D22: 3216 | E22: 23 | F22: 3241 | K22: 0 | L22: 222 | P22: %_1 | Q22: %_2 | R22: %_3 | S22: %_4 | T22: %_5 | U22: %_6
A23: 22 | B23: 3450 | C23: 24 | D23: 3466 | E23: 23 | F23: 3555 | K23: 0 | L23: 222 | O23: target sequence | P23: =$G$3 -> 122 | Q23: =$G$3 -> 122 | R23: =$G$3 -> 122 | S23: =$G$3 -> 122 | T23: =$G$3 -> 122 | U23: =$G$3 -> 122
A24: 22 | B24: 4312 | C24: 24 | D24: 4326 | E24: 23 | F24: 4358 | K24: 0 | L24: 222 | O24: total reinforcement | P24: =U10 -> 0 | Q24: =Z10 -> 0 | R24: =AE10 -> 3 | S24: =AJ10 -> 4 | T24: =AO10 -> 1 | U24: =AT10 -> 1
A25: 11 | B25: 4486 | C25: 11 | D25: 4598 | E25: 21 | F25: 4680 | K25: 0 | L25: 112 | O25: % target
A26: 22 | B26: 4899 | C26: 24 | D26: 4962 | E26: 23 | F26: 5009 | K26: 0 | L26: 222 | O26: CCRF
A27: 22 | B27: 5156 | C27: 24 | D27: 5169 | E27: 23 | F27: 5271 | K27: 0 | L27: 222 | O27: % CCRf
A28: 22 | B28: 5463 | C28: 24 | D28: 5496 | E28: 23 | F28: 5533 | K28: 0 | L28: 222 | O28: average response rate | P28: =F18/P20 -> 172.8333333 | Q28: =(F29-F18)/Q20 -> 333.1818182 | R28: =(F41-F29)/R20 -> 459.1666667 | S28: =(F53-F41)/S20 -> 626.5833333 | T28: =(F64-F53)/T20 -> 189.0909091 | U28: =(F76-F64)/U20 -> 258.1666667
A29: 22 | B29: 5686 | C29: 24 | D29: 5721 | E29: 23 | F29: 5739 | K29: 0 | L29: 222
A30: 22 | B30: 5951 | C30: 24 | D30: 6009 | E30: 23 | F30: 6096 | K30: 0 | L30: 222
A31: 22 | B31: 6349 | C31: 24 | D31: 6393 | E31: 23 | F31: 6409 | K31: 0 | L31: 222
A32: 22 | B32: 6638 | C32: 24 | D32: 6651 | E32: 23 | F32: 6665 | K32: 0 | L32: 222
A33: 22 | B33: 6955 | C33: 24 | D33: 6986 | E33: 23 | F33: 7000 | K33: 0 | L33: 222
A34: 22 | B34: 7519 | C34: 24 | D34: 7530 | E34: 23 | F34: 7551 | K34: 0 | L34: 222
A35: 11 | B35: 7793 | C35: 22 | D35: 7818 | E35: 23 | F35: 7835 | K35: 0 | L35: 122
A36: 22 | B36: 8215 | C36: 24 | D36: 8230 | E36: 23 | F36: 8247 | K36: 0 | L36: 222
A37: 11 | B37: 8381 | C37: 22 | D37: 8403 | E37: 23 | F37: 8433 | K37: 0 | L37: 122
A38: 22 | B38: 10269 | C38: 24 | D38: 10289 | E38: 23 | F38: 10332 | K38: 0 | L38: 222
A39: 22 | B39: 10523 | C39: 24 | D39: 10537 | E39: 23 | F39: 10587 | K39: 0 | L39: 222
A40: 22 | B40: 10905 | C40: 13 | D40: 10938 | E40: 23 | F40: 10969 | K40: 0 | L40: 212
A41: 11 | B41: 11174 | C41: 22 | D41: 11190 | E41: 23 | F41: 11249 | K41: 0 | L41: 122
A42: 11 | B42: 11652 | C42: 22 | D42: 11682 | E42: 23 | F42: 11705 | K42: 0 | L42: 122
A43: 11 | B43: 12023 | C43: 22 | D43: 12074 | E43: 23 | F43: 12093 | K43: 0 | L43: 122
A44: 22 | B44: 13108 | C44: 24 | D44: 13132 | E44: 23 | F44: 13149 | K44: 0 | L44: 222
A45: 11 | B45: 14096 | C45: 11 | D45: 14123 | E45: 12 | F45: 14189 | K45: 0 | L45: 111
A46: 11 | B46: 15598 | C46: 22 | D46: 15642 | E46: 23 | F46: 15670 | K46: 0 | L46: 122
A47: 22 | B47: 15904 | C47: 24 | D47: 15917 | E47: 14 | F47: 15930 | K47: 0 | L47: 221
A48: 11 | B48: 16357 | C48: 11 | D48: 16367 | E48: 12 | F48: 16404 | K48: 0 | L48: 111
A49: 11 | B49: 16783 | C49: 22 | D49: 16819 | E49: 23 | F49: 16835 | K49: 0 | L49: 122
A50: 22 | B50: 17109 | C50: 13 | D50: 17157 | E50: 23 | F50: 17188 | K50: 0 | L50: 212
A51: 22 | B51: 17529 | C51: 24 | D51: 17531 | E51: 23 | F51: 17547 | K51: 0 | L51: 222
A52: 11 | B52: 17853 | C52: 11 | D52: 17862 | E52: 12 | F52: 17879 | K52: 0 | L52: 111
A53: 11 | B53: 18717 | C53: 11 | D53: 18738 | E53: 21 | F53: 18768 | K53: 0 | L53: 112
A54: 22 | B54: 18986 | C54: 13 | D54: 19010 | E54: 23 | F54: 19024 | K54: 0 | L54: 212
A55: 22 | B55: 19163 | C55: 24 | D55: 19177 | E55: 23 | F55: 19200 | K55: 0 | L55: 222
A56: 11 | B56: 19357 | C56: 22 | D56: 19373 | E56: 23 | F56: 19390 | K56: 0 | L56: 122
A57: 11 | B57: 19635 | C57: 11 | D57: 19649 | E57: 21 | F57: 19678 | K57: 0 | L57: 112
A58: 22 | B58: 19873 | C58: 24 | D58: 19956 | E58: 23 | F58: 19969 | K58: 0 | L58: 222
A59: 22 | B59: 20103 | C59: 24 | D59: 20122 | E59: 23 | F59: 20136 | K59: 0 | L59: 222
A60: 22 | B60: 20235 | C60: 24 | D60: 20246 | E60: 23 | F60: 20304 | K60: 0 | L60: 222
A61: 22 | B61: 20409 | C61: 24 | D61: 20428 | E61: 23 | F61: 20439 | K61: 0 | L61: 222
A62: 22 | B62: 20559 | C62: 24 | D62: 20561 | E62: 23 | F62: 20573 | K62: 0 | L62: 222
A63: 22 | B63: 20672 | C63: 24 | D63: 20683 | E63: 23 | F63: 20719 | K63: 0 | L63: 222
A64: 22 | B64: 20823 | C64: 24 | D64: 20836 | E64: 23 | F64: 20848 | K64: 0 | L64: 222
A65: 22 | B65: 20975 | C65: 24 | D65: 21001 | E65: 23 | F65: 21012 | K65: 0 | L65: 222
A66: 22 | B66: 21155 | C66: 24 | D66: 21169 | E66: 23 | F66: 21192 | K66: 0 | L66: 222
A67: 22 | B67: 21304 | C67: 24 | D67: 21318 | E67: 23 | F67: 21334 | K67: 0 | L67: 222
A68: 22 | B68: 21758 | C68: 24 | D68: 21878 | E68: 23 | F68: 21895 | K68: 0 | L68: 222
A69: 22 | B69: 22150 | C69: 24 | D69: 22179 | E69: 23 | F69: 22195 | K69: 0 | L69: 222
A70: 22 | B70: 22386 | C70: 24 | D70: 22399 | E70: 23 | F70: 22411 | K70: 0 | L70: 222
A71: 22 | B71: 22519 | C71: 24 | D71: 22530 | E71: 23 | F71: 22559 | K71: 0 | L71: 222
A72: 22 | B72: 23036 | C72: 24 | D72: 23052 | E72: 23 | F72: 23065 | K72: 0 | L72: 222
A73: 22 | B73: 23240 | C73: 24 | D73: 23257 | E73: 14 | F73: 23282 | K73: 0 | L73: 221
A74: 22 | B74: 23403 | C74: 24 | D74: 23421 | E74: 14 | F74: 23505 | K74: 0 | L74: 221
A75: 11 | B75: 23663 | C75: 22 | D75: 23701 | E75: 23 | F75: 23714 | K75: 0 | L75: 122
A76: 11 | B76: 23867 | C76: 11 | D76: 23918 | E76: 21 | F76: 23946 | K76: 1 | L76: 112

Sheet !M530A00.103
A1: Report for:!M530A00.103
A2: Date: | B2: <date>
A3: Hen: | B3: <hen> | F3: Correct Sequence | G3: =Start!J2 -> 122 | P3: Total Sequences in Data | Q3: =4994-COUNTBLANK(L7:L5000) -> 69 | V3: Total Sequences in Block Data | W3: =COUNTA(L7:L18) -> 12 | AA3: Total Sequences in Block Data | AB3: =COUNTA(L19:L29) -> 11 | AF3: Total Sequences in Block Data | AG3: =COUNTA(L30:L41) -> 12 | AK3: Total Sequences in Block Data | AL3: =COUNTA(L42:L52) -> 11 | AP3: Total Sequences in Block Data | AQ3: =COUNTA(L53:L64) -> 12 | AU3: Total Sequences in Block Data | AV3: =COUNTA(L65:L75) -> 11
P4: Total Sequences in Summary | Q4: =SUM(O7:O14) -> 69 | V4: Total Sequences in Block Summary | W4: =SUM(U7:U14) -> 12 | AA4: Total Sequences in Block Summary | AB4: =SUM(Z7:Z14) -> 11 | AF4: Total Sequences in Block Summary | AG4: =SUM(AE7:AE14) -> 12 | AK4: Total Sequences in Block Summary | AL4: =SUM(AJ7:AJ14) -> 11 | AP4: Total Sequences in Block Summary | AQ4: =SUM(AO7:AO14) -> 12 | AU4: Total Sequences in Block Summary | AV4: =SUM(AT7:AT14) -> 11
T5: Block 1 | Y5: Block 2 | AD5: Block 3 | AI5: Block 4 | AN5: Block 5 | AS5: Block 6
A6: Sequence Component 1 | B6: Time 1 | C6: Sequence Component 2 | D6: Time 2 | E6: Sequence Component 3 | F6: Time 3 | G6: Sequence Component 4 | H6: Time 4 | I6: Sequence Component 5 | J6: Time 5 | K6: Correct? 0=No 1=Yes | L6: Sequence | N6: Frequency | P6: Relative Frequency | Q6: Variability | T6: Frequency | V6: Relative Frequency | W6: Variability | Y6: Frequency | AA6: Relative Frequency | AB6: Variability | AD6: Frequency | AF6: Relative Frequency | AG6: Variability | AI6: Frequency | AK6: Relative Frequency | AL6: Variability | AN6: Frequency | AP6: Relative Frequency | AQ6: Variability | AS6: Frequency | AU6: Relative Frequency | AV6: Variability
A7: 22 | B7: 13 | C7: 24 | D7: 91 | E7: 23 | F7: 104 | K7: 0 | L7: 222 | N7: 111 | O7: =COUNTIF($L$7:$L$500,N7) -> 0 | P7: =O7/$Q$4 -> 0 | Q7: =IF(P7=0,0,(P7*((LOG(P7))/LOG(2)))) -> 0 | T7: =N7 -> 111 | U7: =COUNTIF(L7:L18,T7) -> 0 | V7: =U7/(W4-U10) -> 0 | W7: =IF(V7=0,0,(V7*((LOG(V7))/LOG(2)))) -> 0 | Y7: =N7 -> 111 | Z7: =COUNTIF(L19:L29,Y7) -> 0 | AA7: =Z7/(AB4-Z10) -> 0 | AB7: =IF(AA7=0,0,(AA7*((LOG(AA7))/LOG(2)))) -> 0 | AD7: =N7 -> 111 | AE7: =COUNTIF(L30:L41,AD7) -> 0 | AF7: =AE7/(AG4-AE10) -> 0 | AG7: =IF(AF7=0,0,(AF7*((LOG(AF7))/LOG(2)))) -> 0 | AI7: =N7 -> 111 | AJ7: =COUNTIF(L42:L52,AI7) -> 0 | AK7: =AJ7/(AL4-AJ10) -> 0 | AL7: =IF(AK7=0,0,(AK7*((LOG(AK7))/LOG(2)))) -> 0 | AN7: =N7 -> 111 | AO7: =COUNTIF(L53:L64,AN7) -> 0 | AP7: =AO7/(AQ4-AO10) -> 0 | AQ7: =IF(AP7=0,0,(AP7*((LOG(AP7))/LOG(2)))) -> 0 | AS7: =N7 -> 111 | AT7: =COUNTIF(L65:L75,AS7) -> 0 | AU7: =AT7/(AV4-AT10) -> 0 | AV7: =IF(AU7=0,0,(AU7*((LOG(AU7))/LOG(2)))) -> 0
A8: 22 | B8: 226 | C8: 24 | D8: 252 | E8: 23 | F8: 264 | K8: 0 | L8: 222 | N8: 112 | O8: =COUNTIF($L$7:$L$500,N8) -> 2 | P8: =O8/$Q$4 -> 0.02898550725 | Q8: =IF(P8=0,0,(P8*((LOG(P8))/LOG(2)))) -> -0.1480731727 | T8: =N8 -> 112 | U8: =COUNTIF(L7:L18,T8) -> 0 | V8: =U8/(W4-U10) -> 0 | W8: =IF(V8=0,0,(V8*((LOG(V8))/LOG(2)))) -> 0 | Y8: =N8 -> 112 | Z8: =COUNTIF(L19:L29,Y8) -> 0 | AA8: =Z8/(AB4-Z10) -> 0 | AB8: =IF(AA8=0,0,(AA8*((LOG(AA8))/LOG(2)))) -> 0 | AD8: =N8 -> 112 | AE8: =COUNTIF(L30:L41,AD8) -> 1 | AF8: =AE8/(AG4-AE10) -> 0.1666666667 | AG8: =IF(AF8=0,0,(AF8*((LOG(AF8))/LOG(2)))) -> -0.4308270835 | AI8: =N8 -> 112 | AJ8: =COUNTIF(L42:L52,AI8) -> 0 | AK8: =AJ8/(AL4-AJ10) -> 0 | AL8: =IF(AK8=0,0,(AK8*((LOG(AK8))/LOG(2)))) -> 0 | AN8: =N8 -> 112 | AO8: =COUNTIF(L53:L64,AN8) -> 1 | AP8: =AO8/(AQ4-AO10) -> 0.125 | AQ8: =IF(AP8=0,0,(AP8*((LOG(AP8))/LOG(2)))) -> -0.375 | AS8: =N8 -> 112 | AT8: =COUNTIF(L65:L75,AS8) -> 0 | AU8: =AT8/(AV4-AT10) -> 0 | AV8: =IF(AU8=0,0,(AU8*((LOG(AU8))/LOG(2)))) -> 0
A9: 22 | B9: 378 | C9: 24 | D9: 393 | E9: 23 | F9: 406 | K9: 0 | L9: 222 | N9: 121 | O9: =COUNTIF($L$7:$L$500,N9) -> 1 | P9: =O9/$Q$4 -> 0.01449275362 | Q9: =IF(P9=0,0,(P9*((LOG(P9))/LOG(2)))) -> -0.08852933995 | T9: =N9 -> 121 | U9: =COUNTIF(L7:L18,T9) -> 0 | V9: =U9/(W4-U10) -> 0 | W9: =IF(V9=0,0,(V9*((LOG(V9))/LOG(2)))) -> 0 | Y9: =N9 -> 121 | Z9: =COUNTIF(L19:L29,Y9) -> 0 | AA9: =Z9/(AB4-Z10) -> 0 | AB9: =IF(AA9=0,0,(AA9*((LOG(AA9))/LOG(2)))) -> 0 | AD9: =N9 -> 121 | AE9: =COUNTIF(L30:L41,AD9) -> 0 | AF9: =AE9/(AG4-AE10) -> 0 | AG9: =IF(AF9=0,0,(AF9*((LOG(AF9))/LOG(2)))) -> 0 | AI9: =N9 -> 121 | AJ9: =COUNTIF(L42:L52,AI9) -> 0 | AK9: =AJ9/(AL4-AJ10) -> 0 | AL9: =IF(AK9=0,0,(AK9*((LOG(AK9))/LOG(2)))) -> 0 | AN9: =N9 -> 121 | AO9: =COUNTIF(L53:L64,AN9) -> 1 | AP9: =AO9/(AQ4-AO10) -> 0.125 | AQ9: =IF(AP9=0,0,(AP9*((LOG(AP9))/LOG(2)))) -> -0.375 | AS9: =N9 -> 121 | AT9: =COUNTIF(L65:L75,AS9) -> 0 | AU9: =AT9/(AV4-AT10) -> 0 | AV9: =IF(AU9=0,0,(AU9*((LOG(AU9))/LOG(2)))) -> 0
A10: 22 | B10: 545 | C10: 24 | D10: 557 | E10: 23 | F10: 571 | K10: 0 | L10: 222 | N10: 122 | O10: =COUNTIF($L$7:$L$500,N10) -> 17 | P10: =O10/$Q$4 -> 0.2463768116 | Q10: =IF(P10=0,0,(P10*((LOG(P10))/LOG(2)))) -> -0.4979427169 | T10: =N10 -> 122 | U10: =COUNTIF(L7:L18,T10) -> 0 | Y10: =N10 -> 122 | Z10: =COUNTIF(L19:L29,Y10) -> 0 | AD10: =N10 -> 122 | AE10: =COUNTIF(L30:L41,AD10) -> 6 | AI10: =N10 -> 122 | AJ10: =COUNTIF(L42:L52,AI10) -> 2 | AN10: =N10 -> 122 | AO10: =COUNTIF(L53:L64,AN10) -> 4 | AS10: =N10 -> 122 | AT10: =COUNTIF(L65:L75,AS10) -> 5
A11: 22 | B11: 718 | C11: 24 | D11: 732 | E11: 23 | F11: 748 | K11: 0 | L11: 222 | N11: 211 | O11: =COUNTIF($L$7:$L$500,N11) -> 0 | P11: =O11/$Q$4 -> 0 | Q11: =IF(P11=0,0,(P11*((LOG(P11))/LOG(2)))) -> 0 | T11: =N11 -> 211 | U11: =COUNTIF(L7:L18,T11) -> 0 | V11: =U11/(W4-U10) -> 0 | W11: =IF(V11=0,0,(V11*((LOG(V11))/LOG(2)))) -> 0 | Y11: =N11 -> 211 | Z11: =COUNTIF(L19:L29,Y11) -> 0 | AA11: =Z11/(AB4-Z10) -> 0 | AB11: =IF(AA11=0,0,(AA11*((LOG(AA11))/LOG(2)))) -> 0 | AD11: =N11 -> 211 | AE11: =COUNTIF(L30:L41,AD11) -> 0 | AF11: =AE11/(AG4-AE10) -> 0 | AG11: =IF(AF11=0,0,(AF11*((LOG(AF11))/LOG(2)))) -> 0 | AI11: =N11 -> 211 | AJ11: =COUNTIF(L42:L52,AI11) -> 0 | AK11: =AJ11/(AL4-AJ10) -> 0 | AL11: =IF(AK11=0,0,(AK11*((LOG(AK11))/LOG(2)))) -> 0 | AN11: =N11 -> 211 | AO11: =COUNTIF(L53:L64,AN11) -> 0 | AP11: =AO11/(AQ4-AO10) -> 0 | AQ11: =IF(AP11=0,0,(AP11*((LOG(AP11))/LOG(2)))) -> 0 | AS11: =N11 -> 211 | AT11: =COUNTIF(L65:L75,AS11) -> 0 | AU11: =AT11/(AV4-AT10) -> 0 | AV11: =IF(AU11=0,0,(AU11*((LOG(AU11))/LOG(2)))) -> 0
A12: 22 | B12: 896 | C12: 24 | D12: 909 | E12: 23 | F12: 926 | K12: 0 | L12: 222 | N12: 212 | O12: =COUNTIF($L$7:$L$500,N12) -> 4 | P12: =O12/$Q$4 -> 0.05797101449 | Q12: =IF(P12=0,0,(P12*((LOG(P12))/LOG(2)))) -> -0.2381753308 | T12: =N12 -> 212 | U12: =COUNTIF(L7:L18,T12) -> 0 | V12: =U12/(W4-U10) -> 0 | W12: =IF(V12=0,0,(V12*((LOG(V12))/LOG(2)))) -> 0 | Y12: =N12 -> 212 | Z12: =COUNTIF(L19:L29,Y12) -> 0 | AA12: =Z12/(AB4-Z10) -> 0 | AB12: =IF(AA12=0,0,(AA12*((LOG(AA12))/LOG(2)))) -> 0 | AD12: =N12 -> 212 | AE12: =COUNTIF(L30:L41,AD12) -> 0 | AF12: =AE12/(AG4-AE10) -> 0 | AG12: =IF(AF12=0,0,(AF12*((LOG(AF12))/LOG(2)))) -> 0 | AI12: =N12 -> 212 | AJ12: =COUNTIF(L42:L52,AI12) -> 1 | AK12: =AJ12/(AL4-AJ10) -> 0.1111111111 | AL12: =IF(AK12=0,0,(AK12*((LOG(AK12))/LOG(2)))) -> -0.352213889 | AN12: =N12 -> 212 | AO12: =COUNTIF(L53:L64,AN12) -> 3 | AP12: =AO12/(AQ4-AO10) -> 0.375 | AQ12: =IF(AP12=0,0,(AP12*((LOG(AP12))/LOG(2)))) -> -0.5306390622 | AS12: =N12 -> 212 | AT12: =COUNTIF(L65:L75,AS12) -> 0 | AU12: =AT12/(AV4-AT10) -> 0 | AV12: =IF(AU12=0,0,(AU12*((LOG(AU12))/LOG(2)))) -> 0
A13: 22 | B13: 1063 | C13: 24 | D13: 1076 | E13: 23 | F13: 1089 | K13: 0 | L13: 222 | N13: 221 | O13: =COUNTIF($L$7:$L$500,N13) -> 4 | P13: =O13/$Q$4 -> 0.05797101449 | Q13: =IF(P13=0,0,(P13*((LOG(P13))/LOG(2)))) -> -0.2381753308 | T13: =N13 -> 221 | U13: =COUNTIF(L7:L18,T13) -> 0 | V13: =U13/(W4-U10) -> 0 | W13: =IF(V13=0,0,(V13*((LOG(V13))/LOG(2)))) -> 0 | Y13: =N13 -> 221 | Z13: =COUNTIF(L19:L29,Y13) -> 0 | AA13: =Z13/(AB4-Z10) -> 0 | AB13: =IF(AA13=0,0,(AA13*((LOG(AA13))/LOG(2)))) -> 0 | AD13: =N13 -> 221 | AE13: =COUNTIF(L30:L41,AD13) -> 0 | AF13: =AE13/(AG4-AE10) -> 0 | AG13: =IF(AF13=0,0,(AF13*((LOG(AF13))/LOG(2)))) -> 0 | AI13: =N13 -> 221 | AJ13: =COUNTIF(L42:L52,AI13) -> 0 | AK13: =AJ13/(AL4-AJ10) -> 0 | AL13: =IF(AK13=0,0,(AK13*((LOG(AK13))/LOG(2)))) -> 0 | AN13: =N13 -> 221 | AO13: =COUNTIF(L53:L64,AN13) -> 2 | AP13: =AO13/(AQ4-AO10) -> 0.25 | AQ13: =IF(AP13=0,0,(AP13*((LOG(AP13))/LOG(2)))) -> -0.5 | AS13: =N13 -> 221 | AT13: =COUNTIF(L65:L75,AS13) -> 2 | AU13: =AT13/(AV4-AT10) -> 0.3333333333 | AV13: =IF(AU13=0,0,(AU13*((LOG(AU13))/LOG(2)))) -> -0.5283208336
A14: 22 | B14: 1222 | C14: 24 | D14: 1237 | E14: 23 | F14: 1264 | K14: 0 | L14: 222 | N14: 222 | O14: =COUNTIF($L$7:$L$500,N14) -> 41 | P14: =O14/$Q$4 -> 0.5942028986 | Q14: =IF(P14=0,0,(P14*((LOG(P14))/LOG(2)))) -> -0.4462300078 | T14: =N14 -> 222 | U14: =COUNTIF(L7:L18,T14) -> 12 | V14: =U14/(W4-U10) -> 1 | W14: =IF(V14=0,0,(V14*((LOG(V14))/LOG(2)))) -> 0 | Y14: =N14 -> 222 | Z14: =COUNTIF(L19:L29,Y14) -> 11 | AA14: =Z14/(AB4-Z10) -> 1 | AB14: =IF(AA14=0,0,(AA14*((LOG(AA14))/LOG(2)))) -> 0 | AD14: =N14 -> 222 | AE14: =COUNTIF(L30:L41,AD14) -> 5 | AF14: =AE14/(AG4-AE10) -> 0.8333333333 | AG14: =IF(AF14=0,0,(AF14*((LOG(AF14))/LOG(2)))) -> -0.2191953382 | AI14: =N14 -> 222 | AJ14: =COUNTIF(L42:L52,AI14) -> 8 | AK14: =AJ14/(AL4-AJ10) -> 0.8888888889 | AL14: =IF(AK14=0,0,(AK14*((LOG(AK14))/LOG(2)))) -> -0.1510444457 | AN14: =N14 -> 222 | AO14: =COUNTIF(L53:L64,AN14) -> 1 | AP14: =AO14/(AQ4-AO10) -> 0.125 | AQ14: =IF(AP14=0,0,(AP14*((LOG(AP14))/LOG(2)))) -> -0.375 | AS14: =N14 -> 222 | AT14: =COUNTIF(L65:L75,AS14) -> 4 | AU14: =AT14/(AV4-AT10) -> 0.6666666667 | AV14: =IF(AU14=0,0,(AU14*((LOG(AU14))/LOG(2)))) -> -0.3899750005
A15: 22 | B15: 1407 | C15: 24 | D15: 1421 | E15: 23 | F15: 1434 | K15: 0 | L15: 222 | P15: =SUM(P7:P14) -> 1 | Q15: =-SUM(Q7:Q14) -> 1.657125899 | V15: =SUM(V7:V14) -> 1 | W15: =-SUM(W7:W14) -> 0 | AA15: =SUM(AA7:AA14) -> 1 | AB15: =-SUM(AB7:AB14) -> 0 | AF15: =SUM(AF7:AF14) -> 1 | AG15: =-SUM(AG7:AG14) -> 0.6500224216 | AK15: =SUM(AK7:AK14) -> 1 | AL15: =-SUM(AL7:AL14) -> 0.5032583348 | AP15: =SUM(AP7:AP14) -> 1 | AQ15: =-SUM(AQ7:AQ14) -> 2.155639062 | AU15: =SUM(AU7:AU14) -> 1 | AV15: =-SUM(AV7:AV14) -> 0.9182958341
A16: 22 | B16: 1618 | C16: 24 | D16: 1646 | E16: 23 | F16: 1660 | K16: 0 | L16: 222 | P16: U= | Q16: =Q15/(LOG(Q4)/LOG(2)) -> 0.2712808814 | V16: U1= | W16: =W15/(LOG(W4)/LOG(2)) -> 0 | AA16: U2= | AB16: =AB15/(LOG(AB4)/LOG(2)) -> 0 | AF16: U3= | AG16: =AG15/(LOG(AG4)/LOG(2)) -> 0.181319169 | AK16: U4= | AL16: =AL15/(LOG(AL4)/LOG(2)) -> 0.1454742831 | AP16: U5= | AQ16: =AQ15/(LOG(AQ4)/LOG(2)) -> 0.6013003098 | AU16: U6= | AV16: =AV15/(LOG(AV4)/LOG(2)) -> 0.2654470258
A17: 22 | B17: 1809 | C17: 24 | D17: 1842 | E17: 23 | F17: 1855 | K17: 0 | L17: 222
A18: 22 | B18: 2354 | C18: 24 | D18: 2368 | E18: 23 | F18: 2402 | K18: 0 | L18: 222
A19: 22 | B19: 2572 | C19: 24 | D19: 2639 | E19: 23 | F19: 2702 | K19: 0 | L19: 222 | N19: Total Target Seq
A20: 22 | B20: 3157 | C20: 24 | D20: 3227 | E20: 23 | F20: 3247 | K20: 0 | L20: 222 | N20: =COUNTIF(L7:L75,G3) -> 17 | P20: 12 | Q20: 11 | R20: 12 | S20: 11 | T20: 12 | U20: 11
A21: 22 | B21: 3531 | C21: 24 | D21: 3564 | E21: 23 | F21: 3581 | K21: 0 | L21: 222 | P21: % of reinforcement given in 6 equal intervals based on number of trials
A22: 22 | B22: 4072 | C22: 24 | D22: 4106 | E22: 23 | F22: 4132 | K22: 0 | L22: 222 | P22: %_1 | Q22: %_2 | R22: %_3 | S22: %_4 | T22: %_5 | U22: %_6
A23: 22 | B23: 4406 | C23: 24 | D23: 4442 | E23: 23 | F23: 4456 | K23: 0 | L23: 222 | O23: target sequence | P23: =$G$3 -> 122 | Q23: =$G$3 -> 122 | R23: =$G$3 -> 122 | S23: =$G$3 -> 122 | T23: =$G$3 -> 122 | U23: =$G$3 -> 122
A24: 22 | B24: 4808 | C24: 24 | D24: 4834 | E24: 23 | F24: 4874 | K24: 0 | L24: 222 | O24: total reinforcement | P24: =U10 -> 0 | Q24: =Z10 -> 0 | R24: =AE10 -> 6 | S24: =AJ10 -> 2 | T24: =AO10 -> 4 | U24: =AT10 -> 5
A25: 22 | B25: 5079 | C25: 24 | D25: 5118 | E25: 23 | F25: 5174 | K25: 0 | L25: 222 | O25: % target
A26: 22 | B26: 5385 | C26: 24 | D26: 5423 | E26: 23 | F26: 5448 | K26: 0 | L26: 222 | O26: CCRF
A27: 22 | B27: 5699 | C27: 24 | D27: 5748 | E27: 23 | F27: 5761 | K27: 0 | L27: 222 | O27: % CCRf
A28: 22 | B28: 6152 | C28: 24 | D28: 6169 | E28: 23 | F28: 6195 | K28: 0 | L28: 222 | O28: average response rate | P28: =F18/P20 -> 200.1666667 | Q28: =(F29-F18)/Q20 -> 369.6363636 | R28: =(F41-F29)/R20 -> 314.3333333 | S28: =(F52-F41)/S20 -> 217 | T28: =(F64-F52)/T20 -> 425.4166667 | U28: =(F75-F64)/U20 -> 539.9090909
A29: 22 | B29: 6442 | C29: 24 | D29: 6455 | E29: 23 | F29: 6468 | K29: 0 | L29: 222
A30: 11 | B30: 6690 | C30: 22 | D30: 6709 | E30: 23 | F30: 6754 | K30: 0 | L30: 122
A31: 22 | B31: 6943 | C31: 24 | D31: 7015 | E31: 23 | F31: 7028 | K31: 0 | L31: 222
A32: 22 | B32: 7267 | C32: 24 | D32: 7280 | E32: 23 | F32: 7600 | K32: 0 | L32: 222
A33: 22 | B33: 7784 | C33: 24 | D33: 7797 | E33: 23 | F33: 7823 | K33: 0 | L33: 222
A34: 11 | B34: 8191 | C34: 22 | D34: 8239 | E34: 23 | F34: 8249 | K34: 0 | L34: 122
A35: 22 | B35: 8670 | C35: 24 | D35: 8683 | E35: 23 | F35: 8700 | K35: 0 | L35: 222
A36: 11 | B36: 8858 | C36: 22 | D36: 8904 | E36: 23 | F36: 8947 | K36: 0 | L36: 122
A37: 22 | B37: 9269 | C37: 24 | D37: 9288 | E37: 23 | F37: 9301 | K37: 0 | L37: 222
A38: 11 | B38: 9510 | C38: 22 | D38: 9525 | E38: 23 | F38: 9568 | K38: 0 | L38: 122
A39: 11 | B39: 9717 | C39: 22 | D39: 9770 | E39: 23 | F39: 9784 | K39: 0 | L39: 122
A40: 11 | B40: 9981 | C40: 11 | D40: 10012 | E40: 21 | F40: 10051 | K40: 0 | L40: 112
A41: 11 | B41: 10204 | C41: 22 | D41: 10225 | E41: 23 | F41: 10240 | K41: 0 | L41: 122
A42: 11 | B42: 10588 | C42: 22 | D42: 10606 | E42: 23 | F42: 10619 | K42: 0 | L42: 122
A43: 22 | B43: 10743 | C43: 24 | D43: 10756 | E43: 23 | F43: 10768 | K43: 0 | L43: 222
A44: 22 | B44: 10920 | C44: 24 | D44: 10934 | E44: 23 | F44: 10950 | K44: 0 | L44: 222
A45: 11 | B45: 11081 | C45: 22 | D45: 11117 | E45: 23 | F45: 11152 | K45: 0 | L45: 122
A46: 22 | B46: 11323 | C46: 13 | D46: 11378 | E46: 23 | F46: 11405 | K46: 0 | L46: 212
A47: 22 | B47: 11550 | C47: 24 | D47: 11563 | E47: 23 | F47: 11576 | K47: 0 | L47: 222
A48: 22 | B48: 11731 | C48: 24 | D48: 11749 | E48: 23 | F48: 11760 | K48: 0 | L48: 222
A49: 22 | B49: 11940 | C49: 24 | D49: 11951 | E49: 23 | F49: 11966 | K49: 0 | L49: 222
A50: 22 | B50: 12115 | C50: 24 | D50: 12168 | E50: 23 | F50: 12170 | K50: 0 | L50: 222
A51: 22 | B51: 12289 | C51: 24 | D51: 12305 | E51: 23 | F51: 12319 | K51: 0 | L51: 222
A52: 22 | B52: 12573 | C52: 24 | D52: 12599 | E52: 23 | F52: 12627 | K52: 0 | L52: 222
A53: 22 | B53: 12932 | C53: 13 | D53: 12946 | E53: 23 | F53: 12973 | K53: 0 | L53: 212
A54: 11 | B54: 13145 | C54: 22 | D54: 13175 | E54: 23 | F54: 13191 | K54: 0 | L54: 122
A55: 11 | B55: 13533 | C55: 22 | D55: 13576 | E55: 14 | F55: 14423 | K55: 0 | L55: 121
A56: 22 | B56: 14600 | C56: 13 | D56: 14686 | E56: 23 | F56: 14736 | K56: 0 | L56: 212
A57: 22 | B57: 14969 | C57: 13 | D57: 15063 | E57: 23 | F57: 15095 | K57: 0 | L57: 212
A58: 11 | B58: 15344 | C58: 22 | D58: 15362 | E58: 23 | F58: 15389 | K58: 0 | L58: 122
A59: 22 | B59: 15830 | C59: 24 | D59: 15865 | E59: 23 | F59: 15930 | K59: 0 | L59: 222
A60: 22 | B60: 16143 | C60: 24 | D60: 16165 | E60: 14 | F60: 16201 | K60: 0 | L60: 221
A61: 22 | B61: 16632 | C61: 24 | D61: 16647 | E61: 14 | F61: 16684 | K61: 0 | L61: 221
A62: 11 | B62: 16903 | C62: 11 | D62: 16911 | E62: 21 | F62: 16966 | K62: 0 | L62: 112
A63: 11 | B63: 17156 | C63: 22 | D63: 17187 | E63: 23 | F63: 17200 | K63: 0 | L63: 122
A64: 11 | B64: 17674 | C64: 22 | D64: 17696 | E64: 23 | F64: 17732 | K64: 0 | L64: 122
A65: 11 | B65: 17968 | C65: 22 | D65: 17993 | E65: 23 | F65: 18006 | K65: 0 | L65: 122
A66: 11 | B66: 18293 | C66: 22 | D66: 18346 | E66: 23 | F66: 18363 | K66: 0 | L66: 122
A67: 22 | B67: 18672 | C67: 24 | D67: 18686 | E67: 23 | F67: 18700 | K67: 0 | L67: 222
A68: 11 | B68: 18821 | C68: 22 | D68: 18862 | E68: 23 | F68: 18892 | K68: 0 | L68: 122
A69: 22 | B69: 19131 | C69: 24 | D69: 19144 | E69: 14 | F69: 19185 | K69: 0 | L69: 221
A70: 22 | B70: 19418 | C70: 24 | D70: 19432 | E70: 23 | F70: 19446 | K70: 0 | L70: 222
A71: 22 | B71: 19610 | C71: 24 | D71: 19704 | E71: 23 | F71: 19729 | K71: 0 | L71: 222
A72: 11 | B72: 20155 | C72: 22 | D72: 20186 | E72: 23 | F72: 20203 | K72: 0 | L72: 122
A73: 22 | B73: 22943 | C73: 24 | D73: 22945 | E73: 23 | F73: 22992 | K73: 0 | L73: 222
A74: 22 | B74: 23365 | C74: 24 | D74: 23380 | E74: 14 | F74: 23401 | K74: 0 | L74: 221
A75: 11 | B75: 23608 | C75: 22 | D75: 23637 | E75: 23 | F75: 23671 | K75: 0 | L75: 122

Sheet !M531930.103
A1: Report for:!M531930.103
A2: Date: | B2: <date>
A3: Hen: | B3: <hen> | F3: Correct Sequence | G3: =Start!J2 -> 122 | P3: Total Sequences in Data | Q3: =4994-COUNTBLANK(L7:L5000) -> 102 | V3: Total Sequences in Block Data | W3: =COUNTA(L7:L23) -> 17 | AA3: Total Sequences in Block Data | AB3: =COUNTA(L24:L40) -> 17 | AF3: Total Sequences in Block Data | AG3: =COUNTA(L41:L57) -> 17 | AK3: Total Sequences in Block Data | AL3: =COUNTA(L58:L74) -> 17 | AP3: Total Sequences in Block Data | AQ3: =COUNTA(L75:L91) -> 17 | AU3: Total Sequences in Block Data | AV3: =COUNTA(L92:L108) -> 17
P4: Total Sequences in Summary | Q4: =SUM(O7:O14) -> 102 | V4: Total Sequences in Block Summary | W4: =SUM(U7:U14) -> 17 | AA4: Total Sequences in Block Summary | AB4: =SUM(Z7:Z14) -> 17 | AF4: Total Sequences in Block Summary | AG4: =SUM(AE7:AE14) -> 17 | AK4: Total Sequences in Block Summary | AL4: =SUM(AJ7:AJ14) -> 17 | AP4: Total Sequences in Block Summary | AQ4: =SUM(AO7:AO14) -> 17 | AU4: Total Sequences in Block Summary | AV4: =SUM(AT7:AT14) -> 17
T5: Block 1 | Y5: Block 2 | AD5: Block 3 | AI5: Block 4 | AN5: Block 5 | AS5: Block 6
A6: Sequence Component 1 | B6: Time 1 | C6: Sequence Component 2 | D6: Time 2 | E6: Sequence Component 3 | F6: Time 3 | G6: Sequence Component 4 | H6: Time 4 | I6: Sequence Component 5 | J6: Time 5 | K6: Correct? 0=No 1=Yes | L6: Sequence | N6: Frequency | P6: Relative Frequency | Q6: Variability | T6: Frequency | V6: Relative Frequency | W6: Variability | Y6: Frequency | AA6: Relative Frequency | AB6: Variability | AD6: Frequency | AF6: Relative Frequency | AG6: Variability | AI6: Frequency | AK6: Relative Frequency | AL6: Variability | AN6: Frequency | AP6: Relative Frequency | AQ6: Variability | AS6: Frequency | AU6: Relative Frequency | AV6: Variability
A7: 11 | B7: 20 | C7: 11 | D7: 34 | E7: 21 | F7: 44 | K7: 0 | L7: 112 | N7: 111 | O7: =COUNTIF($L$7:$L$500,N7) -> 1 | P7: =O7/$Q$4 -> 0.009803921569 | Q7: =IF(P7=0,0,(P7*((LOG(P7))/LOG(2)))) -> -0.06541593473 | T7: =N7 -> 111 | U7: =COUNTIF(L7:L23,T7) -> 0 | V7: =U7/(W4-U10) -> 0 | W7: =IF(V7=0,0,(V7*((LOG(V7))/LOG(2)))) -> 0 | Y7: =N7 -> 111 | Z7: =COUNTIF(L24:L40,Y7) -> 0 | AA7: =Z7/(AB4-Z10) -> 0 | AB7: =IF(AA7=0,0,(AA7*((LOG(AA7))/LOG(2)))) -> 0 | AD7: =N7 -> 111 | AE7: =COUNTIF(L41:L57,AD7) -> 0 | AF7: =AE7/(AG4-AE10) -> 0 | AG7: =IF(AF7=0,0,(AF7*((LOG(AF7))/LOG(2)))) -> 0 | AI7: =N7 -> 111 | AJ7: =COUNTIF(L58:L74,AI7) -> 0 | AK7: =AJ7/(AL4-AJ10) -> 0 | AL7: =IF(AK7=0,0,(AK7*((LOG(AK7))/LOG(2)))) -> 0 | AN7: =N7 -> 111 | AO7: =COUNTIF(L75:L91,AN7) -> 1 | AP7: =AO7/(AQ4-AO10) -> 0.06666666667 | AQ7: =IF(AP7=0,0,(AP7*((LOG(AP7))/LOG(2)))) -> -0.260459373 | AS7: =N7 -> 111 | AT7: =COUNTIF(L92:L108,AS7) -> 0 | AU7: =AT7/(AV4-AT10) -> 0 | AV7: =IF(AU7=0,0,(AU7*((LOG(AU7))/LOG(2)))) -> 0
A8: 22 | B8: 147 | C8: 24 | D8: 172 | E8: 23 | F8: 213 | K8: 0 | L8: 222 | N8: 112 | O8: =COUNTIF($L$7:$L$500,N8) -> 6 | P8: =O8/$Q$4 -> 0.05882352941 | Q8: =IF(P8=0,0,(P8*((LOG(P8))/LOG(2)))) -> -0.2404389907 | T8: =N8 -> 112 | U8: =COUNTIF(L7:L23,T8) -> 1 | V8: =U8/(W4-U10) -> 0.05882352941 | W8: =IF(V8=0,0,(V8*((LOG(V8))/LOG(2)))) -> -0.2404389907 | Y8: =N8 -> 112 | Z8: =COUNTIF(L24:L40,Y8) -> 1 | AA8: =Z8/(AB4-Z10) -> 0.08333333333 | AB8: =IF(AA8=0,0,(AA8*((LOG(AA8))/LOG(2)))) -> -0.2987468751 | AD8: =N8 -> 112 | AE8: =COUNTIF(L41:L57,AD8) -> 2 | AF8: =AE8/(AG4-AE10) -> 0.1333333333 | AG8: =IF(AF8=0,0,(AF8*((LOG(AF8))/LOG(2)))) -> -0.3875854127 | AI8: =N8 -> 112 | AJ8: =COUNTIF(L58:L74,AI8) -> 1 | AK8: =AJ8/(AL4-AJ10) -> 0.0625 | AL8: =IF(AK8=0,0,(AK8*((LOG(AK8))/LOG(2)))) -> -0.25 | AN8: =N8 -> 112 | AO8: =COUNTIF(L75:L91,AN8) -> 0 | AP8: =AO8/(AQ4-AO10) -> 0 | AQ8: =IF(AP8=0,0,(AP8*((LOG(AP8))/LOG(2)))) -> 0 | AS8: =N8 -> 112 | AT8: =COUNTIF(L92:L108,AS8) -> 1 | AU8: =AT8/(AV4-AT10) -> 0.07692307692 | AV8: =IF(AU8=0,0,(AU8*((LOG(AU8))/LOG(2)))) -> -0.2846492091
A9: 22 | B9: 312 | C9: 24 | D9: 328 | E9: 14 | F9: 338 | K9: 0 | L9: 221 | N9: 121 | O9: =COUNTIF($L$7:$L$500,N9) -> 0 | P9: =O9/$Q$4 -> 0 | Q9: =IF(P9=0,0,(P9*((LOG(P9))/LOG(2)))) -> 0 | T9: =N9 -> 121 | U9: =COUNTIF(L7:L23,T9) -> 0 | V9: =U9/(W4-U10) -> 0 | W9: =IF(V9=0,0,(V9*((LOG(V9))/LOG(2)))) -> 0 | Y9: =N9 -> 121 | Z9: =COUNTIF(L24:L40,Y9) -> 0 | AA9: =Z9/(AB4-Z10) -> 0 | AB9: =IF(AA9=0,0,(AA9*((LOG(AA9))/LOG(2)))) -> 0 | AD9: =N9 -> 121 | AE9: =COUNTIF(L41:L57,AD9) -> 0 | AF9: =AE9/(AG4-AE10) -> 0 | AG9: =IF(AF9=0,0,(AF9*((LOG(AF9))/LOG(2)))) -> 0 | AI9: =N9 -> 121 | AJ9: =COUNTIF(L58:L74,AI9) -> 0 | AK9: =AJ9/(AL4-AJ10) -> 0 | AL9: =IF(AK9=0,0,(AK9*((LOG(AK9))/LOG(2)))) -> 0 | AN9: =N9 -> 121 | AO9: =COUNTIF(L75:L91,AN9) -> 0 | AP9: =AO9/(AQ4-AO10) -> 0 | AQ9: =IF(AP9=0,0,(AP9*((LOG(AP9))/LOG(2)))) -> 0 | AS9: =N9 -> 121 | AT9: =COUNTIF(L92:L108,AS9) -> 0 | AU9: =AT9/(AV4-AT10) -> 0 | AV9: =IF(AU9=0,0,(AU9*((LOG(AU9))/LOG(2)))) -> 0
A10: 22 | B10: 438 | C10: 24 | D10: 447 | E10: 23 | F10: 465 | K10: 0 | L10: 222 | N10: 122 | O10: =COUNTIF($L$7:$L$500,N10) -> 14 | P10: =O10/$Q$4 -> 0.137254902 | Q10: =IF(P10=0,0,(P10*((LOG(P10))/LOG(2)))) -> -0.3932449596 | T10: =N10 -> 122 | U10: =COUNTIF(L7:L23,T10) -> 0 | Y10: =N10 -> 122 | Z10: =COUNTIF(L24:L40,Y10) -> 5 | AD10: =N10 -> 122 | AE10: =COUNTIF(L41:L57,AD10) -> 2 | AI10: =N10 -> 122 | AJ10: =COUNTIF(L58:L74,AI10) -> 1 | AN10: =N10 -> 122 | AO10: =COUNTIF(L75:L91,AN10) -> 2 | AS10: =N10 -> 122 | AT10: =COUNTIF(L92:L108,AS10) -> 4
A11: 22 | B11: 566 | C11: 24 | D11: 586 | E11: 23 | F11: 597 | K11: 0 | L11: 222 | N11: 211 | O11: =COUNTIF($L$7:$L$500,N11) -> 1 | P11: =O11/$Q$4 -> 0.009803921569 | Q11: =IF(P11=0,0,(P11*((LOG(P11))/LOG(2)))) -> -0.06541593473 | T11: =N11 -> 211 | U11: =COUNTIF(L7:L23,T11) -> 0 | V11: =U11/(W4-U10) -> 0 | W11: =IF(V11=0,0,(V11*((LOG(V11))/LOG(2)))) -> 0 | Y11: =N11 -> 211 | Z11: =COUNTIF(L24:L40,Y11) -> 0 | AA11: =Z11/(AB4-Z10) -> 0 | AB11: =IF(AA11=0,0,(AA11*((LOG(AA11))/LOG(2)))) -> 0 | AD11: =N11 -> 211 | AE11: =COUNTIF(L41:L57,AD11) -> 1 | AF11: =AE11/(AG4-AE10) -> 0.06666666667 | AG11: =IF(AF11=0,0,(AF11*((LOG(AF11))/LOG(2)))) -> -0.260459373 | AI11: =N11 -> 211 | AJ11: =COUNTIF(L58:L74,AI11) -> 0 | AK11: =AJ11/(AL4-AJ10) -> 0 | AL11: =IF(AK11=0,0,(AK11*((LOG(AK11))/LOG(2)))) -> 0 | AN11: =N11 -> 211 | AO11: =COUNTIF(L75:L91,AN11) -> 0 | AP11: =AO11/(AQ4-AO10) -> 0 | AQ11: =IF(AP11=0,0,(AP11*((LOG(AP11))/LOG(2)))) -> 0 | AS11: =N11 -> 211 | AT11: =COUNTIF(L92:L108,AS11) -> 0 | AU11: =AT11/(AV4-AT10) -> 0 | AV11: =IF(AU11=0,0,(AU11*((LOG(AU11))/LOG(2)))) -> 0
A12: 22 | B12: 695 | C12: 24 | D12: 707 | E12: 23 | F12: 718 | K12: 0 | L12: 222 | N12: 212 | O12: =COUNTIF($L$7:$L$500,N12) -> 0 | P12: =O12/$Q$4 -> 0 | Q12: =IF(P12=0,0,(P12*((LOG(P12))/LOG(2)))) -> 0 | T12: =N12 -> 212 | U12: =COUNTIF(L7:L23,T12) -> 0 | V12: =U12/(W4-U10) -> 0 | W12: =IF(V12=0,0,(V12*((LOG(V12))/LOG(2)))) -> 0 | Y12: =N12 -> 212 | Z12: =COUNTIF(L24:L40,Y12) -> 0 | AA12: =Z12/(AB4-Z10) -> 0 | AB12: =IF(AA12=0,0,(AA12*((LOG(AA12))/LOG(2)))) -> 0 | AD12: =N12 -> 212 | AE12: =COUNTIF(L41:L57,AD12) -> 0 | AF12: =AE12/(AG4-AE10) -> 0 | AG12: =IF(AF12=0,0,(AF12*((LOG(AF12))/LOG(2)))) -> 0 | AI12: =N12 -> 212 | AJ12: =COUNTIF(L58:L74,AI12) -> 0 | AK12: =AJ12/(AL4-AJ10) -> 0 | AL12: =IF(AK12=0,0,(AK12*((LOG(AK12))/LOG(2)))) -> 0 | AN12: =N12 -> 212 | AO12: =COUNTIF(L75:L91,AN12) -> 0 | AP12: =AO12/(AQ4-AO10) -> 0 | AQ12: =IF(AP12=0,0,(AP12*((LOG(AP12))/LOG(2)))) -> 0 | AS12: =N12 -> 212 | AT12: =COUNTIF(L92:L108,AS12) -> 0 | AU12: =AT12/(AV4-AT10) -> 0 | AV12: =IF(AU12=0,0,(AU12*((LOG(AU12))/LOG(2)))) -> 0
A13: 22 | B13: 818 | C13: 24 | D13: 826 | E13: 23 | F13: 838 | K13: 0 | L13: 222 | N13: 221 | O13: =COUNTIF($L$7:$L$500,N13) -> 6 | P13: =O13/$Q$4 -> 0.05882352941 | Q13: =IF(P13=0,0,(P13*((LOG(P13))/LOG(2)))) -> -0.2404389907 | T13: =N13 -> 221 | U13: =COUNTIF(L7:L23,T13) -> 1 | V13: =U13/(W4-U10) -> 0.05882352941 | W13: =IF(V13=0,0,(V13*((LOG(V13))/LOG(2)))) -> -0.2404389907 | Y13: =N13 -> 221 | Z13: =COUNTIF(L24:L40,Y13) -> 0 | AA13: =Z13/(AB4-Z10) -> 0 | AB13: =IF(AA13=0,0,(AA13*((LOG(AA13))/LOG(2)))) -> 0 | AD13: =N13 -> 221 | AE13: =COUNTIF(L41:L57,AD13) -> 0 | AF13: =AE13/(AG4-AE10) -> 0 | AG13: =IF(AF13=0,0,(AF13*((LOG(AF13))/LOG(2)))) -> 0 | AI13: =N13 -> 221 | AJ13: =COUNTIF(L58:L74,AI13) -> 2 | AK13: =AJ13/(AL4-AJ10) -> 0.125 | AL13: =IF(AK13=0,0,(AK13*((LOG(AK13))/LOG(2)))) -> -0.375 | AN13: =N13 -> 221 | AO13: =COUNTIF(L75:L91,AN13) -> 1 | AP13: =AO13/(AQ4-AO10) -> 0.06666666667 | AQ13: =IF(AP13=0,0,(AP13*((LOG(AP13))/LOG(2)))) -> -0.260459373 | AS13: =N13 -> 221 | AT13: =COUNTIF(L92:L108,AS13) -> 2 | AU13: =AT13/(AV4-AT10) -> 0.1538461538 | AV13: =IF(AU13=0,0,(AU13*((LOG(AU13))/LOG(2)))) -> -0.4154522643
A14: 22 | B14: 951 | C14: 24 | D14: 963 | E14: 23 | F14: 988 | K14: 0 | L14: 222 | N14: 222 | O14: =COUNTIF($L$7:$L$500,N14) -> 74 | P14: =O14/$Q$4 -> 0.7254901961 | Q14: =IF(P14=0,0,(P14*((LOG(P14))/LOG(2)))) -> -0.3358816299 | T14: =N14 -> 222 | U14: =COUNTIF(L7:L23,T14) -> 15 | V14: =U14/(W4-U10) -> 0.8823529412 | W14: =IF(V14=0,0,(V14*((LOG(V14))/LOG(2)))) -> -0.159328452 | Y14: =N14 -> 222 | Z14: =COUNTIF(L24:L40,Y14) -> 11 | AA14: =Z14/(AB4-Z10) -> 0.9166666667 | AB14: =IF(AA14=0,0,(AA14*((LOG(AA14))/LOG(2)))) -> -0.1150699752 | AD14: =N14 -> 222 | AE14: =COUNTIF(L41:L57,AD14) -> 12 | AF14: =AE14/(AG4-AE10) -> 0.8 | AG14: =IF(AF14=0,0,(AF14*((LOG(AF14))/LOG(2)))) -> -0.2575424759 | AI14: =N14 -> 222 | AJ14: =COUNTIF(L58:L74,AI14) -> 13 | AK14: =AJ14/(AL4-AJ10) -> 0.8125 | AL14: =IF(AK14=0,0,(AK14*((LOG(AK14))/LOG(2)))) -> -0.243392729 | AN14: =N14 -> 222 | AO14: =COUNTIF(L75:L91,AN14) -> 13 | AP14: =AO14/(AQ4-AO10) -> 0.8666666667 | AQ14: =IF(AP14=0,0,(AP14*((LOG(AP14))/LOG(2)))) -> -0.1789240938 | AS14: =N14 -> 222 | AT14: =COUNTIF(L92:L108,AS14) -> 10 | AU14: =AT14/(AV4-AT10) -> 0.7692307692 | AV14: =IF(AU14=0,0,(AU14*((LOG(AU14))/LOG(2)))) -> -0.2911627871
A15: 22 | B15: 1090 | C15: 24 | D15: 1115 | E15: 23 | F15: 1127 | K15: 0 | L15: 222 | P15: =SUM(P7:P14) -> 1 | Q15: =-SUM(Q7:Q14) -> 1.34083644 | V15: =SUM(V7:V14) -> 1 | W15: =-SUM(W7:W14) -> 0.6402064334 | AA15: =SUM(AA7:AA14) -> 1 | AB15: =-SUM(AB7:AB14) -> 0.4138168503 | AF15: =SUM(AF7:AF14) -> 1 | AG15: =-SUM(AG7:AG14) -> 0.9055872617 | AK15: =SUM(AK7:AK14) -> 1 | AL15: =-SUM(AL7:AL14) -> 0.868392729 | AP15: =SUM(AP7:AP14) -> 1 | AQ15: =-SUM(AQ7:AQ14) -> 0.6998428399 | AU15: =SUM(AU7:AU14) -> 1 | AV15: =-SUM(AV7:AV14) -> 0.9912642605
A16: 22 | B16: 1231 | C16: 24 | D16: 1241 | E16: 23 | F16: 1253 | K16: 0 | L16: 222 | P16: U= | Q16: =Q15/(LOG(Q4)/LOG(2)) -> 0.2009518835 | V16: U1= | W16: =W15/(LOG(W4)/LOG(2)) -> 0.156626851 | AA16: U2= | AB16: =AB15/(LOG(AB4)/LOG(2)) -> 0.1012405168 | AF16: U3= | AG16: =AG15/(LOG(AG4)/LOG(2)) -> 0.2215524145 | AK16: U4= | AL16: =AL15/(LOG(AL4)/LOG(2)) -> 0.2124527519 | AP16: U5= | AQ16: =AQ15/(LOG(AQ4)/LOG(2)) -> 0.1712169302 | AU16: U6= | AV16: =AV15/(LOG(AV4)/LOG(2)) -> 0.2425133387
A17: 22 | B17: 1379 | C17: 24 | D17: 1421 | E17: 23 | F17: 1435 | K17: 0 | L17: 222
A18: 22 | B18: 1573 | C18: 24 | D18: 1601 | E18: 23 | F18: 1633 | K18: 0 | L18: 222
A19: 22 | B19: 1766 | C19: 24 | D19: 1804 | E19: 23 | F19: 1816 | K19: 0 | L19: 222 | N19: Total Target Seq
A20: 22 | B20: 2022 | C20: 24 | D20: 2034 | E20: 23 | F20: 2114 | K20: 0 | L20: 222 | N20: =COUNTIF(L7:L108,G3) -> 14 | P20: 17 | Q20: 17 | R20: 17 | S20: 17 | T20: 17 | U20: 17
A21: 22 | B21: 2273 | C21: 24 | D21: 2315 | E21: 23 | F21: 2342 | K21: 0 | L21: 222 | P21: % of reinforcement given in 6 equal intervals based on number of trials
A22: 22 | B22: 2502 | C22: 24 | D22: 2516 | E22: 23 | F22: 2544 | K22: 0 | L22: 222 | P22: %_1 | Q22: %_2 | R22: %_3 | S22: %_4 | T22: %_5 | U22: %_6
A23: 22 | B23: 2761 | C23: 24 | D23: 2777 | E23: 23 | F23: 2801 | K23: 0 | L23: 222 | O23: target sequence | P23: =$G$3 -> 122 | Q23: =$G$3 -> 122 | R23: =$G$3 -> 122 | S23: =$G$3 -> 122 | T23: =$G$3 -> 122 | U23: =$G$3 -> 122
A24: 22 | B24: 2957 | C24: 24 | D24: 3005 | E24: 23 | F24: 3018 | K24: 0 | L24: 222 | O24: total reinforcement | P24: =U10 -> 0 | Q24: =Z10 -> 5 | R24: =AE10 -> 2 | S24: =AJ10 -> 1 | T24: =AO10 -> 2 | U24: =AT10 -> 4
A25: 22 | B25: 3334 | C25: 24 | D25: 3347 | E25: 23 | F25: 3360 | K25: 0 | L25: 222 | O25: % target
A26: 11 | B26: 3707 | C26: 22 | D26: 3750 | E26: 23 | F26: 3792 | K26: 0 | L26: 122 | O26: CCRF
A27: 22 | B27: 3903 | C27: 24 | D27: 3918 | E27: 23 | F27: 3976 | K27: 0 | L27: 222 | O27: % CCRf
A28: 22 | B28: 5661 | C28: 24 | D28: 5730 | E28: 23 | F28: 5744 | K28: 0 | L28: 222 | O28: average response rate | P28: =F23/P20 -> 164.7647059 | Q28: =(F40-F23)/Q20 -> 337.6470588 | R28: =(F57-F40)/R20 -> 194.8235294 | S28: =(F74-F57)/S20 -> 250.1764706 | T28: =(F91-F74)/T20 -> 246.3529412 | U28: =(F108-F91)/U20 -> 215.9411765
A29: 22 | B29: 5893 | C29: 24 | D29: 5908 | E29: 23 | F29: 5923 | K29: 0 | L29: 222
A30: 11 | B30: 6233 | C30: 22 | D30: 6267 | E30: 23 | F30: 6285 | K30: 0 | L30: 122
A31: 11 | B31: 6469 | C31: 22 | D31: 6511 | E31: 23 | F31: 6527 | K31: 0 | L31: 122
A32: 22 | B32: 6713 | C32: 24 | D32: 6728 | E32: 23 | F32: 6743 | K32: 0 | L32: 222
A33: 22 | B33: 6903 | C33: 24 | D33: 6939 | E33: 23 | F33: 6954 | K33: 0 | L33: 222
A34: 11 | B34: 7168 | C34: 22 | D34: 7197 | E34: 23 | F34: 7244 | K34: 0 | L34: 122
A35: 11 | B35: 7353 | C35: 22 | D35: 7382 | E35: 23 | F35: 7402 | K35: 0 | L35: 122
A36: 11 | B36: 7542 | C36: 11 | D36: 7626 | E36: 21 | F36: 7682 | K36: 0 | L36: 112
A37: 22 | B37: 7842 | C37: 24 | D37: 7857 | E37: 23 | F37: 7896 | K37: 0 | L37: 222
A38: 22 | B38: 8025 | C38: 24 | D38: 8079 | E38: 23 | F38: 8110 | K38: 0 | L38: 222
A39: 22 | B39: 8282 | C39: 24 | D39: 8310 | E39: 23 | F39: 8321 | K39: 0 | L39: 222
A40: 22 | B40: 8516 | C40: 24 | D40: 8528 | E40: 23 | F40: 8541 | K40: 0 | L40: 222
A41: 11 | B41: 8755 | C41: 22 | D41: 8814 | E41: 23 | F41: 8847 | K41: 0 | L41: 122
A42: 11 | B42: 8974 | C42: 22 | D42: 8992 | E42: 23 | F42: 9048 | K42: 0 | L42: 122
A43: 11 | B43: 9187 | C43: 11 | D43: 9250 | E43: 21 | F43: 9325 | K43: 0 | L43: 112
A44: 22 | B44: 9509 | C44: 13 | D44: 9530 | E44: 14 | F44: 9537 | K44: 0 | L44: 211
A45: 11 | B45: 9720 | C45: 11 | D45: 9748 | E45: 21 | F45: 9802 | K45: 0 | L45: 112
A46: 22 | B46: 10037 | C46: 24 | D46: 10050 | E46: 23 | F46: 10078 | K46: 0 | L46: 222
A47: 22 | B47: 10199 | C47: 24 | D47: 10238 | E47: 23 | F47: 10254 | K47: 0 | L47: 222
A48: 22 | B48: 10352 | C48: 24 | D48: 10363 | E48: 23 | F48: 10377 | K48: 0 | L48: 222
A49: 22 | B49: 10473 | C49: 24 | D49: 10495 | E49: 23 | F49: 10521 | K49: 0 | L49: 222
A50: 22 | B50: 10618 | C50: 24 | D50: 10630 | E50: 23 | F50: 10669 | K50: 0 | L50: 222
A51: 22 | B51: 10771 | C51: 24 | D51: 10785 | E51: 23 | F51: 10797 | K51: 0 | L51: 222
A52: 22 | B52: 10893 | C52: 24 | D52: 10905 | E52: 23 | F52: 10928 | K52: 0 | L52: 222
A53: 22 | B53: 11024 | C53: 24 | D53: 11061 | E53: 23 | F53: 11090 | K53: 0 | L53: 222
A54: 22 | B54: 11189 | C54: 24 | D54: 11201 | E54: 23 | F54: 11212 | K54: 0 | L54: 222
A55: 22 | B55: 11327 | C55: 24 | D55: 11367 | E55: 23 | F55: 11379 | K55: 0 | L55: 222
A56: 22 | B56: 11558 | C56: 24 | D56: 11571 | E56: 23 | F56: 11596 | K56: 0 | L56: 222
A57: 22 | B57: 11713 | C57: 24 | D57: 11729 | E57: 23 | F57: 11853 | K57: 0 | L57: 222
A58: 22 | B58: 11959 | C58: 24 | D58: 11972 | E58: 14 | F58: 12002 | K58: 0 | L58: 221
A59: 22 | B59: 12102 | C59: 24 | D59: 12120 | E59: 23 | F59: 12153 | K59: 0 | L59: 222
A60: 22 | B60: 12332 | C60: 24 | D60: 12348 | E60: 14 | F60: 12368 | K60: 0 | L60: 221
A61: 22 | B61: 12481 | C61: 24 | D61: 12545 | E61: 23 | F61: 12558 | K61: 0 | L61: 222
A62: 22 | B62: 12840 | C62: 24 | D62: 12856 | E62: 23 | F62: 12869 | K62: 0 | L62: 222
A63: 22 | B63: 13026 | C63: 24 | D63: 13037 | E63: 23 | F63: 13049 | K63: 0 | L63: 222
A64: 22 | B64: 13227 | C64: 24 | D64: 13239 | E64: 23 | F64: 13253 | K64: 0 | L64: 222
A65: 22 | B65: 13373 | C65: 24 | D65: 13438 | E65: 23 | F65: 13446 | K65: 0 | L65: 222
A66: 22 | B66: 13578 | C66: 24 | D66: 13634 | E66: 23 | F66: 13647 | K66: 0 | L66: 222
A67: 22 | B67: 13832 | C67: 24 | D67: 13843 | E67: 23 | F67: 13856 | K67: 0 | L67: 222
A68: 22 | B68: 14123 | C68: 24 | D68: 14149 | E68: 23 | F68: 14162 | K68: 0 | L68: 222
A69: 22 | B69: 14463 | C69: 24 | D69: 14514 | E69: 23 | F69: 14527 | K69: 0 | L69: 222
A70: 22 | B70: 14839 | C70: 24 | D70: 14855 | E70: 23 | F70: 14866 | K70: 0 | L70: 222
A71: 22 | B71: 15126 | C71: 24 | D71: 15128 | E71: 23 | F71: 15140 | K71: 0 | L71: 222
A72: 22 | B72: 15446 | C72: 24 | D72: 15460 | E72: 23 | F72: 15476 | K72: 0 | L72: 222
A73: 11 | B73: 15736 | C73: 11 | D73: 15741 | E73: 21 | F73: 15767 | K73: 0 | L73: 112
A74: 11 | B74: 16058 | C74: 22 | D74: 16093 | E74: 23 | F74: 16106 | K74: 0 | L74: 122
A75: 22 | B75: 16433 | C75: 24 | D75: 16477 | E75: 23 | F75: 16479 | K75: 0 | L75: 222
A76: 22 | B76: 16648 | C76: 24 | D76: 16662 | E76: 23 | F76: 16676 | K76: 0 | L76: 222
A77: 22 | B77: 16848 | C77: 24 | D77: 16861 | E77: 14 | F77: 16894 | K77: 0 | L77: 221
A78: 22 | B78: 17108 | C78: 24 | D78: 17121 | E78: 23 | F78: 17135 | K78: 0 | L78: 222
A79: 22 | B79: 17364 | C79: 24 | D79: 17379 | E79: 23 | F79: 17397 | K79: 0 | L79: 222
A80: 11 | B80: 17628 | C80: 22 | D80: 17645 | E80: 23 | F80: 17657 | K80: 0 | L80: 122
A81: 22 | B81: 17941 | C81: 24 | D81: 17987 | E81: 23 | F81: 18000 | K81: 0 | L81: 222
A82: 22 | B82: 18170 | C82: 24 | D82: 18185 | E82: 23 | F82: 18199 | K82: 0 | L82: 222
A83: 11 | B83: 18376 | C83: 22 | D83: 18397 | E83: 23 | F83: 18410 | K83: 0 | L83: 122
A84: 22 | B84: 18606 | C84: 24 | D84: 18619 | E84: 23 | F84: 18633 | K84: 0 | L84: 222
A85: 22 | B85: 18803 | C85: 24 | D85: 18817 | E85: 23 | F85: 18830 | K85: 0 | L85: 222
A86: 22 | B86: 18993 | C86: 24 | D86: 19006 | E86: 23 | F86: 19019 | K86: 0 | L86: 222
A87: 22 | B87: 19210 | C87: 24 | D87: 19219 | E87: 23 | F87: 19326 | K87: 0 | L87: 222
A88: 22 | B88: 19496 | C88: 24 | D88: 19570 | E88: 23 | F88: 19612 | K88: 0 | L88: 222
A89: 22 | B89: 19793 | C89: 24 | D89: 19818 | E89: 23 | F89: 19902 | K89: 0 | L89: 222
A90: 11 | B90: 20076 | C90: 11 | D90: 20112 | E90: 12 | F90: 20114 | K90: 0 | L90: 111
A91: 22 | B91: 20271 | C91: 24 | D91: 20280 | E91: 23 | F91: 20294 | K91: 0 | L91: 222
A92: 22 | B92: 20483 | C92: 24 | D92: 20491 | E92: 14 | F92: 20514 | K92: 0 | L92: 221
A93: 11 | B93: 20654 | C93: 11 | D93: 20659 | E93: 21 | F93: 20673 | K93: 0 | L93: 112
A94: 11 | B94: 20861 | C94: 22 | D94: 20918 | E94: 23 | F94: 20941 | K94: 0 | L94: 122
A95: 22 | B95: 21093 | C95: 24 | D95: 21106 | E95: 23 | F95: 21119 | K95: 0 | L95: 222
A96: 22 | B96: 21291 | C96: 24 | D96: 21303 | E96: 23 | F96: 21316 | K96: 0 | L96: 222
A97: 22 | B97: 21564 | C97: 24 | D97: 21586 | E97: 23 | F97: 21598 | K97: 0 | L97: 222
A98: 22 | B98: 21762 | C98: 24 | D98: 21780 | E98: 23 | F98: 21792 | K98: 0 | L98: 222
A99: 22 | B99: 21977 | C99: 24 | D99: 21988 | E99: 14 | F99: 22006 | K99: 0 | L99: 221
A100: 22 | B100: 22171 | C100: 24 | D100: 22195 | E100: 23 | F100: 22207 | K100: 0 | L100: 222
A101: 22 | B101: 22362 | C101: 24 | D101: 22372 | E101: 23 | F101: 22384 | K101: 0 | L101: 222
A102: 22 | B102: 22573 | C102: 24 | D102: 22603 | E102: 23 | F102: 22616 | K102: 0 | L102: 222
A103: 11 | B103: 22735 | C103: 22 | D103: 22754 | E103: 23 | F103: 22776 | K103: 0 | L103: 122
A104: 11 | B104: 23011 | C104: 22 | D104: 23030 | E104: 23 | F104: 23043 | K104: 0 | L104: 122
A105: 22 | B105: 23203 | C105: 24 | D105: 23223 | E105: 23 | F105: 23236 | K105: 0 | L105: 222
A106: 22 | B106: 23418 | C106: 24 | D106: 23448 | E106: 23 | F106: 23473 | K106: 0 | L106: 222
A107: 22 | B107: 23630 | C107: 24 | D107: 23711 | E107: 23 | F107: 23724 | K107: 0 | L107: 222
A108: 11 | B108: 23934 | C108: 22 | D108: 23951 | E108: 23 | F108: 23965 | L108: 122

Sheet !M601A10.103
A1: Report for:!M601A10.103
A2: Date: | B2: <date>
A3: Hen: | B3: <hen> | F3: Correct Sequence | G3: =Start!J2 -> 122 | P3: Total Sequences in Data | Q3: =4994-COUNTBLANK(L7:L5000) -> 98 | V3: Total Sequences in Block Data | W3: =COUNTA(L7:L22) -> 16 | AA3: Total Sequences in Block Data | AB3: =COUNTA(L23:L39) -> 17 | AF3: Total Sequences in Block Data | AG3: =COUNTA(L40:L55) -> 16 | AK3: Total Sequences in Block Data | AL3: =COUNTA(L56:L71) -> 16 | AP3: Total Sequences in Block Data | AQ3: =COUNTA(L72:L88) -> 17 | AU3: Total Sequences in Block Data | AV3: =COUNTA(L89:L104) -> 16
P4: Total Sequences in Summary | Q4: =SUM(O7:O14) -> 98 | V4: Total Sequences in Block Summary | W4: =SUM(U7:U14) -> 16 | AA4: Total Sequences in Block Summary | AB4: =SUM(Z7:Z14) -> 17 | AF4: Total Sequences in Block Summary | AG4: =SUM(AE7:AE14) -> 16 | AK4: Total Sequences in Block Summary | AL4: =SUM(AJ7:AJ14) -> 16 | AP4: Total Sequences in Block Summary | AQ4: =SUM(AO7:AO14) -> 17 | AU4: Total Sequences in Block Summary | AV4: =SUM(AT7:AT14) -> 16
T5: Block 1 | Y5: Block 2 | AD5: Block 3 | AI5: Block 4 | AN5: Block 5 | AS5: Block 6
A6: Sequence Component 1 | B6: Time 1 | C6: Sequence Component 2 | D6: Time 2 | E6: Sequence Component 3 | F6: Time 3 | G6: Sequence Component 4 | H6: Time 4 | I6: Sequence Component 5 | J6: Time 5 | K6: Correct? 0=No 1=Yes | L6: Sequence | N6: Frequency | P6: Relative Frequency | Q6: Variability | T6: Frequency | V6: Relative Frequency | W6: Variability | Y6: Frequency | AA6: Relative Frequency | AB6: Variability | AD6: Frequency | AF6: Relative Frequency | AG6: Variability | AI6: Frequency | AK6: Relative Frequency | AL6: Variability | AN6: Frequency | AP6: Relative Frequency | AQ6: Variability | AS6: Frequency | AU6: Relative Frequency | AV6: Variability
A7: 22 | B7: 18 | C7: 24 | D7: 70 | E7: 23 | F7: 101 | K7: 0 | L7: 222 | N7: 111 | O7: =COUNTIF($L$7:$L$500,N7) -> 4 | P7: =O7/$Q$4 -> 0.04081632653 | Q7: =IF(P7=0,0,(P7*((LOG(P7))/LOG(2)))) -> -0.1883555038 | T7: =N7 -> 111 | U7: =COUNTIF(L7:L22,T7) -> 0 | V7: =U7/(W4-U10) -> 0 | W7: =IF(V7=0,0,(V7*((LOG(V7))/LOG(2)))) -> 0 | Y7: =N7 -> 111 | Z7: =COUNTIF(L23:L39,Y7) -> 0 | AA7: =Z7/(AB4-Z10) -> 0 | AB7: =IF(AA7=0,0,(AA7*((LOG(AA7))/LOG(2)))) -> 0 | AD7: =N7 -> 111 | AE7: =COUNTIF(L40:L55,AD7) -> 0 | AF7: =AE7/(AG4-AE10) -> 0 | AG7: =IF(AF7=0,0,(AF7*((LOG(AF7))/LOG(2)))) -> 0 | AI7: =N7 -> 111 | AJ7: =COUNTIF(L56:L71,AI7) -> 1 | AK7: =AJ7/(AL4-AJ10) -> 0.1 | AL7: =IF(AK7=0,0,(AK7*((LOG(AK7))/LOG(2)))) -> -0.3321928095 | AN7: =N7 -> 111 | AO7: =COUNTIF(L72:L88,AN7) -> 2 | AP7: =AO7/(AQ4-AO10) -> 0.1666666667 | AQ7: =IF(AP7=0,0,(AP7*((LOG(AP7))/LOG(2)))) -> -0.4308270835 | AS7: =N7 -> 111 | AT7: =COUNTIF(L89:L104,AS7) -> 1 | AU7: =AT7/(AV4-AT10) -> 0.09090909091 | AV7: =IF(AU7=0,0,(AU7*((LOG(AU7))/LOG(2)))) -> -0.3144937835
A8: 22 | B8: 207 | C8: 24 | D8: 283 | E8: 14 | F8: 335 | K8: 0 | L8: 221 | N8: 112 | O8: =COUNTIF($L$7:$L$500,N8) -> 13 | P8: =O8/$Q$4 -> 0.1326530612 | Q8: =IF(P8=0,0,(P8*((LOG(P8))/LOG(2)))) -> -0.3865868534 | T8: =N8 -> 112 | U8: =COUNTIF(L7:L22,T8) -> 0 | V8: =U8/(W4-U10) -> 0 | W8: =IF(V8=0,0,(V8*((LOG(V8))/LOG(2)))) -> 0 | Y8: =N8 -> 112 | Z8: =COUNTIF(L23:L39,Y8) -> 1 | AA8: =Z8/(AB4-Z10) -> 0.07692307692 | AB8: =IF(AA8=0,0,(AA8*((LOG(AA8))/LOG(2)))) -> -0.2846492091 | AD8: =N8 -> 112 | AE8: =COUNTIF(L40:L55,AD8) -> 3 | AF8: =AE8/(AG4-AE10) -> 0.3 | AG8: =IF(AF8=0,0,(AF8*((LOG(AF8))/LOG(2)))) -> -0.5210896782 | AI8: =N8 -> 112 | AJ8: =COUNTIF(L56:L71,AI8) -> 1 | AK8: =AJ8/(AL4-AJ10) -> 0.1 | AL8: =IF(AK8=0,0,(AK8*((LOG(AK8))/LOG(2)))) -> -0.3321928095 | AN8: =N8 -> 112 | AO8: =COUNTIF(L72:L88,AN8) -> 3 | AP8: =AO8/(AQ4-AO10) -> 0.25 | AQ8: =IF(AP8=0,0,(AP8*((LOG(AP8))/LOG(2)))) -> -0.5 | AS8: =N8 -> 112 | AT8: =COUNTIF(L89:L104,AS8) -> 5 | AU8: =AT8/(AV4-AT10) -> 0.4545454545 | AV8: =IF(AU8=0,0,(AU8*((LOG(AU8))/LOG(2)))) -> -0.5170470562
A9: 22 | B9: 463 | C9: 24 | D9: 475 | E9: 23 | F9: 488 | K9: 0 | L9: 222 | N9: 121 | O9: =COUNTIF($L$7:$L$500,N9) -> 7 | P9: =O9/$Q$4 -> 0.07142857143 | Q9: =IF(P9=0,0,(P9*((LOG(P9))/LOG(2)))) -> -0.271953923 | T9: =N9 -> 121 | U9: =COUNTIF(L7:L22,T9) -> 0 | V9: =U9/(W4-U10) -> 0 | W9: =IF(V9=0,0,(V9*((LOG(V9))/LOG(2)))) -> 0 | Y9: =N9 -> 121 | Z9: =COUNTIF(L23:L39,Y9) -> 3 | AA9: =Z9/(AB4-Z10) -> 0.2307692308 | AB9: =IF(AA9=0,0,(AA9*((LOG(AA9))/LOG(2)))) -> -0.4881870502 | AD9: =N9 -> 121 | AE9: =COUNTIF(L40:L55,AD9) -> 1 | AF9: =AE9/(AG4-AE10) -> 0.1 | AG9: =IF(AF9=0,0,(AF9*((LOG(AF9))/LOG(2)))) -> -0.3321928095 | AI9: =N9 -> 121 | AJ9: =COUNTIF(L56:L71,AI9) -> 0 | AK9: =AJ9/(AL4-AJ10) -> 0 | AL9: =IF(AK9=0,0,(AK9*((LOG(AK9))/LOG(2)))) -> 0 | AN9: =N9 -> 121 | AO9: =COUNTIF(L72:L88,AN9) -> 2 | AP9: =AO9/(AQ4-AO10) -> 0.1666666667 | AQ9: =IF(AP9=0,0,(AP9*((LOG(AP9))/LOG(2)))) -> -0.4308270835 | AS9: =N9 -> 121 | AT9: =COUNTIF(L89:L104,AS9) -> 1 | AU9: =AT9/(AV4-AT10) -> 0.09090909091 | AV9: =IF(AU9=0,0,(AU9*((LOG(AU9))/LOG(2)))) -> -0.3144937835
A10: 22 | B10: 662 | C10: 24 | D10: 725 | E10: 23 | F10: 738 | K10: 0 | L10: 222 | N10: 122 | O10: =COUNTIF($L$7:$L$500,N10) -> 27 | P10: =O10/$Q$4 -> 0.2755102041 | Q10: =IF(P10=0,0,(P10*((LOG(P10))/LOG(2)))) -> -0.512400033 | T10: =N10 -> 122 | U10: =COUNTIF(L7:L22,T10) -> 1 | Y10: =N10 -> 122 | Z10: =COUNTIF(L23:L39,Y10) -> 4 | AD10: =N10 -> 122 | AE10: =COUNTIF(L40:L55,AD10) -> 6 | AI10: =N10 -> 122 | AJ10: =COUNTIF(L56:L71,AI10) -> 6 | AN10: =N10 -> 122 | AO10: =COUNTIF(L72:L88,AN10) -> 5 | AS10: =N10 -> 122 | AT10: =COUNTIF(L89:L104,AS10) -> 5
A11: 22 | B11: 903 | C11: 24 | D11: 932 | E11: 23 | F11: 958 | K11: 0 | L11: 222 | N11: 211 | O11: =COUNTIF($L$7:$L$500,N11) -> 1 | P11: =O11/$Q$4 -> 0.01020408163 | Q11: =IF(P11=0,0,(P11*((LOG(P11))/LOG(2)))) -> -0.06749703923 | T11: =N11 -> 211 | U11: =COUNTIF(L7:L22,T11) -> 0 | V11: =U11/(W4-U10) -> 0 | W11: =IF(V11=0,0,(V11*((LOG(V11))/LOG(2)))) -> 0 | Y11: =N11 -> 211 | Z11: =COUNTIF(L23:L39,Y11) -> 0 | AA11: =Z11/(AB4-Z10) -> 0 | AB11: =IF(AA11=0,0,(AA11*((LOG(AA11))/LOG(2)))) -> 0 | AD11: =N11 -> 211 | AE11: =COUNTIF(L40:L55,AD11) -> 0 | AF11: =AE11/(AG4-AE10) -> 0 | AG11: =IF(AF11=0,0,(AF11*((LOG(AF11))/LOG(2)))) -> 0 | AI11: =N11 -> 211 | AJ11: =COUNTIF(L56:L71,AI11) -> 0 | AK11: =AJ11/(AL4-AJ10) -> 0 | AL11: =IF(AK11=0,0,(AK11*((LOG(AK11))/LOG(2)))) -> 0 | AN11: =N11 -> 211 | AO11: =COUNTIF(L72:L88,AN11) -> 0 | AP11: =AO11/(AQ4-AO10) -> 0 | AQ11: =IF(AP11=0,0,(AP11*((LOG(AP11))/LOG(2)))) -> 0 | AS11: =N11 -> 211 | AT11: =COUNTIF(L89:L104,AS11) -> 1 | AU11: =AT11/(AV4-AT10) -> 0.09090909091 | AV11: =IF(AU11=0,0,(AU11*((LOG(AU11))/LOG(2)))) -> -0.3144937835
A12: 22 | B12: 1110 | C12: 24 | D12: 1124 | E12: 23 | F12: 1137 | K12: 0 | L12: 222 | N12: 212 | O12: =COUNTIF($L$7:$L$500,N12) -> 6 | P12: =O12/$Q$4 -> 0.0612244898 | Q12: =IF(P12=0,0,(P12*((LOG(P12))/LOG(2)))) -> -0.2467192251 | T12: =N12 -> 212 | U12: =COUNTIF(L7:L22,T12) -> 1 | V12: =U12/(W4-U10) -> 0.06666666667 | W12: =IF(V12=0,0,(V12*((LOG(V12))/LOG(2)))) -> -0.260459373 | Y12: =N12 -> 212 | Z12: =COUNTIF(L23:L39,Y12) -> 2 | AA12: =Z12/(AB4-Z10) -> 0.1538461538 | AB12: =IF(AA12=0,0,(AA12*((LOG(AA12))/LOG(2)))) -> -0.4154522643 | AD12: =N12 -> 212 | AE12: =COUNTIF(L40:L55,AD12) -> 1 | AF12: =AE12/(AG4-AE10) -> 0.1 | AG12: =IF(AF12=0,0,(AF12*((LOG(AF12))/LOG(2)))) -> -0.3321928095 | AI12: =N12 -> 212 | AJ12: =COUNTIF(L56:L71,AI12) -> 0 | AK12: =AJ12/(AL4-AJ10) -> 0 | AL12: =IF(AK12=0,0,(AK12*((LOG(AK12))/LOG(2)))) -> 0 | AN12: =N12 -> 212 | AO12: =COUNTIF(L72:L88,AN12) -> 1 | AP12: =AO12/(AQ4-AO10) -> 0.08333333333 | AQ12: =IF(AP12=0,0,(AP12*((LOG(AP12))/LOG(2)))) -> -0.2987468751 | AS12: =N12 -> 212 | AT12: =COUNTIF(L89:L104,AS12) -> 1 | AU12: =AT12/(AV4-AT10) -> 0.09090909091 | AV12: =IF(AU12=0,0,(AU12*((LOG(AU12))/LOG(2)))) -> -0.3144937835
A13: 22 | B13: 1314 | C13: 24 | D13: 1344 | E13: 23 | F13: 1392 | K13: 0 | L13: 222 | N13: 221 | O13: =COUNTIF($L$7:$L$500,N13) -> 5 | P13: =O13/$Q$4 -> 0.05102040816 | Q13: =IF(P13=0,0,(P13*((LOG(P13))/LOG(2)))) -> -0.219019477 | T13: =N13 -> 221 | U13: =COUNTIF(L7:L22,T13) -> 1 | V13: =U13/(W4-U10) -> 0.06666666667 | W13: =IF(V13=0,0,(V13*((LOG(V13))/LOG(2)))) -> -0.260459373 | Y13: =N13 -> 221 | Z13: =COUNTIF(L23:L39,Y13) -> 1 | AA13: =Z13/(AB4-Z10) -> 0.07692307692 | AB13: =IF(AA13=0,0,(AA13*((LOG(AA13))/LOG(2)))) -> -0.2846492091 | AD13: =N13 -> 221 | AE13: =COUNTIF(L40:L55,AD13) -> 0 | AF13: =AE13/(AG4-AE10) -> 0 | AG13: =IF(AF13=0,0,(AF13*((LOG(AF13))/LOG(2)))) -> 0 | AI13: =N13 -> 221 | AJ13: =COUNTIF(L56:L71,AI13) -> 1 | AK13: =AJ13/(AL4-AJ10) -> 0.1 | AL13: =IF(AK13=0,0,(AK13*((LOG(AK13))/LOG(2)))) -> -0.3321928095 | AN13: =N13 -> 221 | AO13: =COUNTIF(L72:L88,AN13) -> 1 | AP13: =AO13/(AQ4-AO10) -> 0.08333333333 | AQ13: =IF(AP13=0,0,(AP13*((LOG(AP13))/LOG(2)))) -> -0.2987468751 | AS13: =N13 -> 221 | AT13: =COUNTIF(L89:L104,AS13) -> 1 | AU13: =AT13/(AV4-AT10) -> 0.09090909091 | AV13: =IF(AU13=0,0,(AU13*((LOG(AU13))/LOG(2)))) -> -0.3144937835
A14: 22 | B14: 1579 | C14: 24 | D14: 1643 | E14: 23 | F14: 1657 | K14: 0 | L14: 222 | N14: 222 | O14: =COUNTIF($L$7:$L$500,N14) -> 35 | P14: =O14/$Q$4 -> 0.3571428571 | Q14: =IF(P14=0,0,(P14*((LOG(P14))/LOG(2)))) -> -0.5305095811 | T14: =N14 -> 222 | U14: =COUNTIF(L7:L22,T14) -> 13 | V14: =U14/(W4-U10) -> 0.8666666667 | W14: =IF(V14=0,0,(V14*((LOG(V14))/LOG(2)))) -> -0.1789240938 | Y14: =N14 -> 222 | Z14: =COUNTIF(L23:L39,Y14) -> 6 | AA14: =Z14/(AB4-Z10) -> 0.4615384615 | AB14: =IF(AA14=0,0,(AA14*((LOG(AA14))/LOG(2)))) -> -0.5148356388 | AD14: =N14 -> 222 | AE14: =COUNTIF(L40:L55,AD14) -> 5 | AF14: =AE14/(AG4-AE10) -> 0.5 | AG14: =IF(AF14=0,0,(AF14*((LOG(AF14))/LOG(2)))) -> -0.5 | AI14: =N14 -> 222 | AJ14: =COUNTIF(L56:L71,AI14) -> 7 | AK14: =AJ14/(AL4-AJ10) -> 0.7 | AL14: =IF(AK14=0,0,(AK14*((LOG(AK14))/LOG(2)))) -> -0.360201221 | AN14: =N14 -> 222 | AO14: =COUNTIF(L72:L88,AN14) -> 3 | AP14: =AO14/(AQ4-AO10) -> 0.25 | AQ14: =IF(AP14=0,0,(AP14*((LOG(AP14))/LOG(2)))) -> -0.5 | AS14: =N14 -> 222 | AT14: =COUNTIF(L89:L104,AS14) -> 1 | AU14: =AT14/(AV4-AT10) -> 0.09090909091 | AV14: =IF(AU14=0,0,(AU14*((LOG(AU14))/LOG(2)))) -> -0.3144937835
A15: 11 | B15: 1807 | C15: 22 | D15: 1870 | E15: 23 | F15: 1885 | K15: 0 | L15: 122 | P15: =SUM(P7:P14) -> 1 | Q15: =-SUM(Q7:Q14) -> 2.423041636 | V15: =SUM(V7:V14) -> 1 | W15: =-SUM(W7:W14) -> 0.6998428399 | AA15: =SUM(AA7:AA14) -> 1 | AB15: =-SUM(AB7:AB14) -> 1.987773371 | AF15: =SUM(AF7:AF14) -> 1 | AG15: =-SUM(AG7:AG14) -> 1.685475297 | AK15: =SUM(AK7:AK14) -> 1 | AL15: =-SUM(AL7:AL14) -> 1.356779649 | AP15: =SUM(AP7:AP14) -> 1 | AQ15: =-SUM(AQ7:AQ14) -> 2.459147917 | AU15: =SUM(AU7:AU14) -> 1 | AV15: =-SUM(AV7:AV14) -> 2.404009757
A16: 22 | B16: 2100 | C16: 24 | D16: 2116 | E16: 23 | F16: 2129 | K16: 0 | L16: 222 | P16: U= | Q16: =Q15/(LOG(Q4)/LOG(2)) -> 0.3663110995 | V16: U1= | W16: =W15/(LOG(W4)/LOG(2)) -> 0.17496071 | AA16: U2= | AB16: =AB15/(LOG(AB4)/LOG(2)) -> 0.4863098329 | AF16: U3= | AG16: =AG15/(LOG(AG4)/LOG(2)) -> 0.4213688243 | AK16: U4= | AL16: =AL15/(LOG(AL4)/LOG(2)) -> 0.3391949124 | AP16: U5= | AQ16: =AQ15/(LOG(AQ4)/LOG(2)) -> 0.601631871 | AU16: U6= | AV16: =AV15/(LOG(AV4)/LOG(2)) -> 0.6010024393
A17: 22 | B17: 2394 | C17: 24 | D17: 2408 | E17: 23 | F17: 2421 | K17: 0 | L17: 222
A18: 22 | B18: 2638 | C18: 13 | D18: 2726 | E18: 23 | F18: 2773 | K18: 0 | L18: 212
A19: 22 | B19: 3113 | C19: 24 | D19: 3132 | E19: 23 | F19: 3150 | K19: 0 | L19: 222 | N19: Total Target Seq
A20: 22 | B20: 3356 | C20: 24 | D20: 3397 | E20: 23 | F20: 3410 | K20: 0 | L20: 222 | N20: =COUNTIF(L7:L104,G3) -> 27 | P20: 16 | Q20: 17 | R20: 16 | S20: 16 | T20: 17 | U20: 16
A21: 22 | B21: 3622 | C21: 24 | D21: 3638 | E21: 23 | F21: 3653 | K21: 0 | L21: 222 | P21: % of reinforcement given in 6 equal intervals based on number of trials
A22: 22 | B22: 3892 | C22: 24 | D22: 3991 | E22: 23 | F22: 4005 | K22: 0 | L22: 222 | P22: %_1 | Q22: %_2 | R22: %_3 | S22: %_4 | T22: %_5 | U22: %_6
A23: 11 | B23: 4220 | C23: 22 | D23: 4359 | E23: 23 | F23: 4374 | K23: 0 | L23: 122 | O23: target sequence | P23: =$G$3 -> 122 | Q23: =$G$3 -> 122 | R23: =$G$3 -> 122 | S23: =$G$3 -> 122 | T23: =$G$3 -> 122 | U23: =$G$3 -> 122
A24: 22 | B24: 4739 | C24: 24 | D24: 4756 | E24: 23 | F24: 4768 | K24: 0 | L24: 222 | O24: total reinforcement | P24: =U10 -> 1 | Q24: =Z10 -> 4 | R24: =AE10 -> 6 | S24: =AJ10 -> 6 | T24: =AO10 -> 5 | U24: =AT10 -> 5
A25: 11 | B25: 4942 | C25: 22 | D25: 5122 | E25: 23 | F25: 5136 | K25: 0 | L25: 122 | O25: % target
A26: 22 | B26: 5450 | C26: 13 | D26: 5499 | E26: 23 | F26: 5517 | K26: 0 | L26: 212 | O26: CCRF
A27: 22 | B27: 5769 | C27: 24 | D27: 5808 | E27: 23 | F27: 6291 | K27: 0 | L27: 222 | O27: % CCRf
A28: 11 | B28: 6464 | C28: 11 | D28: 6466 | E28: 21 | F28: 6509 | K28: 0 | L28: 112 | O28: average response rate | P28: =F22/P20 -> 250.3125 | Q28: =(F39-F22)/Q20 -> 311.3529412 | R28: =(F55-F39)/R20 -> 228.6875 | S28: =(F71-F55)/S20 -> 198.1875 | T28: =(F88-F71)/T20 -> 233.4705882 | U28: =(F104-F88)/U20 -> 244
A29: 11 | B29: 6696 | C29: 22 | D29: 6745 | E29: 14 | F29: 6771 | K29: 0 | L29: 121
A30: 22 | B30: 7003 | C30: 24 | D30: 7037 | E30: 23 | F30: 7038 | K30: 0 | L30: 222
A31: 22 | B31: 7257 | C31: 24 | D31: 7272 | E31: 23 | F31: 7285 | K31: 0 | L31: 222
A32: 11 | B32: 7484 | C32: 22 | D32: 7500 | E32: 23 | F32: 7531 | K32: 0 | L32: 122
A33: 11 | B33: 7642 | C33: 22 | D33: 7685 | E33: 23 | F33: 7698 | K33: 0 | L33: 122
A34: 22 | B34: 7963 | C34: 13 | D34: 7976 | E34: 23 | F34: 8001 | K34: 0 | L34: 212
A35: 22 | B35: 8164 | C35: 24 | D35: 8181 | E35: 23 | F35: 8195 | K35: 0 | L35: 222
A36: 22 | B36: 8357 | C36: 24 | D36: 8430 | E36: 14 | F36: 8448 | K36: 0 | L36: 221
A37: 11 | B37: 8620 | C37: 22 | D37: 8657 | E37: 14 | F37: 8700 | K37: 0 | L37: 121
A38: 11 | B38: 8868 | C38: 22 | D38: 8901 | E38: 14 | F38: 9033 | K38: 0 | L38: 121
A39: 22 | B39: 9274 | C39: 24 | D39: 9286 | E39: 23 | F39: 9298 | K39: 0 | L39: 222
A40: 11 | B40: 9478 | C40: 22 | D40: 9516 | E40: 23 | F40: 9528 | K40: 0 | L40: 122
A41: 22 | B41: 9753 | C41: 24 | D41: 9766 | E41: 23 | F41: 9780 | K41: 0 | L41: 222
A42: 22 | B42: 10025 | C42: 24 | D42: 10038 | E42: 23 | F42: 10051 | K42: 0 | L42: 222
A43: 11 | B43: 10160 | C43: 22 | D43: 10231 | E43: 23 | F43: 10243 | K43: 0 | L43: 122
A44: 11 | B44: 10414 | C44: 11 | D44: 10447 | E44: 21 | F44: 10473 | K44: 0 | L44: 112
A45: 11 | B45: 10666 | C45: 22 | D45: 10678 | E45: 14 | F45: 10767 | K45: 0 | L45: 121
A46: 11 | B46: 11000 | C46: 11 | D46: 11040 | E46: 21 | F46: 11060 | K46: 0 | L46: 112
A47: 11 | B47: 11226 | C47: 22 | D47: 11250 | E47: 23 | F47: 11252 | K47: 0 | L47: 122
A48: 22 | B48: 11443 | C48: 24 | D48: 11477 | E48: 23 | F48: 11490 | K48: 0 | L48: 222
A49: 22 | B49: 11706 | C49: 24 | D49: 11725 | E49: 23 | F49: 11738 | K49: 0 | L49: 222
A50: 22 | B50: 11869 | C50: 13 | D50: 11882 | E50: 23 | F50: 11893 | K50: 0 | L50: 212
A51: 11 | B51: 12074 | C51: 22 | D51: 12123 | E51: 23 | F51: 12125 | K51: 0 | L51: 122
A52: 11 | B52: 12265 | C52: 22 | D52: 12326 | E52: 23 | F52: 12336 | K52: 0 | L52: 122
A53: 11 | B53: 12447 | C53: 22 | D53: 12537 | E53: 23 | F53: 12549 | K53: 0 | L53: 122
A54: 11 | B54: 12671 | C54: 11 | D54: 12673 | E54: 21 | F54: 12696 | K54: 0 | L54: 112
A55: 22 | B55: 12902 | C55: 24 | D55: 12928 | E55: 23 | F55: 12957 | K55: 0 | L55: 222
A56: 11 | B56: 13127 | C56: 22 | D56: 13140 | E56: 23 | F56: 13152 | K56: 0 | L56: 122
A57: 22 | B57: 13281 | C57: 24 | D57: 13331 | E57: 23 | F57: 13350 | K57: 0 | L57: 222
A58: 11 | B58: 13480 | C58: 11 | D58: 13483 | E58: 21 | F58: 13501 | K58: 0 | L58: 112
A59: 22 | B59: 13678 | C59: 24 | D59: 13696 | E59: 23 | F59: 13711 | K59: 0 | L59: 222
A60: 22 | B60: 13826 | C60: 24 | D60: 13839 | E60: 23 | F60: 13922 | K60: 0 | L60: 222
A61: 22 | B61: 14061 | C61: 24 | D61: 14076 | E61: 23 | F61: 14139 | K61: 0 | L61: 222
A62: 22 | B62: 14329 | C62: 24 | D62: 14357 | E62: 23 | F62: 14370 | K62: 0 | L62: 222
A63: 11 | B63: 14523 | C63: 22 | D63: 14534 | E63: 23 | F63: 14546 | K63: 0 | L63: 122
A64: 11 | B64: 14674 | C64: 22 | D64: 14699 | E64: 23 | F64: 14712 | K64: 0 | L64: 122
A65: 11 | B65: 14861 | C65: 22 | D65: 14872 | E65: 23 | F65: 14899 | K65: 0 | L65: 122
A66: 22 | B66: 15032 | C66: 24 | D66: 15044 | E66: 23 | F66: 15057 | K66: 0 | L66: 222
A67: 22 | B67: 15207 | C67: 24 | D67: 15220 | E67: 23 | F67: 15235 | K67: 0 | L67: 222
A68: 22 | B68: 15385 | C68: 24 | D68: 15397 | E68: 14 | F68: 15408 | K68: 0 | L68: 221
A69: 11 | B69: 15554 | C69: 22 | D69: 15592 | E69: 23 | F69: 15635 | K69: 0 | L69: 122
A70: 11 | B70: 15893 | C70: 11 | D70: 15930 | E70: 12 | F70: 15977 | K70: 0 | L70: 111
A71: 11 | B71: 16102 | C71: 22 | D71: 16126 | E71: 23 | F71: 16128 | K71: 0 | L71: 122
A72: 11 | B72: 16313 | C72: 11 | D72: 16314 | E72: 21 | F72: 16342 | K72: 0 | L72: 112
A73: 11 | B73: 16564 | C73: 22 | D73: 16579 | E73: 23 | F73: 16624 | K73: 0 | L73: 122
A74: 22 | B74: 16792 | C74: 13 | D74: 16818 | E74: 23 | F74: 16853 | K74: 0 | L74: 212
A75: 11 | B75: 17034 | C75: 22 | D75: 17046 | E75: 14 | F75: 17057 | K75: 0 | L75: 121
A76: 11 | B76: 17217 | C76: 11 | D76: 17238 | E76: 21 | F76: 17250 | K76: 0 | L76: 112
A77: 11 | B77: 17369 | C77: 22 | D77: 17424 | E77: 23 | F77: 17438 | K77: 0 | L77: 122
A78: 11 | B78: 17571 | C78: 22 | D78: 17603 | E78: 23 | F78: 17629 | K78: 0 | L78: 122
A79: 11 | B79: 17765 | C79: 11 | D79: 17887 | E79: 12 | F79: 17903 | K79: 0 | L79: 111
A80: 22 | B80: 18101 | C80: 24 | D80: 18126 | E80: 14 | F80: 18143 | K80: 0 | L80: 221
A81: 22 | B81: 18331 | C81: 24 | D81: 18333 | E81: 23 | F81: 18344 | K81: 0 | L81: 222
A82: 11 | B82: 18498 | C82: 22 | D82: 18510 | E82: 23 | F82: 18526 | K82: 0 | L82: 122
A83: 22 | B83: 18849 | C83: 24 | D83: 18860 | E83: 23 | F83: 18899 | K83: 0 | L83: 222
A84: 11 | B84: 19034 | C84: 11 | D84: 19036 | E84: 12 | F84: 19076 | K84: 0 | L84: 111
A85: 22 | B85: 19271 | C85: 24 | D85: 19297 | E85: 23 | F85: 19353 | K85: 0 | L85: 222
A86: 11 | B86: 19499 | C86: 11 | D86: 19573 | E86: 21 | F86: 19596 | K86: 0 | L86: 112
A87: 11 | B87: 19834 | C87: 22 | D87: 19877 | E87: 14 | F87: 19892 | K87: 0 | L87: 121
A88: 11 | B88: 20073 | C88: 22 | D88: 20084 | E88: 23 | F88: 20097 | K88: 0 | L88: 122
A89: 22 | B89: 20253 | C89: 13 | D89: 20386 | E89: 14 | F89: 20388 | K89: 0 | L89: 211
A90: 11 | B90: 20683 | C90: 11 | D90: 20746 | E90: 21 | F90: 20763 | K90: 0 | L90: 112
A91: 22 | B91: 20929 | C91: 24 | D91: 20947 | E91: 23 | F91: 20980 | K91: 0 | L91: 222
A92: 11 | B92: 21120 | C92: 11 | D92: 21139 | E92: 21 | F92: 21152 | K92: 0 | L92: 112
A93: 11 | B93: 21265 | C93: 11 | D93: 21295 | E93: 12 | F93: 21388 | K93: 0 | L93: 111
A94: 11 | B94: 21501 | C94: 11 | D94: 21502 | E94: 21 | F94: 21530 | K94: 0 | L94: 112
A95: 11 | B95: 21633 | C95: 22 | D95: 21650 | E95: 14 | F95: 21663 | K95: 0 | L95: 121
A96: 11 | B96: 21767 | C96: 11 | D96: 21824 | E96: 21 | F96: 21858 | K96: 0 | L96: 112
A97: 11 | B97: 21978 | C97: 22 | D97: 22025 | E97: 23 | F97: 22040 | K97: 0 | L97: 122
A98: 11 | B98: 22251 | C98: 22 | D98: 22301 | E98: 23 | F98: 22318 | K98: 0 | L98: 122
A99: 11 | B99: 22524 | C99: 11 | D99: 22600 | E99: 21 | F99: 22630 | K99: 0 | L99: 112
A100: 22 | B100: 22831 | C100: 13 | D100: 22857 | E100: 23 | F100: 22990 | K100: 0 | L100: 212
A101: 11 | B101: 23094 | C101: 22 | D101: 23155 | E101: 23 | F101: 23171 | K101: 0 | L101: 122
A102: 11 | B102: 23314 | C102: 22 | D102: 23371 | E102: 23 | F102: 23438 | K102: 0 | L102: 122
A103: 11 | B103: 23560 | C103: 22 | D103: 23622 | E103: 23 | F103: 23665 | K103: 0 | L103: 122
A104: 22 | B104: 23962 | C104: 24 | D104: 23988 | E104: 14 | F104: 24001 | L104: 221

Sheet !M602920.103
A1: Report for:!M602920.103
A2: Date: | B2: <date>
A3: Hen: | B3: <hen> | F3: Correct Sequence | G3: =Start!J2 -> 122 | P3: Total Sequences in Data | Q3: =4994-COUNTBLANK(L7:L5000) -> 103 | V3: Total Sequences in Block Data | W3: =COUNTA(L7:L23) -> 17 | AA3: Total Sequences in Block Data | AB3: =COUNTA(L24:L40) -> 17 | AF3: Total Sequences in Block Data | AG3: =COUNTA(L41:L58) -> 18 | AK3: Total Sequences in Block Data | AL3: =COUNTA(L59:L75) -> 17 | AP3: Total Sequences in Block Data | AQ3: =COUNTA(L76:L92) -> 17 | AU3: Total Sequences in Block Data | AV3: =COUNTA(L93:L109) -> 17
P4: Total Sequences in Summary | Q4: =SUM(O7:O14) -> 102 | V4: Total Sequences in Block Summary | W4: =SUM(U7:U14) -> 17 | AA4: Total Sequences in Block Summary | AB4: =SUM(Z7:Z14) -> 17 | AF4: Total Sequences in Block Summary | AG4: =SUM(AE7:AE14) -> 18 | AK4: Total Sequences in Block Summary | AL4: =SUM(AJ7:AJ14) -> 17 | AP4: Total Sequences in Block Summary | AQ4: =SUM(AO7:AO14) -> 17 | AU4: Total Sequences in Block Summary | AV4: =SUM(AT7:AT14) -> 16
T5: Block 1 | Y5: Block 2 | AD5: Block 3 | AI5: Block 4 | AN5: Block 5 | AS5: Block 6
A6: Sequence Component 1 | B6: Time 1 | C6: Sequence Component 2 | D6: Time 2 | E6: Sequence Component 3 | F6: Time 3 | G6: Sequence Component 4 | H6: Time 4 | I6: Sequence Component 5 | J6: Time 5 | K6: Correct? 0=No 1=Yes | L6: Sequence | N6: Frequency | P6: Relative Frequency | Q6: Variability | T6: Frequency | V6: Relative Frequency | W6: Variability | Y6: Frequency | AA6: Relative Frequency | AB6: Variability | AD6: Frequency | AF6: Relative Frequency | AG6: Variability | AI6: Frequency | AK6: Relative Frequency | AL6: Variability | AN6: Frequency | AP6: Relative Frequency | AQ6: Variability | AS6: Frequency | AU6: Relative Frequency | AV6: Variability
A7: 22 | B7: 70 | C7: 24 | D7: 211 | E7: 23 | F7: 246 | K7: 0 | L7: 222 | N7: 111 | O7: =COUNTIF($L$7:$L$500,N7) -> 38 | P7: =O7/$Q$4 -> 0.3725490196 | Q7: =IF(P7=0,0,(P7*((LOG(P7))/LOG(2)))) -> -0.5306952695 | T7: =N7 -> 111 | U7: =COUNTIF(L7:L23,T7) -> 7 | V7: =U7/(W4-U10) -> 0.4117647059 | W7: =IF(V7=0,0,(V7*((LOG(V7))/LOG(2)))) -> -0.5271032608 | Y7: =N7 -> 111 | Z7: =COUNTIF(L24:L40,Y7) -> 5 | AA7: =Z7/(AB4-Z10) -> 0.3846153846 | AB7: =IF(AA7=0,0,(AA7*((LOG(AA7))/LOG(2)))) -> -0.5301967782 | AD7: =N7 -> 111 | AE7: =COUNTIF(L41:L58,AD7) -> 7 | AF7: =AE7/(AG4-AE10) -> 0.5833333333 | AG7: =IF(AF7=0,0,(AF7*((LOG(AF7))/LOG(2)))) -> -0.4536044209 | AI7: =N7 -> 111 | AJ7: =COUNTIF(L59:L75,AI7) -> 7 | AK7: =AJ7/(AL4-AJ10) -> 0.4666666667 | AL7: =IF(AK7=0,0,(AK7*((LOG(AK7))/LOG(2)))) -> -0.5131166477 | AN7: =N7 -> 111 | AO7: =COUNTIF(L76:L92,AN7) -> 2 | AP7: =AO7/(AQ4-AO10) -> 0.1428571429 | AQ7: =IF(AP7=0,0,(AP7*((LOG(AP7))/LOG(2)))) -> -0.4010507032 | AS7: =N7 -> 111 | AT7: =COUNTIF(L93:L109,AS7) -> 10 | AU7: =AT7/(AV4-AT10) -> 0.625 | AV7: =IF(AU7=0,0,(AU7*((LOG(AU7))/LOG(2)))) -> -0.4237949407
A8: 22 | B8: 365 | C8: 24 | D8: 378 | E8: 23 | F8: 396 | K8: 0 | L8: 222 | N8: 112 | O8: =COUNTIF($L$7:$L$500,N8) -> 16 | P8: =O8/$Q$4 -> 0.1568627451 | Q8: =IF(P8=0,0,(P8*((LOG(P8))/LOG(2)))) -> -0.4192039752 | T8: =N8 -> 112 | U8: =COUNTIF(L7:L23,T8) -> 0 | V8: =U8/(W4-U10) -> 0 | W8: =IF(V8=0,0,(V8*((LOG(V8))/LOG(2)))) -> 0 | Y8: =N8 -> 112 | Z8: =COUNTIF(L24:L40,Y8) -> 4 | AA8: =Z8/(AB4-Z10) -> 0.3076923077 | AB8: =IF(AA8=0,0,(AA8*((LOG(AA8))/LOG(2)))) -> -0.523212221 | AD8: =N8 -> 112 | AE8: =COUNTIF(L41:L58,AD8) -> 0 | AF8: =AE8/(AG4-AE10) -> 0 | AG8: =IF(AF8=0,0,(AF8*((LOG(AF8))/LOG(2)))) -> 0 | AI8: =N8 -> 112 | AJ8: =COUNTIF(L59:L75,AI8) -> 4 | AK8: =AJ8/(AL4-AJ10) -> 0.2666666667 | AL8: =IF(AK8=0,0,(AK8*((LOG(AK8))/LOG(2)))) -> -0.5085041588 | AN8: =N8 -> 112 | AO8: =COUNTIF(L76:L92,AN8) -> 5 | AP8: =AO8/(AQ4-AO10) -> 0.3571428571 | AQ8: =IF(AP8=0,0,(AP8*((LOG(AP8))/LOG(2)))) -> -0.5305095811 | AS8: =N8 -> 112 | AT8: =COUNTIF(L93:L109,AS8) -> 3 | AU8: =AT8/(AV4-AT10) -> 0.1875 | AV8: =IF(AU8=0,0,(AU8*((LOG(AU8))/LOG(2)))) -> -0.4528195311
A9: 22 | B9: 535 | C9: 24 | D9: 583 | E9: 23 | F9: 607 | K9: 0 | L9: 222 | N9: 121 | O9: =COUNTIF($L$7:$L$500,N9) -> 9 | P9: =O9/$Q$4 -> 0.08823529412 | Q9: =IF(P9=0,0,(P9*((LOG(P9))/LOG(2)))) -> -0.3090441477 | T9: =N9 -> 121 | U9: =COUNTIF(L7:L23,T9) -> 2 | V9: =U9/(W4-U10) -> 0.1176470588 | W9: =IF(V9=0,0,(V9*((LOG(V9))/LOG(2)))) -> -0.3632309225 | Y9: =N9 -> 121 | Z9: =COUNTIF(L24:L40,Y9) -> 1 | AA9: =Z9/(AB4-Z10) -> 0.07692307692 | AB9: =IF(AA9=0,0,(AA9*((LOG(AA9))/LOG(2)))) -> -0.2846492091 | AD9: =N9 -> 121 | AE9: =COUNTIF(L41:L58,AD9) -> 2 | AF9: =AE9/(AG4-AE10) -> 0.1666666667 | AG9: =IF(AF9=0,0,(AF9*((LOG(AF9))/LOG(2)))) -> -0.4308270835 | AI9: =N9 -> 121 | AJ9: =COUNTIF(L59:L75,AI9) -> 2 | AK9: =AJ9/(AL4-AJ10) -> 0.1333333333 | AL9: =IF(AK9=0,0,(AK9*((LOG(AK9))/LOG(2)))) -> -0.3875854127 | AN9: =N9 -> 121 | AO9: =COUNTIF(L76:L92,AN9) -> 1 | AP9: =AO9/(AQ4-AO10) -> 0.07142857143 | AQ9: =IF(AP9=0,0,(AP9*((LOG(AP9))/LOG(2)))) -> -0.271953923 | AS9: =N9 -> 121 | AT9: =COUNTIF(L93:L109,AS9) -> 1 | AU9: =AT9/(AV4-AT10) -> 0.0625 | AV9: =IF(AU9=0,0,(AU9*((LOG(AU9))/LOG(2)))) -> -0.25
A10: 11 | B10: 757 | C10: 11 | D10: 790 | E10: 12 | F10: 930 | K10: 0 | L10: 111 | N10: 122 | O10: =COUNTIF($L$7:$L$500,N10) -> 15 | P10: =O10/$Q$4 -> 0.1470588235 | Q10: =IF(P10=0,0,(P10*((LOG(P10))/LOG(2)))) -> -0.4066962862 | T10: =N10 -> 122 | U10: =COUNTIF(L7:L23,T10) -> 0 | Y10: =N10 -> 122 | Z10: =COUNTIF(L24:L40,Y10) -> 4 | AD10: =N10 -> 122 | AE10: =COUNTIF(L41:L58,AD10) -> 6 | AI10: =N10 -> 122 | AJ10: =COUNTIF(L59:L75,AI10) -> 2 | AN10: =N10 -> 122 | AO10: =COUNTIF(L76:L92,AN10) -> 3 | AS10: =N10 -> 122 | AT10: =COUNTIF(L93:L109,AS10) -> 0
A11: 22 | B11: 1166 | C11: 24 | D11: 1184 | E11: 23 | F11: 1226 | K11: 0 | L11: 222 | N11: 211 | O11: =COUNTIF($L$7:$L$500,N11) -> 3 | P11: =O11/$Q$4 -> 0.02941176471 | Q11: =IF(P11=0,0,(P11*((LOG(P11))/LOG(2)))) -> -0.14963126 | T11: =N11 -> 211 | U11: =COUNTIF(L7:L23,T11) -> 0 | V11: =U11/(W4-U10) -> 0 | W11: =IF(V11=0,0,(V11*((LOG(V11))/LOG(2)))) -> 0 | Y11: =N11 -> 211 | Z11: =COUNTIF(L24:L40,Y11) -> 0 | AA11: =Z11/(AB4-Z10) -> 0 | AB11: =IF(AA11=0,0,(AA11*((LOG(AA11))/LOG(2)))) -> 0 | AD11: =N11 -> 211 | AE11: =COUNTIF(L41:L58,AD11) -> 0 | AF11: =AE11/(AG4-AE10) -> 0 | AG11: =IF(AF11=0,0,(AF11*((LOG(AF11))/LOG(2)))) -> 0 | AI11: =N11 -> 211 | AJ11: =COUNTIF(L59:L75,AI11) -> 1 | AK11: =AJ11/(AL4-AJ10) -> 0.06666666667 | AL11: =IF(AK11=0,0,(AK11*((LOG(AK11))/LOG(2)))) -> -0.260459373 | AN11: =N11 -> 211 | AO11: =COUNTIF(L76:L92,AN11) -> 2 | AP11: =AO11/(AQ4-AO10) -> 0.1428571429 | AQ11: =IF(AP11=0,0,(AP11*((LOG(AP11))/LOG(2)))) -> -0.4010507032 | AS11: =N11 -> 211 | AT11: =COUNTIF(L93:L109,AS11) -> 0 | AU11: =AT11/(AV4-AT10) -> 0 | AV11: =IF(AU11=0,0,(AU11*((LOG(AU11))/LOG(2)))) -> 0
A12: 22 | B12: 1477 | C12: 24 | D12: 1692 | E12: 23 | F12: 1757 | K12: 0 | L12: 222 | N12: 212 | O12: =COUNTIF($L$7:$L$500,N12) -> 3 | P12: =O12/$Q$4 -> 0.02941176471 | Q12: =IF(P12=0,0,(P12*((LOG(P12))/LOG(2)))) -> -0.14963126 | T12: =N12 -> 212 | U12: =COUNTIF(L7:L23,T12) -> 0 | V12: =U12/(W4-U10) -> 0 | W12: =IF(V12=0,0,(V12*((LOG(V12))/LOG(2)))) -> 0 | Y12: =N12 -> 212 | Z12: =COUNTIF(L24:L40,Y12) -> 3 | AA12: =Z12/(AB4-Z10) -> 0.2307692308 | AB12: =IF(AA12=0,0,(AA12*((LOG(AA12))/LOG(2)))) -> -0.4881870502 | AD12: =N12 -> 212 | AE12: =COUNTIF(L41:L58,AD12) -> 0 | AF12: =AE12/(AG4-AE10) -> 0 | AG12: =IF(AF12=0,0,(AF12*((LOG(AF12))/LOG(2)))) -> 0 | AI12: =N12 -> 212 | AJ12: =COUNTIF(L59:L75,AI12) -> 0 | AK12: =AJ12/(AL4-AJ10) -> 0 | AL12: =IF(AK12=0,0,(AK12*((LOG(AK12))/LOG(2)))) -> 0 | AN12: =N12 -> 212 | AO12: =COUNTIF(L76:L92,AN12) -> 0 | AP12: =AO12/(AQ4-AO10) -> 0 | AQ12: =IF(AP12=0,0,(AP12*((LOG(AP12))/LOG(2)))) -> 0 | AS12: =N12 -> 212 | AT12: =COUNTIF(L93:L109,AS12) -> 0 | AU12: =AT12/(AV4-AT10) -> 0 | AV12: =IF(AU12=0,0,(AU12*((LOG(AU12))/LOG(2)))) -> 0
A13: 22 | B13: 2012 | C13: 24 | D13: 2072 | E13: 14 | F13: 2144 | K13: 0 | L13: 221 | N13: 221 | O13: =COUNTIF($L$7:$L$500,N13) -> 2 | P13: =O13/$Q$4 -> 0.01960784314 | Q13: =IF(P13=0,0,(P13*((LOG(P13))/LOG(2)))) -> -0.1112240263 | T13: =N13 -> 221 | U13: =COUNTIF(L7:L23,T13) -> 1 | V13: =U13/(W4-U10) -> 0.05882352941 | W13: =IF(V13=0,0,(V13*((LOG(V13))/LOG(2)))) -> -0.2404389907 | Y13: =N13 -> 221 | Z13: =COUNTIF(L24:L40,Y13) -> 0 | AA13: =Z13/(AB4-Z10) -> 0 | AB13: =IF(AA13=0,0,(AA13*((LOG(AA13))/LOG(2)))) -> 0 | AD13: =N13 -> 221 | AE13: =COUNTIF(L41:L58,AD13) -> 1 | AF13: =AE13/(AG4-AE10) -> 0.08333333333 | AG13: =IF(AF13=0,0,(AF13*((LOG(AF13))/LOG(2)))) -> -0.2987468751 | AI13: =N13 -> 221 | AJ13: =COUNTIF(L59:L75,AI13) -> 0 | AK13: =AJ13/(AL4-AJ10) -> 0 | AL13: =IF(AK13=0,0,(AK13*((LOG(AK13))/LOG(2)))) -> 0 | AN13: =N13 -> 221 | AO13: =COUNTIF(L76:L92,AN13) -> 0 | AP13: =AO13/(AQ4-AO10) -> 0 | AQ13: =IF(AP13=0,0,(AP13*((LOG(AP13))/LOG(2)))) -> 0 | AS13: =N13 -> 221 | AT13: =COUNTIF(L93:L109,AS13) -> 0 | AU13: =AT13/(AV4-AT10) -> 0 | AV13: =IF(AU13=0,0,(AU13*((LOG(AU13))/LOG(2)))) -> 0
A14: 22 | B14: 2364 | C14: 24 | D14: 2394 | E14: 23 | F14: 2465 | K14: 0 | L14: 222 | N14: 222 | O14: =COUNTIF($L$7:$L$500,N14) -> 16 | P14: =O14/$Q$4 -> 0.1568627451 | Q14: =IF(P14=0,0,(P14*((LOG(P14))/LOG(2)))) -> -0.4192039752 | T14: =N14 -> 222 | U14: =COUNTIF(L7:L23,T14) -> 7 | V14: =U14/(W4-U10) -> 0.4117647059 | W14: =IF(V14=0,0,(V14*((LOG(V14))/LOG(2)))) -> -0.5271032608 | Y14: =N14 -> 222 | Z14: =COUNTIF(L24:L40,Y14) -> 0 | AA14: =Z14/(AB4-Z10) -> 0 | AB14: =IF(AA14=0,0,(AA14*((LOG(AA14))/LOG(2)))) -> 0 | AD14: =N14 -> 222 | AE14: =COUNTIF(L41:L58,AD14) -> 2 | AF14: =AE14/(AG4-AE10) -> 0.1666666667 | AG14: =IF(AF14=0,0,(AF14*((LOG(AF14))/LOG(2)))) -> -0.4308270835 | AI14: =N14 -> 222 | AJ14: =COUNTIF(L59:L75,AI14) -> 1 | AK14: =AJ14/(AL4-AJ10) -> 0.06666666667 | AL14: =IF(AK14=0,0,(AK14*((LOG(AK14))/LOG(2)))) -> -0.260459373 | AN14: =N14 -> 222 | AO14: =COUNTIF(L76:L92,AN14) -> 4 | AP14: =AO14/(AQ4-AO10) -> 0.2857142857 | AQ14: =IF(AP14=0,0,(AP14*((LOG(AP14))/LOG(2)))) -> -0.5163871206 | AS14: =N14 -> 222 | AT14: =COUNTIF(L93:L109,AS14) -> 2 | AU14: =AT14/(AV4-AT10) -> 0.125 | AV14: =IF(AU14=0,0,(AU14*((LOG(AU14))/LOG(2)))) -> -0.375
A15: 22 | B15: 2710 | C15: 24 | D15: 2864 | E15: 23 | F15: 2881 | K15: 0 | L15: 222 | P15: =SUM(P7:P14) -> 1 | Q15: =-SUM(Q7:Q14) -> 2.4953302 | V15: =SUM(V7:V14) -> 1 | W15: =-SUM(W7:W14) -> 1.657876435 | AA15: =SUM(AA7:AA14) -> 1 | AB15: =-SUM(AB7:AB14) -> 1.826245258 | AF15: =SUM(AF7:AF14) -> 1 | AG15: =-SUM(AG7:AG14) -> 1.614005463 | AK15: =SUM(AK7:AK14) -> 1 | AL15: =-SUM(AL7:AL14) -> 1.930124965 | AP15: =SUM(AP7:AP14) -> 1 | AQ15: =-SUM(AQ7:AQ14) -> 2.120952031 | AU15: =SUM(AU7:AU14) -> 1 | AV15: =-SUM(AV7:AV14) -> 1.501614472
A16: 11 | B16: 3122 | C16: 11 | D16: 3126 | E16: 12 | F16: 3128 | K16: 0 | L16: 111 | P16: U= | Q16: =Q15/(LOG(Q4)/LOG(2)) -> 0.3739764887 | V16: U1= | W16: =W15/(LOG(W4)/LOG(2)) -> 0.4056003686 | AA16: U2= | AB16: =AB15/(LOG(AB4)/LOG(2)) -> 0.4467918925 | AF16: U3= | AG16: =AG15/(LOG(AG4)/LOG(2)) -> 0.3870586311 | AK16: U4= | AL16: =AL15/(LOG(AL4)/LOG(2)) -> 0.4722061191 | AP16: U5= | AQ16: =AQ15/(LOG(AQ4)/LOG(2)) -> 0.5188920642 | AU16: U6= | AV16: =AV15/(LOG(AV4)/LOG(2)) -> 0.375403618
A17: 11 | B17: 3265 | C17: 22 | D17: 3379 | E17: 14 | F17: 3420 | K17: 0 | L17: 121
A18: 11 | B18: 3648 | C18: 11 | D18: 3651 | E18: 12 | F18: 3653 | K18: 0 | L18: 111
A19: 11 | B19: 3834 | C19: 11 | D19: 3866 | E19: 12 | F19: 3868 | K19: 0 | L19: 111 | N19: Total Target Seq
A20: 11 | B20: 4026 | C20: 22 | D20: 4084 | E20: 14 | F20: 4124 | K20: 0 | L20: 121 | N20: =COUNTIF(L7:L109,G3) -> 15 | P20: 17 | Q20: 17 | R20: 18 | S20: 17 | T20: 17 | U20: 17
A21: 11 | B21: 4512 | C21: 11 | D21: 4513 | E21: 12 | F21: 4571 | K21: 0 | L21: 111 | P21: % of reinforcement given in 6 equal intervals based on number of trials
A22: 11 | B22: 4774 | C22: 11 | D22: 4775 | E22: 12 | F22: 4813 | K22: 0 | L22: 111 | P22: %_1 | Q22: %_2 | R22: %_3 | S22: %_4 | T22: %_5 | U22: %_6
A23: 11 | B23: 4986 | C23: 11 | D23: 5061 | E23: 12 | F23: 5074 | K23: 0 | L23: 111 | O23: target sequence | P23: =$G$3 -> 122 | Q23: =$G$3 -> 122 | R23: =$G$3 -> 122 | S23: =$G$3 -> 122 | T23: =$G$3 -> 122 | U23: =$G$3 -> 122
A24: 11 | B24: 5196 | C24: 11 | D24: 5210 | E24: 12 | F24: 5258 | K24: 0 | L24: 111 | O24: total reinforcement | P24: =U10 -> 0 | Q24: =Z10 -> 4 | R24: =AE10 -> 6 | S24: =AJ10 -> 2 | T24: =AO10 -> 3 | U24: =AT10 -> 0
A25: 11 | B25: 5420 | C25: 11 | D25: 5422 | E25: 12 | F25: 5493 | K25: 0 | L25: 111 | O25: % target
A26: 11 | B26: 5676 | C26: 11 | D26: 5781 | E26: 12 | F26: 5782 | K26: 0 | L26: 111 | O26: CCRF
A27: 11 | B27: 6024 | C27: 11 | D27: 6025 | E27: 12 | F27: 6096 | K27: 0 | L27: 111 | O27: % CCRf
A28: 11 | B28: 6234 | C28: 11 | D28: 6251 | E28: 12 | F28: 6270 | K28: 0 | L28: 111 | O28: average response rate | P28: =F23/P20 -> 298.4705882 | Q28: =(F40-F23)/Q20 -> 208.2941176 | R28: =(F58-F40)/R20 -> 242.6666667 | S28: =(F75-F58)/S20 -> 223 | T28: =(F92-F75)/T20 -> 233.3529412 | U28: =(F109-F92)/U20 -> -1220.058824
A29: 11 | B29: 6405 | C29: 11 | D29: 6434 | E29: 21 | F29: 6451 | K29: 0 | L29: 112
A30: 11 | B30: 6591 | C30: 11 | D30: 6624 | E30: 21 | F30: 6662 | K30: 0 | L30: 112
A31: 11 | B31: 6824 | C31: 11 | D31: 6846 | E31: 21 | F31: 6866 | K31: 0 | L31: 112
A32: 22 | B32: 6981 | C32: 13 | D32: 7005 | E32: 23 | F32: 7049 | K32: 0 | L32: 212
A33: 11 | B33: 7172 | C33: 22 | D33: 7216 | E33: 14 | F33: 7315 | K33: 0 | L33: 121
A34: 11 | B34: 7444 | C34: 22 | D34: 7459 | E34: 23 | F34: 7473 | K34: 0 | L34: 122
A35: 22 | B35: 7572 | C35: 13 | D35: 7590 | E35: 23 | F35: 7602 | K35: 0 | L35: 212
A36: 11 | B36: 7732 | C36: 11 | D36: 7734 | E36: 21 | F36: 7826 | K36: 0 | L36: 112
A37: 11 | B37: 7968 | C37: 22 | D37: 7994 | E37: 23 | F37: 8006 | K37: 0 | L37: 122
A38: 11 | B38: 8149 | C38: 22 | D38: 8235 | E38: 23 | F38: 8248 | K38: 0 | L38: 122
A39: 22 | B39: 8352 | C39: 13 | D39: 8370 | E39: 23 | F39: 8420 | K39: 0 | L39: 212
A40: 11 | B40: 8590 | C40: 22 | D40: 8603 | E40: 23 | F40: 8615 | K40: 0 | L40: 122
A41: 11 | B41: 8772 | C41: 22 | D41: 8786 | E41: 23 | F41: 8798 | K41: 0 | L41: 122
A42: 11 | B42: 8949 | C42: 22 | D42: 8978 | E42: 23 | F42: 9007 | K42: 0 | L42: 122
A43: 22 | B43: 9258 | C43: 24 | D43: 9284 | E43: 23 | F43: 9307 | K43: 0 | L43: 222
A44: 11 | B44: 9478 | C44: 11 | D44: 9496 | E44: 12 | F44: 9512 | K44: 0 | L44: 111
A45: 11 | B45: 9630 | C45: 22 | D45: 9680 | E45: 23 | F45: 9691 | K45: 0 | L45: 122
A46: 22 | B46: 9863 | C46: 24 | D46: 9932 | E46: 23 | F46: 9966 | K46: 0 | L46: 222
A47: 11 | B47: 10245 | C47: 22 | D47: 10274 | E47: 14 | F47: 10338 | K47: 0 | L47: 121
A48: 11 | B48: 10465 | C48: 11 | D48: 10492 | E48: 12 | F48: 10506 | K48: 0 | L48: 111
A49: 11 | B49: 10742 | C49: 22 | D49: 10758 | E49: 23 | F49: 10774 | K49: 0 | L49: 122
A50: 11 | B50: 10899 | C50: 11 | D50: 10913 | E50: 12 | F50: 10930 | K50: 0 | L50: 111
A51: 11 | B51: 11051 | C51: 11 | D51: 11060 | E51: 12 | F51: 11074 | K51: 0 | L51: 111
A52: 11 | B52: 11251 | C52: 11 | D52: 11273 | E52: 12 | F52: 11341 | K52: 0 | L52: 111
A53: 11 | B53: 11543 | C53: 22 | D53: 11561 | E53: 14 | F53: 11591 | K53: 0 | L53: 121
A54: 22 | B54: 11779 | C54: 24 | D54: 11906 | E54: 14 | F54: 11923 | K54: 0 | L54: 221
A55: 11 | B55: 12112 | C55: 11 | D55: 12134 | E55: 12 | F55: 12151 | K55: 0 | L55: 111
A56: 11 | B56: 12360 | C56: 22 | D56: 12375 | E56: 23 | F56: 12418 | K56: 0 | L56: 122
A57: 11 | B57: 12667 | C57: 22 | D57: 12695 | E57: 23 | F57: 12770 | K57: 0 | L57: 122
A58: 11 | B58: 12926 | C58: 11 | D58: 12982 | E58: 12 | F58: 12983 | K58: 0 | L58: 111
A59: 11 | B59: 13263 | C59: 11 | D59: 13265 | E59: 12 | F59: 13267 | K59: 0 | L59: 111
A60: 22 | B60: 13484 | C60: 13 | D60: 13514 | E60: 14 | F60: 13523 | K60: 0 | L60: 211
A61: 11 | B61: 13712 | C61: 11 | D61: 13748 | E61: 12 | F61: 13762 | K61: 0 | L61: 111
A62: 11 | B62: 13917 | C62: 22 | D62: 13934 | E62: 23 | F62: 14032 | K62: 0 | L62: 122
A63: 11 | B63: 14168 | C63: 11 | D63: 14187 | E63: 12 | F63: 14189 | K63: 0 | L63: 111
A64: 11 | B64: 14297 | C64: 11 | D64: 14298 | E64: 12 | F64: 14310 | K64: 0 | L64: 111
A65: 11 | B65: 14444 | C65: 22 | D65: 14507 | E65: 14 | F65: 14565 | K65: 0 | L65: 121
A66: 11 | B66: 14716 | C66: 22 | D66: 14751 | E66: 23 | F66: 14795 | K66: 0 | L66: 122
A67: 11 | B67: 14898 | C67: 11 | D67: 14916 | E67: 12 | F67: 14954 | K67: 0 | L67: 111
A68: 11 | B68: 15061 | C68: 11 | D68: 15063 | E68: 12 | F68: 15116 | K68: 0 | L68: 111
A69: 11 | B69: 15304 | C69: 11 | D69: 15306 | E69: 12 | F69: 15328 | K69: 0 | L69: 111
A70: 11 | B70: 15454 | C70: 11 | D70: 15456 | E70: 21 | F70: 15507 | K70: 0 | L70: 112
A71: 11 | B71: 15616 | C71: 11 | D71: 15646 | E71: 21 | F71: 15825 | K71: 0 | L71: 112
A72: 11 | B72: 15974 | C72: 11 | D72: 15994 | E72: 21 | F72: 16007 | K72: 0 | L72: 112
A73: 11 | B73: 16140 | C73: 22 | D73: 16185 | E73: 14 | F73: 16292 | K73: 0 | L73: 121
A74: 22 | B74: 16463 | C74: 24 | D74: 16493 | E74: 23 | F74: 16539 | K74: 0 | L74: 222
A75: 11 | B75: 16648 | C75: 11 | D75: 16754 | E75: 21 | F75: 16774 | K75: 0 | L75: 112
A76: 11 | B76: 16932 | C76: 11 | D76: 16963 | E76: 12 | F76: 16967 | K76: 0 | L76: 111
A77: 22 | B77: 17069 | C77: 13 | D77: 17088 | E77: 14 | F77: 17109 | K77: 0 | L77: 211
A78: 11 | B78: 17232 | C78: 11 | D78: 17235 | E78: 21 | F78: 17250 | K78: 0 | L78: 112
A79: 22 | B79: 17349 | C79: 13 | D79: 17360 | E79: 14 | F79: 17375 | K79: 0 | L79: 211
A80: 22 | B80: 17518 | C80: 24 | D80: 17592 | E80: 23 | F80: 17623 | K80: 0 | L80: 222
A81: 11 | B81: 17752 | C81: 22 | D81: 17767 | E81: 23 | F81: 17780 | K81: 0 | L81: 122
A82: 11 | B82: 17933 | C82: 22 | D82: 17958 | E82: 23 | F82: 17972 | K82: 0 | L82: 122
A83: 11 | B83: 18086 | C83: 11 | D83: 18102 | E83: 21 | F83: 18119 | K83: 0 | L83: 112
A84: 11 | B84: 18276 | C84: 22 | D84: 18300 | E84: 14 | F84: 18599 | K84: 0 | L84: 121
A85: 11 | B85: 18806 | C85: 11 | D85: 18850 | E85: 21 | F85: 18886 | K85: 0 | L85: 112
A86: 11 | B86: 19052 | C86: 22 | D86: 19065 | E86: 23 | F86: 19077 | K86: 0 | L86: 122
A87: 11 | B87: 19220 | C87: 11 | D87: 19277 | E87: 21 | F87: 19288 | K87: 0 | L87: 112
A88: 22 | B88: 19506 | C88: 24 | D88: 19634 | E88: 23 | F88: 19672 | K88: 0 | L88: 222
A89: 22 | B89: 19844 | C89: 24 | D89: 19873 | E89: 23 | F89: 19906 | K89: 0 | L89: 222
A90: 11 | B90: 20168 | C90: 11 | D90: 20202 | E90: 21 | F90: 20216 | K90: 0 | L90: 112
A91: 11 | B91: 20339 | C91: 11 | D91: 20384 | E91: 12 | F91: 20429 | K91: 0 | L91: 111
A92: 22 | B92: 20603 | C92: 24 | D92: 20666 | E92: 23 | F92: 20741 | K92: 0 | L92: 222
A93: 11 | B93: 20884 | C93: 11 | D93: 20908 | E93: 21 | F93: 20978 | K93: 0 | L93: 112
A94: 11 | B94: 21163 | C94: 11 | D94: 21221 | E94: 12 | F94: 21275 | K94: 0 | L94: 111
A95: 11 | B95: 21442 | C95: 11 | D95: 21444 | E95: 21 | F95: 21461 | K95: 0 | L95: 112
A96: 11 | B96: 21606 | C96: 11 | D96: 21621 | E96: 21 | F96: 21653 | K96: 0 | L96: 112
A97: 11 | B97: 21796 | C97: 11 | D97: 21870 | E97: 12 | F97: 21900 | K97: 0 | L97: 111
A98: 11 | B98: 22067 | C98: 22 | D98: 22112 | E98: 14 | F98: 22125 | K98: 0 | L98: 121
A99: 22 | B99: 22265 | C99: 24 | D99: 22279 | E99: 23 | F99: 22308 | K99: 0 | L99: 222
A100: 22 | B100: 22476 | C100: 24 | D100: 22503 | E100: 23 | F100: 22523 | K100: 0 | L100: 222
A101: 11 | B101: 22649 | C101: 11 | D101: 22661 | E101: 12 | F101: 22688 | K101: 0 | L101: 111
A102: 11 | B102: 22790 | C102: 11 | D102: 22801 | E102: 12 | F102: 22810 | K102: 0 | L102: 111
A103: 11 | B103: 22910 | C103: 11 | D103: 23076 | E103: 12 | F103: 23103 | K103: 0 | L103: 111
A104: 11 | B104: 23221 | C104: 11 | D104: 23232 | E104: 12 | F104: 23243 | K104: 0 | L104: 111
A105: 11 | B105: 23344 | C105: 11 | D105: 23356 | E105: 12 | F105: 23370 | K105: 0 | L105: 111
A106: 11 | B106: 23476 | C106: 11 | D106: 23479 | E106: 12 | F106: 23506 | K106: 0 | L106: 111
A107: 11 | B107: 23606 | C107: 11 | D107: 23629 | E107: 12 | F107: 23640 | K107: 0 | L107: 111
A108: 11 | B108: 23764 | C108: 11 | D108: 23779 | E108: 12 | F108: 23807 | K108: 0 | L108: 111
A109: 11 | B109: 23910 | C109: 11 | D109: 23991 | L109: 11

Sheet !M603B50.103
A1: Report for:!M603B50.103
A2: Date: | B2: <date>
A3: Hen: | B3: <hen> | F3: Correct Sequence | G3: =Start!J2 -> 122 | P3: Total Sequences in Data | Q3: =4994-COUNTBLANK(L7:L5000) -> 129 | V3: Total Sequences in Block Data | W3: =COUNTA(L7:L28) -> 22 | AA3: Total Sequences in Block Data | AB3: =COUNTA(L29:L49) -> 21 | AF3: Total Sequences in Block Data | AG3: =COUNTA(L50:L71) -> 22 | AK3: Total Sequences in Block Data | AL3: =COUNTA(L72:L92) -> 21 | AP3: Total Sequences in Block Data | AQ3: =COUNTA(L93:L114) -> 22 | AU3: Total Sequences in Block Data | AV3: =COUNTA(L115:L135) -> 21
P4: Total Sequences in Summary | Q4: =SUM(O7:O14) -> 128 | V4: Total Sequences in Block Summary | W4: =SUM(U7:U14) -> 22 | AA4: Total Sequences in Block Summary | AB4: =SUM(Z7:Z14) -> 21 | AF4: Total Sequences in Block Summary | AG4: =SUM(AE7:AE14) -> 22 | AK4: Total Sequences in Block Summary | AL4: =SUM(AJ7:AJ14) -> 21 | AP4: Total Sequences in Block Summary | AQ4: =SUM(AO7:AO14) -> 22 | AU4: Total Sequences in Block Summary | AV4: =SUM(AT7:AT14) -> 20
T5: Block 1 | Y5: Block 2 | AD5: Block 3 | AI5: Block 4 | AN5: Block 5 | AS5: Block 6
A6: Sequence Component 1 | B6: Time 1 | C6: Sequence Component 2 | D6: Time 2 | E6: Sequence Component 3 | F6: Time 3 | G6: Sequence Component 4 | H6: Time 4 | I6: Sequence Component 5 | J6: Time 5 | K6: Correct? 0=No 1=Yes | L6: Sequence | N6: Frequency | P6: Relative Frequency | Q6: Variability | T6: Frequency | V6: Relative Frequency | W6: Variability | Y6: Frequency | AA6: Relative Frequency | AB6: Variability | AD6: Frequency | AF6: Relative Frequency | AG6: Variability | AI6: Frequency | AK6: Relative Frequency | AL6: Variability | AN6: Frequency | AP6: Relative Frequency | AQ6: Variability | AS6: Frequency | AU6: Relative Frequency | AV6: Variability
A7: 22 | B7: 15 | C7: 13 | D7: 36 | E7: 23 | F7: 50 | K7: 0 | L7: 212 | N7: 111 | O7: =COUNTIF($L$7:$L$500,N7) -> 27 | P7: =O7/$Q$4 -> 0.2109375 | Q7: =IF(P7=0,0,(P7*((LOG(P7))/LOG(2)))) -> -0.4735784175 | T7: =N7 -> 111 | U7: =COUNTIF(L7:L28,T7) -> 4 | V7: =U7/(W4-U10) -> 0.1904761905 | W7: =IF(V7=0,0,(V7*((LOG(V7))/LOG(2)))) -> -0.4556795091 | Y7: =N7 -> 111 | Z7: =COUNTIF(L29:L49,Y7) -> 2 | AA7: =Z7/(AB4-Z10) -> 0.1538461538 | AB7: =IF(AA7=0,0,(AA7*((LOG(AA7))/LOG(2)))) -> -0.4154522643 | AD7: =N7 -> 111 | AE7: =COUNTIF(L50:L71,AD7) -> 6 | AF7: =AE7/(AG4-AE10) -> 0.3529411765 | AG7: =IF(AF7=0,0,(AF7*((LOG(AF7))/LOG(2)))) -> -0.5302942378 | AI7: =N7 -> 111 | AJ7: =COUNTIF(L72:L92,AI7) -> 5 | AK7: =AJ7/(AL4-AJ10) -> 0.3846153846 | AL7: =IF(AK7=0,0,(AK7*((LOG(AK7))/LOG(2)))) -> -0.5301967782 | AN7: =N7 -> 111 | AO7: =COUNTIF(L93:L114,AN7) -> 6 | AP7: =AO7/(AQ4-AO10) -> 0.3333333333 | AQ7: =IF(AP7=0,0,(AP7*((LOG(AP7))/LOG(2)))) -> -0.5283208336 | AS7: =N7 -> 111 | AT7: =COUNTIF(L115:L135,AS7) -> 4 | AU7: =AT7/(AV4-AT10) -> 0.2666666667 | AV7: =IF(AU7=0,0,(AU7*((LOG(AU7))/LOG(2)))) -> -0.5085041588
A8: 11 | B8: 214 | C8: 22 | D8: 242 | E8: 14 | F8: 303 | K8: 0 | L8: 121 | N8: 112 | O8: =COUNTIF($L$7:$L$500,N8) -> 34 | P8: =O8/$Q$4 -> 0.265625 | Q8: =IF(P8=0,0,(P8*((LOG(P8))/LOG(2)))) -> -0.5080176828 | T8: =N8 -> 112 | U8: =COUNTIF(L7:L28,T8) -> 6 | V8: =U8/(W4-U10) -> 0.2857142857 | W8: =IF(V8=0,0,(V8*((LOG(V8))/LOG(2)))) -> -0.5163871206 | Y8: =N8 -> 112 | Z8: =COUNTIF(L29:L49,Y8) -> 6 | AA8: =Z8/(AB4-Z10) -> 0.4615384615 | AB8: =IF(AA8=0,0,(AA8*((LOG(AA8))/LOG(2)))) -> -0.5148356388 | AD8: =N8 -> 112 | AE8: =COUNTIF(L50:L71,AD8) -> 5 | AF8: =AE8/(AG4-AE10) -> 0.2941176471 | AG8: =IF(AF8=0,0,(AF8*((LOG(AF8))/LOG(2)))) -> -0.5192749254 | AI8: =N8 -> 112 | AJ8: =COUNTIF(L72:L92,AI8) -> 6 | AK8: =AJ8/(AL4-AJ10) -> 0.4615384615 | AL8: =IF(AK8=0,0,(AK8*((LOG(AK8))/LOG(2)))) -> -0.5148356388 | AN8: =N8 -> 112 | AO8: =COUNTIF(L93:L114,AN8) -> 8 | AP8: =AO8/(AQ4-AO10) -> 0.4444444444 | AQ8: =IF(AP8=0,0,(AP8*((LOG(AP8))/LOG(2)))) -> -0.5199666673 | AS8: =N8 -> 112 | AT8: =COUNTIF(L115:L135,AS8) -> 3 | AU8: =AT8/(AV4-AT10) -> 0.2 | AV8: =IF(AU8=0,0,(AU8*((LOG(AU8))/LOG(2)))) -> -0.464385619
A9: 11 | B9: 448 | C9: 11 | D9: 484 | E9: 12 | F9: 486 | K9: 0 | L9: 111 | N9: 121 | O9: =COUNTIF($L$7:$L$500,N9) -> 29 | P9: =O9/$Q$4 -> 0.2265625 | Q9: =IF(P9=0,0,(P9*((LOG(P9))/LOG(2)))) -> -0.4853011808 | T9: =N9 -> 121 | U9: =COUNTIF(L7:L28,T9) -> 8 | V9: =U9/(W4-U10) -> 0.380952381 | W9: =IF(V9=0,0,(V9*((LOG(V9))/LOG(2)))) -> -0.5304066372 | Y9: =N9 -> 121 | Z9: =COUNTIF(L29:L49,Y9) -> 4 | AA9: =Z9/(AB4-Z10) -> 0.3076923077 | AB9: =IF(AA9=0,0,(AA9*((LOG(AA9))/LOG(2)))) -> -0.523212221 | AD9: =N9 -> 121 | AE9: =COUNTIF(L50:L71,AD9) -> 5 | AF9: =AE9/(AG4-AE10) -> 0.2941176471 | AG9: =IF(AF9=0,0,(AF9*((LOG(AF9))/LOG(2)))) -> -0.5192749254 | AI9: =N9 -> 121 | AJ9: =COUNTIF(L72:L92,AI9) -> 1 | AK9: =AJ9/(AL4-AJ10) -> 0.07692307692 | AL9: =IF(AK9=0,0,(AK9*((LOG(AK9))/LOG(2)))) -> -0.2846492091 | AN9: =N9 -> 121 | AO9: =COUNTIF(L93:L114,AN9) -> 4 | AP9: =AO9/(AQ4-AO10) -> 0.2222222222 | AQ9: =IF(AP9=0,0,(AP9*((LOG(AP9))/LOG(2)))) -> -0.4822055559 | AS9: =N9 -> 121 | AT9: =COUNTIF(L115:L135,AS9) -> 7 | AU9: =AT9/(AV4-AT10) -> 0.4666666667 | AV9: =IF(AU9=0,0,(AU9*((LOG(AU9))/LOG(2)))) -> -0.5131166477
A10: 11 | B10: 608 | C10: 22 | D10: 622 | E10: 14 | F10: 644 | K10: 0 | L10: 121 | N10: 122 | O10: =COUNTIF($L$7:$L$500,N10) -> 31 | P10: =O10/$Q$4 -> 0.2421875 | Q10: =IF(P10=0,0,(P10*((LOG(P10))/LOG(2)))) -> -0.4954680811 | T10: =N10 -> 122 | U10: =COUNTIF(L7:L28,T10) -> 1 | Y10: =N10 -> 122 | Z10: =COUNTIF(L29:L49,Y10) -> 8 | AD10: =N10 -> 122 | AE10: =COUNTIF(L50:L71,AD10) -> 5 | AI10: =N10 -> 122 | AJ10: =COUNTIF(L72:L92,AI10) -> 8 | AN10: =N10 -> 122 | AO10: =COUNTIF(L93:L114,AN10) -> 4 | AS10: =N10 -> 122 | AT10: =COUNTIF(L115:L135,AS10) -> 5
A11: 11 | B11: 781 | C11: 11 | D11: 784 | E11: 21 | F11: 797 | K11: 0 | L11: 112 | N11: 211 | O11: =COUNTIF($L$7:$L$500,N11) -> 3 | P11: =O11/$Q$4 -> 0.0234375 | Q11: =IF(P11=0,0,(P11*((LOG(P11))/LOG(2)))) -> -0.1269149414 | T11: =N11 -> 211 | U11: =COUNTIF(L7:L28,T11) -> 1 | V11: =U11/(W4-U10) -> 0.04761904762 | W11: =IF(V11=0,0,(V11*((LOG(V11))/LOG(2)))) -> -0.2091579725 | Y11: =N11 -> 211 | Z11: =COUNTIF(L29:L49,Y11) -> 1 | AA11: =Z11/(AB4-Z10) -> 0.07692307692 | AB11: =IF(AA11=0,0,(AA11*((LOG(AA11))/LOG(2)))) -> -0.2846492091 | AD11: =N11 -> 211 | AE11: =COUNTIF(L50:L71,AD11) -> 0 | AF11: =AE11/(AG4-AE10) -> 0 | AG11: =IF(AF11=0,0,(AF11*((LOG(AF11))/LOG(2)))) -> 0 | AI11: =N11 -> 211 | AJ11: =COUNTIF(L72:L92,AI11) -> 0 | AK11: =AJ11/(AL4-AJ10) -> 0 | AL11: =IF(AK11=0,0,(AK11*((LOG(AK11))/LOG(2)))) -> 0 | AN11: =N11 -> 211 | AO11: =COUNTIF(L93:L114,AN11) -> 0 | AP11: =AO11/(AQ4-AO10) -> 0 | AQ11: =IF(AP11=0,0,(AP11*((LOG(AP11))/LOG(2)))) -> 0 | AS11: =N11 -> 211 | AT11: =COUNTIF(L115:L135,AS11) -> 1 | AU11: =AT11/(AV4-AT10) -> 0.06666666667 | AV11: =IF(AU11=0,0,(AU11*((LOG(AU11))/LOG(2)))) -> -0.260459373
A12: 22 | B12: 1004 | C12: 13 | D12: 1048 | E12: 14 | F12: 1051 | K12: 0 | L12: 211 | N12: 212 | O12: =COUNTIF($L$7:$L$500,N12) -> 2 | P12: =O12/$Q$4 -> 0.015625 | Q12: =IF(P12=0,0,(P12*((LOG(P12))/LOG(2)))) -> -0.09375 | T12: =N12 -> 212 | U12: =COUNTIF(L7:L28,T12) -> 1 | V12: =U12/(W4-U10) -> 0.04761904762 | W12: =IF(V12=0,0,(V12*((LOG(V12))/LOG(2)))) -> -0.2091579725 | Y12: =N12 -> 212 | Z12: =COUNTIF(L29:L49,Y12) -> 0 | AA12: =Z12/(AB4-Z10) -> 0 | AB12: =IF(AA12=0,0,(AA12*((LOG(AA12))/LOG(2)))) -> 0 | AD12: =N12 -> 212 | AE12: =COUNTIF(L50:L71,AD12) -> 0 | AF12: =AE12/(AG4-AE10) -> 0 | AG12: =IF(AF12=0,0,(AF12*((LOG(AF12))/LOG(2)))) -> 0 | AI12: =N12 -> 212 | AJ12: =COUNTIF(L72:L92,AI12) -> 1 | AK12: =AJ12/(AL4-AJ10) -> 0.07692307692 | AL12: =IF(AK12=0,0,(AK12*((LOG(AK12))/LOG(2)))) -> -0.2846492091 | AN12: =N12 -> 212 | AO12: =COUNTIF(L93:L114,AN12) -> 0 | AP12: =AO12/(AQ4-AO10) -> 0 | AQ12: =IF(AP12=0,0,(AP12*((LOG(AP12))/LOG(2)))) -> 0 | AS12: =N12 -> 212 | AT12: =COUNTIF(L115:L135,AS12) -> 0 | AU12: =AT12/(AV4-AT10) -> 0 | AV12: =IF(AU12=0,0,(AU12*((LOG(AU12))/LOG(2)))) -> 0
A13: 11 | B13: 1163 | C13: 22 | D13: 1227 | E13: 14 | F13: 1254 | K13: 0 | L13: 121 | N13: 221 | O13: =COUNTIF($L$7:$L$500,N13) -> 1 | P13: =O13/$Q$4 -> 0.0078125 | Q13: =IF(P13=0,0,(P13*((LOG(P13))/LOG(2)))) -> -0.0546875 | T13: =N13 -> 221 | U13: =COUNTIF(L7:L28,T13) -> 0 | V13: =U13/(W4-U10) -> 0 | W13: =IF(V13=0,0,(V13*((LOG(V13))/LOG(2)))) -> 0 | Y13: =N13 -> 221 | Z13: =COUNTIF(L29:L49,Y13) -> 0 | AA13: =Z13/(AB4-Z10) -> 0 | AB13: =IF(AA13=0,0,(AA13*((LOG(AA13))/LOG(2)))) -> 0 | AD13: =N13 -> 221 | AE13: =COUNTIF(L50:L71,AD13) -> 1 | AF13: =AE13/(AG4-AE10) -> 0.05882352941 | AG13: =IF(AF13=0,0,(AF13*((LOG(AF13))/LOG(2)))) -> -0.2404389907 | AI13: =N13 -> 221 | AJ13: =COUNTIF(L72:L92,AI13) -> 0 | AK13: =AJ13/(AL4-AJ10) -> 0 | AL13: =IF(AK13=0,0,(AK13*((LOG(AK13))/LOG(2)))) -> 0 | AN13: =N13 -> 221 | AO13: =COUNTIF(L93:L114,AN13) -> 0 | AP13: =AO13/(AQ4-AO10) -> 0 | AQ13: =IF(AP13=0,0,(AP13*((LOG(AP13))/LOG(2)))) -> 0 | AS13: =N13 -> 221 | AT13: =COUNTIF(L115:L135,AS13) -> 0 | AU13: =AT13/(AV4-AT10) -> 0 | AV13: =IF(AU13=0,0,(AU13*((LOG(AU13))/LOG(2)))) -> 0
A14: 11 | B14: 1426 | C14: 22 | D14: 1437 | E14: 14 | F14: 1450 | K14: 0 | L14: 121 | N14: 222 | O14: =COUNTIF($L$7:$L$500,N14) -> 1 | P14: =O14/$Q$4 -> 0.0078125 | Q14: =IF(P14=0,0,(P14*((LOG(P14))/LOG(2)))) -> -0.0546875 | T14: =N14 -> 222 | U14: =COUNTIF(L7:L28,T14) -> 1 | V14: =U14/(W4-U10) -> 0.04761904762 | W14: =IF(V14=0,0,(V14*((LOG(V14))/LOG(2)))) -> -0.2091579725 | Y14: =N14 -> 222 | Z14: =COUNTIF(L29:L49,Y14) -> 0 | AA14: =Z14/(AB4-Z10) -> 0 | AB14: =IF(AA14=0,0,(AA14*((LOG(AA14))/LOG(2)))) -> 0 | AD14: =N14 -> 222 | AE14: =COUNTIF(L50:L71,AD14) -> 0 | AF14: =AE14/(AG4-AE10) -> 0 | AG14: =IF(AF14=0,0,(AF14*((LOG(AF14))/LOG(2)))) -> 0 | AI14: =N14 -> 222 | AJ14: =COUNTIF(L72:L92,AI14) -> 0 | AK14: =AJ14/(AL4-AJ10) -> 0 | AL14: =IF(AK14=0,0,(AK14*((LOG(AK14))/LOG(2)))) -> 0 | AN14: =N14 -> 222 | AO14: =COUNTIF(L93:L114,AN14) -> 0 | AP14: =AO14/(AQ4-AO10) -> 0 | AQ14: =IF(AP14=0,0,(AP14*((LOG(AP14))/LOG(2)))) -> 0 | AS14: =N14 -> 222 | AT14: =COUNTIF(L115:L135,AS14) -> 0 | AU14: =AT14/(AV4-AT10) -> 0 | AV14: =IF(AU14=0,0,(AU14*((LOG(AU14))/LOG(2)))) -> 0
A15: 11 | B15: 1656 | C15: 22 | D15: 1669 | E15: 14 | F15: 1685 | K15: 0 | L15: 121 | P15: =SUM(P7:P14) -> 1 | Q15: =-SUM(Q7:Q14) -> 2.292405304 | V15: =SUM(V7:V14) -> 1 | W15: =-SUM(W7:W14) -> 2.129947184 | AA15: =SUM(AA7:AA14) -> 1 | AB15: =-SUM(AB7:AB14) -> 1.738149333 | AF15: =SUM(AF7:AF14) -> 1 | AG15: =-SUM(AG7:AG14) -> 1.809283079 | AK15: =SUM(AK7:AK14) -> 1 | AL15: =-SUM(AL7:AL14) -> 1.614330835 | AP15: =SUM(AP7:AP14) -> 1 | AQ15: =-SUM(AQ7:AQ14) -> 1.530493057 | AU15: =SUM(AU7:AU14) -> 1 | AV15: =-SUM(AV7:AV14) -> 1.746465799
A16: 11 | B16: 1886 | C16: 22 | D16: 1899 | E16: 23 | F16: 1919 | K16: 0 | L16: 122 | P16: U= | Q16: =Q15/(LOG(Q4)/LOG(2)) -> 0.3274864719 | V16: U1= | W16: =W15/(LOG(W4)/LOG(2)) -> 0.477627502 | AA16: U2= | AB16: =AB15/(LOG(AB4)/LOG(2)) -> 0.395724891 | AF16: U3= | AG16: =AG15/(LOG(AG4)/LOG(2)) -> 0.4057205568 | AK16: U4= | AL16: =AL15/(LOG(AL4)/LOG(2)) -> 0.3675351027 | AP16: U5= | AQ16: =AQ15/(LOG(AQ4)/LOG(2)) -> 0.343203616 | AU16: U6= | AV16: =AV15/(LOG(AV4)/LOG(2)) -> 0.4040941358
A17: 11 | B17: 2028 | C17: 11 | D17: 2065 | E17: 21 | F17: 2082 | K17: 0 | L17: 112
A18: 11 | B18: 2236 | C18: 11 | D18: 2257 | E18: 21 | F18: 2269 | K18: 0 | L18: 112
A19: 11 | B19: 2473 | C19: 22 | D19: 2487 | E19: 14 | F19: 2533 | K19: 0 | L19: 121 | N19: Total Target Seq
A20: 11 | B20: 2679 | C20: 22 | D20: 2694 | E20: 14 | F20: 2706 | K20: 0 | L20: 121 | N20: =COUNTIF(L7:L135,G3) -> 31 | P20: 22 | Q20: 21 | R20: 22 | S20: 21 | T20: 22 | U20: 21
A21: 11 | B21: 2859 | C21: 11 | D21: 2933 | E21: 12 | F21: 2967 | K21: 0 | L21: 111 | P21: % of reinforcement given in 6 equal intervals based on number of trials
A22: 11 | B22: 3140 | C22: 11 | D22: 3156 | E22: 21 | F22: 3172 | K22: 0 | L22: 112 | P22: %_1 | Q22: %_2 | R22: %_3 | S22: %_4 | T22: %_5 | U22: %_6
A23: 11 | B23: 3308 | C23: 11 | D23: 3321 | E23: 12 | F23: 3323 | K23: 0 | L23: 111 | O23: target sequence | P23: =$G$3 -> 122 | Q23: =$G$3 -> 122 | R23: =$G$3 -> 122 | S23: =$G$3 -> 122 | T23: =$G$3 -> 122 | U23: =$G$3 -> 122
A24: 11 | B24: 3439 | C24: 11 | D24: 3466 | E24: 12 | F24: 3494 | K24: 0 | L24: 111 | O24: total reinforcement | P24: =U10 -> 1 | Q24: =Z10 -> 8 | R24: =AE10 -> 5 | S24: =AJ10 -> 8 | T24: =AO10 -> 4 | U24: =AT10 -> 5
A25: 11 | B25: 3627 | C25: 11 | D25: 3642 | E25: 21 | F25: 3685 | K25: 0 | L25: 112 | O25: % target
A26: 11 | B26: 3818 | C26: 22 | D26: 3873 | E26: 14 | F26: 3915 | K26: 0 | L26: 121 | O26: CCRF
A27: 22 | B27: 4065 | C27: 24 | D27: 4090 | E27: 23 | F27: 4102 | K27: 0 | L27: 222 | O27: % CCRf
A28: 11 | B28: 4226 | C28: 11 | D28: 4246 | E28: 21 | F28: 4285 | K28: 0 | L28: 112 | O28: average response rate | P28: =F28/P20 -> 194.7727273 | Q28: =(F49-F28)/Q20 -> 187.5714286 | R28: =(F71-F49)/R20 -> 180.6363636 | S28: =(F92-F71)/S20 -> 180.4285714 | T28: =(F114-F92)/T20 -> 182.7272727 | U28: =(F135-F114)/U20 -> -952.7142857
A29: 11 | B29: 4404 | C29: 22 | D29: 4440 | E29: 23 | F29: 4466 | K29: 0 | L29: 122
A30: 11 | B30: 4589 | C30: 22 | D30: 4601 | E30: 14 | F30: 4616 | K30: 0 | L30: 121
A31: 22 | B31: 4823 | C31: 13 | D31: 4890 | E31: 14 | F31: 4902 | K31: 0 | L31: 211
A32: 11 | B32: 5032 | C32: 11 | D32: 5089 | E32: 21 | F32: 5115 | K32: 0 | L32: 112
A33: 11 | B33: 5208 | C33: 22 | D33: 5292 | E33: 14 | F33: 5320 | K33: 0 | L33: 121
A34: 11 | B34: 5448 | C34: 22 | D34: 5463 | E34: 23 | F34: 5488 | K34: 0 | L34: 122
A35: 11 | B35: 5604 | C35: 22 | D35: 5617 | E35: 23 | F35: 5653 | K35: 0 | L35: 122
A36: 11 | B36: 5772 | C36: 22 | D36: 5809 | E36: 23 | F36: 5831 | K36: 0 | L36: 122
A37: 11 | B37: 5980 | C37: 11 | D37: 5982 | E37: 21 | F37: 6015 | K37: 0 | L37: 112
A38: 11 | B38: 6124 | C38: 11 | D38: 6170 | E38: 21 | F38: 6180 | K38: 0 | L38: 112
A39: 11 | B39: 6336 | C39: 22 | D39: 6382 | E39: 14 | F39: 6414 | K39: 0 | L39: 121
A40: 11 | B40: 6562 | C40: 22 | D40: 6576 | E40: 23 | F40: 6616 | K40: 0 | L40: 122
A41: 11 | B41: 6716 | C41: 11 | D41: 6728 | E41: 12 | F41: 6732 | K41: 0 | L41: 111
A42: 11 | B42: 6834 | C42: 11 | D42: 6873 | E42: 21 | F42: 6914 | K42: 0 | L42: 112
A43: 11 | B43: 7050 | C43: 11 | D43: 7070 | E43: 12 | F43: 7095 | K43: 0 | L43: 111
A44: 11 | B44: 7236 | C44: 22 | D44: 7273 | E44: 14 | F44: 7323 | K44: 0 | L44: 121
A45: 11 | B45: 7466 | C45: 22 | D45: 7541 | E45: 23 | F45: 7561 | K45: 0 | L45: 122
A46: 11 | B46: 7717 | C46: 22 | D46: 7729 | E46: 23 | F46: 7752 | K46: 0 | L46: 122
A47: 11 | B47: 7887 | C47: 22 | D47: 7910 | E47: 23 | F47: 7925 | K47: 0 | L47: 122
A48: 11 | B48: 8036 | C48: 11 | D48: 8045 | E48: 21 | F48: 8064 | K48: 0 | L48: 112
A49: 11 | B49: 8198 | C49: 11 | D49: 8213 | E49: 21 | F49: 8224 | K49: 0 | L49: 112
A50: 11 | B50: 8384 | C50: 22 | D50: 8451 | E50: 14 | F50: 8497 | K50: 0 | L50: 121
A51: 11 | B51: 8666 | C51: 22 | D51: 8679 | E51: 23 | F51: 8698 | K51: 0 | L51: 122
A52: 22 | B52: 8833 | C52: 24 | D52: 8844 | E52: 14 | F52: 8856 | K52: 0 | L52: 221
A53: 11 | B53: 8971 | C53: 11 | D53: 8983 | E53: 12 | F53: 8995 | K53: 0 | L53: 111
A54: 11 | B54: 9127 | C54: 11 | D54: 9153 | E54: 21 | F54: 9167 | K54: 0 | L54: 112
A55: 11 | B55: 9274 | C55: 22 | D55: 9287 | E55: 23 | F55: 9299 | K55: 0 | L55: 122
A56: 11 | B56: 9416 | C56: 11 | D56: 9419 | E56: 21 | F56: 9431 | K56: 0 | L56: 112
A57: 11 | B57: 9540 | C57: 11 | D57: 9552 | E57: 12 | F57: 9573 | K57: 0 | L57: 111
A58: 11 | B58: 9693 | C58: 11 | D58: 9704 | E58: 12 | F58: 9752 | K58: 0 | L58: 111
A59: 11 | B59: 9912 | C59: 22 | D59: 9925 | E59: 14 | F59: 9967 | K59: 0 | L59: 121
A60: 11 | B60: 10074 | C60: 22 | D60: 10144 | E60: 14 | F60: 10164 | K60: 0 | L60: 121
A61: 11 | B61: 10331 | C61: 22 | D61: 10348 | E61: 23 | F61: 10362 | K61: 0 | L61: 122
A62: 11 | B62: 10561 | C62: 22 | D62: 10576 | E62: 14 | F62: 10593 | K62: 0 | L62: 121
A63: 11 | B63: 10712 | C63: 11 | D63: 10738 | E63: 12 | F63: 10768 | K63: 0 | L63: 111
A64: 11 | B64: 10867 | C64: 11 | D64: 10889 | E64: 12 | F64: 10908 | K64: 0 | L64: 111
A65: 11 | B65: 11069 | C65: 22 | D65: 11080 | E65: 23 | F65: 11111 | K65: 0 | L65: 122
A66: 11 | B66: 11233 | C66: 11 | D66: 11237 | E66: 21 | F66: 11248 | K66: 0 | L66: 112
A67: 11 | B67: 11403 | C67: 11 | D67: 11486 | E67: 21 | F67: 11538 | K67: 0 | L67: 112
A68: 11 | B68: 11679 | C68: 22 | D68: 11691 | E68: 14 | F68: 11748 | K68: 0 | L68: 121
A69: 11 | B69: 11868 | C69: 11 | D69: 11878 | E69: 12 | F69: 11888 | K69: 0 | L69: 111
A70: 11 | B70: 12008 | C70: 11 | D70: 12011 | E70: 21 | F70: 12023 | K70: 0 | L70: 112
A71: 11 | B71: 12156 | C71: 22 | D71: 12170 | E71: 23 | F71: 12198 | K71: 0 | L71: 122
A72: 11 | B72: 12417 | C72: 11 | D72: 12468 | E72: 21 | F72: 12484 | K72: 0 | L72: 112
A73: 11 | B73: 12617 | C73: 11 | D73: 12657 | E73: 21 | F73: 12669 | K73: 0 | L73: 112
A74: 11 | B74: 12779 | C74: 11 | D74: 12793 | E74: 12 | F74: 12882 | K74: 0 | L74: 111
A75: 22 | B75: 13028 | C75: 13 | D75: 13041 | E75: 23 | F75: 13052 | K75: 0 | L75: 212
A76: 11 | B76: 13196 | C76: 22 | D76: 13207 | E76: 23 | F76: 13218 | K76: 0 | L76: 122
A77: 11 | B77: 13357 | C77: 22 | D77: 13369 | E77: 23 | F77: 13397 | K77: 0 | L77: 122
A78: 11 | B78: 13575 | C78: 22 | D78: 13586 | E78: 23 | F78: 13618 | K78: 0 | L78: 122
A79: 11 | B79: 13736 | C79: 11 | D79: 13747 | E79: 21 | F79: 13757 | K79: 0 | L79: 112
A80: 11 | B80: 13897 | C80: 22 | D80: 13953 | E80: 23 | F80: 13955 | K80: 0 | L80: 122
A81: 11 | B81: 14052 | C81: 11 | D81: 14075 | E81: 21 | F81: 14102 | K81: 0 | L81: 112
A82: 11 | B82: 14220 | C82: 22 | D82: 14233 | E82: 23 | F82: 14254 | K82: 0 | L82: 122
A83: 11 | B83: 14414 | C83: 11 | D83: 14469 | E83: 12 | F83: 14471 | K83: 0 | L83: 111
A84: 11 | B84: 14567 | C84: 11 | D84: 14586 | E84: 12 | F84: 14619 | K84: 0 | L84: 111
A85: 11 | B85: 14749 | C85: 22 | D85: 14759 | E85: 23 | F85: 14804 | K85: 0 | L85: 122
A86: 11 | B86: 14903 | C86: 11 | D86: 14913 | E86: 21 | F86: 14975 | K86: 0 | L86: 112
A87: 11 | B87: 15095 | C87: 22 | D87: 15107 | E87: 14 | F87: 15127 | K87: 0 | L87: 121
A88: 11 | B88: 15225 | C88: 11 | D88: 15236 | E88: 12 | F88: 15247 | K88: 0 | L88: 111
A89: 11 | B89: 15429 | C89: 22 | D89: 15466 | E89: 23 | F89: 15488 | K89: 0 | L89: 122
A90: 11 | B90: 15587 | C90: 11 | D90: 15619 | E90: 12 | F90: 15657 | K90: 0 | L90: 111
A91: 11 | B91: 15758 | C91: 22 | D91: 15795 | E91: 23 | F91: 15811 | K91: 0 | L91: 122
A92: 11 | B92: 15917 | C92: 11 | D92: 15942 | E92: 21 | F92: 15987 | K92: 0 | L92: 112
A93: 11 | B93: 16092 | C93: 11 | D93: 16111 | E93: 12 | F93: 16161 | K93: 0 | L93: 111
A94: 11 | B94: 16272 | C94: 11 | D94: 16275 | E94: 21 | F94: 16288 | K94: 0 | L94: 112
A95: 11 | B95: 16386 | C95: 22 | D95: 16451 | E95: 14 | F95: 16470 | K95: 0 | L95: 121
A96: 11 | B96: 16589 | C96: 11 | D96: 16622 | E96: 12 | F96: 16638 | K96: 0 | L96: 111
A97: 11 | B97: 16831 | C97: 11 | D97: 16880 | E97: 12 | F97: 16883 | K97: 0 | L97: 111
A98: 11 | B98: 17099 | C98: 11 | D98: 17101 | E98: 21 | F98: 17111 | K98: 0 | L98: 112
A99: 11 | B99: 17230 | C99: 22 | D99: 17246 | E99: 14 | F99: 17259 | K99: 0 | L99: 121
A100: 11 | B100: 17357 | C100: 11 | D100: 17589 | E100: 21 | F100: 17605 | K100: 0 | L100: 112
A101: 11 | B101: 17760 | C101: 11 | D101: 17774 | E101: 21 | F101: 17788 | K101: 0 | L101: 112
A102: 11 | B102: 17904 | C102: 11 | D102: 17925 | E102: 12 | F102: 17950 | K102: 0 | L102: 111
A103: 11 | B103: 18057 | C103: 11 | D103: 18068 | E103: 21 | F103: 18092 | K103: 0 | L103: 112
A104: 11 | B104: 18210 | C104: 22 | D104: 18221 | E104: 23 | F104: 18246 | K104: 0 | L104: 122
A105: 11 | B105: 18344 | C105: 11 | D105: 18352 | E105: 12 | F105: 18425 | K105: 0 | L105: 111
A106: 11 | B106: 18524 | C106: 11 | D106: 18567 | E106: 21 | F106: 18578 | K106: 0 | L106: 112
A107: 11 | B107: 18725 | C107: 22 | D107: 18736 | E107: 14 | F107: 18754 | K107: 0 | L107: 121
A108: 11 | B108: 18895 | C108: 11 | D108: 18906 | E108: 12 | F108: 18922 | K108: 0 | L108: 111
A109: 11 | B109: 19050 | C109: 22 | D109: 19095 | E109: 23 | F109: 19097 | K109: 0 | L109: 122
A110: 11 | B110: 19223 | C110: 22 | D110: 19297 | E110: 23 | F110: 19321 | K110: 0 | L110: 122
A111: 11 | B111: 19434 | C111: 11 | D111: 19445 | E111: 21 | F111: 19456 | K111: 0 | L111: 112
A112: 11 | B112: 19569 | C112: 22 | D112: 19646 | E112: 23 | F112: 19672 | K112: 0 | L112: 122
A113: 11 | B113: 19779 | C113: 22 | D113: 19827 | E113: 14 | F113: 19846 | K113: 0 | L113: 121
A114: 11 | B114: 19968 | C114: 11 | D114: 19971 | E114: 21 | F114: 20007 | K114: 0 | L114: 112
A115: 11 | B115: 20151 | C115: 22 | D115: 20166 | E115: 23 | F115: 20181 | K115: 0 | L115: 122
A116: 11 | B116: 20297 | C116: 11 | D116: 20324 | E116: 12 | F116: 20366 | K116: 0 | L116: 111
A117: 11 | B117: 20473 | C117: 22 | D117: 20533 | E117: 14 | F117: 20546 | K117: 0 | L117: 121
A118: 11 | B118: 20646 | C118: 11 | D118: 20673 | E118: 21 | F118: 20786 | K118: 0 | L118: 112
A119: 11 | B119: 20897 | C119: 22 | D119: 20910 | E119: 23 | F119: 20937 | K119: 0 | L119: 122
A120: 11 | B120: 21036 | C120: 11 | D120: 21065 | E120: 12 | F120: 21084 | K120: 0 | L120: 111
A121: 11 | B121: 21191 | C121: 22 | D121: 21204 | E121: 23 | F121: 21236 | K121: 0 | L121: 122
A122: 11 | B122: 21345 | C122: 11 | D122: 21354 | E122: 12 | F122: 21356 | K122: 0 | L122: 111
A123: 11 | B123: 21484 | C123: 22 | D123: 21512 | E123: 14 | F123: 21537 | K123: 0 | L123: 121
A124: 11 | B124: 21649 | C124: 22 | D124: 21685 | E124: 23 | F124: 21732 | K124: 0 | L124: 122
A125: 11 | B125: 21863 | C125: 11 | D125: 21891 | E125: 12 | F125: 21911 | K125: 0 | L125: 111
A126: 11 | B126: 22069 | C126: 22 | D126: 22082 | E126: 14 | F126: 22096 | K126: 0 | L126: 121
A127: 11 | B127: 22232 | C127: 22 | D127: 22256 | E127: 23 | F127: 22297 | K127: 0 | L127: 122
A128: 22 | B128: 22514 | C128: 13 | D128: 22569 | E128: 14 | F128: 22646 | K128: 0 | L128: 211
A129: 11 | B129: 22821 | C129: 22 | D129: 22832 | E129: 14 | F129: 22849 | K129: 0 | L129: 121
A130: 11 | B130: 22988 | C130: 22 | D130: 23014 | E130: 14 | F130: 23043 | K130: 0 | L130: 121
A131: 11 | B131: 23168 | C131: 11 | D131: 23222 | E131: 21 | F131: 23235 | K131: 0 | L131: 112
A132: 11 | B132: 23348 | C132: 11 | D132: 23351 | E132: 21 | F132: 23364 | K132: 0 | L132: 112
A133: 11 | B133: 23507 | C133: 22 | D133: 23521 | E133: 14 | F133: 23550 | K133: 0 | L133: 121
A134: 11 | B134: 23704 | C134: 22 | D134: 23860 | E134: 14 | F134: 23888 | K134: 0 | L134: 121
A135: 11 | B135: 23997 | L135: 1

Sheet !M604A10.103
A1: Report for:!M604A10.103
A2: Date: | B2: <date>
A3: Hen: | B3: <hen> | F3: Correct Sequence | G3: =Start!J2 -> 122 | P3: Total Sequences in Data | Q3: =4994-COUNTBLANK(L7:L5000) -> 118 | V3: Total Sequences in Block Data | W3: =COUNTA(L7:L26) -> 20 | AA3: Total Sequences in Block Data | AB3: =COUNTA(L27:L45) -> 19 | AF3: Total Sequences in Block Data | AG3: =COUNTA(L46:L65) -> 20 | AK3: Total Sequences in Block Data | AL3: =COUNTA(L66:L85) -> 20 | AP3: Total Sequences in Block Data | AQ3: =COUNTA(L86:L104) -> 19 | AU3: Total Sequences in Block Data | AV3: =COUNTA(L105:L124) -> 20
P4: Total Sequences in Summary | Q4: =SUM(O7:O14) -> 118 | V4: Total Sequences in Block Summary | W4: =SUM(U7:U14) -> 20 | AA4: Total Sequences in Block Summary | AB4: =SUM(Z7:Z14) -> 19 | AF4: Total Sequences in Block Summary | AG4: =SUM(AE7:AE14) -> 20 | AK4: Total Sequences in Block Summary | AL4: =SUM(AJ7:AJ14) -> 20 | AP4: Total Sequences in Block Summary | AQ4: =SUM(AO7:AO14) -> 19 | AU4: Total Sequences in Block Summary | AV4: =SUM(AT7:AT14) -> 20
T5: Block 1 | Y5: Block 2 | AD5: Block 3 | AI5: Block 4 | AN5: Block 5 | AS5: Block 6
A6: Sequence Component 1 | B6: Time 1 | C6: Sequence Component 2 | D6: Time 2 | E6: Sequence Component 3 | F6: Time 3 | G6: Sequence Component 4 | H6: Time 4 | I6: Sequence Component 5 | J6: Time 5 | K6: Correct? 0=No 1=Yes | L6: Sequence | N6: Frequency | P6: Relative Frequency | Q6: Variability | T6: Frequency | V6: Relative Frequency | W6: Variability | Y6: Frequency | AA6: Relative Frequency | AB6: Variability | AD6: Frequency | AF6: Relative Frequency | AG6: Variability | AI6: Frequency | AK6: Relative Frequency | AL6: Variability | AN6: Frequency | AP6: Relative Frequency | AQ6: Variability | AS6: Frequency | AU6: Relative Frequency | AV6: Variability
A7: 11 | B7: 17 | C7: 11 | D7: 30 | E7: 12 | F7: 39 | K7: 0 | L7: 111 | N7: 111 | O7: =COUNTIF($L$7:$L$500,N7) -> 17 | P7: =O7/$Q$4 -> 0.1440677966 | Q7: =IF(P7=0,0,(P7*((LOG(P7))/LOG(2)))) -> -0.4026954537 | T7: =N7 -> 111 | U7: =COUNTIF(L7:L26,T7) -> 6 | V7: =U7/(W4-U10) -> 0.3 | W7: =IF(V7=0,0,(V7*((LOG(V7))/LOG(2)))) -> -0.5210896782 | Y7: =N7 -> 111 | Z7: =COUNTIF(L27:L45,Y7) -> 1 | AA7: =Z7/(AB4-Z10) -> 0.07142857143 | AB7: =IF(AA7=0,0,(AA7*((LOG(AA7))/LOG(2)))) -> -0.271953923 | AD7: =N7 -> 111 | AE7: =COUNTIF(L46:L65,AD7) -> 1 | AF7: =AE7/(AG4-AE10) -> 0.07692307692 | AG7: =IF(AF7=0,0,(AF7*((LOG(AF7))/LOG(2)))) -> -0.2846492091 | AI7: =N7 -> 111 | AJ7: =COUNTIF(L66:L85,AI7) -> 2 | AK7: =AJ7/(AL4-AJ10) -> 0.1818181818 | AL7: =IF(AK7=0,0,(AK7*((LOG(AK7))/LOG(2)))) -> -0.4471693852 | AN7: =N7 -> 111 | AO7: =COUNTIF(L86:L104,AN7) -> 5 | AP7: =AO7/(AQ4-AO10) -> 0.2777777778 | AQ7: =IF(AP7=0,0,(AP7*((LOG(AP7))/LOG(2)))) -> -0.513332474 | AS7: =N7 -> 111 | AT7: =COUNTIF(L105:L124,AS7) -> 2 | AU7: =AT7/(AV4-AT10) -> 0.1 | AV7: =IF(AU7=0,0,(AU7*((LOG(AU7))/LOG(2)))) -> -0.3321928095
A8: 22 | B8: 146 | C8: 24 | D8: 166 | E8: 14 | F8: 178 | K8: 0 | L8: 221 | N8: 112 | O8: =COUNTIF($L$7:$L$500,N8) -> 40 | P8: =O8/$Q$4 -> 0.3389830508 | Q8: =IF(P8=0,0,(P8*((LOG(P8))/LOG(2)))) -> -0.5290559168 | T8: =N8 -> 112 | U8: =COUNTIF(L7:L26,T8) -> 6 | V8: =U8/(W4-U10) -> 0.3 | W8: =IF(V8=0,0,(V8*((LOG(V8))/LOG(2)))) -> -0.5210896782 | Y8: =N8 -> 112 | Z8: =COUNTIF(L27:L45,Y8) -> 4 | AA8: =Z8/(AB4-Z10) -> 0.2857142857 | AB8: =IF(AA8=0,0,(AA8*((LOG(AA8))/LOG(2)))) -> -0.5163871206 | AD8: =N8 -> 112 | AE8: =COUNTIF(L46:L65,AD8) -> 9 | AF8: =AE8/(AG4-AE10) -> 0.6923076923 | AG8: =IF(AF8=0,0,(AF8*((LOG(AF8))/LOG(2)))) -> -0.3672794193 | AI8: =N8 -> 112 | AJ8: =COUNTIF(L66:L85,AI8) -> 5 | AK8: =AJ8/(AL4-AJ10) -> 0.4545454545 | AL8: =IF(AK8=0,0,(AK8*((LOG(AK8))/LOG(2)))) -> -0.5170470562 | AN8: =N8 -> 112 | AO8: =COUNTIF(L86:L104,AN8) -> 6 | AP8: =AO8/(AQ4-AO10) -> 0.3333333333 | AQ8: =IF(AP8=0,0,(AP8*((LOG(AP8))/LOG(2)))) -> -0.5283208336 | AS8: =N8 -> 112 | AT8: =COUNTIF(L105:L124,AS8) -> 10 | AU8: =AT8/(AV4-AT10) -> 0.5 | AV8: =IF(AU8=0,0,(AU8*((LOG(AU8))/LOG(2)))) -> -0.5
A9: 11 | B9: 307 | C9: 22 | D9: 322 | E9: 14 | F9: 333 | K9: 0 | L9: 121 | N9: 121 | O9: =COUNTIF($L$7:$L$500,N9) -> 27 | P9: =O9/$Q$4 -> 0.2288135593 | Q9: =IF(P9=0,0,(P9*((LOG(P9))/LOG(2)))) -> -0.4868593201 | T9: =N9 -> 121 | U9: =COUNTIF(L7:L26,T9) -> 4 | V9: =U9/(W4-U10) -> 0.2 | W9: =IF(V9=0,0,(V9*((LOG(V9))/LOG(2)))) -> -0.464385619 | Y9: =N9 -> 121 | Z9: =COUNTIF(L27:L45,Y9) -> 7 | AA9: =Z9/(AB4-Z10) -> 0.5 | AB9: =IF(AA9=0,0,(AA9*((LOG(AA9))/LOG(2)))) -> -0.5 | AD9: =N9 -> 121 | AE9: =COUNTIF(L46:L65,AD9) -> 2 | AF9: =AE9/(AG4-AE10) -> 0.1538461538 | AG9: =IF(AF9=0,0,(AF9*((LOG(AF9))/LOG(2)))) -> -0.4154522643 | AI9: =N9 -> 121 | AJ9: =COUNTIF(L66:L85,AI9) -> 4 | AK9: =AJ9/(AL4-AJ10) -> 0.3636363636 | AL9: =IF(AK9=0,0,(AK9*((LOG(AK9))/LOG(2)))) -> -0.5307024068 | AN9: =N9 -> 121 | AO9: =COUNTIF(L86:L104,AN9) -> 3 | AP9: =AO9/(AQ4-AO10) -> 0.1666666667 | AQ9: =IF(AP9=0,0,(AP9*((LOG(AP9))/LOG(2)))) -> -0.4308270835 | AS9: =N9 -> 121 | AT9: =COUNTIF(L105:L124,AS9) -> 7 | AU9: =AT9/(AV4-AT10) -> 0.35 | AV9: =IF(AU9=0,0,(AU9*((LOG(AU9))/LOG(2)))) -> -0.5301006105
A10: 22 | B10: 452 | C10: 24 | D10: 476 | E10: 14 | F10: 486 | K10: 0 | L10: 221 | N10: 122 | O10: =COUNTIF($L$7:$L$500,N10) -> 22 | P10: =O10/$Q$4 -> 0.186440678 | Q10: =IF(P10=0,0,(P10*((LOG(P10))/LOG(2)))) -> -0.451785182 | T10: =N10 -> 122 | U10: =COUNTIF(L7:L26,T10) -> 0 | Y10: =N10 -> 122 | Z10: =COUNTIF(L27:L45,Y10) -> 5 | AD10: =N10 -> 122 | AE10: =COUNTIF(L46:L65,AD10) -> 7 | AI10: =N10 -> 122 | AJ10: =COUNTIF(L66:L85,AI10) -> 9 | AN10: =N10 -> 122 | AO10: =COUNTIF(L86:L104,AN10) -> 1 | AS10: =N10 -> 122 | AT10: =COUNTIF(L105:L124,AS10) -> 0
A11: 11 | B11: 604 | C11: 11 | D11: 606 | E11: 21 | F11: 618 | K11: 0 | L11: 112 | N11: 211 | O11: =COUNTIF($L$7:$L$500,N11) -> 1 | P11: =O11/$Q$4 -> 0.008474576271 | Q11: =IF(P11=0,0,(P11*((LOG(P11))/LOG(2)))) -> -0.05832748347 | T11: =N11 -> 211 | U11: =COUNTIF(L7:L26,T11) -> 0 | V11: =U11/(W4-U10) -> 0 | W11: =IF(V11=0,0,(V11*((LOG(V11))/LOG(2)))) -> 0 | Y11: =N11 -> 211 | Z11: =COUNTIF(L27:L45,Y11) -> 0 | AA11: =Z11/(AB4-Z10) -> 0 | AB11: =IF(AA11=0,0,(AA11*((LOG(AA11))/LOG(2)))) -> 0 | AD11: =N11 -> 211 | AE11: =COUNTIF(L46:L65,AD11) -> 0 | AF11: =AE11/(AG4-AE10) -> 0 | AG11: =IF(AF11=0,0,(AF11*((LOG(AF11))/LOG(2)))) -> 0 | AI11: =N11 -> 211 | AJ11: =COUNTIF(L66:L85,AI11) -> 0 | AK11: =AJ11/(AL4-AJ10) -> 0 | AL11: =IF(AK11=0,0,(AK11*((LOG(AK11))/LOG(2)))) -> 0 | AN11: =N11 -> 211 | AO11: =COUNTIF(L86:L104,AN11) -> 1 | AP11: =AO11/(AQ4-AO10) -> 0.05555555556 | AQ11: =IF(AP11=0,0,(AP11*((LOG(AP11))/LOG(2)))) -> -0.2316625001 | AS11: =N11 -> 211 | AT11: =COUNTIF(L105:L124,AS11) -> 0 | AU11: =AT11/(AV4-AT10) -> 0 | AV11: =IF(AU11=0,0,(AU11*((LOG(AU11))/LOG(2)))) -> 0
A12: 22 | B12: 730 | C12: 13 | D12: 767 | E12: 23 | F12: 778 | K12: 0 | L12: 212 | N12: 212 | O12: =COUNTIF($L$7:$L$500,N12) -> 7 | P12: =O12/$Q$4 -> 0.0593220339 | Q12: =IF(P12=0,0,(P12*((LOG(P12))/LOG(2)))) -> -0.2417543804 | T12: =N12 -> 212 | U12: =COUNTIF(L7:L26,T12) -> 2 | V12: =U12/(W4-U10) -> 0.1 | W12: =IF(V12=0,0,(V12*((LOG(V12))/LOG(2)))) -> -0.3321928095 | Y12: =N12 -> 212 | Z12: =COUNTIF(L27:L45,Y12) -> 1 | AA12: =Z12/(AB4-Z10) -> 0.07142857143 | AB12: =IF(AA12=0,0,(AA12*((LOG(AA12))/LOG(2)))) -> -0.271953923 | AD12: =N12 -> 212 | AE12: =COUNTIF(L46:L65,AD12) -> 0 | AF12: =AE12/(AG4-AE10) -> 0 | AG12: =IF(AF12=0,0,(AF12*((LOG(AF12))/LOG(2)))) -> 0 | AI12: =N12 -> 212 | AJ12: =COUNTIF(L66:L85,AI12) -> 0 | AK12: =AJ12/(AL4-AJ10) -> 0 | AL12: =IF(AK12=0,0,(AK12*((LOG(AK12))/LOG(2)))) -> 0 | AN12: =N12 -> 212 | AO12: =COUNTIF(L86:L104,AN12) -> 3 | AP12: =AO12/(AQ4-AO10) -> 0.1666666667 | AQ12: =IF(AP12=0,0,(AP12*((LOG(AP12))/LOG(2)))) -> -0.4308270835 | AS12: =N12 -> 212 | AT12: =COUNTIF(L105:L124,AS12) -> 1 | AU12: =AT12/(AV4-AT10) -> 0.05 | AV12: =IF(AU12=0,0,(AU12*((LOG(AU12))/LOG(2)))) -> -0.2160964047
A13: 22 | B13: 881 | C13: 13 | D13: 934 | E13: 23 | F13: 983 | K13: 0 | L13: 212 | N13: 221 | O13: =COUNTIF($L$7:$L$500,N13) -> 2 | P13: =O13/$Q$4 -> 0.01694915254 | Q13: =IF(P13=0,0,(P13*((LOG(P13))/LOG(2)))) -> -0.0997058144 | T13: =N13 -> 221 | U13: =COUNTIF(L7:L26,T13) -> 2 | V13: =U13/(W4-U10) -> 0.1 | W13: =IF(V13=0,0,(V13*((LOG(V13))/LOG(2)))) -> -0.3321928095 | Y13: =N13 -> 221 | Z13: =COUNTIF(L27:L45,Y13) -> 0 | AA13: =Z13/(AB4-Z10) -> 0 | AB13: =IF(AA13=0,0,(AA13*((LOG(AA13))/LOG(2)))) -> 0 | AD13: =N13 -> 221 | AE13: =COUNTIF(L46:L65,AD13) -> 0 | AF13: =AE13/(AG4-AE10) -> 0 | AG13: =IF(AF13=0,0,(AF13*((LOG(AF13))/LOG(2)))) -> 0 | AI13: =N13 -> 221 | AJ13: =COUNTIF(L66:L85,AI13) -> 0 | AK13: =AJ13/(AL4-AJ10) -> 0 | AL13: =IF(AK13=0,0,(AK13*((LOG(AK13))/LOG(2)))) -> 0 | AN13: =N13 -> 221 | AO13: =COUNTIF(L86:L104,AN13) -> 0 | AP13: =AO13/(AQ4-AO10) -> 0 | AQ13: =IF(AP13=0,0,(AP13*((LOG(AP13))/LOG(2)))) -> 0 | AS13: =N13 -> 221 | AT13: =COUNTIF(L105:L124,AS13) -> 0 | AU13: =AT13/(AV4-AT10) -> 0 | AV13: =IF(AU13=0,0,(AU13*((LOG(AU13))/LOG(2)))) -> 0
A14: 11 | B14: 1126 | C14: 22 | D14: 1138 | E14: 14 | F14: 1150 | K14: 0 | L14: 121 | N14: 222 | O14: =COUNTIF($L$7:$L$500,N14) -> 2 | P14: =O14/$Q$4 -> 0.01694915254 | Q14: =IF(P14=0,0,(P14*((LOG(P14))/LOG(2)))) -> -0.0997058144 | T14: =N14 -> 222 | U14: =COUNTIF(L7:L26,T14) -> 0 | V14: =U14/(W4-U10) -> 0 | W14: =IF(V14=0,0,(V14*((LOG(V14))/LOG(2)))) -> 0 | Y14: =N14 -> 222 | Z14: =COUNTIF(L27:L45,Y14) -> 1 | AA14: =Z14/(AB4-Z10) -> 0.07142857143 | AB14: =IF(AA14=0,0,(AA14*((LOG(AA14))/LOG(2)))) -> -0.271953923 | AD14: =N14 -> 222 | AE14: =COUNTIF(L46:L65,AD14) -> 1 | AF14: =AE14/(AG4-AE10) -> 0.07692307692 | AG14: =IF(AF14=0,0,(AF14*((LOG(AF14))/LOG(2)))) -> -0.2846492091 | AI14: =N14 -> 222 | AJ14: =COUNTIF(L66:L85,AI14) -> 0 | AK14: =AJ14/(AL4-AJ10) -> 0 | AL14: =IF(AK14=0,0,(AK14*((LOG(AK14))/LOG(2)))) -> 0 | AN14: =N14 -> 222 | AO14: =COUNTIF(L86:L104,AN14) -> 0 | AP14: =AO14/(AQ4-AO10) -> 0 | AQ14: =IF(AP14=0,0,(AP14*((LOG(AP14))/LOG(2)))) -> 0 | AS14: =N14 -> 222 | AT14: =COUNTIF(L105:L124,AS14) -> 0 | AU14: =AT14/(AV4-AT10) -> 0 | AV14: =IF(AU14=0,0,(AU14*((LOG(AU14))/LOG(2)))) -> 0
A15: 11 | B15: 1262 | C15: 11 | D15: 1264 | E15: 21 | F15: 1276 | K15: 0 | L15: 112 | P15: =SUM(P7:P14) -> 1 | Q15: =-SUM(Q7:Q14) -> 2.369889365 | V15: =SUM(V7:V14) -> 1 | W15: =-SUM(W7:W14) -> 2.170950594 | AA15: =SUM(AA7:AA14) -> 1 | AB15: =-SUM(AB7:AB14) -> 1.83224889 | AF15: =SUM(AF7:AF14) -> 1 | AG15: =-SUM(AG7:AG14) -> 1.352030102 | AK15: =SUM(AK7:AK14) -> 1 | AL15: =-SUM(AL7:AL14) -> 1.494918848 | AP15: =SUM(AP7:AP14) -> 1 | AQ15: =-SUM(AQ7:AQ14) -> 2.134969975 | AU15: =SUM(AU7:AU14) -> 1 | AV15: =-SUM(AV7:AV14) -> 1.578389825
A16: 11 | B16: 1376 | C16: 11 | D16: 1393 | E16: 21 | F16: 1406 | K16: 0 | L16: 112 | P16: U= | Q16: =Q15/(LOG(Q4)/LOG(2)) -> 0.3443283849 | V16: U1= | W16: =W15/(LOG(W4)/LOG(2)) -> 0.5023106694 | AA16: U2= | AB16: =AB15/(LOG(AB4)/LOG(2)) -> 0.4313277201 | AF16: U3= | AG16: =AG15/(LOG(AG4)/LOG(2)) -> 0.3128303091 | AK16: U4= | AL16: =AL15/(LOG(AL4)/LOG(2)) -> 0.3458916519 | AP16: U5= | AQ16: =AQ15/(LOG(AQ4)/LOG(2)) -> 0.5025909618 | AU16: U6= | AV16: =AV15/(LOG(AV4)/LOG(2)) -> 0.3652050173
A17: 11 | B17: 1525 | C17: 22 | D17: 1541 | E17: 14 | F17: 1556 | K17: 0 | L17: 121
A18: 11 | B18: 1678 | C18: 22 | D18: 1689 | E18: 14 | F18: 1701 | K18: 0 | L18: 121
A19: 11 | B19: 1840 | C19: 11 | D19: 1858 | E19: 12 | F19: 1870 | K19: 0 | L19: 111 | N19: Total Target Seq
A20: 11 | B20: 1973 | C20: 11 | D20: 1974 | E20: 12 | F20: 1984 | K20: 0 | L20: 111 | N20: =COUNTIF(L7:L124,G3) -> 22 | P20: 20 | Q20: 19 | R20: 20 | S20: 20 | T20: 19 | U20: 20
A21: 11 | B21: 2086 | C21: 11 | D21: 2103 | E21: 21 | F21: 2115 | K21: 0 | L21: 112 | P21: % of reinforcement given in 6 equal intervals based on number of trials
A22: 11 | B22: 2232 | C22: 11 | D22: 2243 | E22: 21 | F22: 2255 | K22: 0 | L22: 112 | P22: %_1 | Q22: %_2 | R22: %_3 | S22: %_4 | T22: %_5 | U22: %_6
A23: 11 | B23: 2349 | C23: 11 | D23: 2358 | E23: 12 | F23: 2371 | K23: 0 | L23: 111 | O23: target sequence | P23: =$G$3 -> 122 | Q23: =$G$3 -> 122 | R23: =$G$3 -> 122 | S23: =$G$3 -> 122 | T23: =$G$3 -> 122 | U23: =$G$3 -> 122
A24: 11 | B24: 2475 | C24: 11 | D24: 2490 | E24: 21 | F24: 2513 | K24: 0 | L24: 112 | O24: total reinforcement | P24: =U10 -> 0 | Q24: =Z10 -> 5 | R24: =AE10 -> 7 | S24: =AJ10 -> 9 | T24: =AO10 -> 1 | U24: =AT10 -> 0
A25: 11 | B25: 2625 | C25: 11 | D25: 2634 | E25: 12 | F25: 2674 | K25: 0 | L25: 111 | O25: % target
A26: 11 | B26: 2774 | C26: 11 | D26: 2789 | E26: 12 | F26: 2802 | K26: 0 | L26: 111 | O26: CCRF
A27: 22 | B27: 2921 | C27: 13 | D27: 2933 | E27: 23 | F27: 2945 | K27: 0 | L27: 212 | O27: % CCRf
A28: 11 | B28: 3046 | C28: 11 | D28: 3060 | E28: 21 | F28: 3073 | K28: 0 | L28: 112 | O28: average response rate | P28: =F26/P20 -> 140.1 | Q28: =(F45-F26)/Q20 -> 151.6842105 | R28: =(F65-F45)/R20 -> 153.25 | S28: =(F85-F65)/S20 -> 150.9 | T28: =(F104-F85)/T20 -> 207.6842105 | U28: =(F124-F104)/U20 -> 174.45
A29: 11 | B29: 3186 | C29: 11 | D29: 3198 | E29: 21 | F29: 3210 | K29: 0 | L29: 112
A30: 11 | B30: 3325 | C30: 22 | D30: 3339 | E30: 14 | F30: 3348 | K30: 0 | L30: 121
A31: 22 | B31: 3489 | C31: 24 | D31: 3512 | E31: 23 | F31: 3528 | K31: 0 | L31: 222
A32: 11 | B32: 3640 | C32: 11 | D32: 3641 | E32: 21 | F32: 3655 | K32: 0 | L32: 112
A33: 11 | B33: 3754 | C33: 11 | D33: 3764 | E33: 12 | F33: 3775 | K33: 0 | L33: 111
A34: 11 | B34: 3909 | C34: 22 | D34: 3922 | E34: 14 | F34: 3938 | K34: 0 | L34: 121
A35: 11 | B35: 4063 | C35: 22 | D35: 4097 | E35: 23 | F35: 4114 | K35: 0 | L35: 122
A36: 11 | B36: 4263 | C36: 22 | D36: 4280 | E36: 14 | F36: 4301 | K36: 0 | L36: 121
A37: 11 | B37: 4404 | C37: 22 | D37: 4417 | E37: 14 | F37: 4429 | K37: 0 | L37: 121
A38: 11 | B38: 4545 | C38: 11 | D38: 4557 | E38: 21 | F38: 4569 | K38: 0 | L38: 112
A39: 11 | B39: 4688 | C39: 22 | D39: 4700 | E39: 14 | F39: 4725 | K39: 0 | L39: 121
A40: 11 | B40: 4859 | C40: 22 | D40: 4872 | E40: 14 | F40: 4888 | K40: 0 | L40: 121
A41: 11 | B41: 5000 | C41: 22 | D41: 5022 | E41: 23 | F41: 5046 | K41: 0 | L41: 122
A42: 11 | B42: 5158 | C42: 22 | D42: 5170 | E42: 23 | F42: 5199 | K42: 0 | L42: 122
A43: 11 | B43: 5338 | C43: 22 | D43: 5347 | E43: 23 | F43: 5370 | K43: 0 | L43: 122
A44: 11 | B44: 5491 | C44: 22 | D44: 5504 | E44: 14 | F44: 5531 | K44: 0 | L44: 121
A45: 11 | B45: 5652 | C45: 22 | D45: 5663 | E45: 23 | F45: 5684 | K45: 0 | L45: 122
A46: 22 | B46: 5822 | C46: 24 | D46: 5872 | E46: 23 | F46: 5894 | K46: 0 | L46: 222
A47: 11 | B47: 6052 | C47: 11 | D47: 6072 | E47: 21 | F47: 6083 | K47: 0 | L47: 112
A48: 11 | B48: 6193 | C48: 22 | D48: 6208 | E48: 14 | F48: 6219 | K48: 0 | L48: 121
A49: 11 | B49: 6378 | C49: 22 | D49: 6389 | E49: 23 | F49: 6426 | K49: 0 | L49: 122
A50: 11 | B50: 6578 | C50: 22 | D50: 6589 | E50: 23 | F50: 6601 | K50: 0 | L50: 122
A51: 11 | B51: 6714 | C51: 11 | D51: 6726 | E51: 21 | F51: 6739 | K51: 0 | L51: 112
A52: 11 | B52: 6837 | C52: 22 | D52: 6861 | E52: 23 | F52: 6874 | K52: 0 | L52: 122
A53: 11 | B53: 6992 | C53: 11 | D53: 7007 | E53: 21 | F53: 7019 | K53: 0 | L53: 112
A54: 11 | B54: 7138 | C54: 11 | D54: 7154 | E54: 12 | F54: 7171 | K54: 0 | L54: 111
A55: 11 | B55: 7310 | C55: 22 | D55: 7321 | E55: 23 | F55: 7333 | K55: 0 | L55: 122
A56: 11 | B56: 7456 | C56: 11 | D56: 7470 | E56: 21 | F56: 7490 | K56: 0 | L56: 112
A57: 11 | B57: 7607 | C57: 22 | D57: 7619 | E57: 23 | F57: 7635 | K57: 0 | L57: 122
A58: 11 | B58: 7744 | C58: 11 | D58: 7781 | E58: 21 | F58: 7790 | K58: 0 | L58: 112
A59: 11 | B59: 7911 | C59: 11 | D59: 7913 | E59: 21 | F59: 7926 | K59: 0 | L59: 112
A60: 11 | B60: 8025 | C60: 11 | D60: 8037 | E60: 21 | F60: 8048 | K60: 0 | L60: 112
A61: 11 | B61: 8148 | C61: 11 | D61: 8170 | E61: 21 | F61: 8185 | K61: 0 | L61: 112
A62: 11 | B62: 8318 | C62: 22 | D62: 8331 | E62: 14 | F62: 8348 | K62: 0 | L62: 121
A63: 11 | B63: 8462 | C63: 11 | D63: 8464 | E63: 21 | F63: 8475 | K63: 0 | L63: 112
A64: 11 | B64: 8571 | C64: 22 | D64: 8582 | E64: 23 | F64: 8601 | K64: 0 | L64: 122
A65: 11 | B65: 8701 | C65: 22 | D65: 8730 | E65: 23 | F65: 8749 | K65: 0 | L65: 122
A66: 11 | B66: 8865 | C66: 22 | D66: 8877 | E66: 23 | F66: 8893 | K66: 0 | L66: 122
A67: 11 | B67: 8995 | C67: 11 | D67: 9003 | E67: 21 | F67: 9021 | K67: 0 | L67: 112
A68: 11 | B68: 9128 | C68: 22 | D68: 9139 | E68: 23 | F68: 9154 | K68: 0 | L68: 122
A69: 11 | B69: 9254 | C69: 22 | D69: 9276 | E69: 23 | F69: 9292 | K69: 0 | L69: 122
A70: 11 | B70: 9421 | C70: 22 | D70: 9432 | E70: 23 | F70: 9446 | K70: 0 | L70: 122
A71: 11 | B71: 9548 | C71: 22 | D71: 9559 | E71: 23 | F71: 9570 | K71: 0 | L71: 122
A72: 11 | B72: 9692 | C72: 22 | D72: 9703 | E72: 23 | F72: 9724 | K72: 0 | L72: 122
A73: 11 | B73: 9831 | C73: 22 | D73: 9843 | E73: 23 | F73: 9853 | K73: 0 | L73: 122
A74: 11 | B74: 9955 | C74: 11 | D74: 9969 | E74: 21 | F74: 9981 | K74: 0 | L74: 112
A75: 11 | B75: 10080 | C75: 11 | D75: 10097 | E75: 21 | F75: 10112 | K75: 0 | L75: 112
A76: 11 | B76: 10212 | C76: 11 | D76: 10228 | E76: 12 | F76: 10248 | K76: 0 | L76: 111
A77: 11 | B77: 10372 | C77: 11 | D77: 10384 | E77: 21 | F77: 10397 | K77: 0 | L77: 112
A78: 11 | B78: 10511 | C78: 22 | D78: 10522 | E78: 14 | F78: 10534 | K78: 0 | L78: 121
A79: 11 | B79: 10637 | C79: 11 | D79: 10653 | E79: 21 | F79: 10670 | K79: 0 | L79: 112
A80: 11 | B80: 10763 | C80: 11 | D80: 10780 | E80: 12 | F80: 10809 | K80: 0 | L80: 111
A81: 11 | B81: 10940 | C81: 22 | D81: 10959 | E81: 14 | F81: 10996 | K81: 0 | L81: 121
A82: 11 | B82: 11096 | C82: 22 | D82: 11110 | E82: 14 | F82: 11123 | K82: 0 | L82: 121
A83: 11 | B83: 11310 | C83: 22 | D83: 11322 | E83: 23 | F83: 11348 | K83: 0 | L83: 122
A84: 11 | B84: 11518 | C84: 22 | D84: 11530 | E84: 23 | F84: 11563 | K84: 0 | L84: 122
A85: 11 | B85: 11730 | C85: 22 | D85: 11741 | E85: 14 | F85: 11767 | K85: 0 | L85: 121
A86: 11 | B86: 11901 | C86: 22 | D86: 11912 | E86: 14 | F86: 11936 | K86: 0 | L86: 121
A87: 22 | B87: 12109 | C87: 13 | D87: 12132 | E87: 23 | F87: 12141 | K87: 0 | L87: 212
A88: 22 | B88: 12412 | C88: 13 | D88: 12438 | E88: 23 | F88: 12453 | K88: 0 | L88: 212
A89: 11 | B89: 12566 | C89: 11 | D89: 12589 | E89: 21 | F89: 12600 | K89: 0 | L89: 112
A90: 11 | B90: 12698 | C90: 11 | D90: 12719 | E90: 12 | F90: 12743 | K90: 0 | L90: 111
A91: 11 | B91: 13080 | C91: 11 | D91: 13159 | E91: 21 | F91: 13170 | K91: 0 | L91: 112
A92: 11 | B92: 13278 | C92: 22 | D92: 13289 | E92: 23 | F92: 13314 | K92: 0 | L92: 122
A93: 22 | B93: 13528 | C93: 13 | D93: 13549 | E93: 14 | F93: 13552 | K93: 0 | L93: 211
A94: 11 | B94: 13823 | C94: 22 | D94: 13835 | E94: 14 | F94: 13852 | K94: 0 | L94: 121
A95: 11 | B95: 14041 | C95: 11 | D95: 14065 | E95: 21 | F95: 14077 | K95: 0 | L95: 112
A96: 11 | B96: 14182 | C96: 11 | D96: 14200 | E96: 12 | F96: 14235 | K96: 0 | L96: 111
A97: 22 | B97: 14565 | C97: 13 | D97: 14588 | E97: 23 | F97: 14599 | K97: 0 | L97: 212
A98: 11 | B98: 14713 | C98: 11 | D98: 14733 | E98: 12 | F98: 14774 | K98: 0 | L98: 111
A99: 11 | B99: 14889 | C99: 11 | D99: 14907 | E99: 12 | F99: 14942 | K99: 0 | L99: 111
A100: 11 | B100: 15054 | C100: 11 | D100: 15066 | E100: 21 | F100: 15079 | K100: 0 | L100: 112
A101: 11 | B101: 15186 | C101: 11 | D101: 15207 | E101: 21 | F101: 15253 | K101: 0 | L101: 112
A102: 11 | B102: 15356 | C102: 11 | D102: 15376 | E102: 21 | F102: 15389 | K102: 0 | L102: 112
A103: 11 | B103: 15487 | C103: 11 | D103: 15531 | E103: 12 | F103: 15547 | K103: 0 | L103: 111
A104: 11 | B104: 15667 | C104: 22 | D104: 15693 | E104: 14 | F104: 15713 | K104: 0 | L104: 121
A105: 11 | B105: 15856 | C105: 11 | D105: 15871 | E105: 21 | F105: 15902 | K105: 0 | L105: 112
A106: 11 | B106: 16019 | C106: 11 | D106: 16041 | E106: 21 | F106: 16053 | K106: 0 | L106: 112
A107: 11 | B107: 16159 | C107: 11 | D107: 16180 | E107: 12 | F107: 16214 | K107: 0 | L107: 111
A108: 11 | B108: 16370 | C108: 11 | D108: 16371 | E108: 21 | F108: 16447 | K108: 0 | L108: 112
A109: 11 | B109: 16558 | C109: 22 | D109: 16570 | E109: 14 | F109: 16583 | K109: 0 | L109: 121
A110: 11 | B110: 16749 | C110: 22 | D110: 16781 | E110: 14 | F110: 16820 | K110: 0 | L110: 121
A111: 11 | B111: 16953 | C111: 11 | D111: 16979 | E111: 12 | F111: 16994 | K111: 0 | L111: 111
A112: 11 | B112: 17122 | C112: 22 | D112: 17157 | E112: 14 | F112: 17175 | K112: 0 | L112: 121
A113: 11 | B113: 17317 | C113: 11 | D113: 17319 | E113: 21 | F113: 17360 | K113: 0 | L113: 112
A114: 11 | B114: 17457 | C114: 11 | D114: 17489 | E114: 21 | F114: 17519 | K114: 0 | L114: 112
A115: 11 | B115: 17622 | C115: 11 | D115: 17642 | E115: 21 | F115: 17653 | K115: 0 | L115: 112
A116: 11 | B116: 17771 | C116: 22 | D116: 17782 | E116: 14 | F116: 17807 | K116: 0 | L116: 121
A117: 22 | B117: 17967 | C117: 13 | D117: 17998 | E117: 23 | F117: 18009 | K117: 0 | L117: 212
A118: 11 | B118: 18132 | C118: 11 | D118: 18157 | E118: 21 | F118: 18168 | K118: 0 | L118: 112
A119: 11 | B119: 18340 | C119: 22 | D119: 18355 | E119: 14 | F119: 18383 | K119: 0 | L119: 121
A120: 11 | B120: 18567 | C120: 22 | D120: 18584 | E120: 14 | F120: 18603 | K120: 0 | L120: 121
A121: 11 | B121: 18751 | C121: 22 | D121: 18763 | E121: 14 | F121: 18776 | K121: 0 | L121: 121
A122: 11 | B122: 18886 | C122: 11 | D122: 18909 | E122: 21 | F122: 18921 | K122: 0 | L122: 112
A123: 11 | B123: 19018 | C123: 11 | D123: 19040 | E123: 21 | F123: 19052 | K123: 0 | L123: 112
A124: 11 | B124: 19158 | C124: 11 | D124: 19191 | E124: 21 | F124: 19202 | K124: 1 | L124: 112

Sheet !M605930.103
A1: Report for:!M605930.103
A2: Date: | B2: <date>
A3: Hen: | B3: <hen> | F3: Correct Sequence | G3: =Start!J2 -> 122 | P3: Total Sequences in Data | Q3: =4994-COUNTBLANK(L7:L5000) -> 81 | V3: Total Sequences in Block Data | W3: =COUNTA(L7:L20) -> 14 | AA3: Total Sequences in Block Data | AB3: =COUNTA(L21:L33) -> 13 | AF3: Total Sequences in Block Data | AG3: =COUNTA(L34:L47) -> 14 | AK3: Total Sequences in Block Data | AL3: =COUNTA(L48:L60) -> 13 | AP3: Total Sequences in Block Data | AQ3: =COUNTA(L61:L74) -> 14 | AU3: Total Sequences in Block Data | AV3: =COUNTA(L75:L87) -> 13
P4: Total Sequences in Summary | Q4: =SUM(O7:O14) -> 81 | V4: Total Sequences in Block Summary | W4: =SUM(U7:U14) -> 14 | AA4: Total Sequences in Block Summary | AB4: =SUM(Z7:Z14) -> 13 | AF4: Total Sequences in Block Summary | AG4: =SUM(AE7:AE14) -> 14 | AK4: Total Sequences in Block Summary | AL4: =SUM(AJ7:AJ14) -> 13 | AP4: Total Sequences in Block Summary | AQ4: =SUM(AO7:AO14) -> 14 | AU4: Total Sequences in Block Summary | AV4: =SUM(AT7:AT14) -> 13
T5: Block 1 | Y5: Block 2 | AD5: Block 3 | AI5: Block 4 | AN5: Block 5 | AS5: Block 6
A6: Sequence Component 1 | B6: Time 1 | C6: Sequence Component 2 | D6: Time 2 | E6: Sequence Component 3 | F6: Time 3 | G6: Sequence Component 4 | H6: Time 4 | I6: Sequence Component 5 | J6: Time 5 | K6: Correct? 0=No 1=Yes | L6: Sequence | N6: Frequency | P6: Relative Frequency | Q6: Variability | T6: Frequency | V6: Relative Frequency | W6: Variability | Y6: Frequency | AA6: Relative Frequency | AB6: Variability | AD6: Frequency | AF6: Relative Frequency | AG6: Variability | AI6: Frequency | AK6: Relative Frequency | AL6: Variability | AN6: Frequency | AP6: Relative Frequency | AQ6: Variability | AS6: Frequency | AU6: Relative Frequency | AV6: Variability
A7: 22 | B7: 11 | C7: 24 | D7: 28 | E7: 23 | F7: 44 | K7: 0 | L7: 222 | N7: 111 | O7: =COUNTIF($L$7:$L$500,N7) -> 11 | P7: =O7/$Q$4 -> 0.1358024691 | Q7: =IF(P7=0,0,(P7*((LOG(P7))/LOG(2)))) -> -0.3911679287 | T7: =N7 -> 111 | U7: =COUNTIF(L7:L20,T7) -> 1 | V7: =U7/(W4-U10) -> 0.1 | W7: =IF(V7=0,0,(V7*((LOG(V7))/LOG(2)))) -> -0.3321928095 | Y7: =N7 -> 111 | Z7: =COUNTIF(L21:L33,Y7) -> 1 | AA7: =Z7/(AB4-Z10) -> 0.09090909091 | AB7: =IF(AA7=0,0,(AA7*((LOG(AA7))/LOG(2)))) -> -0.3144937835 | AD7: =N7 -> 111 | AE7: =COUNTIF(L34:L47,AD7) -> 1 | AF7: =AE7/(AG4-AE10) -> 0.1 | AG7: =IF(AF7=0,0,(AF7*((LOG(AF7))/LOG(2)))) -> -0.3321928095 | AI7: =N7 -> 111 | AJ7: =COUNTIF(L48:L60,AI7) -> 4 | AK7: =AJ7/(AL4-AJ10) -> 0.3333333333 | AL7: =IF(AK7=0,0,(AK7*((LOG(AK7))/LOG(2)))) -> -0.5283208336 | AN7: =N7 -> 111 | AO7: =COUNTIF(L61:L74,AN7) -> 2 | AP7: =AO7/(AQ4-AO10) -> 0.2 | AQ7: =IF(AP7=0,0,(AP7*((LOG(AP7))/LOG(2)))) -> -0.464385619 | AS7: =N7 -> 111 | AT7: =COUNTIF(L75:L87,AS7) -> 2 | AU7: =AT7/(AV4-AT10) -> 0.2 | AV7: =IF(AU7=0,0,(AU7*((LOG(AU7))/LOG(2)))) -> -0.464385619
A8: 22 | B8: 146 | C8: 24 | D8: 163 | E8: 23 | F8: 176 | K8: 0 | L8: 222 | N8: 112 | O8: =COUNTIF($L$7:$L$500,N8) -> 40 | P8: =O8/$Q$4 -> 0.4938271605 | Q8: =IF(P8=0,0,(P8*((LOG(P8))/LOG(2)))) -> -0.5026774854 | T8: =N8 -> 112 | U8: =COUNTIF(L7:L20,T8) -> 2 | V8: =U8/(W4-U10) -> 0.2 | W8: =IF(V8=0,0,(V8*((LOG(V8))/LOG(2)))) -> -0.464385619 | Y8: =N8 -> 112 | Z8: =COUNTIF(L21:L33,Y8) -> 9 | AA8: =Z8/(AB4-Z10) -> 0.8181818182 | AB8: =IF(AA8=0,0,(AA8*((LOG(AA8))/LOG(2)))) -> -0.2368690504 | AD8: =N8 -> 112 | AE8: =COUNTIF(L34:L47,AD8) -> 7 | AF8: =AE8/(AG4-AE10) -> 0.7 | AG8: =IF(AF8=0,0,(AF8*((LOG(AF8))/LOG(2)))) -> -0.360201221 | AI8: =N8 -> 112 | AJ8: =COUNTIF(L48:L60,AI8) -> 7 | AK8: =AJ8/(AL4-AJ10) -> 0.5833333333 | AL8: =IF(AK8=0,0,(AK8*((LOG(AK8))/LOG(2)))) -> -0.4536044209 | AN8: =N8 -> 112 | AO8: =COUNTIF(L61:L74,AN8) -> 8 | AP8: =AO8/(AQ4-AO10) -> 0.8 | AQ8: =IF(AP8=0,0,(AP8*((LOG(AP8))/LOG(2)))) -> -0.2575424759 | AS8: =N8 -> 112 | AT8: =COUNTIF(L75:L87,AS8) -> 7 | AU8: =AT8/(AV4-AT10) -> 0.7 | AV8: =IF(AU8=0,0,(AU8*((LOG(AU8))/LOG(2)))) -> -0.360201221
A9: 22 | B9: 280 | C9: 13 | D9: 289 | E9: 23 | F9: 299 | K9: 0 | L9: 212 | N9: 121 | O9: =COUNTIF($L$7:$L$500,N9) -> 7 | P9: =O9/$Q$4 -> 0.08641975309 | Q9: =IF(P9=0,0,(P9*((LOG(P9))/LOG(2)))) -> -0.3052773527 | T9: =N9 -> 121 | U9: =COUNTIF(L7:L20,T9) -> 4 | V9: =U9/(W4-U10) -> 0.4 | W9: =IF(V9=0,0,(V9*((LOG(V9))/LOG(2)))) -> -0.528771238 | Y9: =N9 -> 121 | Z9: =COUNTIF(L21:L33,Y9) -> 0 | AA9: =Z9/(AB4-Z10) -> 0 | AB9: =IF(AA9=0,0,(AA9*((LOG(AA9))/LOG(2)))) -> 0 | AD9: =N9 -> 121 | AE9: =COUNTIF(L34:L47,AD9) -> 1 | AF9: =AE9/(AG4-AE10) -> 0.1 | AG9: =IF(AF9=0,0,(AF9*((LOG(AF9))/LOG(2)))) -> -0.3321928095 | AI9: =N9 -> 121 | AJ9: =COUNTIF(L48:L60,AI9) -> 1 | AK9: =AJ9/(AL4-AJ10) -> 0.08333333333 | AL9: =IF(AK9=0,0,(AK9*((LOG(AK9))/LOG(2)))) -> -0.2987468751 | AN9: =N9 -> 121 | AO9: =COUNTIF(L61:L74,AN9) -> 0 | AP9: =AO9/(AQ4-AO10) -> 0 | AQ9: =IF(AP9=0,0,(AP9*((LOG(AP9))/LOG(2)))) -> 0 | AS9: =N9 -> 121 | AT9: =COUNTIF(L75:L87,AS9) -> 1 | AU9: =AT9/(AV4-AT10) -> 0.1 | AV9: =IF(AU9=0,0,(AU9*((LOG(AU9))/LOG(2)))) -> -0.3321928095
A10: 11 | B10: 409 | C10: 22 | D10: 420 | E10: 14 | F10: 433 | K10: 0 | L10: 121 | N10: 122 | O10: =COUNTIF($L$7:$L$500,N10) -> 18 | P10: =O10/$Q$4 -> 0.2222222222 | Q10: =IF(P10=0,0,(P10*((LOG(P10))/LOG(2)))) -> -0.4822055559 | T10: =N10 -> 122 | U10: =COUNTIF(L7:L20,T10) -> 4 | Y10: =N10 -> 122 | Z10: =COUNTIF(L21:L33,Y10) -> 2 | AD10: =N10 -> 122 | AE10: =COUNTIF(L34:L47,AD10) -> 4 | AI10: =N10 -> 122 | AJ10: =COUNTIF(L48:L60,AI10) -> 1 | AN10: =N10 -> 122 | AO10: =COUNTIF(L61:L74,AN10) -> 4 | AS10: =N10 -> 122 | AT10: =COUNTIF(L75:L87,AS10) -> 3
A11: 11 | B11: 552 | C11: 11 | D11: 565 | E11: 21 | F11: 578 | K11: 0 | L11: 112 | N11: 211 | O11: =COUNTIF($L$7:$L$500,N11) -> 1 | P11: =O11/$Q$4 -> 0.01234567901 | Q11: =IF(P11=0,0,(P11*((LOG(P11))/LOG(2)))) -> -0.07826975312 | T11: =N11 -> 211 | U11: =COUNTIF(L7:L20,T11) -> 0 | V11: =U11/(W4-U10) -> 0 | W11: =IF(V11=0,0,(V11*((LOG(V11))/LOG(2)))) -> 0 | Y11: =N11 -> 211 | Z11: =COUNTIF(L21:L33,Y11) -> 0 | AA11: =Z11/(AB4-Z10) -> 0 | AB11: =IF(AA11=0,0,(AA11*((LOG(AA11))/LOG(2)))) -> 0 | AD11: =N11 -> 211 | AE11: =COUNTIF(L34:L47,AD11) -> 1 | AF11: =AE11/(AG4-AE10) -> 0.1 | AG11: =IF(AF11=0,0,(AF11*((LOG(AF11))/LOG(2)))) -> -0.3321928095 | AI11: =N11 -> 211 | AJ11: =COUNTIF(L48:L60,AI11) -> 0 | AK11: =AJ11/(AL4-AJ10) -> 0 | AL11: =IF(AK11=0,0,(AK11*((LOG(AK11))/LOG(2)))) -> 0 | AN11: =N11 -> 211 | AO11: =COUNTIF(L61:L74,AN11) -> 0 | AP11: =AO11/(AQ4-AO10) -> 0 | AQ11: =IF(AP11=0,0,(AP11*((LOG(AP11))/LOG(2)))) -> 0 | AS11: =N11 -> 211 | AT11: =COUNTIF(L75:L87,AS11) -> 0 | AU11: =AT11/(AV4-AT10) -> 0 | AV11: =IF(AU11=0,0,(AU11*((LOG(AU11))/LOG(2)))) -> 0
A12: 11 | B12: 683 | C12: 22 | D12: 695 | E12: 23 | F12: 720 | K12: 0 | L12: 122 | N12: 212 | O12: =COUNTIF($L$7:$L$500,N12) -> 2 | P12: =O12/$Q$4 -> 0.02469135802 | Q12: =IF(P12=0,0,(P12*((LOG(P12))/LOG(2)))) -> -0.1318481482 | T12: =N12 -> 212 | U12: =COUNTIF(L7:L20,T12) -> 1 | V12: =U12/(W4-U10) -> 0.1 | W12: =IF(V12=0,0,(V12*((LOG(V12))/LOG(2)))) -> -0.3321928095 | Y12: =N12 -> 212 | Z12: =COUNTIF(L21:L33,Y12) -> 1 | AA12: =Z12/(AB4-Z10) -> 0.09090909091 | AB12: =IF(AA12=0,0,(AA12*((LOG(AA12))/LOG(2)))) -> -0.3144937835 | AD12: =N12 -> 212 | AE12: =COUNTIF(L34:L47,AD12) -> 0 | AF12: =AE12/(AG4-AE10) -> 0 | AG12: =IF(AF12=0,0,(AF12*((LOG(AF12))/LOG(2)))) -> 0 | AI12: =N12 -> 212 | AJ12: =COUNTIF(L48:L60,AI12) -> 0 | AK12: =AJ12/(AL4-AJ10) -> 0 | AL12: =IF(AK12=0,0,(AK12*((LOG(AK12))/LOG(2)))) -> 0 | AN12: =N12 -> 212 | AO12: =COUNTIF(L61:L74,AN12) -> 0 | AP12: =AO12/(AQ4-AO10) -> 0 | AQ12: =IF(AP12=0,0,(AP12*((LOG(AP12))/LOG(2)))) -> 0 | AS12: =N12 -> 212 | AT12: =COUNTIF(L75:L87,AS12) -> 0 | AU12: =AT12/(AV4-AT10) -> 0 | AV12: =IF(AU12=0,0,(AU12*((LOG(AU12))/LOG(2)))) -> 0
A13: 11 | B13: 821 | C13: 11 | D13: 834 | E13: 12 | F13: 848 | K13: 0 | L13: 111 | N13: 221 | O13: =COUNTIF($L$7:$L$500,N13) -> 0 | P13: =O13/$Q$4 -> 0 | Q13: =IF(P13=0,0,(P13*((LOG(P13))/LOG(2)))) -> 0 | T13: =N13 -> 221 | U13: =COUNTIF(L7:L20,T13) -> 0 | V13: =U13/(W4-U10) -> 0 | W13: =IF(V13=0,0,(V13*((LOG(V13))/LOG(2)))) -> 0 | Y13: =N13 -> 221 | Z13: =COUNTIF(L21:L33,Y13) -> 0 | AA13: =Z13/(AB4-Z10) -> 0 | AB13: =IF(AA13=0,0,(AA13*((LOG(AA13))/LOG(2)))) -> 0 | AD13: =N13 -> 221 | AE13: =COUNTIF(L34:L47,AD13) -> 0 | AF13: =AE13/(AG4-AE10) -> 0 | AG13: =IF(AF13=0,0,(AF13*((LOG(AF13))/LOG(2)))) -> 0 | AI13: =N13 -> 221 | AJ13: =COUNTIF(L48:L60,AI13) -> 0 | AK13: =AJ13/(AL4-AJ10) -> 0 | AL13: =IF(AK13=0,0,(AK13*((LOG(AK13))/LOG(2)))) -> 0 | AN13: =N13 -> 221 | AO13: =COUNTIF(L61:L74,AN13) -> 0 | AP13: =AO13/(AQ4-AO10) -> 0 | AQ13: =IF(AP13=0,0,(AP13*((LOG(AP13))/LOG(2)))) -> 0 | AS13: =N13 -> 221 | AT13: =COUNTIF(L75:L87,AS13) -> 0 | AU13: =AT13/(AV4-AT10) -> 0 | AV13: =IF(AU13=0,0,(AU13*((LOG(AU13))/LOG(2)))) -> 0
A14: 11 | B14: 951 | C14: 22 | D14: 964 | E14: 23 | F14: 981 | K14: 0 | L14: 122 | N14: 222 | O14: =COUNTIF($L$7:$L$500,N14) -> 2 | P14: =O14/$Q$4 -> 0.02469135802 | Q14: =IF(P14=0,0,(P14*((LOG(P14))/LOG(2)))) -> -0.1318481482 | T14: =N14 -> 222 | U14: =COUNTIF(L7:L20,T14) -> 2 | V14: =U14/(W4-U10) -> 0.2 | W14: =IF(V14=0,0,(V14*((LOG(V14))/LOG(2)))) -> -0.464385619 | Y14: =N14 -> 222 | Z14: =COUNTIF(L21:L33,Y14) -> 0 | AA14: =Z14/(AB4-Z10) -> 0 | AB14: =IF(AA14=0,0,(AA14*((LOG(AA14))/LOG(2)))) -> 0 | AD14: =N14 -> 222 | AE14: =COUNTIF(L34:L47,AD14) -> 0 | AF14: =AE14/(AG4-AE10) -> 0 | AG14: =IF(AF14=0,0,(AF14*((LOG(AF14))/LOG(2)))) -> 0 | AI14: =N14 -> 222 | AJ14: =COUNTIF(L48:L60,AI14) -> 0 | AK14: =AJ14/(AL4-AJ10) -> 0 | AL14: =IF(AK14=0,0,(AK14*((LOG(AK14))/LOG(2)))) -> 0 | AN14: =N14 -> 222 | AO14: =COUNTIF(L61:L74,AN14) -> 0 | AP14: =AO14/(AQ4-AO10) -> 0 | AQ14: =IF(AP14=0,0,(AP14*((LOG(AP14))/LOG(2)))) -> 0 | AS14: =N14 -> 222 | AT14: =COUNTIF(L75:L87,AS14) -> 0 | AU14: =AT14/(AV4-AT10) -> 0 | AV14: =IF(AU14=0,0,(AU14*((LOG(AU14))/LOG(2)))) -> 0
A15: 11 | B15: 1088 | C15: 22 | D15: 1102 | E15: 14 | F15: 1126 | K15: 0 | L15: 121 | P15: =SUM(P7:P14) -> 1 | Q15: =-SUM(Q7:Q14) -> 2.023294372 | V15: =SUM(V7:V14) -> 1 | W15: =-SUM(W7:W14) -> 2.121928095 | AA15: =SUM(AA7:AA14) -> 1 | AB15: =-SUM(AB7:AB14) -> 0.8658566175 | AF15: =SUM(AF7:AF14) -> 1 | AG15: =-SUM(AG7:AG14) -> 1.356779649 | AK15: =SUM(AK7:AK14) -> 1 | AL15: =-SUM(AL7:AL14) -> 1.28067213 | AP15: =SUM(AP7:AP14) -> 1 | AQ15: =-SUM(AQ7:AQ14) -> 0.7219280949 | AU15: =SUM(AU7:AU14) -> 1 | AV15: =-SUM(AV7:AV14) -> 1.156779649
A16: 11 | B16: 1227 | C16: 22 | D16: 1239 | E16: 14 | F16: 1266 | K16: 0 | L16: 121 | P16: U= | Q16: =Q15/(LOG(Q4)/LOG(2)) -> 0.3191391549 | V16: U1= | W16: =W15/(LOG(W4)/LOG(2)) -> 0.5573234275 | AA16: U2= | AB16: =AB15/(LOG(AB4)/LOG(2)) -> 0.2339874943 | AF16: U3= | AG16: =AG15/(LOG(AG4)/LOG(2)) -> 0.3563575441 | AK16: U4= | AL16: =AL15/(LOG(AL4)/LOG(2)) -> 0.3460864727 | AP16: U5= | AQ16: =AQ15/(LOG(AQ4)/LOG(2)) -> 0.1896140785 | AU16: U6= | AV16: =AV15/(LOG(AV4)/LOG(2)) -> 0.3126059975
A17: 11 | B17: 1380 | C17: 22 | D17: 1392 | E17: 14 | F17: 1406 | K17: 0 | L17: 121
A18: 11 | B18: 1505 | C18: 11 | D18: 1518 | E18: 21 | F18: 1543 | K18: 0 | L18: 112
A19: 11 | B19: 1642 | C19: 22 | D19: 1655 | E19: 23 | F19: 1683 | K19: 0 | L19: 122 | N19: Total Target Seq
A20: 11 | B20: 1792 | C20: 22 | D20: 1817 | E20: 23 | F20: 1829 | K20: 0 | L20: 122 | N20: =COUNTIF(L7:L87,G3) -> 18 | P20: 14 | Q20: 13 | R20: 14 | S20: 13 | T20: 14 | U20: 13
A21: 11 | B21: 1943 | C21: 22 | D21: 1955 | E21: 23 | F21: 1967 | K21: 0 | L21: 122 | P21: % of reinforcement given in 6 equal intervals based on number of trials
A22: 11 | B22: 2071 | C22: 22 | D22: 2084 | E22: 23 | F22: 2109 | K22: 0 | L22: 122 | P22: %_1 | Q22: %_2 | R22: %_3 | S22: %_4 | T22: %_5 | U22: %_6
A23: 22 | B23: 2236 | C23: 13 | D23: 2263 | E23: 23 | F23: 2276 | K23: 0 | L23: 212 | O23: target sequence | P23: =$G$3 -> 122 | Q23: =$G$3 -> 122 | R23: =$G$3 -> 122 | S23: =$G$3 -> 122 | T23: =$G$3 -> 122 | U23: =$G$3 -> 122
A24: 11 | B24: 2374 | C24: 11 | D24: 2388 | E24: 21 | F24: 2400 | K24: 0 | L24: 112 | O24: total reinforcement | P24: =U10 -> 4 | Q24: =Z10 -> 2 | R24: =AE10 -> 4 | S24: =AJ10 -> 1 | T24: =AO10 -> 4 | U24: =AT10 -> 3
A25: 11 | B25: 2492 | C25: 11 | D25: 2505 | E25: 21 | F25: 2518 | K25: 0 | L25: 112 | O25: % target
A26: 11 | B26: 2614 | C26: 11 | D26: 2633 | E26: 21 | F26: 2646 | K26: 0 | L26: 112 | O26: CCRF
A27: 11 | B27: 2739 | C27: 11 | D27: 2752 | E27: 21 | F27: 2765 | K27: 0 | L27: 112 | O27: % CCRf
A28: 11 | B28: 2861 | C28: 11 | D28: 2874 | E28: 21 | F28: 2888 | K28: 0 | L28: 112 | O28: average response rate | P28: =F20/P20 -> 130.6428571 | Q28: =(F33-F20)/Q20 -> 130.8461538 | R28: =(F47-F33)/R20 -> 127.8571429 | S28: =(F60-F47)/S20 -> 128.3846154 | T28: =(F74-F60)/T20 -> 132.2857143 | U28: =(F87-F74)/U20 -> 131
A29: 11 | B29: 2984 | C29: 11 | D29: 2993 | E29: 12 | F29: 3004 | K29: 0 | L29: 111
A30: 11 | B30: 3103 | C30: 11 | D30: 3116 | E30: 21 | F30: 3128 | K30: 0 | L30: 112
A31: 11 | B31: 3226 | C31: 11 | D31: 3248 | E31: 21 | F31: 3260 | K31: 0 | L31: 112
A32: 11 | B32: 3353 | C32: 11 | D32: 3374 | E32: 21 | F32: 3389 | K32: 0 | L32: 112
A33: 11 | B33: 3486 | C33: 11 | D33: 3516 | E33: 21 | F33: 3530 | K33: 0 | L33: 112
A34: 11 | B34: 3624 | C34: 11 | D34: 3636 | E34: 12 | F34: 3649 | K34: 0 | L34: 111
A35: 11 | B35: 3747 | C35: 11 | D35: 3763 | E35: 21 | F35: 3788 | K35: 0 | L35: 112
A36: 11 | B36: 3893 | C36: 22 | D36: 3906 | E36: 23 | F36: 3943 | K36: 0 | L36: 122
A37: 11 | B37: 4041 | C37: 22 | D37: 4054 | E37: 23 | F37: 4065 | K37: 0 | L37: 122
A38: 11 | B38: 4163 | C38: 11 | D38: 4175 | E38: 21 | F38: 4187 | K38: 0 | L38: 112
A39: 11 | B39: 4281 | C39: 22 | D39: 4292 | E39: 23 | F39: 4303 | K39: 0 | L39: 122
A40: 11 | B40: 4401 | C40: 11 | D40: 4422 | E40: 21 | F40: 4434 | K40: 0 | L40: 112
A41: 11 | B41: 4542 | C41: 22 | D41: 4566 | E41: 14 | F41: 4578 | K41: 0 | L41: 121
A42: 22 | B42: 4676 | C42: 13 | D42: 4684 | E42: 14 | F42: 4693 | K42: 0 | L42: 211
A43: 11 | B43: 4791 | C43: 11 | D43: 4806 | E43: 21 | F43: 4820 | K43: 0 | L43: 112
A44: 11 | B44: 4916 | C44: 11 | D44: 4923 | E44: 21 | F44: 4936 | K44: 0 | L44: 112
A45: 11 | B45: 5044 | C45: 22 | D45: 5056 | E45: 23 | F45: 5076 | K45: 0 | L45: 122
A46: 11 | B46: 5182 | C46: 11 | D46: 5184 | E46: 21 | F46: 5196 | K46: 0 | L46: 112
A47: 11 | B47: 5292 | C47: 11 | D47: 5307 | E47: 21 | F47: 5320 | K47: 0 | L47: 112
A48: 11 | B48: 5411 | C48: 11 | D48: 5431 | E48: 21 | F48: 5445 | K48: 0 | L48: 112
A49: 11 | B49: 5537 | C49: 11 | D49: 5550 | E49: 21 | F49: 5562 | K49: 0 | L49: 112
A50: 11 | B50: 5656 | C50: 11 | D50: 5664 | E50: 12 | F50: 5689 | K50: 0 | L50: 111
A51: 11 | B51: 5801 | C51: 22 | D51: 5814 | E51: 14 | F51: 5829 | K51: 0 | L51: 121
A52: 11 | B52: 5928 | C52: 11 | D52: 5937 | E52: 21 | F52: 5950 | K52: 0 | L52: 112
A53: 11 | B53: 6045 | C53: 11 | D53: 6054 | E53: 12 | F53: 6069 | K53: 0 | L53: 111
A54: 11 | B54: 6181 | C54: 22 | D54: 6194 | E54: 23 | F54: 6205 | K54: 0 | L54: 122
A55: 11 | B55: 6301 | C55: 11 | D55: 6310 | E55: 12 | F55: 6322 | K55: 0 | L55: 111
A56: 11 | B56: 6420 | C56: 11 | D56: 6428 | E56: 21 | F56: 6460 | K56: 0 | L56: 112
A57: 11 | B57: 6561 | C57: 11 | D57: 6573 | E57: 12 | F57: 6613 | K57: 0 | L57: 111
A58: 11 | B58: 6712 | C58: 11 | D58: 6726 | E58: 21 | F58: 6739 | K58: 0 | L58: 112
A59: 11 | B59: 6837 | C59: 11 | D59: 6849 | E59: 21 | F59: 6873 | K59: 0 | L59: 112
A60: 11 | B60: 6967 | C60: 11 | D60: 6975 | E60: 21 | F60: 6989 | K60: 0 | L60: 112
A61: 11 | B61: 7086 | C61: 11 | D61: 7094 | E61: 21 | F61: 7106 | K61: 0 | L61: 112
A62: 11 | B62: 7200 | C62: 11 | D62: 7211 | E62: 21 | F62: 7224 | K62: 0 | L62: 112
A63: 11 | B63: 7325 | C63: 22 | D63: 7337 | E63: 23 | F63: 7384 | K63: 0 | L63: 122
A64: 11 | B64: 7485 | C64: 11 | D64: 7494 | E64: 21 | F64: 7540 | K64: 0 | L64: 112
A65: 11 | B65: 7634 | C65: 11 | D65: 7643 | E65: 21 | F65: 7656 | K65: 0 | L65: 112
A66: 11 | B66: 7752 | C66: 11 | D66: 7760 | E66: 21 | F66: 7771 | K66: 0 | L66: 112
A67: 11 | B67: 7876 | C67: 11 | D67: 7885 | E67: 21 | F67: 7899 | K67: 0 | L67: 112
A68: 11 | B68: 7996 | C68: 11 | D68: 8003 | E68: 12 | F68: 8005 | K68: 0 | L68: 111
A69: 11 | B69: 8101 | C69: 22 | D69: 8136 | E69: 23 | F69: 8148 | K69: 0 | L69: 122
A70: 11 | B70: 8253 | C70: 22 | D70: 8265 | E70: 23 | F70: 8297 | K70: 0 | L70: 122
A71: 11 | B71: 8397 | C71: 11 | D71: 8405 | E71: 21 | F71: 8419 | K71: 0 | L71: 112
A72: 11 | B72: 8515 | C72: 22 | D72: 8529 | E72: 23 | F72: 8541 | K72: 0 | L72: 122
A73: 11 | B73: 8661 | C73: 11 | D73: 8674 | E73: 21 | F73: 8685 | K73: 0 | L73: 112
A74: 11 | B74: 8779 | C74: 11 | D74: 8787 | E74: 12 | F74: 8841 | K74: 0 | L74: 111
A75: 11 | B75: 8948 | C75: 22 | D75: 8975 | E75: 23 | F75: 9018 | K75: 0 | L75: 122
A76: 11 | B76: 9119 | C76: 22 | D76: 9156 | E76: 23 | F76: 9167 | K76: 0 | L76: 122
A77: 11 | B77: 9264 | C77: 11 | D77: 9272 | E77: 21 | F77: 9284 | K77: 0 | L77: 112
A78: 11 | B78: 9385 | C78: 11 | D78: 9406 | E78: 21 | F78: 9418 | K78: 0 | L78: 112
A79: 11 | B79: 9511 | C79: 22 | D79: 9522 | E79: 23 | F79: 9538 | K79: 0 | L79: 122
A80: 11 | B80: 9649 | C80: 11 | D80: 9661 | E80: 12 | F80: 9690 | K80: 0 | L80: 111
A81: 11 | B81: 9787 | C81: 11 | D81: 9794 | E81: 21 | F81: 9804 | K81: 0 | L81: 112
A82: 11 | B82: 9908 | C82: 11 | D82: 9915 | E82: 12 | F82: 9933 | K82: 0 | L82: 111
A83: 11 | B83: 10032 | C83: 11 | D83: 10040 | E83: 21 | F83: 10054 | K83: 0 | L83: 112
A84: 11 | B84: 10154 | C84: 11 | D84: 10162 | E84: 21 | F84: 10174 | K84: 0 | L84: 112
A85: 11 | B85: 10265 | C85: 11 | D85: 10277 | E85: 21 | F85: 10290 | K85: 0 | L85: 112
A86: 11 | B86: 10389 | C86: 22 | D86: 10400 | E86: 14 | F86: 10412 | K86: 0 | L86: 121
A87: 11 | B87: 10511 | C87: 11 | D87: 10519 | E87: 21 | F87: 10544 | K87: 1 | L87: 112

Sheet !M606930.103
A1: Report for:!M606930.103
A2: Date: | B2: <date>
A3: Hen: | B3: <hen> | F3: Correct Sequence | G3: =Start!J2 -> 122 | P3: Total Sequences in Data | Q3: =4994-COUNTBLANK(L7:L5000) -> 95 | V3: Total Sequences in Block Data | W3: =COUNTA(L7:L22) -> 16 | AA3: Total Sequences in Block Data | AB3: =COUNTA(L23:L38) -> 16 | AF3: Total Sequences in Block Data | AG3: =COUNTA(L39:L53) -> 15 | AK3: Total Sequences in Block Data | AL3: =COUNTA(L54:L69) -> 16 | AP3: Total Sequences in Block Data | AQ3: =COUNTA(L70:L85) -> 16 | AU3: Total Sequences in Block Data | AV3: =COUNTA(L86:L101) -> 16
P4: Total Sequences in Summary | Q4: =SUM(O7:O14) -> 95 | V4: Total Sequences in Block Summary | W4: =SUM(U7:U14) -> 16 | AA4: Total Sequences in Block Summary | AB4: =SUM(Z7:Z14) -> 16 | AF4: Total Sequences in Block Summary | AG4: =SUM(AE7:AE14) -> 15 | AK4: Total Sequences in Block Summary | AL4: =SUM(AJ7:AJ14) -> 16 | AP4: Total Sequences in Block Summary | AQ4: =SUM(AO7:AO14) -> 16 | AU4: Total Sequences in Block Summary | AV4: =SUM(AT7:AT14) -> 16
T5: Block 1 | Y5: Block 2 | AD5: Block 3 | AI5: Block 4 | AN5: Block 5 | AS5: Block 6
A6: Sequence Component 1 | B6: Time 1 | C6: Sequence Component 2 | D6: Time 2 | E6: Sequence Component 3 | F6: Time 3 | G6: Sequence Component 4 | H6: Time 4 | I6: Sequence Component 5 | J6: Time 5 | K6: Correct? 0=No 1=Yes | L6: Sequence | N6: Frequency | P6: Relative Frequency | Q6: Variability | T6: Frequency | V6: Relative Frequency | W6: Variability | Y6: Frequency | AA6: Relative Frequency | AB6: Variability | AD6: Frequency | AF6: Relative Frequency | AG6: Variability | AI6: Frequency | AK6: Relative Frequency | AL6: Variability | AN6: Frequency | AP6: Relative Frequency | AQ6: Variability | AS6: Frequency | AU6: Relative Frequency | AV6: Variability
A7: 22 | B7: 32 | C7: 13 | D7: 45 | E7: 23 | F7: 58 | K7: 0 | L7: 212 | N7: 111 | O7: =COUNTIF($L$7:$L$500,N7) -> 15 | P7: =O7/$Q$4 -> 0.1578947368 | Q7: =IF(P7=0,0,(P7*((LOG(P7))/LOG(2)))) -> -0.4204681599 | T7: =N7 -> 111 | U7: =COUNTIF(L7:L22,T7) -> 0 | V7: =U7/(W4-U10) -> 0 | W7: =IF(V7=0,0,(V7*((LOG(V7))/LOG(2)))) -> 0 | Y7: =N7 -> 111 | Z7: =COUNTIF(L23:L38,Y7) -> 1 | AA7: =Z7/(AB4-Z10) -> 0.07692307692 | AB7: =IF(AA7=0,0,(AA7*((LOG(AA7))/LOG(2)))) -> -0.2846492091 | AD7: =N7 -> 111 | AE7: =COUNTIF(L39:L53,AD7) -> 3 | AF7: =AE7/(AG4-AE10) -> 0.25 | AG7: =IF(AF7=0,0,(AF7*((LOG(AF7))/LOG(2)))) -> -0.5 | AI7: =N7 -> 111 | AJ7: =COUNTIF(L54:L69,AI7) -> 6 | AK7: =AJ7/(AL4-AJ10) -> 0.4 | AL7: =IF(AK7=0,0,(AK7*((LOG(AK7))/LOG(2)))) -> -0.528771238 | AN7: =N7 -> 111 | AO7: =COUNTIF(L70:L85,AN7) -> 4 | AP7: =AO7/(AQ4-AO10) -> 0.3333333333 | AQ7: =IF(AP7=0,0,(AP7*((LOG(AP7))/LOG(2)))) -> -0.5283208336 | AS7: =N7 -> 111 | AT7: =COUNTIF(L86:L101,AS7) -> 1 | AU7: =AT7/(AV4-AT10) -> 0.1111111111 | AV7: =IF(AU7=0,0,(AU7*((LOG(AU7))/LOG(2)))) -> -0.352213889
A8: 11 | B8: 165 | C8: 22 | D8: 175 | E8: 14 | F8: 188 | K8: 0 | L8: 121 | N8: 112 | O8: =COUNTIF($L$7:$L$500,N8) -> 40 | P8: =O8/$Q$4 -> 0.4210526316 | Q8: =IF(P8=0,0,(P8*((LOG(P8))/LOG(2)))) -> -0.5254431636 | T8: =N8 -> 112 | U8: =COUNTIF(L7:L22,T8) -> 5 | V8: =U8/(W4-U10) -> 0.4545454545 | W8: =IF(V8=0,0,(V8*((LOG(V8))/LOG(2)))) -> -0.5170470562 | Y8: =N8 -> 112 | Z8: =COUNTIF(L23:L38,Y8) -> 11 | AA8: =Z8/(AB4-Z10) -> 0.8461538462 | AB8: =IF(AA8=0,0,(AA8*((LOG(AA8))/LOG(2)))) -> -0.2039299303 | AD8: =N8 -> 112 | AE8: =COUNTIF(L39:L53,AD8) -> 9 | AF8: =AE8/(AG4-AE10) -> 0.75 | AG8: =IF(AF8=0,0,(AF8*((LOG(AF8))/LOG(2)))) -> -0.3112781245 | AI8: =N8 -> 112 | AJ8: =COUNTIF(L54:L69,AI8) -> 8 | AK8: =AJ8/(AL4-AJ10) -> 0.5333333333 | AL8: =IF(AK8=0,0,(AK8*((LOG(AK8))/LOG(2)))) -> -0.4836749843 | AN8: =N8 -> 112 | AO8: =COUNTIF(L70:L85,AN8) -> 1 | AP8: =AO8/(AQ4-AO10) -> 0.08333333333 | AQ8: =IF(AP8=0,0,(AP8*((LOG(AP8))/LOG(2)))) -> -0.2987468751 | AS8: =N8 -> 112 | AT8: =COUNTIF(L86:L101,AS8) -> 6 | AU8: =AT8/(AV4-AT10) -> 0.6666666667 | AV8: =IF(AU8=0,0,(AU8*((LOG(AU8))/LOG(2)))) -> -0.3899750005
A9: 11 | B9: 294 | C9: 22 | D9: 308 | E9: 14 | F9: 321 | K9: 0 | L9: 121 | N9: 121 | O9: =COUNTIF($L$7:$L$500,N9) -> 15 | P9: =O9/$Q$4 -> 0.1578947368 | Q9: =IF(P9=0,0,(P9*((LOG(P9))/LOG(2)))) -> -0.4204681599 | T9: =N9 -> 121 | U9: =COUNTIF(L7:L22,T9) -> 4 | V9: =U9/(W4-U10) -> 0.3636363636 | W9: =IF(V9=0,0,(V9*((LOG(V9))/LOG(2)))) -> -0.5307024068 | Y9: =N9 -> 121 | Z9: =COUNTIF(L23:L38,Y9) -> 1 | AA9: =Z9/(AB4-Z10) -> 0.07692307692 | AB9: =IF(AA9=0,0,(AA9*((LOG(AA9))/LOG(2)))) -> -0.2846492091 | AD9: =N9 -> 121 | AE9: =COUNTIF(L39:L53,AD9) -> 0 | AF9: =AE9/(AG4-AE10) -> 0 | AG9: =IF(AF9=0,0,(AF9*((LOG(AF9))/LOG(2)))) -> 0 | AI9: =N9 -> 121 | AJ9: =COUNTIF(L54:L69,AI9) -> 1 | AK9: =AJ9/(AL4-AJ10) -> 0.06666666667 | AL9: =IF(AK9=0,0,(AK9*((LOG(AK9))/LOG(2)))) -> -0.260459373 | AN9: =N9 -> 121 | AO9: =COUNTIF(L70:L85,AN9) -> 7 | AP9: =AO9/(AQ4-AO10) -> 0.5833333333 | AQ9: =IF(AP9=0,0,(AP9*((LOG(AP9))/LOG(2)))) -> -0.4536044209 | AS9: =N9 -> 121 | AT9: =COUNTIF(L86:L101,AS9) -> 2 | AU9: =AT9/(AV4-AT10) -> 0.2222222222 | AV9: =IF(AU9=0,0,(AU9*((LOG(AU9))/LOG(2)))) -> -0.4822055559
A10: 11 | B10: 422 | C10: 22 | D10: 435 | E10: 23 | F10: 452 | K10: 0 | L10: 122 | N10: 122 | O10: =COUNTIF($L$7:$L$500,N10) -> 23 | P10: =O10/$Q$4 -> 0.2421052632 | Q10: =IF(P10=0,0,(P10*((LOG(P10))/LOG(2)))) -> -0.4954184632 | T10: =N10 -> 122 | U10: =COUNTIF(L7:L22,T10) -> 5 | Y10: =N10 -> 122 | Z10: =COUNTIF(L23:L38,Y10) -> 3 | AD10: =N10 -> 122 | AE10: =COUNTIF(L39:L53,AD10) -> 3 | AI10: =N10 -> 122 | AJ10: =COUNTIF(L54:L69,AI10) -> 1 | AN10: =N10 -> 122 | AO10: =COUNTIF(L70:L85,AN10) -> 4 | AS10: =N10 -> 122 | AT10: =COUNTIF(L86:L101,AS10) -> 7
A11: 11 | B11: 554 | C11: 22 | D11: 566 | E11: 23 | F11: 579 | K11: 0 | L11: 122 | N11: 211 | O11: =COUNTIF($L$7:$L$500,N11) -> 0 | P11: =O11/$Q$4 -> 0 | Q11: =IF(P11=0,0,(P11*((LOG(P11))/LOG(2)))) -> 0 | T11: =N11 -> 211 | U11: =COUNTIF(L7:L22,T11) -> 0 | V11: =U11/(W4-U10) -> 0 | W11: =IF(V11=0,0,(V11*((LOG(V11))/LOG(2)))) -> 0 | Y11: =N11 -> 211 | Z11: =COUNTIF(L23:L38,Y11) -> 0 | AA11: =Z11/(AB4-Z10) -> 0 | AB11: =IF(AA11=0,0,(AA11*((LOG(AA11))/LOG(2)))) -> 0 | AD11: =N11 -> 211 | AE11: =COUNTIF(L39:L53,AD11) -> 0 | AF11: =AE11/(AG4-AE10) -> 0 | AG11: =IF(AF11=0,0,(AF11*((LOG(AF11))/LOG(2)))) -> 0 | AI11: =N11 -> 211 | AJ11: =COUNTIF(L54:L69,AI11) -> 0 | AK11: =AJ11/(AL4-AJ10) -> 0 | AL11: =IF(AK11=0,0,(AK11*((LOG(AK11))/LOG(2)))) -> 0 | AN11: =N11 -> 211 | AO11: =COUNTIF(L70:L85,AN11) -> 0 | AP11: =AO11/(AQ4-AO10) -> 0 | AQ11: =IF(AP11=0,0,(AP11*((LOG(AP11))/LOG(2)))) -> 0 | AS11: =N11 -> 211 | AT11: =COUNTIF(L86:L101,AS11) -> 0 | AU11: =AT11/(AV4-AT10) -> 0 | AV11: =IF(AU11=0,0,(AU11*((LOG(AU11))/LOG(2)))) -> 0
A12: 11 | B12: 686 | C12: 22 | D12: 700 | E12: 14 | F12: 712 | K12: 0 | L12: 121 | N12: 212 | O12: =COUNTIF($L$7:$L$500,N12) -> 1 | P12: =O12/$Q$4 -> 0.01052631579 | Q12: =IF(P12=0,0,(P12*((LOG(P12))/LOG(2)))) -> -0.06915637482 | T12: =N12 -> 212 | U12: =COUNTIF(L7:L22,T12) -> 1 | V12: =U12/(W4-U10) -> 0.09090909091 | W12: =IF(V12=0,0,(V12*((LOG(V12))/LOG(2)))) -> -0.3144937835 | Y12: =N12 -> 212 | Z12: =COUNTIF(L23:L38,Y12) -> 0 | AA12: =Z12/(AB4-Z10) -> 0 | AB12: =IF(AA12=0,0,(AA12*((LOG(AA12))/LOG(2)))) -> 0 | AD12: =N12 -> 212 | AE12: =COUNTIF(L39:L53,AD12) -> 0 | AF12: =AE12/(AG4-AE10) -> 0 | AG12: =IF(AF12=0,0,(AF12*((LOG(AF12))/LOG(2)))) -> 0 | AI12: =N12 -> 212 | AJ12: =COUNTIF(L54:L69,AI12) -> 0 | AK12: =AJ12/(AL4-AJ10) -> 0 | AL12: =IF(AK12=0,0,(AK12*((LOG(AK12))/LOG(2)))) -> 0 | AN12: =N12 -> 212 | AO12: =COUNTIF(L70:L85,AN12) -> 0 | AP12: =AO12/(AQ4-AO10) -> 0 | AQ12: =IF(AP12=0,0,(AP12*((LOG(AP12))/LOG(2)))) -> 0 | AS12: =N12 -> 212 | AT12: =COUNTIF(L86:L101,AS12) -> 0 | AU12: =AT12/(AV4-AT10) -> 0 | AV12: =IF(AU12=0,0,(AU12*((LOG(AU12))/LOG(2)))) -> 0
A13: 11 | B13: 812 | C13: 22 | D13: 826 | E13: 14 | F13: 853 | K13: 0 | L13: 121 | N13: 221 | O13: =COUNTIF($L$7:$L$500,N13) -> 0 | P13: =O13/$Q$4 -> 0 | Q13: =IF(P13=0,0,(P13*((LOG(P13))/LOG(2)))) -> 0 | T13: =N13 -> 221 | U13: =COUNTIF(L7:L22,T13) -> 0 | V13: =U13/(W4-U10) -> 0 | W13: =IF(V13=0,0,(V13*((LOG(V13))/LOG(2)))) -> 0 | Y13: =N13 -> 221 | Z13: =COUNTIF(L23:L38,Y13) -> 0 | AA13: =Z13/(AB4-Z10) -> 0 | AB13: =IF(AA13=0,0,(AA13*((LOG(AA13))/LOG(2)))) -> 0 | AD13: =N13 -> 221 | AE13: =COUNTIF(L39:L53,AD13) -> 0 | AF13: =AE13/(AG4-AE10) -> 0 | AG13: =IF(AF13=0,0,(AF13*((LOG(AF13))/LOG(2)))) -> 0 | AI13: =N13 -> 221 | AJ13: =COUNTIF(L54:L69,AI13) -> 0 | AK13: =AJ13/(AL4-AJ10) -> 0 | AL13: =IF(AK13=0,0,(AK13*((LOG(AK13))/LOG(2)))) -> 0 | AN13: =N13 -> 221 | AO13: =COUNTIF(L70:L85,AN13) -> 0 | AP13: =AO13/(AQ4-AO10) -> 0 | AQ13: =IF(AP13=0,0,(AP13*((LOG(AP13))/LOG(2)))) -> 0 | AS13: =N13 -> 221 | AT13: =COUNTIF(L86:L101,AS13) -> 0 | AU13: =AT13/(AV4-AT10) -> 0 | AV13: =IF(AU13=0,0,(AU13*((LOG(AU13))/LOG(2)))) -> 0
A14: 11 | B14: 971 | C14: 22 | D14: 983 | E14: 23 | F14: 996 | K14: 0 | L14: 122 | N14: 222 | O14: =COUNTIF($L$7:$L$500,N14) -> 1 | P14: =O14/$Q$4 -> 0.01052631579 | Q14: =IF(P14=0,0,(P14*((LOG(P14))/LOG(2)))) -> -0.06915637482 | T14: =N14 -> 222 | U14: =COUNTIF(L7:L22,T14) -> 1 | V14: =U14/(W4-U10) -> 0.09090909091 | W14: =IF(V14=0,0,(V14*((LOG(V14))/LOG(2)))) -> -0.3144937835 | Y14: =N14 -> 222 | Z14: =COUNTIF(L23:L38,Y14) -> 0 | AA14: =Z14/(AB4-Z10) -> 0 | AB14: =IF(AA14=0,0,(AA14*((LOG(AA14))/LOG(2)))) -> 0 | AD14: =N14 -> 222 | AE14: =COUNTIF(L39:L53,AD14) -> 0 | AF14: =AE14/(AG4-AE10) -> 0 | AG14: =IF(AF14=0,0,(AF14*((LOG(AF14))/LOG(2)))) -> 0 | AI14: =N14 -> 222 | AJ14: =COUNTIF(L54:L69,AI14) -> 0 | AK14: =AJ14/(AL4-AJ10) -> 0 | AL14: =IF(AK14=0,0,(AK14*((LOG(AK14))/LOG(2)))) -> 0 | AN14: =N14 -> 222 | AO14: =COUNTIF(L70:L85,AN14) -> 0 | AP14: =AO14/(AQ4-AO10) -> 0 | AQ14: =IF(AP14=0,0,(AP14*((LOG(AP14))/LOG(2)))) -> 0 | AS14: =N14 -> 222 | AT14: =COUNTIF(L86:L101,AS14) -> 0 | AU14: =AT14/(AV4-AT10) -> 0 | AV14: =IF(AU14=0,0,(AU14*((LOG(AU14))/LOG(2)))) -> 0
A15: 11 | B15: 1094 | C15: 11 | D15: 1113 | E15: 21 | F15: 1126 | K15: 0 | L15: 112 | P15: =SUM(P7:P14) -> 1 | Q15: =-SUM(Q7:Q14) -> 2.000110696 | V15: =SUM(V7:V14) -> 1 | W15: =-SUM(W7:W14) -> 1.67673703 | AA15: =SUM(AA7:AA14) -> 1 | AB15: =-SUM(AB7:AB14) -> 0.7732283485 | AF15: =SUM(AF7:AF14) -> 1 | AG15: =-SUM(AG7:AG14) -> 0.8112781245 | AK15: =SUM(AK7:AK14) -> 1 | AL15: =-SUM(AL7:AL14) -> 1.272905595 | AP15: =SUM(AP7:AP14) -> 1 | AQ15: =-SUM(AQ7:AQ14) -> 1.28067213 | AU15: =SUM(AU7:AU14) -> 1 | AV15: =-SUM(AV7:AV14) -> 1.224394445
A16: 11 | B16: 1221 | C16: 11 | D16: 1235 | E16: 21 | F16: 1248 | K16: 0 | L16: 112 | P16: U= | Q16: =Q15/(LOG(Q4)/LOG(2)) -> 0.3044375425 | V16: U1= | W16: =W15/(LOG(W4)/LOG(2)) -> 0.4191842575 | AA16: U2= | AB16: =AB15/(LOG(AB4)/LOG(2)) -> 0.1933070871 | AF16: U3= | AG16: =AG15/(LOG(AG4)/LOG(2)) -> 0.2076531463 | AK16: U4= | AL16: =AL15/(LOG(AL4)/LOG(2)) -> 0.3182263988 | AP16: U5= | AQ16: =AQ15/(LOG(AQ4)/LOG(2)) -> 0.3201680324 | AU16: U6= | AV16: =AV15/(LOG(AV4)/LOG(2)) -> 0.3060986114
A17: 11 | B17: 1347 | C17: 22 | D17: 1360 | E17: 23 | F17: 1372 | K17: 0 | L17: 122
A18: 22 | B18: 1478 | C18: 24 | D18: 1558 | E18: 23 | F18: 1578 | K18: 0 | L18: 222
A19: 11 | B19: 1678 | C19: 11 | D19: 1690 | E19: 21 | F19: 1729 | K19: 0 | L19: 112 | N19: Total Target Seq
A20: 11 | B20: 1824 | C20: 11 | D20: 1837 | E20: 21 | F20: 1870 | K20: 0 | L20: 112 | N20: =COUNTIF(L7:L101,G3) -> 23 | P20: 16 | Q20: 16 | R20: 15 | S20: 16 | T20: 16 | U20: 16
A21: 11 | B21: 1965 | C21: 11 | D21: 1978 | E21: 21 | F21: 1990 | K21: 0 | L21: 112 | P21: % of reinforcement given in 6 equal intervals based on number of trials
A22: 11 | B22: 2083 | C22: 22 | D22: 2104 | E22: 23 | F22: 2121 | K22: 0 | L22: 122 | P22: %_1 | Q22: %_2 | R22: %_3 | S22: %_4 | T22: %_5 | U22: %_6
A23: 11 | B23: 2233 | C23: 22 | D23: 2246 | E23: 23 | F23: 2257 | K23: 0 | L23: 122 | O23: target sequence | P23: =$G$3 -> 122 | Q23: =$G$3 -> 122 | R23: =$G$3 -> 122 | S23: =$G$3 -> 122 | T23: =$G$3 -> 122 | U23: =$G$3 -> 122
A24: 11 | B24: 2355 | C24: 11 | D24: 2363 | E24: 21 | F24: 2376 | K24: 0 | L24: 112 | O24: total reinforcement | P24: =U10 -> 5 | Q24: =Z10 -> 3 | R24: =AE10 -> 3 | S24: =AJ10 -> 1 | T24: =AO10 -> 4 | U24: =AT10 -> 7
A25: 11 | B25: 2470 | C25: 11 | D25: 2481 | E25: 21 | F25: 2495 | K25: 0 | L25: 112 | O25: % target
A26: 11 | B26: 2592 | C26: 11 | D26: 2601 | E26: 21 | F26: 2613 | K26: 0 | L26: 112 | O26: CCRF
A27: 11 | B27: 2714 | C27: 22 | D27: 2728 | E27: 23 | F27: 2740 | K27: 0 | L27: 122 | O27: % CCRf
A28: 11 | B28: 2837 | C28: 11 | D28: 2854 | E28: 21 | F28: 2867 | K28: 0 | L28: 112 | O28: average response rate | P28: =F22/P20 -> 132.5625 | Q28: =(F38-F22)/Q20 -> 130.375 | R28: =(F53-F38)/R20 -> 140.2 | S28: =(F69-F53)/S20 -> 125.5625 | T28: =(F85-F69)/T20 -> 135.125 | U28: =(F101-F85)/U20 -> 145.3125
A29: 11 | B29: 2970 | C29: 22 | D29: 3007 | E29: 14 | F29: 3039 | K29: 0 | L29: 121
A30: 11 | B30: 3140 | C30: 11 | D30: 3152 | E30: 21 | F30: 3165 | K30: 0 | L30: 112
A31: 11 | B31: 3260 | C31: 11 | D31: 3281 | E31: 21 | F31: 3304 | K31: 0 | L31: 112
A32: 11 | B32: 3395 | C32: 11 | D32: 3403 | E32: 21 | F32: 3415 | K32: 0 | L32: 112
A33: 11 | B33: 3510 | C33: 11 | D33: 3518 | E33: 21 | F33: 3531 | K33: 0 | L33: 112
A34: 11 | B34: 3625 | C34: 11 | D34: 3633 | E34: 21 | F34: 3645 | K34: 0 | L34: 112
A35: 11 | B35: 3736 | C35: 11 | D35: 3762 | E35: 21 | F35: 3787 | K35: 0 | L35: 112
A36: 11 | B36: 3894 | C36: 22 | D36: 3908 | E36: 23 | F36: 3919 | K36: 0 | L36: 122
A37: 11 | B37: 4016 | C37: 11 | D37: 4024 | E37: 21 | F37: 4036 | K37: 0 | L37: 112
A38: 11 | B38: 4137 | C38: 11 | D38: 4144 | E38: 12 | F38: 4207 | K38: 0 | L38: 111
A39: 11 | B39: 4310 | C39: 22 | D39: 4324 | E39: 23 | F39: 4388 | K39: 0 | L39: 122
A40: 11 | B40: 4497 | C40: 11 | D40: 4509 | E40: 21 | F40: 4521 | K40: 0 | L40: 112
A41: 11 | B41: 4621 | C41: 11 | D41: 4628 | E41: 21 | F41: 4640 | K41: 0 | L41: 112
A42: 11 | B42: 4736 | C42: 11 | D42: 4743 | E42: 21 | F42: 4765 | K42: 0 | L42: 112
A43: 11 | B43: 4861 | C43: 11 | D43: 4869 | E43: 12 | F43: 4941 | K43: 0 | L43: 111
A44: 11 | B44: 5040 | C44: 11 | D44: 5048 | E44: 21 | F44: 5060 | K44: 0 | L44: 112
A45: 11 | B45: 5157 | C45: 11 | D45: 5181 | E45: 12 | F45: 5190 | K45: 0 | L45: 111
A46: 11 | B46: 5293 | C46: 11 | D46: 5301 | E46: 21 | F46: 5325 | K46: 0 | L46: 112
A47: 11 | B47: 5419 | C47: 11 | D47: 5426 | E47: 21 | F47: 5438 | K47: 0 | L47: 112
A48: 11 | B48: 5534 | C48: 11 | D48: 5541 | E48: 21 | F48: 5554 | K48: 0 | L48: 112
A49: 11 | B49: 5662 | C49: 22 | D49: 5675 | E49: 23 | F49: 5686 | K49: 0 | L49: 122
A50: 11 | B50: 5790 | C50: 22 | D50: 5803 | E50: 23 | F50: 5834 | K50: 0 | L50: 122
A51: 11 | B51: 5947 | C51: 11 | D51: 6003 | E51: 21 | F51: 6015 | K51: 0 | L51: 112
A52: 11 | B52: 6114 | C52: 11 | D52: 6121 | E52: 21 | F52: 6134 | K52: 0 | L52: 112
A53: 11 | B53: 6230 | C53: 11 | D53: 6238 | E53: 12 | F53: 6310 | K53: 0 | L53: 111
A54: 11 | B54: 6417 | C54: 11 | D54: 6424 | E54: 21 | F54: 6455 | K54: 0 | L54: 112
A55: 11 | B55: 6550 | C55: 11 | D55: 6558 | E55: 12 | F55: 6594 | K55: 0 | L55: 111
A56: 11 | B56: 6694 | C56: 11 | D56: 6702 | E56: 12 | F56: 6708 | K56: 0 | L56: 111
A57: 11 | B57: 6805 | C57: 11 | D57: 6817 | E57: 21 | F57: 6830 | K57: 0 | L57: 112
A58: 11 | B58: 6922 | C58: 11 | D58: 6930 | E58: 12 | F58: 6940 | K58: 0 | L58: 111
A59: 11 | B59: 7041 | C59: 22 | D59: 7053 | E59: 14 | F59: 7077 | K59: 0 | L59: 121
A60: 11 | B60: 7173 | C60: 11 | D60: 7185 | E60: 21 | F60: 7198 | K60: 0 | L60: 112
A61: 11 | B61: 7294 | C61: 11 | D61: 7301 | E61: 21 | F61: 7313 | K61: 0 | L61: 112
A62: 11 | B62: 7406 | C62: 11 | D62: 7413 | E62: 12 | F62: 7418 | K62: 0 | L62: 111
A63: 11 | B63: 7520 | C63: 11 | D63: 7528 | E63: 21 | F63: 7540 | K63: 0 | L63: 112
A64: 11 | B64: 7636 | C64: 11 | D64: 7644 | E64: 21 | F64: 7655 | K64: 0 | L64: 112
A65: 11 | B65: 7749 | C65: 11 | D65: 7758 | E65: 12 | F65: 7786 | K65: 0 | L65: 111
A66: 11 | B66: 7895 | C66: 11 | D66: 7902 | E66: 21 | F66: 7914 | K66: 0 | L66: 112
A67: 11 | B67: 8012 | C67: 11 | D67: 8020 | E67: 12 | F67: 8054 | K67: 0 | L67: 111
A68: 11 | B68: 8150 | C68: 11 | D68: 8158 | E68: 21 | F68: 8172 | K68: 0 | L68: 112
A69: 11 | B69: 8286 | C69: 22 | D69: 8302 | E69: 23 | F69: 8319 | K69: 0 | L69: 122
A70: 11 | B70: 8421 | C70: 22 | D70: 8433 | E70: 14 | F70: 8452 | K70: 0 | L70: 121
A71: 11 | B71: 8549 | C71: 11 | D71: 8556 | E71: 21 | F71: 8566 | K71: 0 | L71: 112
A72: 11 | B72: 8670 | C72: 22 | D72: 8682 | E72: 14 | F72: 8698 | K72: 0 | L72: 121
A73: 11 | B73: 8810 | C73: 22 | D73: 8823 | E73: 14 | F73: 8841 | K73: 0 | L73: 121
A74: 11 | B74: 8938 | C74: 22 | D74: 8951 | E74: 23 | F74: 8965 | K74: 0 | L74: 122
A75: 11 | B75: 9064 | C75: 11 | D75: 9071 | E75: 12 | F75: 9103 | K75: 0 | L75: 111
A76: 11 | B76: 9201 | C76: 11 | D76: 9208 | E76: 12 | F76: 9215 | K76: 0 | L76: 111
A77: 11 | B77: 9321 | C77: 22 | D77: 9334 | E77: 14 | F77: 9350 | K77: 0 | L77: 121
A78: 11 | B78: 9456 | C78: 22 | D78: 9467 | E78: 23 | F78: 9482 | K78: 0 | L78: 122
A79: 11 | B79: 9632 | C79: 22 | D79: 9644 | E79: 23 | F79: 9654 | K79: 0 | L79: 122
A80: 11 | B80: 9760 | C80: 22 | D80: 9771 | E80: 14 | F80: 9786 | K80: 0 | L80: 121
A81: 11 | B81: 9892 | C81: 22 | D81: 9903 | E81: 23 | F81: 9913 | K81: 0 | L81: 122
A82: 11 | B82: 10036 | C82: 22 | D82: 10047 | E82: 14 | F82: 10107 | K82: 0 | L82: 121
A83: 11 | B83: 10209 | C83: 22 | D83: 10220 | E83: 14 | F83: 10232 | K83: 0 | L83: 121
A84: 11 | B84: 10335 | C84: 11 | D84: 10350 | E84: 12 | F84: 10364 | K84: 0 | L84: 111
A85: 11 | B85: 10463 | C85: 11 | D85: 10470 | E85: 12 | F85: 10481 | K85: 0 | L85: 111
A86: 11 | B86: 10606 | C86: 22 | D86: 10617 | E86: 23 | F86: 10636 | K86: 0 | L86: 122
A87: 11 | B87: 10744 | C87: 22 | D87: 10762 | E87: 23 | F87: 10776 | K87: 0 | L87: 122
A88: 11 | B88: 10909 | C88: 11 | D88: 10932 | E88: 21 | F88: 10954 | K88: 0 | L88: 112
A89: 11 | B89: 11054 | C89: 22 | D89: 11078 | E89: 23 | F89: 11095 | K89: 0 | L89: 122
A90: 11 | B90: 11240 | C90: 22 | D90: 11255 | E90: 23 | F90: 11270 | K90: 0 | L90: 122
A91: 11 | B91: 11378 | C91: 22 | D91: 11390 | E91: 23 | F91: 11401 | K91: 0 | L91: 122
A92: 11 | B92: 11501 | C92: 22 | D92: 11524 | E92: 14 | F92: 11545 | K92: 0 | L92: 121
A93: 11 | B93: 11661 | C93: 11 | D93: 11663 | E93: 21 | F93: 11673 | K93: 0 | L93: 112
A94: 11 | B94: 11772 | C94: 11 | D94: 11781 | E94: 21 | F94: 11792 | K94: 0 | L94: 112
A95: 11 | B95: 11891 | C95: 11 | D95: 11899 | E95: 21 | F95: 11911 | K95: 0 | L95: 112
A96: 11 | B96: 12003 | C96: 22 | D96: 12018 | E96: 14 | F96: 12062 | K96: 0 | L96: 121
A97: 11 | B97: 12165 | C97: 11 | D97: 12173 | E97: 12 | F97: 12186 | K97: 0 | L97: 111
A98: 11 | B98: 12283 | C98: 11 | D98: 12291 | E98: 21 | F98: 12317 | K98: 0 | L98: 112
A99: 11 | B99: 12492 | C99: 22 | D99: 12507 | E99: 23 | F99: 12524 | K99: 0 | L99: 122
A100: 11 | B100: 12650 | C100: 22 | D100: 12662 | E100: 23 | F100: 12680 | K100: 0 | L100: 122
A101: 11 | B101: 12782 | C101: 11 | D101: 12791 | E101: 21 | F101: 12806 | K101: 1 | L101: 112

Sheet !M607940.103
A1: Report for:!M607940.103
A2: Date: | B2: <date>
A3: Hen: | B3: <hen> | F3: Correct Sequence | G3: =Start!J2 -> 122 | P3: Total Sequences in Data | Q3: =4994-COUNTBLANK(L7:L5000) -> 82 | V3: Total Sequences in Block Data | W3: =COUNTA(L7:L20) -> 14 | AA3: Total Sequences in Block Data | AB3: =COUNTA(L21:L33) -> 13 | AF3: Total Sequences in Block Data | AG3: =COUNTA(L34:L47) -> 14 | AK3: Total Sequences in Block Data | AL3: =COUNTA(L48:L61) -> 14 | AP3: Total Sequences in Block Data | AQ3: =COUNTA(L62:L74) -> 13 | AU3: Total Sequences in Block Data | AV3: =COUNTA(L75:L88) -> 14
P4: Total Sequences in Summary | Q4: =SUM(O7:O14) -> 82 | V4: Total Sequences in Block Summary | W4: =SUM(U7:U14) -> 14 | AA4: Total Sequences in Block Summary | AB4: =SUM(Z7:Z14) -> 13 | AF4: Total Sequences in Block Summary | AG4: =SUM(AE7:AE14) -> 14 | AK4: Total Sequences in Block Summary | AL4: =SUM(AJ7:AJ14) -> 14 | AP4: Total Sequences in Block Summary | AQ4: =SUM(AO7:AO14) -> 13 | AU4: Total Sequences in Block Summary | AV4: =SUM(AT7:AT14) -> 14
T5: Block 1 | Y5: Block 2 | AD5: Block 3 | AI5: Block 4 | AN5: Block 5 | AS5: Block 6
A6: Sequence Component 1 | B6: Time 1 | C6: Sequence Component 2 | D6: Time 2 | E6: Sequence Component 3 | F6: Time 3 | G6: Sequence Component 4 | H6: Time 4 | I6: Sequence Component 5 | J6: Time 5 | K6: Correct? 0=No 1=Yes | L6: Sequence | N6: Frequency | P6: Relative Frequency | Q6: Variability | T6: Frequency | V6: Relative Frequency | W6: Variability | Y6: Frequency | AA6: Relative Frequency | AB6: Variability | AD6: Frequency | AF6: Relative Frequency | AG6: Variability | AI6: Frequency | AK6: Relative Frequency | AL6: Variability | AN6: Frequency | AP6: Relative Frequency | AQ6: Variability | AS6: Frequency | AU6: Relative Frequency | AV6: Variability
A7: 22 | B7: 14 | C7: 13 | D7: 27 | E7: 23 | F7: 39 | K7: 0 | L7: 212 | N7: 111 | O7: =COUNTIF($L$7:$L$500,N7) -> 21 | P7: =O7/$Q$4 -> 0.256097561 | Q7: =IF(P7=0,0,(P7*((LOG(P7))/LOG(2)))) -> -0.5032917832 | T7: =N7 -> 111 | U7: =COUNTIF(L7:L20,T7) -> 3 | V7: =U7/(W4-U10) -> 0.25 | W7: =IF(V7=0,0,(V7*((LOG(V7))/LOG(2)))) -> -0.5 | Y7: =N7 -> 111 | Z7: =COUNTIF(L21:L33,Y7) -> 0 | AA7: =Z7/(AB4-Z10) -> 0 | AB7: =IF(AA7=0,0,(AA7*((LOG(AA7))/LOG(2)))) -> 0 | AD7: =N7 -> 111 | AE7: =COUNTIF(L34:L47,AD7) -> 3 | AF7: =AE7/(AG4-AE10) -> 0.2727272727 | AG7: =IF(AF7=0,0,(AF7*((LOG(AF7))/LOG(2)))) -> -0.5112188503 | AI7: =N7 -> 111 | AJ7: =COUNTIF(L48:L61,AI7) -> 4 | AK7: =AJ7/(AL4-AJ10) -> 0.3636363636 | AL7: =IF(AK7=0,0,(AK7*((LOG(AK7))/LOG(2)))) -> -0.5307024068 | AN7: =N7 -> 111 | AO7: =COUNTIF(L62:L74,AN7) -> 4 | AP7: =AO7/(AQ4-AO10) -> 0.3636363636 | AQ7: =IF(AP7=0,0,(AP7*((LOG(AP7))/LOG(2)))) -> -0.5307024068 | AS7: =N7 -> 111 | AT7: =COUNTIF(L75:L88,AS7) -> 7 | AU7: =AT7/(AV4-AT10) -> 0.5384615385 | AV7: =IF(AU7=0,0,(AU7*((LOG(AU7))/LOG(2)))) -> -0.4808918133
A8: 11 | B8: 148 | C8: 11 | D8: 168 | E8: 12 | F8: 194 | K8: 0 | L8: 111 | N8: 112 | O8: =COUNTIF($L$7:$L$500,N8) -> 40 | P8: =O8/$Q$4 -> 0.487804878 | Q8: =IF(P8=0,0,(P8*((LOG(P8))/LOG(2)))) -> -0.505182395 | T8: =N8 -> 112 | U8: =COUNTIF(L7:L20,T8) -> 6 | V8: =U8/(W4-U10) -> 0.5 | W8: =IF(V8=0,0,(V8*((LOG(V8))/LOG(2)))) -> -0.5 | Y8: =N8 -> 112 | Z8: =COUNTIF(L21:L33,Y8) -> 7 | AA8: =Z8/(AB4-Z10) -> 0.7777777778 | AB8: =IF(AA8=0,0,(AA8*((LOG(AA8))/LOG(2)))) -> -0.2819989506 | AD8: =N8 -> 112 | AE8: =COUNTIF(L34:L47,AD8) -> 8 | AF8: =AE8/(AG4-AE10) -> 0.7272727273 | AG8: =IF(AF8=0,0,(AF8*((LOG(AF8))/LOG(2)))) -> -0.3341320863 | AI8: =N8 -> 112 | AJ8: =COUNTIF(L48:L61,AI8) -> 6 | AK8: =AJ8/(AL4-AJ10) -> 0.5454545455 | AL8: =IF(AK8=0,0,(AK8*((LOG(AK8))/LOG(2)))) -> -0.4769831552 | AN8: =N8 -> 112 | AO8: =COUNTIF(L62:L74,AN8) -> 7 | AP8: =AO8/(AQ4-AO10) -> 0.6363636364 | AQ8: =IF(AP8=0,0,(AP8*((LOG(AP8))/LOG(2)))) -> -0.4149578978 | AS8: =N8 -> 112 | AT8: =COUNTIF(L75:L88,AS8) -> 6 | AU8: =AT8/(AV4-AT10) -> 0.4615384615 | AV8: =IF(AU8=0,0,(AU8*((LOG(AU8))/LOG(2)))) -> -0.5148356388
A9: 11 | B9: 300 | C9: 22 | D9: 313 | E9: 14 | F9: 324 | K9: 0 | L9: 121 | N9: 121 | O9: =COUNTIF($L$7:$L$500,N9) -> 3 | P9: =O9/$Q$4 -> 0.03658536585 | Q9: =IF(P9=0,0,(P9*((LOG(P9))/LOG(2)))) -> -0.1746069331 | T9: =N9 -> 121 | U9: =COUNTIF(L7:L20,T9) -> 2 | V9: =U9/(W4-U10) -> 0.1666666667 | W9: =IF(V9=0,0,(V9*((LOG(V9))/LOG(2)))) -> -0.4308270835 | Y9: =N9 -> 121 | Z9: =COUNTIF(L21:L33,Y9) -> 1 | AA9: =Z9/(AB4-Z10) -> 0.1111111111 | AB9: =IF(AA9=0,0,(AA9*((LOG(AA9))/LOG(2)))) -> -0.352213889 | AD9: =N9 -> 121 | AE9: =COUNTIF(L34:L47,AD9) -> 0 | AF9: =AE9/(AG4-AE10) -> 0 | AG9: =IF(AF9=0,0,(AF9*((LOG(AF9))/LOG(2)))) -> 0 | AI9: =N9 -> 121 | AJ9: =COUNTIF(L48:L61,AI9) -> 0 | AK9: =AJ9/(AL4-AJ10) -> 0 | AL9: =IF(AK9=0,0,(AK9*((LOG(AK9))/LOG(2)))) -> 0 | AN9: =N9 -> 121 | AO9: =COUNTIF(L62:L74,AN9) -> 0 | AP9: =AO9/(AQ4-AO10) -> 0 | AQ9: =IF(AP9=0,0,(AP9*((LOG(AP9))/LOG(2)))) -> 0 | AS9: =N9 -> 121 | AT9: =COUNTIF(L75:L88,AS9) -> 0 | AU9: =AT9/(AV4-AT10) -> 0 | AV9: =IF(AU9=0,0,(AU9*((LOG(AU9))/LOG(2)))) -> 0
A10: 11 | B10: 428 | C10: 11 | D10: 451 | E10: 12 | F10: 473 | K10: 0 | L10: 111 | N10: 122 | O10: =COUNTIF($L$7:$L$500,N10) -> 15 | P10: =O10/$Q$4 -> 0.1829268293 | Q10: =IF(P10=0,0,(P10*((LOG(P10))/LOG(2)))) -> -0.4482917212 | T10: =N10 -> 122 | U10: =COUNTIF(L7:L20,T10) -> 2 | Y10: =N10 -> 122 | Z10: =COUNTIF(L21:L33,Y10) -> 4 | AD10: =N10 -> 122 | AE10: =COUNTIF(L34:L47,AD10) -> 3 | AI10: =N10 -> 122 | AJ10: =COUNTIF(L48:L61,AI10) -> 3 | AN10: =N10 -> 122 | AO10: =COUNTIF(L62:L74,AN10) -> 2 | AS10: =N10 -> 122 | AT10: =COUNTIF(L75:L88,AS10) -> 1
A11: 11 | B11: 571 | C11: 11 | D11: 579 | E11: 21 | F11: 592 | K11: 0 | L11: 112 | N11: 211 | O11: =COUNTIF($L$7:$L$500,N11) -> 0 | P11: =O11/$Q$4 -> 0 | Q11: =IF(P11=0,0,(P11*((LOG(P11))/LOG(2)))) -> 0 | T11: =N11 -> 211 | U11: =COUNTIF(L7:L20,T11) -> 0 | V11: =U11/(W4-U10) -> 0 | W11: =IF(V11=0,0,(V11*((LOG(V11))/LOG(2)))) -> 0 | Y11: =N11 -> 211 | Z11: =COUNTIF(L21:L33,Y11) -> 0 | AA11: =Z11/(AB4-Z10) -> 0 | AB11: =IF(AA11=0,0,(AA11*((LOG(AA11))/LOG(2)))) -> 0 | AD11: =N11 -> 211 | AE11: =COUNTIF(L34:L47,AD11) -> 0 | AF11: =AE11/(AG4-AE10) -> 0 | AG11: =IF(AF11=0,0,(AF11*((LOG(AF11))/LOG(2)))) -> 0 | AI11: =N11 -> 211 | AJ11: =COUNTIF(L48:L61,AI11) -> 0 | AK11: =AJ11/(AL4-AJ10) -> 0 | AL11: =IF(AK11=0,0,(AK11*((LOG(AK11))/LOG(2)))) -> 0 | AN11: =N11 -> 211 | AO11: =COUNTIF(L62:L74,AN11) -> 0 | AP11: =AO11/(AQ4-AO10) -> 0 | AQ11: =IF(AP11=0,0,(AP11*((LOG(AP11))/LOG(2)))) -> 0 | AS11: =N11 -> 211 | AT11: =COUNTIF(L75:L88,AS11) -> 0 | AU11: =AT11/(AV4-AT10) -> 0 | AV11: =IF(AU11=0,0,(AU11*((LOG(AU11))/LOG(2)))) -> 0
A12: 11 | B12: 684 | C12: 11 | D12: 696 | E12: 21 | F12: 708 | K12: 0 | L12: 112 | N12: 212 | O12: =COUNTIF($L$7:$L$500,N12) -> 2 | P12: =O12/$Q$4 -> 0.0243902439 | Q12: =IF(P12=0,0,(P12*((LOG(P12))/LOG(2)))) -> -0.1306720001 | T12: =N12 -> 212 | U12: =COUNTIF(L7:L20,T12) -> 1 | V12: =U12/(W4-U10) -> 0.08333333333 | W12: =IF(V12=0,0,(V12*((LOG(V12))/LOG(2)))) -> -0.2987468751 | Y12: =N12 -> 212 | Z12: =COUNTIF(L21:L33,Y12) -> 0 | AA12: =Z12/(AB4-Z10) -> 0 | AB12: =IF(AA12=0,0,(AA12*((LOG(AA12))/LOG(2)))) -> 0 | AD12: =N12 -> 212 | AE12: =COUNTIF(L34:L47,AD12) -> 0 | AF12: =AE12/(AG4-AE10) -> 0 | AG12: =IF(AF12=0,0,(AF12*((LOG(AF12))/LOG(2)))) -> 0 | AI12: =N12 -> 212 | AJ12: =COUNTIF(L48:L61,AI12) -> 1 | AK12: =AJ12/(AL4-AJ10) -> 0.09090909091 | AL12: =IF(AK12=0,0,(AK12*((LOG(AK12))/LOG(2)))) -> -0.3144937835 | AN12: =N12 -> 212 | AO12: =COUNTIF(L62:L74,AN12) -> 0 | AP12: =AO12/(AQ4-AO10) -> 0 | AQ12: =IF(AP12=0,0,(AP12*((LOG(AP12))/LOG(2)))) -> 0 | AS12: =N12 -> 212 | AT12: =COUNTIF(L75:L88,AS12) -> 0 | AU12: =AT12/(AV4-AT10) -> 0 | AV12: =IF(AU12=0,0,(AU12*((LOG(AU12))/LOG(2)))) -> 0
A13: 11 | B13: 809 | C13: 11 | D13: 817 | E13: 21 | F13: 847 | K13: 0 | L13: 112 | N13: 221 | O13: =COUNTIF($L$7:$L$500,N13) -> 1 | P13: =O13/$Q$4 -> 0.01219512195 | Q13: =IF(P13=0,0,(P13*((LOG(P13))/LOG(2)))) -> -0.07753112201 | T13: =N13 -> 221 | U13: =COUNTIF(L7:L20,T13) -> 0 | V13: =U13/(W4-U10) -> 0 | W13: =IF(V13=0,0,(V13*((LOG(V13))/LOG(2)))) -> 0 | Y13: =N13 -> 221 | Z13: =COUNTIF(L21:L33,Y13) -> 1 | AA13: =Z13/(AB4-Z10) -> 0.1111111111 | AB13: =IF(AA13=0,0,(AA13*((LOG(AA13))/LOG(2)))) -> -0.352213889 | AD13: =N13 -> 221 | AE13: =COUNTIF(L34:L47,AD13) -> 0 | AF13: =AE13/(AG4-AE10) -> 0 | AG13: =IF(AF13=0,0,(AF13*((LOG(AF13))/LOG(2)))) -> 0 | AI13: =N13 -> 221 | AJ13: =COUNTIF(L48:L61,AI13) -> 0 | AK13: =AJ13/(AL4-AJ10) -> 0 | AL13: =IF(AK13=0,0,(AK13*((LOG(AK13))/LOG(2)))) -> 0 | AN13: =N13 -> 221 | AO13: =COUNTIF(L62:L74,AN13) -> 0 | AP13: =AO13/(AQ4-AO10) -> 0 | AQ13: =IF(AP13=0,0,(AP13*((LOG(AP13))/LOG(2)))) -> 0 | AS13: =N13 -> 221 | AT13: =COUNTIF(L75:L88,AS13) -> 0 | AU13: =AT13/(AV4-AT10) -> 0 | AV13: =IF(AU13=0,0,(AU13*((LOG(AU13))/LOG(2)))) -> 0
A14: 11 | B14: 944 | C14: 11 | D14: 950 | E14: 21 | F14: 973 | K14: 0 | L14: 112 | N14: 222 | O14: =COUNTIF($L$7:$L$500,N14) -> 0 | P14: =O14/$Q$4 -> 0 | Q14: =IF(P14=0,0,(P14*((LOG(P14))/LOG(2)))) -> 0 | T14: =N14 -> 222 | U14: =COUNTIF(L7:L20,T14) -> 0 | V14: =U14/(W4-U10) -> 0 | W14: =IF(V14=0,0,(V14*((LOG(V14))/LOG(2)))) -> 0 | Y14: =N14 -> 222 | Z14: =COUNTIF(L21:L33,Y14) -> 0 | AA14: =Z14/(AB4-Z10) -> 0 | AB14: =IF(AA14=0,0,(AA14*((LOG(AA14))/LOG(2)))) -> 0 | AD14: =N14 -> 222 | AE14: =COUNTIF(L34:L47,AD14) -> 0 | AF14: =AE14/(AG4-AE10) -> 0 | AG14: =IF(AF14=0,0,(AF14*((LOG(AF14))/LOG(2)))) -> 0 | AI14: =N14 -> 222 | AJ14: =COUNTIF(L48:L61,AI14) -> 0 | AK14: =AJ14/(AL4-AJ10) -> 0 | AL14: =IF(AK14=0,0,(AK14*((LOG(AK14))/LOG(2)))) -> 0 | AN14: =N14 -> 222 | AO14: =COUNTIF(L62:L74,AN14) -> 0 | AP14: =AO14/(AQ4-AO10) -> 0 | AQ14: =IF(AP14=0,0,(AP14*((LOG(AP14))/LOG(2)))) -> 0 | AS14: =N14 -> 222 | AT14: =COUNTIF(L75:L88,AS14) -> 0 | AU14: =AT14/(AV4-AT10) -> 0 | AV14: =IF(AU14=0,0,(AU14*((LOG(AU14))/LOG(2)))) -> 0
A15: 11 | B15: 1084 | C15: 22 | D15: 1098 | E15: 14 | F15: 1117 | K15: 0 | L15: 121 | P15: =SUM(P7:P14) -> 1 | Q15: =-SUM(Q7:Q14) -> 1.839575954 | V15: =SUM(V7:V14) -> 1 | W15: =-SUM(W7:W14) -> 1.729573959 | AA15: =SUM(AA7:AA14) -> 1 | AB15: =-SUM(AB7:AB14) -> 0.9864267287 | AF15: =SUM(AF7:AF14) -> 1 | AG15: =-SUM(AG7:AG14) -> 0.8453509366 | AK15: =SUM(AK7:AK14) -> 1 | AL15: =-SUM(AL7:AL14) -> 1.322179346 | AP15: =SUM(AP7:AP14) -> 1 | AQ15: =-SUM(AQ7:AQ14) -> 0.9456603046 | AU15: =SUM(AU7:AU14) -> 1 | AV15: =-SUM(AV7:AV14) -> 0.9957274521
A16: 11 | B16: 1214 | C16: 11 | D16: 1222 | E16: 21 | F16: 1233 | K16: 0 | L16: 112 | P16: U= | Q16: =Q15/(LOG(Q4)/LOG(2)) -> 0.2893528756 | V16: U1= | W16: =W15/(LOG(W4)/LOG(2)) -> 0.454271796 | AA16: U2= | AB16: =AB15/(LOG(AB4)/LOG(2)) -> 0.2665701387 | AF16: U3= | AG16: =AG15/(LOG(AG4)/LOG(2)) -> 0.2220310304 | AK16: U4= | AL16: =AL15/(LOG(AL4)/LOG(2)) -> 0.3472697903 | AP16: U5= | AQ16: =AQ15/(LOG(AQ4)/LOG(2)) -> 0.2555534954 | AU16: U6= | AV16: =AV15/(LOG(AV4)/LOG(2)) -> 0.2615273523
A17: 11 | B17: 1328 | C17: 11 | D17: 1335 | E17: 21 | F17: 1348 | K17: 0 | L17: 112
A18: 11 | B18: 1454 | C18: 22 | D18: 1466 | E18: 23 | F18: 1485 | K18: 0 | L18: 122
A19: 11 | B19: 1583 | C19: 11 | D19: 1595 | E19: 12 | F19: 1596 | K19: 0 | L19: 111 | N19: Total Target Seq
A20: 11 | B20: 1695 | C20: 22 | D20: 1707 | E20: 23 | F20: 1718 | K20: 0 | L20: 122 | N20: =COUNTIF(L7:L88,G3) -> 15 | P20: 14 | Q20: 13 | R20: 14 | S20: 14 | T20: 13 | U20: 14
A21: 11 | B21: 1814 | C21: 22 | D21: 1855 | E21: 23 | F21: 1866 | K21: 0 | L21: 122 | P21: % of reinforcement given in 6 equal intervals based on number of trials
A22: 11 | B22: 1964 | C22: 11 | D22: 1971 | E22: 21 | F22: 1993 | K22: 0 | L22: 112 | P22: %_1 | Q22: %_2 | R22: %_3 | S22: %_4 | T22: %_5 | U22: %_6
A23: 11 | B23: 2087 | C23: 11 | D23: 2096 | E23: 21 | F23: 2107 | K23: 0 | L23: 112 | O23: target sequence | P23: =$G$3 -> 122 | Q23: =$G$3 -> 122 | R23: =$G$3 -> 122 | S23: =$G$3 -> 122 | T23: =$G$3 -> 122 | U23: =$G$3 -> 122
A24: 22 | B24: 2217 | C24: 24 | D24: 2228 | E24: 14 | F24: 2262 | K24: 0 | L24: 221 | O24: total reinforcement | P24: =U10 -> 2 | Q24: =Z10 -> 4 | R24: =AE10 -> 3 | S24: =AJ10 -> 3 | T24: =AO10 -> 2 | U24: =AT10 -> 1
A25: 11 | B25: 2356 | C25: 22 | D25: 2370 | E25: 23 | F25: 2381 | K25: 0 | L25: 122 | O25: % target
A26: 11 | B26: 2481 | C26: 11 | D26: 2488 | E26: 21 | F26: 2501 | K26: 0 | L26: 112 | O26: CCRF
A27: 11 | B27: 2599 | C27: 11 | D27: 2607 | E27: 21 | F27: 2618 | K27: 0 | L27: 112 | O27: % CCRf
A28: 11 | B28: 2714 | C28: 11 | D28: 2734 | E28: 21 | F28: 2760 | K28: 0 | L28: 112 | O28: average response rate | P28: =F20/P20 -> 122.7142857 | Q28: =(F33-F20)/Q20 -> 132.8461538 | R28: =(F47-F33)/R20 -> 123.5714286 | S28: =(F61-F47)/S20 -> 123.5 | T28: =(F74-F61)/T20 -> 122.1538462 | U28: =(F88-F74)/U20 -> 124.7142857
A29: 11 | B29: 2861 | C29: 11 | D29: 2868 | E29: 21 | F29: 2906 | K29: 0 | L29: 112
A30: 11 | B30: 3009 | C30: 22 | D30: 3022 | E30: 14 | F30: 3042 | K30: 0 | L30: 121
A31: 11 | B31: 3150 | C31: 22 | D31: 3161 | E31: 23 | F31: 3170 | K31: 0 | L31: 122
A32: 11 | B32: 3289 | C32: 22 | D32: 3303 | E32: 23 | F32: 3324 | K32: 0 | L32: 122
A33: 11 | B33: 3425 | C33: 11 | D33: 3433 | E33: 21 | F33: 3445 | K33: 0 | L33: 112
A34: 11 | B34: 3540 | C34: 11 | D34: 3548 | E34: 21 | F34: 3561 | K34: 0 | L34: 112
A35: 11 | B35: 3662 | C35: 22 | D35: 3696 | E35: 23 | F35: 3706 | K35: 0 | L35: 122
A36: 11 | B36: 3803 | C36: 11 | D36: 3811 | E36: 21 | F36: 3822 | K36: 0 | L36: 112
A37: 11 | B37: 3926 | C37: 11 | D37: 3933 | E37: 21 | F37: 3958 | K37: 0 | L37: 112
A38: 11 | B38: 4052 | C38: 11 | D38: 4061 | E38: 21 | F38: 4081 | K38: 0 | L38: 112
A39: 11 | B39: 4174 | C39: 11 | D39: 4184 | E39: 21 | F39: 4209 | K39: 0 | L39: 112
A40: 11 | B40: 4312 | C40: 22 | D40: 4331 | E40: 23 | F40: 4350 | K40: 0 | L40: 122
A41: 11 | B41: 4458 | C41: 11 | D41: 4466 | E41: 21 | F41: 4478 | K41: 0 | L41: 112
A42: 11 | B42: 4568 | C42: 11 | D42: 4576 | E42: 12 | F42: 4584 | K42: 0 | L42: 111
A43: 11 | B43: 4697 | C43: 22 | D43: 4709 | E43: 23 | F43: 4716 | K43: 0 | L43: 122
A44: 11 | B44: 4816 | C44: 11 | D44: 4823 | E44: 21 | F44: 4834 | K44: 0 | L44: 112
A45: 11 | B45: 4928 | C45: 11 | D45: 4935 | E45: 12 | F45: 4940 | K45: 0 | L45: 111
A46: 11 | B46: 5039 | C46: 11 | D46: 5046 | E46: 21 | F46: 5055 | K46: 0 | L46: 112
A47: 11 | B47: 5153 | C47: 11 | D47: 5160 | E47: 12 | F47: 5175 | K47: 0 | L47: 111
A48: 11 | B48: 5273 | C48: 11 | D48: 5280 | E48: 12 | F48: 5287 | K48: 0 | L48: 111
A49: 11 | B49: 5398 | C49: 22 | D49: 5410 | E49: 23 | F49: 5417 | K49: 0 | L49: 122
A50: 11 | B50: 5518 | C50: 11 | D50: 5527 | E50: 12 | F50: 5539 | K50: 0 | L50: 111
A51: 11 | B51: 5636 | C51: 11 | D51: 5659 | E51: 21 | F51: 5670 | K51: 0 | L51: 112
A52: 11 | B52: 5762 | C52: 11 | D52: 5768 | E52: 12 | F52: 5774 | K52: 0 | L52: 111
A53: 11 | B53: 5878 | C53: 22 | D53: 5900 | E53: 23 | F53: 5955 | K53: 0 | L53: 122
A54: 11 | B54: 6058 | C54: 11 | D54: 6069 | E54: 21 | F54: 6083 | K54: 0 | L54: 112
A55: 22 | B55: 6179 | C55: 13 | D55: 6199 | E55: 23 | F55: 6210 | K55: 0 | L55: 212
A56: 11 | B56: 6308 | C56: 11 | D56: 6315 | E56: 21 | F56: 6327 | K56: 0 | L56: 112
A57: 11 | B57: 6421 | C57: 11 | D57: 6427 | E57: 21 | F57: 6437 | K57: 0 | L57: 112
A58: 11 | B58: 6542 | C58: 11 | D58: 6550 | E58: 21 | F58: 6559 | K58: 0 | L58: 112
A59: 11 | B59: 6649 | C59: 11 | D59: 6653 | E59: 12 | F59: 6660 | K59: 0 | L59: 111
A60: 11 | B60: 6760 | C60: 11 | D60: 6768 | E60: 21 | F60: 6784 | K60: 0 | L60: 112
A61: 11 | B61: 6885 | C61: 22 | D61: 6896 | E61: 23 | F61: 6904 | K61: 0 | L61: 122
A62: 11 | B62: 7020 | C62: 22 | D62: 7031 | E62: 23 | F62: 7038 | K62: 0 | L62: 122
A63: 11 | B63: 7144 | C63: 22 | D63: 7155 | E63: 23 | F63: 7161 | K63: 0 | L63: 122
A64: 11 | B64: 7270 | C64: 11 | D64: 7275 | E64: 21 | F64: 7286 | K64: 0 | L64: 112
A65: 11 | B65: 7380 | C65: 11 | D65: 7391 | E65: 21 | F65: 7403 | K65: 0 | L65: 112
A66: 11 | B66: 7500 | C66: 11 | D66: 7513 | E66: 21 | F66: 7525 | K66: 0 | L66: 112
A67: 11 | B67: 7633 | C67: 11 | D67: 7641 | E67: 21 | F67: 7650 | K67: 0 | L67: 112
A68: 11 | B68: 7741 | C68: 11 | D68: 7749 | E68: 12 | F68: 7754 | K68: 0 | L68: 111
A69: 11 | B69: 7855 | C69: 11 | D69: 7861 | E69: 12 | F69: 7873 | K69: 0 | L69: 111
A70: 11 | B70: 7972 | C70: 11 | D70: 7984 | E70: 12 | F70: 7992 | K70: 0 | L70: 111
A71: 11 | B71: 8120 | C71: 11 | D71: 8125 | E71: 21 | F71: 8138 | K71: 0 | L71: 112
A72: 11 | B72: 8244 | C72: 11 | D72: 8251 | E72: 12 | F72: 8258 | K72: 0 | L72: 111
A73: 11 | B73: 8354 | C73: 11 | D73: 8361 | E73: 21 | F73: 8373 | K73: 0 | L73: 112
A74: 11 | B74: 8469 | C74: 11 | D74: 8481 | E74: 21 | F74: 8492 | K74: 0 | L74: 112
A75: 11 | B75: 8597 | C75: 11 | D75: 8605 | E75: 12 | F75: 8632 | K75: 0 | L75: 111
A76: 11 | B76: 8730 | C76: 11 | D76: 8736 | E76: 21 | F76: 8751 | K76: 0 | L76: 112
A77: 11 | B77: 8844 | C77: 11 | D77: 8855 | E77: 12 | F77: 8862 | K77: 0 | L77: 111
A78: 11 | B78: 8958 | C78: 11 | D78: 8965 | E78: 12 | F78: 8972 | K78: 0 | L78: 111
A79: 11 | B79: 9072 | C79: 11 | D79: 9077 | E79: 21 | F79: 9089 | K79: 0 | L79: 112
A80: 11 | B80: 9183 | C80: 11 | D80: 9191 | E80: 12 | F80: 9196 | K80: 0 | L80: 111
A81: 11 | B81: 9293 | C81: 11 | D81: 9303 | E81: 12 | F81: 9362 | K81: 0 | L81: 111
A82: 11 | B82: 9461 | C82: 11 | D82: 9475 | E82: 21 | F82: 9488 | K82: 0 | L82: 112
A83: 11 | B83: 9587 | C83: 11 | D83: 9595 | E83: 12 | F83: 9620 | K83: 0 | L83: 111
A84: 11 | B84: 9732 | C84: 11 | D84: 9741 | E84: 21 | F84: 9753 | K84: 0 | L84: 112
A85: 11 | B85: 9849 | C85: 11 | D85: 9853 | E85: 12 | F85: 9860 | K85: 0 | L85: 111
A86: 11 | B86: 9961 | C86: 11 | D86: 9968 | E86: 21 | F86: 9980 | K86: 0 | L86: 112
A87: 11 | B87: 10087 | C87: 22 | D87: 10097 | E87: 23 | F87: 10113 | K87: 0 | L87: 122
A88: 11 | B88: 10218 | C88: 11 | D88: 10226 | E88: 21 | F88: 10238 | K88: 1 | L88: 112

Sheet !M608A20.103
A1: Report for:!M608A20.103
A2: Date: | B2: <date>
A3: Hen: | B3: <hen> | F3: Correct Sequence | G3: =Start!J2 -> 122 | P3: Total Sequences in Data | Q3: =4994-COUNTBLANK(L7:L5000) -> 115 | V3: Total Sequences in Block Data | W3: =COUNTA(L7:L25) -> 19 | AA3: Total Sequences in Block Data | AB3: =COUNTA(L26:L44) -> 19 | AF3: Total Sequences in Block Data | AG3: =COUNTA(L45:L64) -> 20 | AK3: Total Sequences in Block Data | AL3: =COUNTA(L65:L83) -> 19 | AP3: Total Sequences in Block Data | AQ3: =COUNTA(L84:L102) -> 19 | AU3: Total Sequences in Block Data | AV3: =COUNTA(L103:L121) -> 19
P4: Total Sequences in Summary | Q4: =SUM(O7:O14) -> 115 | V4: Total Sequences in Block Summary | W4: =SUM(U7:U14) -> 19 | AA4: Total Sequences in Block Summary | AB4: =SUM(Z7:Z14) -> 19 | AF4: Total Sequences in Block Summary | AG4: =SUM(AE7:AE14) -> 20 | AK4: Total Sequences in Block Summary | AL4: =SUM(AJ7:AJ14) -> 19 | AP4: Total Sequences in Block Summary | AQ4: =SUM(AO7:AO14) -> 19 | AU4: Total Sequences in Block Summary | AV4: =SUM(AT7:AT14) -> 19
T5: Block 1 | Y5: Block 2 | AD5: Block 3 | AI5: Block 4 | AN5: Block 5 | AS5: Block 6
A6: Sequence Component 1 | B6: Time 1 | C6: Sequence Component 2 | D6: Time 2 | E6: Sequence Component 3 | F6: Time 3 | G6: Sequence Component 4 | H6: Time 4 | I6: Sequence Component 5 | J6: Time 5 | K6: Correct? 0=No 1=Yes | L6: Sequence | N6: Frequency | P6: Relative Frequency | Q6: Variability | T6: Frequency | V6: Relative Frequency | W6: Variability | Y6: Frequency | AA6: Relative Frequency | AB6: Variability | AD6: Frequency | AF6: Relative Frequency | AG6: Variability | AI6: Frequency | AK6: Relative Frequency | AL6: Variability | AN6: Frequency | AP6: Relative Frequency | AQ6: Variability | AS6: Frequency | AU6: Relative Frequency | AV6: Variability
A7: 11 | B7: 36 | C7: 11 | D7: 208 | E7: 21 | F7: 220 | K7: 0 | L7: 112 | N7: 111 | O7: =COUNTIF($L$7:$L$500,N7) -> 48 | P7: =O7/$Q$4 -> 0.4173913043 | Q7: =IF(P7=0,0,(P7*((LOG(P7))/LOG(2)))) -> -0.5261332384 | T7: =N7 -> 111 | U7: =COUNTIF(L7:L25,T7) -> 10 | V7: =U7/(W4-U10) -> 0.5263157895 | W7: =IF(V7=0,0,(V7*((LOG(V7))/LOG(2)))) -> -0.487368115 | Y7: =N7 -> 111 | Z7: =COUNTIF(L26:L44,Y7) -> 15 | AA7: =Z7/(AB4-Z10) -> 0.8333333333 | AB7: =IF(AA7=0,0,(AA7*((LOG(AA7))/LOG(2)))) -> -0.2191953382 | AD7: =N7 -> 111 | AE7: =COUNTIF(L45:L64,AD7) -> 7 | AF7: =AE7/(AG4-AE10) -> 0.4117647059 | AG7: =IF(AF7=0,0,(AF7*((LOG(AF7))/LOG(2)))) -> -0.5271032608 | AI7: =N7 -> 111 | AJ7: =COUNTIF(L65:L83,AI7) -> 6 | AK7: =AJ7/(AL4-AJ10) -> 0.4285714286 | AL7: =IF(AK7=0,0,(AK7*((LOG(AK7))/LOG(2)))) -> -0.5238824663 | AN7: =N7 -> 111 | AO7: =COUNTIF(L84:L102,AN7) -> 6 | AP7: =AO7/(AQ4-AO10) -> 0.4615384615 | AQ7: =IF(AP7=0,0,(AP7*((LOG(AP7))/LOG(2)))) -> -0.5148356388 | AS7: =N7 -> 111 | AT7: =COUNTIF(L103:L121,AS7) -> 4 | AU7: =AT7/(AV4-AT10) -> 0.2857142857 | AV7: =IF(AU7=0,0,(AU7*((LOG(AU7))/LOG(2)))) -> -0.5163871206
A8: 11 | B8: 372 | C8: 22 | D8: 408 | E8: 14 | F8: 692 | K8: 0 | L8: 121 | N8: 112 | O8: =COUNTIF($L$7:$L$500,N8) -> 36 | P8: =O8/$Q$4 -> 0.3130434783 | Q8: =IF(P8=0,0,(P8*((LOG(P8))/LOG(2)))) -> -0.5245247111 | T8: =N8 -> 112 | U8: =COUNTIF(L7:L25,T8) -> 6 | V8: =U8/(W4-U10) -> 0.3157894737 | W8: =IF(V8=0,0,(V8*((LOG(V8))/LOG(2)))) -> -0.5251468461 | Y8: =N8 -> 112 | Z8: =COUNTIF(L26:L44,Y8) -> 1 | AA8: =Z8/(AB4-Z10) -> 0.05555555556 | AB8: =IF(AA8=0,0,(AA8*((LOG(AA8))/LOG(2)))) -> -0.2316625001 | AD8: =N8 -> 112 | AE8: =COUNTIF(L45:L64,AD8) -> 7 | AF8: =AE8/(AG4-AE10) -> 0.4117647059 | AG8: =IF(AF8=0,0,(AF8*((LOG(AF8))/LOG(2)))) -> -0.5271032608 | AI8: =N8 -> 112 | AJ8: =COUNTIF(L65:L83,AI8) -> 6 | AK8: =AJ8/(AL4-AJ10) -> 0.4285714286 | AL8: =IF(AK8=0,0,(AK8*((LOG(AK8))/LOG(2)))) -> -0.5238824663 | AN8: =N8 -> 112 | AO8: =COUNTIF(L84:L102,AN8) -> 7 | AP8: =AO8/(AQ4-AO10) -> 0.5384615385 | AQ8: =IF(AP8=0,0,(AP8*((LOG(AP8))/LOG(2)))) -> -0.4808918133 | AS8: =N8 -> 112 | AT8: =COUNTIF(L103:L121,AS8) -> 9 | AU8: =AT8/(AV4-AT10) -> 0.6428571429 | AV8: =IF(AU8=0,0,(AU8*((LOG(AU8))/LOG(2)))) -> -0.4097763775
A9: 22 | B9: 888 | C9: 24 | D9: 900 | E9: 14 | F9: 924 | K9: 0 | L9: 221 | N9: 121 | O9: =COUNTIF($L$7:$L$500,N9) -> 10 | P9: =O9/$Q$4 -> 0.08695652174 | Q9: =IF(P9=0,0,(P9*((LOG(P9))/LOG(2)))) -> -0.3063966918 | T9: =N9 -> 121 | U9: =COUNTIF(L7:L25,T9) -> 2 | V9: =U9/(W4-U10) -> 0.1052631579 | W9: =IF(V9=0,0,(V9*((LOG(V9))/LOG(2)))) -> -0.3418871067 | Y9: =N9 -> 121 | Z9: =COUNTIF(L26:L44,Y9) -> 2 | AA9: =Z9/(AB4-Z10) -> 0.1111111111 | AB9: =IF(AA9=0,0,(AA9*((LOG(AA9))/LOG(2)))) -> -0.352213889 | AD9: =N9 -> 121 | AE9: =COUNTIF(L45:L64,AD9) -> 3 | AF9: =AE9/(AG4-AE10) -> 0.1764705882 | AG9: =IF(AF9=0,0,(AF9*((LOG(AF9))/LOG(2)))) -> -0.4416177072 | AI9: =N9 -> 121 | AJ9: =COUNTIF(L65:L83,AI9) -> 2 | AK9: =AJ9/(AL4-AJ10) -> 0.1428571429 | AL9: =IF(AK9=0,0,(AK9*((LOG(AK9))/LOG(2)))) -> -0.4010507032 | AN9: =N9 -> 121 | AO9: =COUNTIF(L84:L102,AN9) -> 0 | AP9: =AO9/(AQ4-AO10) -> 0 | AQ9: =IF(AP9=0,0,(AP9*((LOG(AP9))/LOG(2)))) -> 0 | AS9: =N9 -> 121 | AT9: =COUNTIF(L103:L121,AS9) -> 1 | AU9: =AT9/(AV4-AT10) -> 0.07142857143 | AV9: =IF(AU9=0,0,(AU9*((LOG(AU9))/LOG(2)))) -> -0.271953923
A10: 11 | B10: 1031 | C10: 11 | D10: 1033 | E10: 12 | F10: 1063 | K10: 0 | L10: 111 | N10: 122 | O10: =COUNTIF($L$7:$L$500,N10) -> 20 | P10: =O10/$Q$4 -> 0.1739130435 | Q10: =IF(P10=0,0,(P10*((LOG(P10))/LOG(2)))) -> -0.4388803402 | T10: =N10 -> 122 | U10: =COUNTIF(L7:L25,T10) -> 0 | Y10: =N10 -> 122 | Z10: =COUNTIF(L26:L44,Y10) -> 1 | AD10: =N10 -> 122 | AE10: =COUNTIF(L45:L64,AD10) -> 3 | AI10: =N10 -> 122 | AJ10: =COUNTIF(L65:L83,AI10) -> 5 | AN10: =N10 -> 122 | AO10: =COUNTIF(L84:L102,AN10) -> 6 | AS10: =N10 -> 122 | AT10: =COUNTIF(L103:L121,AS10) -> 5
A11: 11 | B11: 1164 | C11: 22 | D11: 1188 | E11: 14 | F11: 1223 | K11: 0 | L11: 121 | N11: 211 | O11: =COUNTIF($L$7:$L$500,N11) -> 0 | P11: =O11/$Q$4 -> 0 | Q11: =IF(P11=0,0,(P11*((LOG(P11))/LOG(2)))) -> 0 | T11: =N11 -> 211 | U11: =COUNTIF(L7:L25,T11) -> 0 | V11: =U11/(W4-U10) -> 0 | W11: =IF(V11=0,0,(V11*((LOG(V11))/LOG(2)))) -> 0 | Y11: =N11 -> 211 | Z11: =COUNTIF(L26:L44,Y11) -> 0 | AA11: =Z11/(AB4-Z10) -> 0 | AB11: =IF(AA11=0,0,(AA11*((LOG(AA11))/LOG(2)))) -> 0 | AD11: =N11 -> 211 | AE11: =COUNTIF(L45:L64,AD11) -> 0 | AF11: =AE11/(AG4-AE10) -> 0 | AG11: =IF(AF11=0,0,(AF11*((LOG(AF11))/LOG(2)))) -> 0 | AI11: =N11 -> 211 | AJ11: =COUNTIF(L65:L83,AI11) -> 0 | AK11: =AJ11/(AL4-AJ10) -> 0 | AL11: =IF(AK11=0,0,(AK11*((LOG(AK11))/LOG(2)))) -> 0 | AN11: =N11 -> 211 | AO11: =COUNTIF(L84:L102,AN11) -> 0 | AP11: =AO11/(AQ4-AO10) -> 0 | AQ11: =IF(AP11=0,0,(AP11*((LOG(AP11))/LOG(2)))) -> 0 | AS11: =N11 -> 211 | AT11: =COUNTIF(L103:L121,AS11) -> 0 | AU11: =AT11/(AV4-AT10) -> 0 | AV11: =IF(AU11=0,0,(AU11*((LOG(AU11))/LOG(2)))) -> 0
A12: 11 | B12: 1320 | C12: 11 | D12: 1328 | E12: 21 | F12: 1340 | K12: 0 | L12: 112 | N12: 212 | O12: =COUNTIF($L$7:$L$500,N12) -> 0 | P12: =O12/$Q$4 -> 0 | Q12: =IF(P12=0,0,(P12*((LOG(P12))/LOG(2)))) -> 0 | T12: =N12 -> 212 | U12: =COUNTIF(L7:L25,T12) -> 0 | V12: =U12/(W4-U10) -> 0 | W12: =IF(V12=0,0,(V12*((LOG(V12))/LOG(2)))) -> 0 | Y12: =N12 -> 212 | Z12: =COUNTIF(L26:L44,Y12) -> 0 | AA12: =Z12/(AB4-Z10) -> 0 | AB12: =IF(AA12=0,0,(AA12*((LOG(AA12))/LOG(2)))) -> 0 | AD12: =N12 -> 212 | AE12: =COUNTIF(L45:L64,AD12) -> 0 | AF12: =AE12/(AG4-AE10) -> 0 | AG12: =IF(AF12=0,0,(AF12*((LOG(AF12))/LOG(2)))) -> 0 | AI12: =N12 -> 212 | AJ12: =COUNTIF(L65:L83,AI12) -> 0 | AK12: =AJ12/(AL4-AJ10) -> 0 | AL12: =IF(AK12=0,0,(AK12*((LOG(AK12))/LOG(2)))) -> 0 | AN12: =N12 -> 212 | AO12: =COUNTIF(L84:L102,AN12) -> 0 | AP12: =AO12/(AQ4-AO10) -> 0 | AQ12: =IF(AP12=0,0,(AP12*((LOG(AP12))/LOG(2)))) -> 0 | AS12: =N12 -> 212 | AT12: =COUNTIF(L103:L121,AS12) -> 0 | AU12: =AT12/(AV4-AT10) -> 0 | AV12: =IF(AU12=0,0,(AU12*((LOG(AU12))/LOG(2)))) -> 0
A13: 11 | B13: 1437 | C13: 11 | D13: 1448 | E13: 21 | F13: 1461 | K13: 0 | L13: 112 | N13: 221 | O13: =COUNTIF($L$7:$L$500,N13) -> 1 | P13: =O13/$Q$4 -> 0.008695652174 | Q13: =IF(P13=0,0,(P13*((LOG(P13))/LOG(2)))) -> -0.05952600044 | T13: =N13 -> 221 | U13: =COUNTIF(L7:L25,T13) -> 1 | V13: =U13/(W4-U10) -> 0.05263157895 | W13: =IF(V13=0,0,(V13*((LOG(V13))/LOG(2)))) -> -0.2235751323 | Y13: =N13 -> 221 | Z13: =COUNTIF(L26:L44,Y13) -> 0 | AA13: =Z13/(AB4-Z10) -> 0 | AB13: =IF(AA13=0,0,(AA13*((LOG(AA13))/LOG(2)))) -> 0 | AD13: =N13 -> 221 | AE13: =COUNTIF(L45:L64,AD13) -> 0 | AF13: =AE13/(AG4-AE10) -> 0 | AG13: =IF(AF13=0,0,(AF13*((LOG(AF13))/LOG(2)))) -> 0 | AI13: =N13 -> 221 | AJ13: =COUNTIF(L65:L83,AI13) -> 0 | AK13: =AJ13/(AL4-AJ10) -> 0 | AL13: =IF(AK13=0,0,(AK13*((LOG(AK13))/LOG(2)))) -> 0 | AN13: =N13 -> 221 | AO13: =COUNTIF(L84:L102,AN13) -> 0 | AP13: =AO13/(AQ4-AO10) -> 0 | AQ13: =IF(AP13=0,0,(AP13*((LOG(AP13))/LOG(2)))) -> 0 | AS13: =N13 -> 221 | AT13: =COUNTIF(L103:L121,AS13) -> 0 | AU13: =AT13/(AV4-AT10) -> 0 | AV13: =IF(AU13=0,0,(AU13*((LOG(AU13))/LOG(2)))) -> 0
A14: 11 | B14: 1560 | C14: 11 | D14: 1572 | E14: 21 | F14: 1587 | K14: 0 | L14: 112 | N14: 222 | O14: =COUNTIF($L$7:$L$500,N14) -> 0 | P14: =O14/$Q$4 -> 0 | Q14: =IF(P14=0,0,(P14*((LOG(P14))/LOG(2)))) -> 0 | T14: =N14 -> 222 | U14: =COUNTIF(L7:L25,T14) -> 0 | V14: =U14/(W4-U10) -> 0 | W14: =IF(V14=0,0,(V14*((LOG(V14))/LOG(2)))) -> 0 | Y14: =N14 -> 222 | Z14: =COUNTIF(L26:L44,Y14) -> 0 | AA14: =Z14/(AB4-Z10) -> 0 | AB14: =IF(AA14=0,0,(AA14*((LOG(AA14))/LOG(2)))) -> 0 | AD14: =N14 -> 222 | AE14: =COUNTIF(L45:L64,AD14) -> 0 | AF14: =AE14/(AG4-AE10) -> 0 | AG14: =IF(AF14=0,0,(AF14*((LOG(AF14))/LOG(2)))) -> 0 | AI14: =N14 -> 222 | AJ14: =COUNTIF(L65:L83,AI14) -> 0 | AK14: =AJ14/(AL4-AJ10) -> 0 | AL14: =IF(AK14=0,0,(AK14*((LOG(AK14))/LOG(2)))) -> 0 | AN14: =N14 -> 222 | AO14: =COUNTIF(L84:L102,AN14) -> 0 | AP14: =AO14/(AQ4-AO10) -> 0 | AQ14: =IF(AP14=0,0,(AP14*((LOG(AP14))/LOG(2)))) -> 0 | AS14: =N14 -> 222 | AT14: =COUNTIF(L103:L121,AS14) -> 0 | AU14: =AT14/(AV4-AT10) -> 0 | AV14: =IF(AU14=0,0,(AU14*((LOG(AU14))/LOG(2)))) -> 0
A15: 11 | B15: 1702 | C15: 11 | D15: 1769 | E15: 12 | F15: 1782 | K15: 0 | L15: 111 | P15: =SUM(P7:P14) -> 1 | Q15: =-SUM(Q7:Q14) -> 1.855460982 | V15: =SUM(V7:V14) -> 1 | W15: =-SUM(W7:W14) -> 1.5779772 | AA15: =SUM(AA7:AA14) -> 1 | AB15: =-SUM(AB7:AB14) -> 0.8030717273 | AF15: =SUM(AF7:AF14) -> 1 | AG15: =-SUM(AG7:AG14) -> 1.495824229 | AK15: =SUM(AK7:AK14) -> 1 | AL15: =-SUM(AL7:AL14) -> 1.448815636 | AP15: =SUM(AP7:AP14) -> 1 | AQ15: =-SUM(AQ7:AQ14) -> 0.9957274521 | AU15: =SUM(AU7:AU14) -> 1 | AV15: =-SUM(AV7:AV14) -> 1.198117421
A16: 11 | B16: 1911 | C16: 11 | D16: 2133 | E16: 12 | F16: 2153 | K16: 0 | L16: 111 | P16: U= | Q16: =Q15/(LOG(Q4)/LOG(2)) -> 0.2710486712 | V16: U1= | W16: =W15/(LOG(W4)/LOG(2)) -> 0.371469898 | AA16: U2= | AB16: =AB15/(LOG(AB4)/LOG(2)) -> 0.1890502427 | AF16: U3= | AG16: =AG15/(LOG(AG4)/LOG(2)) -> 0.3461011373 | AK16: U4= | AL16: =AL15/(LOG(AL4)/LOG(2)) -> 0.3410641145 | AP16: U5= | AQ16: =AQ15/(LOG(AQ4)/LOG(2)) -> 0.2344031175 | AU16: U6= | AV16: =AV15/(LOG(AV4)/LOG(2)) -> 0.2820475202
A17: 11 | B17: 2253 | C17: 11 | D17: 2265 | E17: 21 | F17: 2277 | K17: 0 | L17: 112
A18: 11 | B18: 2378 | C18: 11 | D18: 2389 | E18: 12 | F18: 2421 | K18: 0 | L18: 111
A19: 11 | B19: 2544 | C19: 11 | D19: 2577 | E19: 12 | F19: 2625 | K19: 0 | L19: 111 | N19: Total Target Seq
A20: 11 | B20: 2722 | C20: 11 | D20: 2723 | E20: 12 | F20: 2729 | K20: 0 | L20: 111 | N20: =COUNTIF(L7:L121,G3) -> 20 | P20: 19 | Q20: 19 | R20: 20 | S20: 19 | T20: 19 | U20: 19
A21: 11 | B21: 2839 | C21: 11 | D21: 2888 | E21: 12 | F21: 2985 | K21: 0 | L21: 111 | P21: % of reinforcement given in 6 equal intervals based on number of trials
A22: 11 | B22: 3095 | C22: 11 | D22: 3150 | E22: 12 | F22: 3235 | K22: 0 | L22: 111 | P22: %_1 | Q22: %_2 | R22: %_3 | S22: %_4 | T22: %_5 | U22: %_6
A23: 11 | B23: 3345 | C23: 11 | D23: 3348 | E23: 12 | F23: 3365 | K23: 0 | L23: 111 | O23: target sequence | P23: =$G$3 -> 122 | Q23: =$G$3 -> 122 | R23: =$G$3 -> 122 | S23: =$G$3 -> 122 | T23: =$G$3 -> 122 | U23: =$G$3 -> 122
A24: 11 | B24: 3463 | C24: 11 | D24: 3478 | E24: 21 | F24: 3490 | K24: 0 | L24: 112 | O24: total reinforcement | P24: =U10 -> 0 | Q24: =Z10 -> 1 | R24: =AE10 -> 3 | S24: =AJ10 -> 5 | T24: =AO10 -> 6 | U24: =AT10 -> 5
A25: 11 | B25: 3605 | C25: 11 | D25: 3624 | E25: 12 | F25: 3676 | K25: 0 | L25: 111 | O25: % target
A26: 11 | B26: 3796 | C26: 11 | D26: 3978 | E26: 12 | F26: 4014 | K26: 0 | L26: 111 | O26: CCRF
A27: 11 | B27: 4112 | C27: 11 | D27: 4132 | E27: 12 | F27: 4143 | K27: 0 | L27: 111 | O27: % CCRf
A28: 11 | B28: 4236 | C28: 11 | D28: 4258 | E28: 12 | F28: 4261 | K28: 0 | L28: 111 | O28: average response rate | P28: =F25/P20 -> 193.4736842 | Q28: =(F44-F25)/Q20 -> 206.2631579 | R28: =(F64-F44)/R20 -> 167.6 | S28: =(F83-F64)/S20 -> 158.8421053 | T28: =(F102-F83)/T20 -> 229.1578947 | U28: =(F121-F102)/U20 -> 161.2105263
A29: 11 | B29: 4409 | C29: 11 | D29: 4449 | E29: 12 | F29: 4482 | K29: 0 | L29: 111
A30: 11 | B30: 4580 | C30: 11 | D30: 4593 | E30: 12 | F30: 4630 | K30: 0 | L30: 111
A31: 11 | B31: 4728 | C31: 11 | D31: 4745 | E31: 12 | F31: 4771 | K31: 0 | L31: 111
A32: 11 | B32: 4869 | C32: 11 | D32: 4876 | E32: 12 | F32: 4889 | K32: 0 | L32: 111
A33: 11 | B33: 5009 | C33: 22 | D33: 5038 | E33: 14 | F33: 5061 | K33: 0 | L33: 121
A34: 11 | B34: 5159 | C34: 11 | D34: 5166 | E34: 12 | F34: 5181 | K34: 0 | L34: 111
A35: 11 | B35: 5282 | C35: 11 | D35: 5294 | E35: 12 | F35: 5298 | K35: 0 | L35: 111
A36: 11 | B36: 5400 | C36: 11 | D36: 5412 | E36: 12 | F36: 5414 | K36: 0 | L36: 111
A37: 11 | B37: 5537 | C37: 11 | D37: 5576 | E37: 12 | F37: 5634 | K37: 0 | L37: 111
A38: 11 | B38: 5739 | C38: 11 | D38: 5750 | E38: 12 | F38: 5761 | K38: 0 | L38: 111
A39: 11 | B39: 5863 | C39: 11 | D39: 5887 | E39: 12 | F39: 5890 | K39: 0 | L39: 111
A40: 11 | B40: 6031 | C40: 11 | D40: 6449 | E40: 12 | F40: 6451 | K40: 0 | L40: 111
A41: 11 | B41: 6556 | C41: 11 | D41: 6596 | E41: 12 | F41: 6721 | K41: 0 | L41: 111
A42: 11 | B42: 6865 | C42: 11 | D42: 7171 | E42: 21 | F42: 7189 | K42: 0 | L42: 112
A43: 11 | B43: 7299 | C43: 22 | D43: 7311 | E43: 23 | F43: 7337 | K43: 0 | L43: 122
A44: 11 | B44: 7451 | C44: 22 | D44: 7501 | E44: 14 | F44: 7595 | K44: 0 | L44: 121
A45: 11 | B45: 7801 | C45: 22 | D45: 7845 | E45: 14 | F45: 7903 | K45: 0 | L45: 121
A46: 11 | B46: 8021 | C46: 11 | D46: 8033 | E46: 21 | F46: 8069 | K46: 0 | L46: 112
A47: 11 | B47: 8187 | C47: 11 | D47: 8222 | E47: 21 | F47: 8240 | K47: 0 | L47: 112
A48: 11 | B48: 8350 | C48: 22 | D48: 8371 | E48: 23 | F48: 8378 | K48: 0 | L48: 122
A49: 11 | B49: 8485 | C49: 22 | D49: 8503 | E49: 14 | F49: 8525 | K49: 0 | L49: 121
A50: 11 | B50: 8628 | C50: 11 | D50: 8690 | E50: 21 | F50: 8709 | K50: 0 | L50: 112
A51: 11 | B51: 8816 | C51: 11 | D51: 8864 | E51: 12 | F51: 8928 | K51: 0 | L51: 111
A52: 11 | B52: 9047 | C52: 11 | D52: 9049 | E52: 21 | F52: 9067 | K52: 0 | L52: 112
A53: 11 | B53: 9174 | C53: 22 | D53: 9200 | E53: 23 | F53: 9207 | K53: 0 | L53: 122
A54: 11 | B54: 9314 | C54: 11 | D54: 9327 | E54: 12 | F54: 9373 | K54: 0 | L54: 111
A55: 11 | B55: 9493 | C55: 22 | D55: 9517 | E55: 23 | F55: 9540 | K55: 0 | L55: 122
A56: 11 | B56: 9655 | C56: 11 | D56: 9699 | E56: 12 | F56: 9748 | K56: 0 | L56: 111
A57: 11 | B57: 9850 | C57: 11 | D57: 9871 | E57: 12 | F57: 9918 | K57: 0 | L57: 111
A58: 11 | B58: 10026 | C58: 11 | D58: 10069 | E58: 21 | F58: 10086 | K58: 0 | L58: 112
A59: 11 | B59: 10180 | C59: 11 | D59: 10193 | E59: 21 | F59: 10217 | K59: 0 | L59: 112
A60: 11 | B60: 10320 | C60: 11 | D60: 10330 | E60: 12 | F60: 10342 | K60: 0 | L60: 111
A61: 11 | B61: 10439 | C61: 11 | D61: 10450 | E61: 12 | F61: 10490 | K61: 0 | L61: 111
A62: 11 | B62: 10621 | C62: 22 | D62: 10634 | E62: 14 | F62: 10656 | K62: 0 | L62: 121
A63: 11 | B63: 10762 | C63: 11 | D63: 10773 | E63: 12 | F63: 10797 | K63: 0 | L63: 111
A64: 11 | B64: 10916 | C64: 11 | D64: 10929 | E64: 21 | F64: 10947 | K64: 0 | L64: 112
A65: 11 | B65: 11060 | C65: 22 | D65: 11086 | E65: 23 | F65: 11092 | K65: 0 | L65: 122
A66: 11 | B66: 11188 | C66: 11 | D66: 11199 | E66: 21 | F66: 11212 | K66: 0 | L66: 112
A67: 11 | B67: 11317 | C67: 11 | D67: 11331 | E67: 21 | F67: 11350 | K67: 0 | L67: 112
A68: 11 | B68: 11456 | C68: 11 | D68: 11473 | E68: 21 | F68: 11487 | K68: 0 | L68: 112
A69: 11 | B69: 11597 | C69: 11 | D69: 11609 | E69: 21 | F69: 11625 | K69: 0 | L69: 112
A70: 11 | B70: 11748 | C70: 22 | D70: 11775 | E70: 14 | F70: 11829 | K70: 0 | L70: 121
A71: 11 | B71: 11931 | C71: 11 | D71: 11943 | E71: 12 | F71: 11952 | K71: 0 | L71: 111
A72: 11 | B72: 12086 | C72: 22 | D72: 12106 | E72: 23 | F72: 12113 | K72: 0 | L72: 122
A73: 11 | B73: 12245 | C73: 22 | D73: 12283 | E73: 23 | F73: 12299 | K73: 0 | L73: 122
A74: 11 | B74: 12409 | C74: 11 | D74: 12429 | E74: 12 | F74: 12432 | K74: 0 | L74: 111
A75: 11 | B75: 12554 | C75: 11 | D75: 12558 | E75: 21 | F75: 12577 | K75: 0 | L75: 112
A76: 11 | B76: 12697 | C76: 22 | D76: 12714 | E76: 14 | F76: 12753 | K76: 0 | L76: 121
A77: 11 | B77: 12862 | C77: 22 | D77: 12883 | E77: 23 | F77: 12892 | K77: 0 | L77: 122
A78: 11 | B78: 12996 | C78: 11 | D78: 13006 | E78: 12 | F78: 13066 | K78: 0 | L78: 111
A79: 11 | B79: 13164 | C79: 11 | D79: 13183 | E79: 21 | F79: 13201 | K79: 0 | L79: 112
A80: 11 | B80: 13304 | C80: 11 | D80: 13306 | E80: 12 | F80: 13372 | K80: 0 | L80: 111
A81: 11 | B81: 13519 | C81: 11 | D81: 13574 | E81: 12 | F81: 13617 | K81: 0 | L81: 111
A82: 11 | B82: 13759 | C82: 22 | D82: 13804 | E82: 23 | F82: 13810 | K82: 0 | L82: 122
A83: 11 | B83: 13937 | C83: 11 | D83: 13957 | E83: 12 | F83: 13965 | K83: 0 | L83: 111
A84: 11 | B84: 14114 | C84: 11 | D84: 14125 | E84: 21 | F84: 14143 | K84: 0 | L84: 112
A85: 11 | B85: 14233 | C85: 11 | D85: 14241 | E85: 21 | F85: 14267 | K85: 0 | L85: 112
A86: 11 | B86: 14376 | C86: 22 | D86: 14391 | E86: 23 | F86: 14397 | K86: 0 | L86: 122
A87: 11 | B87: 14514 | C87: 11 | D87: 14535 | E87: 21 | F87: 14548 | K87: 0 | L87: 112
A88: 11 | B88: 14660 | C88: 11 | D88: 14669 | E88: 21 | F88: 14690 | K88: 0 | L88: 112
A89: 11 | B89: 14786 | C89: 11 | D89: 14795 | E89: 12 | F89: 14802 | K89: 0 | L89: 111
A90: 11 | B90: 14934 | C90: 11 | D90: 14946 | E90: 12 | F90: 14957 | K90: 0 | L90: 111
A91: 11 | B91: 15061 | C91: 11 | D91: 15072 | E91: 21 | F91: 15095 | K91: 0 | L91: 112
A92: 11 | B92: 15224 | C92: 11 | D92: 15257 | E92: 12 | F92: 15261 | K92: 0 | L92: 111
